Workbook

Sheet Forecast_NoGDP_NoMedian_ER
A1: Year | B1: Month | C1: No | D1: KWH | E1: KW | F1: LF | G1: Heating Degree Days | H1: Cooling Degree Days | I1: Peakhours | J1: Seasonal Weighting Factor | K1: Industrial Production Weighting Factor | L1: Population | M1: Unemployment Rate | N1: Predicted kWH | O1: %Variance
A2: 1998 | B2: Jan | C2: 1 | D2: 75570017.88 | E2: 130983.22 | F2: =D2/E2/24/(DAY(DATE(A3,C2+1,1)-1)) -> 0.7754627247 | G2: 552.2 | H2: 0 | I2: 336.288 | J2: 0 | K2: 2 | L2: =L3-14 -> 106683 | M2: 7.4 | O2: =(1-N2/D2) -> 1
A3: 1998 | B3: Feb | C3: 2 | D3: 68168475.13 | E3: 128474.49 | F3: =D3/E3/24/(DAY(DATE(A4,C3+1,1)-1)) -> 0.7895822994 | G3: 443.2 | H3: 0 | I3: 319.872 | J3: -1 | K3: 2 | L3: 106697 | M3: 8.4 | O3: 1
A4: 1998 | B4: Mar | C4: 3 | D4: 74924788.11 | E4: 127284.04 | F4: 0.7911860777 | G4: 440 | H4: 5.9 | I4: 351.912 | J4: 0 | K4: 3 | L4: 106711 | M4: 9.2 | O4: 1
A5: 1998 | B5: Apr | C5: 4 | D5: 66745191 | E5: 121012.95 | F5: 0.7660473872 | G5: 249.1 | H5: 0 | I5: 336.24 | J5: -0.75 | K5: 4 | L5: 106725 | M5: 8.6 | O5: 1
A6: 1998 | B6: May | C6: 5 | D6: 72356351.15 | E6: 148733.37 | F6: 0.6538758595 | G6: 42.2 | H6: 54.3 | I6: 319.92 | J6: 0 | K6: 3 | L6: 106739 | M6: 7.7 | O6: 1
A7: 1998 | B7: Jun | C7: 6 | D7: 80403469.05 | E7: 179890.4705 | F7: 0.6207748774 | G7: 41.5 | H7: 125.7 | I7: 352.08 | J7: 0 | K7: 3 | L7: 106753 | M7: 7.5 | O7: 1
A8: 1998 | B8: Jul | C8: 7 | D8: 82869631.39 | E8: 170332.9305 | F8: 0.6539188449 | G8: 0 | H8: 159.9 | I8: 351.912 | J8: 0 | K8: 2 | L8: 106767 | M8: 8.4 | O8: 1
A9: 1998 | B9: Aug | C9: 8 | D9: 88615228.5 | E9: 179093.09 | F9: 0.66505352 | G9: 1.2 | H9: 147.3 | I9: 319.92 | J9: 1 | K9: 2 | L9: 106781 | M9: 9 | O9: 1
A10: 1998 | B10: Sep | C10: 9 | D10: 78935386.8 | E10: 154733.28 | F10: 0.7085255458 | G10: 17.7 | H10: 82.4 | I10: 336.24 | J10: 0.75 | K10: 4 | L10: 106795 | M10: 8.9 | O10: 1
A11: 1998 | B11: Oct | C11: 10 | D11: 74846440 | E11: 127691.61 | F11: 0.787836051 | G11: 181.3 | H11: 5.2 | I11: 336.288 | J11: 0.25 | K11: 4 | L11: 106809 | M11: 8 | O11: 1
A12: 1998 | B12: Nov | C12: 11 | D12: 75052465.8 | E12: 132490.47 | F12: 0.7867700661 | G12: 336.9 | H12: 0 | I12: 336.24 | J12: -0.25 | K12: 3 | L12: 106823 | M12: 7.3 | O12: 1
A13: 1998 | B13: Dec | C13: 12 | D13: 76019395.5 | E13: 139903.76 | F13: 0.7303349592 | G13: 485.7 | H13: 0 | I13: 336.288 | J13: -0.25 | K13: 0 | L13: 106837 | M13: 7.2 | O13: 1
A14: 1999 | B14: Jan | C14: 1 | D14: 83216461.1 | E14: 146833.21 | F14: 0.7617492128 | G14: 718.9 | H14: 0 | I14: 319.92 | J14: =J2 -> 0 | K14: =K2 -> 2 | L14: 106851 | M14: 7.3 | O14: 1
A15: 1999 | B15: Feb | C15: 2 | D15: 73698462.8 | E15: 134989.75 | F15: 0.8124345111 | G15: 500.4 | H15: 0 | I15: 319.872 | J15: =J3 -> -1 | K15: =K3 -> 2 | L15: 106865 | M15: 7.1 | O15: 1
A16: 1999 | B16: Mar | C16: 3 | D16: 79791477.4 | E16: 135933.93 | F16: 0.7889612947 | G16: 517.2 | H16: 0 | I16: 368.28 | J16: =J4 -> 0 | K16: 3 | L16: 106879 | M16: 6.9 | O16: 1
A17: 1999 | B17: Apr | C17: 4 | D17: 70411214.9 | E17: 123910 | F17: 0.7892289083 | G17: 243.9 | H17: 0 | I17: 336.24 | J17: =J5 -> -0.75 | K17: 4 | L17: 106893 | M17: 6.6 | O17: 1
A18: 1999 | B18: May | C18: 5 | D18: 72067143.6 | E18: 133936.48 | F18: 0.7232117816 | G18: 65.8 | H18: 26.1 | I18: 319.92 | J18: =J6 -> 0 | K18: 3 | L18: 106907 | M18: 6.3 | O18: 1
A19: 1999 | B19: Jun | C19: 6 | D19: 84086655.7 | E19: 175727.18 | F19: 0.6645928183 | G19: 19.1 | H19: 131.9 | I19: 352.08 | J19: 0 | K19: 3 | L19: 106921 | M19: 5.8 | O19: 1
A20: 1999 | B20: Jul | C20: 7 | D20: 90045568.5 | E20: 177564.94 | F20: 0.6816040932 | G20: 0 | H20: 227.8 | I20: 336.288 | J20: 0 | K20: 2 | L20: 106935 | M20: 5.8 | O20: 1
A21: 1999 | B21: Aug | C21: 8 | D21: 81217134.6 | E21: 163632.64 | F21: 0.6671212744 | G21: 1.2 | H21: 102.1 | I21: 336.288 | J21: 1 | K21: 2 | L21: 106949 | M21: 6.3 | O21: 1
A22: 1999 | B22: Sep | C22: 9 | D22: 76861202.5 | E22: 152305.76 | F22: 0.7009036962 | G22: 37.1 | H22: 64.4 | I22: 336.24 | J22: 0.75 | K22: 4 | L22: 106963 | M22: 6.7 | O22: 1
A23: 1999 | B23: Oct | C23: 10 | D23: 73100196 | E23: 130512.1 | F23: 0.7528263786 | G23: 221.4 | H23: 0.9 | I23: 319.92 | J23: 0.25 | K23: 4 | L23: 106977 | M23: 6.5 | O23: 1
A24: 1999 | B24: Nov | C24: 11 | D24: 72995431 | E24: 139934.1 | F24: 0.7245020553 | G24: 324.3 | H24: 0 | I24: 352.08 | J24: -0.25 | K24: 3 | L24: 106991 | M24: 6.2 | O24: 1
A25: 1999 | B25: Dec | C25: 12 | D25: 76210082.3 | E25: 144765.09 | F25: 0.7075801653 | G25: 558.4 | H25: 0 | I25: 336.288 | J25: -0.25 | K25: 0 | L25: 107005 | M25: 5.9 | O25: 1
A26: 2000 | B26: Jan | C26: 1 | D26: 79536131 | E26: 141049.08 | F26: 0.7579163358 | G26: 679.9 | H26: 0 | I26: 319.92 | J26: =J14 -> 0 | K26: =K14 -> 2 | L26: 107019 | M26: 5.9 | O26: 1
A27: 2000 | B27: Feb | C27: 2 | D27: 73178156 | E27: 133102.63 | F27: 0.7899245021 | G27: 533.9 | H27: 0 | I27: 336.168 | J27: =J15 -> -1 | K27: 2 | L27: 107033 | M27: 5.9 | O27: 1
A28: 2000 | B28: Mar | C28: 3 | D28: 75091178 | E28: 129484.19 | F28: 0.7794696996 | G28: 367.7 | H28: 0.5 | I28: 368.28 | J28: =J16 -> 0 | K28: 3 | L28: 107047 | M28: 5.7 | O28: 1
A29: 2000 | B29: Apr | C29: 4 | D29: 68114066 | E29: 126280.51 | F29: 0.7491486172 | G29: 293.6 | H29: 0 | I29: 303.84 | J29: =J17 -> -0.75 | K29: 4 | L29: 107061 | M29: 5.6 | O29: 1
A30: 2000 | B30: May | C30: 5 | D30: 74696611.9 | E30: 147531.7 | F30: 0.6805227074 | G30: 85.1 | H30: 38.6 | I30: 351.912 | J30: 0 | K30: 3 | L30: 107075 | M30: 5.3 | O30: 1
A31: 2000 | B31: Jun | C31: 6 | D31: 80335315 | E31: 167627.59 | F31: 0.6656232807 | G31: 18 | H31: 98.7 | I31: 352.08 | J31: 0 | K31: 3 | L31: 107089 | M31: 4.8 | O31: 1
A32: 2000 | B32: Jul | C32: 7 | D32: 78162420 | E32: 159861.29 | F32: 0.6571760814 | G32: 0.9 | H32: 97.1 | I32: 319.92 | J32: 0 | K32: 2 | L32: 107103 | M32: 4.9 | O32: 1
A33: 2000 | B33: Aug | C33: 8 | D33: 85745386 | E33: 168464.57 | F33: 0.6841152103 | G33: 7.7 | H33: 109.9 | I33: 351.912 | J33: 1 | K33: 2 | L33: 107117 | M33: 5.2 | O33: 1
A34: 2000 | B34: Sep | C34: 9 | D34: 76389789 | E34: 167817.1 | F34: 0.6322176296 | G34: 76.4 | H34: 45.7 | I34: 319.68 | J34: 0.75 | K34: 4 | L34: 107131 | M34: 6.2 | O34: 1
A35: 2000 | B35: Oct | C35: 10 | D35: 72457860 | E35: 127194.3 | F35: 0.765675795 | G35: 158.4 | H35: 3.3 | I35: 336.288 | J35: 0.25 | K35: 4 | L35: 107145 | M35: 6.1 | O35: 1
A36: 2000 | B36: Nov | C36: 11 | D36: 75593151 | E36: 139855.5 | F36: 0.7507068903 | G36: 401.3 | H36: 0 | I36: 352.08 | J36: -0.25 | K36: 3 | L36: 107159 | M36: 6.2 | O36: 1
A37: 2000 | B37: Dec | C37: 12 | D37: 76895977 | E37: 143048.6 | F37: 0.7225153395 | G37: 771.2 | H37: 0 | I37: 304.296 | J37: -0.25 | K37: 0 | L37: 107173 | M37: 6.5 | O37: 1
A38: 2001 | B38: Jan | C38: 1 | D38: 77836513 | E38: 138147.8 | F38: 0.7572973952 | G38: 657.4 | H38: 0 | I38: 351.912 | J38: =J26 -> 0 | K38: =K26 -> 2 | L38: 107187 | M38: 7.1 | O38: 1
A39: 2001 | B39: Feb | C39: 2 | D39: 68724114 | E39: 129314.81 | F39: 0.7908454321 | G39: 544.3 | H39: 0 | I39: 319.872 | J39: =J27 -> -1 | K39: 2 | L39: 107201 | M39: 8.1 | O39: 1
A40: 2001 | B40: Mar | C40: 3 | D40: 73837297 | E40: 124821.5 | F40: 0.7950848112 | G40: 518.9 | H40: 0 | I40: 351.912 | J40: =J28 -> 0 | K40: 3 | L40: 107215 | M40: 8.5 | O40: 1
A41: 2001 | B41: Apr | C41: 4 | D41: 65927141 | E41: 122104.5 | F41: 0.7498943414 | G41: 245.3 | H41: 0.4 | I41: 319.68 | J41: =J29 -> -0.75 | K41: 4 | L41: 107229 | M41: 8.4 | O41: 1
A42: 2001 | B42: May | C42: 5 | D42: 70361810 | E42: 130504.6 | F42: 0.7246666039 | G42: 82.9 | H42: 20.4 | I42: 351.912 | J42: =J30 -> 0 | K42: 3 | L42: 107243 | M42: 7.8 | O42: 1
A43: 2001 | B43: Jun | C43: 6 | D43: 79860509 | E43: 172880.62 | F43: 0.6415836177 | G43: 24.9 | H43: 112.5 | I43: 336.24 | J43: 0 | K43: 3 | L43: 107257 | M43: 7.1 | O43: 1
A44: 2001 | B44: Jul | C44: 7 | D44: 83033599 | E44: 183595.93 | F44: 0.6078800316 | G44: 3.2 | H44: 156.1 | I44: 336.288 | J44: 0 | K44: 2 | L44: 107271 | M44: 7.2 | O44: 1
A45: 2001 | B45: Aug | C45: 8 | D45: 89193753 | E45: 186132.6 | F45: 0.6440788804 | G45: 0 | H45: 162.2 | I45: 351.912 | J45: 1 | K45: 2 | L45: 107285 | M45: 7.1 | O45: 1
A46: 2001 | B46: Sep | C46: 9 | D46: 72854620 | E46: 157846.4 | F46: 0.64104707 | G46: 69.9 | H46: 36.2 | I46: 303.84 | J46: 0.75 | K46: 4 | L46: 107299 | M46: 6.9 | O46: 1
A47: 2001 | B47: Oct | C47: 10 | D47: 70195854 | E47: 122473.1 | F47: 0.7703672572 | G47: 202.7 | H47: 2.9 | I47: 351.912 | J47: 0.25 | K47: 4 | L47: 107313 | M47: 6.3 | O47: 1
A48: 2001 | B48: Nov | C48: 11 | D48: 70271116 | E48: 126798.5 | F48: 0.769715511 | G48: 279.9 | H48: 0 | I48: 352.08 | J48: -0.25 | K48: 3 | L48: =L49-14 -> 107327 | M48: 5.9 | O48: 1
A49: 2001 | B49: Dec | C49: 12 | D49: 71209767 | E49: 133819.4 | F49: 0.7152330112 | G49: 491.6 | H49: 0 | I49: 304.296 | J49: -0.25 | K49: 0 | L49: 107341 | M49: 6.2 | O49: 1
A50: 2002 | B50: Jan | C50: 1 | D50: 75539423 | E50: 128166 | F50: 0.7921873393 | G50: 545.3 | H50: 0 | I50: 351.912 | J50: =J38 -> 0 | K50: =K38 -> 2 | L50: =L49+14 -> 107355 | M50: 7.333296226 | N50: =Results_NoGDP_NoMedian!$B$17+Results_NoGDP_NoMedian!$B$18*G50+Results_NoGDP_NoMedian!$B$19*H50+Results_NoGDP_NoMedian!$B$20*I50+Results_NoGDP_NoMedian!$B$21*J50+Results_NoGDP_NoMedian!$B$22*K50+Results_NoGDP_NoMedian!$B$23*L50+Results_NoGDP_NoMedian!$B$24*M50 -> 75950957.99 | O50: -0.005447949924
A51: 2002 | B51: Feb | C51: 2 | D51: 68515032 | E51: 129818.3 | F51: 0.7853815129 | G51: 494.8 | H51: 0 | I51: 319.872 | J51: =J39 -> -1 | K51: 2 | L51: =L50+14 -> 107369 | M51: 7.376548353 | N51: =Results_NoGDP_NoMedian!$B$17+Results_NoGDP_NoMedian!$B$18*G51+Results_NoGDP_NoMedian!$B$19*H51+Results_NoGDP_NoMedian!$B$20*I51+Results_NoGDP_NoMedian!$B$21*J51+Results_NoGDP_NoMedian!$B$22*K51+Results_NoGDP_NoMedian!$B$23*L51+Results_NoGDP_NoMedian!$B$24*M51 -> 69735298.68 | O51: -0.01781020372
A52: 2002 | B52: Mar | C52: 3 | D52: 73639815 | E52: 130708.9 | F52: 0.7572418249 | G52: 513.9 | H52: 0 | I52: 319.92 | J52: =J40 -> 0 | K52: 3 | L52: 107383 | M52: 7.445482003 | N52: =Results_NoGDP_NoMedian!$B$17+Results_NoGDP_NoMedian!$B$18*G52+Results_NoGDP_NoMedian!$B$19*H52+Results_NoGDP_NoMedian!$B$20*I52+Results_NoGDP_NoMedian!$B$21*J52+Results_NoGDP_NoMedian!$B$22*K52+Results_NoGDP_NoMedian!$B$23*L52+Results_NoGDP_NoMedian!$B$24*M52 -> 74564671.03 | O52: -0.01255918454
A53: 2002 | B53: Apr | C53: 4 | D53: 70425715 | E53: 130995.7 | F53: 0.7466923957 | G53: 273.3 | H53: 15.1 | I53: 352.08 | J53: =J41 -> -0.75 | K53: 4 | L53: 107397 | M53: 7.514514791 | N53: =Results_NoGDP_NoMedian!$B$17+Results_NoGDP_NoMedian!$B$18*G53+Results_NoGDP_NoMedian!$B$19*H53+Results_NoGDP_NoMedian!$B$20*I53+Results_NoGDP_NoMedian!$B$21*J53+Results_NoGDP_NoMedian!$B$22*K53+Results_NoGDP_NoMedian!$B$23*L53+Results_NoGDP_NoMedian!$B$24*M53 -> 70918142.43 | O53: -0.006992153722
A54: 2002 | B54: May | C54: 5 | D54: 72864570 | E54: 140660.2 | F54: 0.6962612736 | G54: 185.1 | H54: 12.5 | I54: 351.912 | J54: =J42 -> 0 | K54: 3 | L54: 107411 | M54: 7.520683949 | N54: =Results_NoGDP_NoMedian!$B$17+Results_NoGDP_NoMedian!$B$18*G54+Results_NoGDP_NoMedian!$B$19*H54+Results_NoGDP_NoMedian!$B$20*I54+Results_NoGDP_NoMedian!$B$21*J54+Results_NoGDP_NoMedian!$B$22*K54+Results_NoGDP_NoMedian!$B$23*L54+Results_NoGDP_NoMedian!$B$24*M54 -> 70608341.59 | O54: 0.03096468441
A55: 2002 | B55: Jun | C55: 6 | D55: 79716033 | E55: 178718.3 | F55: 0.6195040603 | G55: 16.5 | H55: 118.3 | I55: 319.68 | J55: 0 | K55: 3 | L55: 107425 | M55: 7.505026302 | N55: =Results_NoGDP_NoMedian!$B$17+Results_NoGDP_NoMedian!$B$18*G55+Results_NoGDP_NoMedian!$B$19*H55+Results_NoGDP_NoMedian!$B$20*I55+Results_NoGDP_NoMedian!$B$21*J55+Results_NoGDP_NoMedian!$B$22*K55+Results_NoGDP_NoMedian!$B$23*L55+Results_NoGDP_NoMedian!$B$24*M55 -> 78889739.98 | O55: 0.01036545584
A56: 2002 | B56: Jul | C56: 7 | D56: 93049284 | E56: 182854.8 | F56: 0.6839647739 | G56: 0 | H56: 201.2 | I56: 351.912 | J56: 0 | K56: 2 | L56: 107439 | M56: 7.377477255 | N56: =Results_NoGDP_NoMedian!$B$17+Results_NoGDP_NoMedian!$B$18*G56+Results_NoGDP_NoMedian!$B$19*H56+Results_NoGDP_NoMedian!$B$20*I56+Results_NoGDP_NoMedian!$B$21*J56+Results_NoGDP_NoMedian!$B$22*K56+Results_NoGDP_NoMedian!$B$23*L56+Results_NoGDP_NoMedian!$B$24*M56 -> 89720299.14 | O56: 0.03577657687
A57: 2002 | B57: Aug | C57: 8 | D57: 91281708 | E57: 185916.6 | F57: 0.6599220712 | G57: 0 | H57: 149.2 | I57: 336.288 | J57: 1 | K57: 2 | L57: 107453 | M57: 7.197696737 | N57: =Results_NoGDP_NoMedian!$B$17+Results_NoGDP_NoMedian!$B$18*G57+Results_NoGDP_NoMedian!$B$19*H57+Results_NoGDP_NoMedian!$B$20*I57+Results_NoGDP_NoMedian!$B$21*J57+Results_NoGDP_NoMedian!$B$22*K57+Results_NoGDP_NoMedian!$B$23*L57+Results_NoGDP_NoMedian!$B$24*M57 -> 86375280.59 | O57: 0.05375039011
A58: 2002 | B58: Sep | C58: 9 | D58: 85671396 | E58: 188582.2 | F58: 0.6309611936 | G58: 17.1 | H58: 97.9 | I58: 319.68 | J58: 0.75 | K58: 4 | L58: 107467 | M58: 7.042138055 | N58: =Results_NoGDP_NoMedian!$B$17+Results_NoGDP_NoMedian!$B$18*G58+Results_NoGDP_NoMedian!$B$19*H58+Results_NoGDP_NoMedian!$B$20*I58+Results_NoGDP_NoMedian!$B$21*J58+Results_NoGDP_NoMedian!$B$22*K58+Results_NoGDP_NoMedian!$B$23*L58+Results_NoGDP_NoMedian!$B$24*M58 -> 80562724.67 | O58: 0.05963100371
A59: 2002 | B59: Oct | C59: 10 | D59: 78002634 | E59: 152745.1 | F59: 0.6863869938 | G59: 255.9 | H59: 12.6 | I59: 351.912 | J59: 0.25 | K59: 4 | L59: 107481 | M59: 7.039106145 | N59: =Results_NoGDP_NoMedian!$B$17+Results_NoGDP_NoMedian!$B$18*G59+Results_NoGDP_NoMedian!$B$19*H59+Results_NoGDP_NoMedian!$B$20*I59+Results_NoGDP_NoMedian!$B$21*J59+Results_NoGDP_NoMedian!$B$22*K59+Results_NoGDP_NoMedian!$B$23*L59+Results_NoGDP_NoMedian!$B$24*M59 -> 74544078.41 | O59: 0.04433895893
A60: 2002 | B60: Nov | C60: 11 | D60: 75569055 | E60: 134440.9 | F60: 0.7806926377 | G60: 417.5 | H60: 0 | I60: 336.24 | J60: -0.25 | K60: 3 | L60: 107495 | M60: 7.098530212 | N60: =Results_NoGDP_NoMedian!$B$17+Results_NoGDP_NoMedian!$B$18*G60+Results_NoGDP_NoMedian!$B$19*H60+Results_NoGDP_NoMedian!$B$20*I60+Results_NoGDP_NoMedian!$B$21*J60+Results_NoGDP_NoMedian!$B$22*K60+Results_NoGDP_NoMedian!$B$23*L60+Results_NoGDP_NoMedian!$B$24*M60 -> 72891954.64 | O60: 0.03542588109
A61: 2002 | B61: Dec | C61: 12 | D61: 74014572 | E61: 137747.6 | F61: 0.7222046091 | G61: 610.4 | H61: 0 | I61: 319.92 | J61: -0.25 | K61: 0 | L61: 107509 | M61: 7.126918472 | N61: =Results_NoGDP_NoMedian!$B$17+Results_NoGDP_NoMedian!$B$18*G61+Results_NoGDP_NoMedian!$B$19*H61+Results_NoGDP_NoMedian!$B$20*I61+Results_NoGDP_NoMedian!$B$21*J61+Results_NoGDP_NoMedian!$B$22*K61+Results_NoGDP_NoMedian!$B$23*L61+Results_NoGDP_NoMedian!$B$24*M61 -> 73590613.39 | O61: 0.005728042474
A62: 2003 | B62: Jan | C62: 1 | D62: 80158611 | E62: 137438.7 | F62: 0.7839136178 | G62: 759.2 | H62: 0 | I62: 351.912 | J62: =J50 -> 0 | K62: =K50 -> 2 | L62: 107523 | M62: 7.048470152 | N62: =Results_NoGDP_NoMedian!$B$17+Results_NoGDP_NoMedian!$B$18*G62+Results_NoGDP_NoMedian!$B$19*H62+Results_NoGDP_NoMedian!$B$20*I62+Results_NoGDP_NoMedian!$B$21*J62+Results_NoGDP_NoMedian!$B$22*K62+Results_NoGDP_NoMedian!$B$23*L62+Results_NoGDP_NoMedian!$B$24*M62 -> 80916238.77 | O62: -0.009451608009
A63: 2003 | B63: Feb | C63: 2 | D63: 73538697 | E63: 136985 | F63: 0.7988654584 | G63: 656.2 | H63: 0 | I63: 319.872 | J63: =J51 -> -1 | K63: 2 | L63: 107537 | M63: 6.976617282 | N63: =Results_NoGDP_NoMedian!$B$17+Results_NoGDP_NoMedian!$B$18*G63+Results_NoGDP_NoMedian!$B$19*H63+Results_NoGDP_NoMedian!$B$20*I63+Results_NoGDP_NoMedian!$B$21*J63+Results_NoGDP_NoMedian!$B$22*K63+Results_NoGDP_NoMedian!$B$23*L63+Results_NoGDP_NoMedian!$B$24*M63 -> 73746542.79 | O63: -0.002826345837
A64: 2003 | B64: Mar | C64: 3 | D64: 74987208 | E64: 133502.5 | F64: 0.754961578 | G64: 524.1 | H64: 0 | I64: 336.288 | J64: =J52 -> 0 | K64: 3 | L64: 107551 | M64: 6.953244483 | N64: =Results_NoGDP_NoMedian!$B$17+Results_NoGDP_NoMedian!$B$18*G64+Results_NoGDP_NoMedian!$B$19*H64+Results_NoGDP_NoMedian!$B$20*I64+Results_NoGDP_NoMedian!$B$21*J64+Results_NoGDP_NoMedian!$B$22*K64+Results_NoGDP_NoMedian!$B$23*L64+Results_NoGDP_NoMedian!$B$24*M64 -> 76266927.75 | O64: -0.01706584073
A65: 2003 | B65: Apr | C65: 4 | D65: 68131035 | E65: 128179.2 | F65: 0.7382355133 | G65: 303.3 | H65: 2.7 | I65: 336.24 | J65: =J53 -> -0.75 | K65: 4 | L65: 107565 | M65: 7.033321488 | N65: =Results_NoGDP_NoMedian!$B$17+Results_NoGDP_NoMedian!$B$18*G65+Results_NoGDP_NoMedian!$B$19*H65+Results_NoGDP_NoMedian!$B$20*I65+Results_NoGDP_NoMedian!$B$21*J65+Results_NoGDP_NoMedian!$B$22*K65+Results_NoGDP_NoMedian!$B$23*L65+Results_NoGDP_NoMedian!$B$24*M65 -> 69997624.28 | O65: -0.02739704867
A66: 2003 | B66: May | C66: 5 | D66: 68381673 | E66: 123358 | F66: 0.7450740998 | G66: 147.6 | H66: 0.2 | I66: 336.288 | J66: =J54 -> 0 | K66: 3 | L66: 107579 | M66: 7.068800438 | N66: =Results_NoGDP_NoMedian!$B$17+Results_NoGDP_NoMedian!$B$18*G66+Results_NoGDP_NoMedian!$B$19*H66+Results_NoGDP_NoMedian!$B$20*I66+Results_NoGDP_NoMedian!$B$21*J66+Results_NoGDP_NoMedian!$B$22*K66+Results_NoGDP_NoMedian!$B$23*L66+Results_NoGDP_NoMedian!$B$24*M66 -> 68255070.13 | O66: =(1-N66/D66) -> 0.00185141522
A67: 2003 | B67: Jun | C67: 6 | D67: 73186791 | E67: 172122.7 | F67: =D67/E67/24/(DAY(DATE(A68,C67+1,1)-1)) -> 0.5905573224 | G67: 30.3 | H67: 64.2 | I67: 336.24 | J67: 0 | K67: 3 | L67: 107593 | M67: 7.084737404 | N67: =Results_NoGDP_NoMedian!$B$17+Results_NoGDP_NoMedian!$B$18*G67+Results_NoGDP_NoMedian!$B$19*H67+Results_NoGDP_NoMedian!$B$20*I67+Results_NoGDP_NoMedian!$B$21*J67+Results_NoGDP_NoMedian!$B$22*K67+Results_NoGDP_NoMedian!$B$23*L67+Results_NoGDP_NoMedian!$B$24*M67 -> 73801436.41 | O67: -0.008398310637
A68: 2003 | B68: Jul | C68: 7 | D68: 81942993 | E68: 163585.3 | F68: 0.6732782924 | G68: 0 | H68: 144.6 | I68: 351.912 | J68: 0 | K68: 2 | L68: 107607 | M68: 7.10581909 | N68: =Results_NoGDP_NoMedian!$B$17+Results_NoGDP_NoMedian!$B$18*G68+Results_NoGDP_NoMedian!$B$19*H68+Results_NoGDP_NoMedian!$B$20*I68+Results_NoGDP_NoMedian!$B$21*J68+Results_NoGDP_NoMedian!$B$22*K68+Results_NoGDP_NoMedian!$B$23*L68+Results_NoGDP_NoMedian!$B$24*M68 -> 83081535.18 | O68: -0.0138943202
A69: 2003 | B69: Aug | C69: 8 | D69: 80915733 | E69: 173485 | F69: 0.6268997645 | G69: 0 | H69: 143.1 | I69: 319.92 | J69: 1 | K69: 2 | L69: 107621 | M69: 7.115178498 | N69: =Results_NoGDP_NoMedian!$B$17+Results_NoGDP_NoMedian!$B$18*G69+Results_NoGDP_NoMedian!$B$19*H69+Results_NoGDP_NoMedian!$B$20*I69+Results_NoGDP_NoMedian!$B$21*J69+Results_NoGDP_NoMedian!$B$22*K69+Results_NoGDP_NoMedian!$B$23*L69+Results_NoGDP_NoMedian!$B$24*M69 -> 85076656.95 | O69: -0.05142292844
A70: 2003 | B70: Sep | C70: 9 | D70: 75167748 | E70: 141296.6 | F70: 0.7388688051 | G70: 50.3 | H70: 37.6 | I70: 336.24 | J70: 0.75 | K70: 4 | L70: 107635 | M70: 7.081669192 | N70: =Results_NoGDP_NoMedian!$B$17+Results_NoGDP_NoMedian!$B$18*G70+Results_NoGDP_NoMedian!$B$19*H70+Results_NoGDP_NoMedian!$B$20*I70+Results_NoGDP_NoMedian!$B$21*J70+Results_NoGDP_NoMedian!$B$22*K70+Results_NoGDP_NoMedian!$B$23*L70+Results_NoGDP_NoMedian!$B$24*M70 -> 74511856.51 | O70: 0.008725703568
A71: 2003 | B71: Oct | C71: 10 | D71: 72475980 | E71: 122965.7 | F71: 0.7922042619 | G71: 225.6 | H71: 1 | I71: 351.912 | J71: 0.25 | K71: 4 | L71: 107649 | M71: 7.061842868 | N71: =Results_NoGDP_NoMedian!$B$17+Results_NoGDP_NoMedian!$B$18*G71+Results_NoGDP_NoMedian!$B$19*H71+Results_NoGDP_NoMedian!$B$20*I71+Results_NoGDP_NoMedian!$B$21*J71+Results_NoGDP_NoMedian!$B$22*K71+Results_NoGDP_NoMedian!$B$23*L71+Results_NoGDP_NoMedian!$B$24*M71 -> 72530990.59 | O71: -0.0007590181788
A72: 2003 | B72: Nov | C72: 11 | D72: 71081556 | E72: 131282.1 | F72: 0.7520018596 | G72: 338.8 | H72: 0 | I72: 319.68 | J72: -0.25 | K72: 3 | L72: 107663 | M72: 7.122916609 | N72: =Results_NoGDP_NoMedian!$B$17+Results_NoGDP_NoMedian!$B$18*G72+Results_NoGDP_NoMedian!$B$19*H72+Results_NoGDP_NoMedian!$B$20*I72+Results_NoGDP_NoMedian!$B$21*J72+Results_NoGDP_NoMedian!$B$22*K72+Results_NoGDP_NoMedian!$B$23*L72+Results_NoGDP_NoMedian!$B$24*M72 -> 70558949.58 | O72: 0.007352208486
A73: 2003 | B73: Dec | C73: 12 | D73: 73826575 | E73: 137616 | F73: 0.7210590881 | G73: 541.8 | H73: 0 | I73: 336.288 | J73: -0.25 | K73: 0 | L73: 107677 | M73: 7.239006053 | N73: =Results_NoGDP_NoMedian!$B$17+Results_NoGDP_NoMedian!$B$18*G73+Results_NoGDP_NoMedian!$B$19*H73+Results_NoGDP_NoMedian!$B$20*I73+Results_NoGDP_NoMedian!$B$21*J73+Results_NoGDP_NoMedian!$B$22*K73+Results_NoGDP_NoMedian!$B$23*L73+Results_NoGDP_NoMedian!$B$24*M73 -> 72859296.23 | O73: 0.01310204046
A74: 2004 | B74: Jan | C74: 1 | D74: 79684648 | E74: 136326.2 | F74: 0.7856378415 | G74: 762.9 | H74: 0 | I74: 336.288 | J74: =J62 -> 0 | K74: =K62 -> 2 | L74: 107691 | M74: 7.348798674 | N74: =Results_NoGDP_NoMedian!$B$17+Results_NoGDP_NoMedian!$B$18*G74+Results_NoGDP_NoMedian!$B$19*H74+Results_NoGDP_NoMedian!$B$20*I74+Results_NoGDP_NoMedian!$B$21*J74+Results_NoGDP_NoMedian!$B$22*K74+Results_NoGDP_NoMedian!$B$23*L74+Results_NoGDP_NoMedian!$B$24*M74 -> 80000519.64 | O74: -0.003964021286
A75: 2004 | B75: Feb | C75: 2 | D75: 72900352 | E75: 131065.8 | F75: 0.7991549669 | G75: 579.4 | H75: 0 | I75: 320.16 | J75: =J63 -> -1 | K75: 2 | L75: 107705 | M75: 7.509717972 | N75: =Results_NoGDP_NoMedian!$B$17+Results_NoGDP_NoMedian!$B$18*G75+Results_NoGDP_NoMedian!$B$19*H75+Results_NoGDP_NoMedian!$B$20*I75+Results_NoGDP_NoMedian!$B$21*J75+Results_NoGDP_NoMedian!$B$22*K75+Results_NoGDP_NoMedian!$B$23*L75+Results_NoGDP_NoMedian!$B$24*M75 -> 71566588.92 | O75: 0.01829570145
A76: 2004 | B76: Mar | C76: 3 | D76: 75667416 | E76: 127110.4 | F76: 0.8001195506 | G76: 429.3 | H76: 0 | I76: 368.28 | J76: =J64 -> 0 | K76: 3 | L76: 107719 | M76: 7.693576771 | N76: =Results_NoGDP_NoMedian!$B$17+Results_NoGDP_NoMedian!$B$18*G76+Results_NoGDP_NoMedian!$B$19*H76+Results_NoGDP_NoMedian!$B$20*I76+Results_NoGDP_NoMedian!$B$21*J76+Results_NoGDP_NoMedian!$B$22*K76+Results_NoGDP_NoMedian!$B$23*L76+Results_NoGDP_NoMedian!$B$24*M76 -> 74888694.79 | O76: 0.01029136787
A77: 2004 | B77: Apr | C77: 4 | D77: 68680718 | E77: 122353 | F77: 0.779628502 | G77: 251.7 | H77: 4.4 | I77: 336.24 | J77: =J65 -> -0.75 | K77: 4 | L77: 107733 | M77: 7.872375418 | N77: =Results_NoGDP_NoMedian!$B$17+Results_NoGDP_NoMedian!$B$18*G77+Results_NoGDP_NoMedian!$B$19*H77+Results_NoGDP_NoMedian!$B$20*I77+Results_NoGDP_NoMedian!$B$21*J77+Results_NoGDP_NoMedian!$B$22*K77+Results_NoGDP_NoMedian!$B$23*L77+Results_NoGDP_NoMedian!$B$24*M77 -> 68152447.61 | O77: 0.007691684097
A78: 2004 | B78: May | C78: 5 | D78: 70763440 | E78: 131627.8 | F78: 0.7225840631 | G78: 101.6 | H78: 28.1 | I78: 319.92 | J78: =J66 -> 0 | K78: 3 | L78: 107747 | M78: 7.986984578 | N78: =Results_NoGDP_NoMedian!$B$17+Results_NoGDP_NoMedian!$B$18*G78+Results_NoGDP_NoMedian!$B$19*H78+Results_NoGDP_NoMedian!$B$20*I78+Results_NoGDP_NoMedian!$B$21*J78+Results_NoGDP_NoMedian!$B$22*K78+Results_NoGDP_NoMedian!$B$23*L78+Results_NoGDP_NoMedian!$B$24*M78 -> 68963077.5 | O78: 0.02544198668
A79: 2004 | B79: Jun | C79: 6 | D79: 76247526 | E79: 167054.5 | F79: 0.633920916 | G79: 21.4 | H79: 62 | I79: 352.08 | J79: 0 | K79: 3 | L79: 107761 | M79: 8.052940374 | N79: =Results_NoGDP_NoMedian!$B$17+Results_NoGDP_NoMedian!$B$18*G79+Results_NoGDP_NoMedian!$B$19*H79+Results_NoGDP_NoMedian!$B$20*I79+Results_NoGDP_NoMedian!$B$21*J79+Results_NoGDP_NoMedian!$B$22*K79+Results_NoGDP_NoMedian!$B$23*L79+Results_NoGDP_NoMedian!$B$24*M79 -> 72920343.06 | O79: 0.04363660198
A80: 2004 | B80: Jul | C80: 7 | D80: 79986462 | E80: 167093.8 | F80: 0.6434031992 | G80: 2.2 | H80: 122 | I80: 336.288 | J80: 0 | K80: 2 | L80: 107775 | M80: 8.077342048 | N80: =Results_NoGDP_NoMedian!$B$17+Results_NoGDP_NoMedian!$B$18*G80+Results_NoGDP_NoMedian!$B$19*H80+Results_NoGDP_NoMedian!$B$20*I80+Results_NoGDP_NoMedian!$B$21*J80+Results_NoGDP_NoMedian!$B$22*K80+Results_NoGDP_NoMedian!$B$23*L80+Results_NoGDP_NoMedian!$B$24*M80 -> 78435981.73 | O80: 0.01938428366
A81: 2004 | B81: Aug | C81: 8 | D81: 80648262 | E81: 163310 | F81: 0.6637572813 | G81: 6.1 | H81: 74.2 | I81: 336.288 | J81: 1 | K81: 2 | L81: 107789 | M81: 8.11302318 | N81: =Results_NoGDP_NoMedian!$B$17+Results_NoGDP_NoMedian!$B$18*G81+Results_NoGDP_NoMedian!$B$19*H81+Results_NoGDP_NoMedian!$B$20*I81+Results_NoGDP_NoMedian!$B$21*J81+Results_NoGDP_NoMedian!$B$22*K81+Results_NoGDP_NoMedian!$B$23*L81+Results_NoGDP_NoMedian!$B$24*M81 -> 76134661.23 | O81: 0.05596649765
A82: 2004 | B82: Sep | C82: 9 | D82: 79026081 | E82: 152323.5 | F82: 0.720561475 | G82: 23 | H82: 59.7 | I82: 336.24 | J82: 0.75 | K82: 4 | L82: 107803 | M82: 8.128585345 | N82: =Results_NoGDP_NoMedian!$B$17+Results_NoGDP_NoMedian!$B$18*G82+Results_NoGDP_NoMedian!$B$19*H82+Results_NoGDP_NoMedian!$B$20*I82+Results_NoGDP_NoMedian!$B$21*J82+Results_NoGDP_NoMedian!$B$22*K82+Results_NoGDP_NoMedian!$B$23*L82+Results_NoGDP_NoMedian!$B$24*M82 -> 75466435.2 | O82: 0.04504393681
A83: 2004 | B83: Oct | C83: 10 | D83: 72549672 | E83: 122686.2 | F83: 0.7948163689 | G83: 190.9 | H83: 0.5 | I83: 319.92 | J83: 0.25 | K83: 4 | L83: 107817 | M83: 8.146749393 | N83: =Results_NoGDP_NoMedian!$B$17+Results_NoGDP_NoMedian!$B$18*G83+Results_NoGDP_NoMedian!$B$19*H83+Results_NoGDP_NoMedian!$B$20*I83+Results_NoGDP_NoMedian!$B$21*J83+Results_NoGDP_NoMedian!$B$22*K83+Results_NoGDP_NoMedian!$B$23*L83+Results_NoGDP_NoMedian!$B$24*M83 -> 68988062.6 | O83: 0.04909201249
A84: 2004 | B84: Nov | C84: 11 | D84: 72369445 | E84: 130779.7 | F84: 0.7685681956 | G84: 354 | H84: 0 | I84: 352.08 | J84: -0.25 | K84: 3 | L84: 107831 | M84: 8.139816484 | N84: =Results_NoGDP_NoMedian!$B$17+Results_NoGDP_NoMedian!$B$18*G84+Results_NoGDP_NoMedian!$B$19*H84+Results_NoGDP_NoMedian!$B$20*I84+Results_NoGDP_NoMedian!$B$21*J84+Results_NoGDP_NoMedian!$B$22*K84+Results_NoGDP_NoMedian!$B$23*L84+Results_NoGDP_NoMedian!$B$24*M84 -> 71152647.77 | O84: 0.01681368751
A85: 2004 | B85: Dec | C85: 12 | D85: 75651436 | E85: 140467.6 | F85: 0.7238825013 | G85: 593.5 | H85: 0 | I85: 336.288 | J85: -0.25 | K85: 0 | L85: 107845 | M85: 8.124144226 | N85: =Results_NoGDP_NoMedian!$B$17+Results_NoGDP_NoMedian!$B$18*G85+Results_NoGDP_NoMedian!$B$19*H85+Results_NoGDP_NoMedian!$B$20*I85+Results_NoGDP_NoMedian!$B$21*J85+Results_NoGDP_NoMedian!$B$22*K85+Results_NoGDP_NoMedian!$B$23*L85+Results_NoGDP_NoMedian!$B$24*M85 -> 72910701.31 | O85: 0.03622845555
A86: 2005 | B86: Jan | C86: 1 | D86: 79711033 | E86: 140596.6 | F86: 0.7620275683 | G86: 700.4 | H86: 0 | I86: 319.92 | J86: =J74 -> 0 | K86: =K74 -> 2 | L86: 107859 | M86: 8.051279301 | N86: =Results_NoGDP_NoMedian!$B$17+Results_NoGDP_NoMedian!$B$18*G86+Results_NoGDP_NoMedian!$B$19*H86+Results_NoGDP_NoMedian!$B$20*I86+Results_NoGDP_NoMedian!$B$21*J86+Results_NoGDP_NoMedian!$B$22*K86+Results_NoGDP_NoMedian!$B$23*L86+Results_NoGDP_NoMedian!$B$24*M86 -> 77142435.14 | O86: 0.03222386864
A87: 2005 | B87: Feb | C87: 2 | D87: 72086002 | E87: 131756 | F87: 0.8141628185 | G87: 572 | H87: 0 | I87: 319.872 | J87: =J75 -> -1 | K87: 2 | L87: 107873 | M87: 7.942122186 | N87: =Results_NoGDP_NoMedian!$B$17+Results_NoGDP_NoMedian!$B$18*G87+Results_NoGDP_NoMedian!$B$19*H87+Results_NoGDP_NoMedian!$B$20*I87+Results_NoGDP_NoMedian!$B$21*J87+Results_NoGDP_NoMedian!$B$22*K87+Results_NoGDP_NoMedian!$B$23*L87+Results_NoGDP_NoMedian!$B$24*M87 -> 70947404.47 | O87: 0.01579498795
A88: 2005 | B88: Mar | C88: 3 | D88: 78211488 | E88: 132791.1 | F88: 0.7916416668 | G88: 545.3 | H88: 0 | I88: 351.912 | J88: =J76 -> 0 | K88: 3 | L88: 107887 | M88: 7.887406931 | N88: =Results_NoGDP_NoMedian!$B$17+Results_NoGDP_NoMedian!$B$18*G88+Results_NoGDP_NoMedian!$B$19*H88+Results_NoGDP_NoMedian!$B$20*I88+Results_NoGDP_NoMedian!$B$21*J88+Results_NoGDP_NoMedian!$B$22*K88+Results_NoGDP_NoMedian!$B$23*L88+Results_NoGDP_NoMedian!$B$24*M88 -> 76434373.22 | O88: 0.02272191492
A89: 2005 | B89: Apr | C89: 4 | D89: 69000350 | E89: 120250.5 | F89: 0.7969515257 | G89: 242.5 | H89: 1.4 | I89: 336.24 | J89: =J77 -> -0.75 | K89: 4 | L89: 107901 | M89: 7.865739503 | N89: =Results_NoGDP_NoMedian!$B$17+Results_NoGDP_NoMedian!$B$18*G89+Results_NoGDP_NoMedian!$B$19*H89+Results_NoGDP_NoMedian!$B$20*I89+Results_NoGDP_NoMedian!$B$21*J89+Results_NoGDP_NoMedian!$B$22*K89+Results_NoGDP_NoMedian!$B$23*L89+Results_NoGDP_NoMedian!$B$24*M89 -> 67698406.02 | O89: 0.01886865765
A90: 2005 | B90: May | C90: 5 | D90: 70417800 | E90: 124908.8 | F90: 0.7577334875 | G90: 143.4 | H90: 5.7 | I90: 336.288 | J90: =J78 -> 0 | K90: 3 | L90: 107915 | M90: 7.811748356 | N90: =Results_NoGDP_NoMedian!$B$17+Results_NoGDP_NoMedian!$B$18*G90+Results_NoGDP_NoMedian!$B$19*H90+Results_NoGDP_NoMedian!$B$20*I90+Results_NoGDP_NoMedian!$B$21*J90+Results_NoGDP_NoMedian!$B$22*K90+Results_NoGDP_NoMedian!$B$23*L90+Results_NoGDP_NoMedian!$B$24*M90 -> 68112135.15 | O90: 0.03274264244
A91: 2005 | B91: Jun | C91: 6 | D91: 87906300 | E91: 181977.6 | F91: 0.6709181973 | G91: 4.4 | H91: 166.9 | I91: 352.08 | J91: 0 | K91: 3 | L91: 107929 | M91: 7.699703549 | N91: =Results_NoGDP_NoMedian!$B$17+Results_NoGDP_NoMedian!$B$18*G91+Results_NoGDP_NoMedian!$B$19*H91+Results_NoGDP_NoMedian!$B$20*I91+Results_NoGDP_NoMedian!$B$21*J91+Results_NoGDP_NoMedian!$B$22*K91+Results_NoGDP_NoMedian!$B$23*L91+Results_NoGDP_NoMedian!$B$24*M91 -> 86276006.64 | O91: 0.01854580798
A92: 2005 | B92: Jul | C92: 7 | D92: 89932560 | E92: 179175.4 | F92: 0.6746299814 | G92: 0 | H92: 194.7 | I92: 319.92 | J92: 0 | K92: 2 | L92: 107943 | M92: 7.526422547 | N92: =Results_NoGDP_NoMedian!$B$17+Results_NoGDP_NoMedian!$B$18*G92+Results_NoGDP_NoMedian!$B$19*H92+Results_NoGDP_NoMedian!$B$20*I92+Results_NoGDP_NoMedian!$B$21*J92+Results_NoGDP_NoMedian!$B$22*K92+Results_NoGDP_NoMedian!$B$23*L92+Results_NoGDP_NoMedian!$B$24*M92 -> 87573558.18 | O92: 0.02623078693
A93: 2005 | B93: Aug | C93: 8 | D93: 94440230 | E93: 182533.3 | F93: 0.695411703 | G93: 0.1 | H93: 185.5 | I93: 351.912 | J93: 1 | K93: 2 | L93: 107957 | M93: 7.471631772 | N93: =Results_NoGDP_NoMedian!$B$17+Results_NoGDP_NoMedian!$B$18*G93+Results_NoGDP_NoMedian!$B$19*H93+Results_NoGDP_NoMedian!$B$20*I93+Results_NoGDP_NoMedian!$B$21*J93+Results_NoGDP_NoMedian!$B$22*K93+Results_NoGDP_NoMedian!$B$23*L93+Results_NoGDP_NoMedian!$B$24*M93 -> 91608030.73 | O93: 0.02998933053
A94: 2005 | B94: Sep | C94: 9 | D94: 81092320 | E94: 164146.9 | F94: 0.6861428527 | G94: 15.2 | H94: 82.2 | I94: 336.24 | J94: 0.75 | K94: 4 | L94: 107971 | M94: 7.438697165 | N94: =Results_NoGDP_NoMedian!$B$17+Results_NoGDP_NoMedian!$B$18*G94+Results_NoGDP_NoMedian!$B$19*H94+Results_NoGDP_NoMedian!$B$20*I94+Results_NoGDP_NoMedian!$B$21*J94+Results_NoGDP_NoMedian!$B$22*K94+Results_NoGDP_NoMedian!$B$23*L94+Results_NoGDP_NoMedian!$B$24*M94 -> 79119224.59 | O94: 0.02433147073
A95: 2005 | B95: Oct | C95: 10 | D95: 74394333 | E95: 139963.9 | F95: 0.7144155247 | G95: 182.8 | H95: 19 | I95: 319.92 | J95: 0.25 | K95: 4 | L95: 107985 | M95: 7.504839693 | N95: =Results_NoGDP_NoMedian!$B$17+Results_NoGDP_NoMedian!$B$18*G95+Results_NoGDP_NoMedian!$B$19*H95+Results_NoGDP_NoMedian!$B$20*I95+Results_NoGDP_NoMedian!$B$21*J95+Results_NoGDP_NoMedian!$B$22*K95+Results_NoGDP_NoMedian!$B$23*L95+Results_NoGDP_NoMedian!$B$24*M95 -> 72071257.1 | O95: 0.03122651695
A96: 2005 | B96: Nov | C96: 11 | D96: 73123230 | E96: 132240.1 | F96: 0.7679973145 | G96: 346.2 | H96: 0 | I96: 352.08 | J96: -0.25 | K96: 3 | L96: 107999 | M96: 7.504705352 | N96: =Results_NoGDP_NoMedian!$B$17+Results_NoGDP_NoMedian!$B$18*G96+Results_NoGDP_NoMedian!$B$19*H96+Results_NoGDP_NoMedian!$B$20*I96+Results_NoGDP_NoMedian!$B$21*J96+Results_NoGDP_NoMedian!$B$22*K96+Results_NoGDP_NoMedian!$B$23*L96+Results_NoGDP_NoMedian!$B$24*M96 -> 71914149.45 | O96: 0.01653483513
A97: 2005 | B97: Dec | C97: 12 | D97: 76522590 | E97: 147092.5 | F97: 0.6992398902 | G97: 659.7 | H97: 0 | I97: 319.92 | J97: -0.25 | K97: 0 | L97: 108013 | M97: 7.520810137 | N97: =Results_NoGDP_NoMedian!$B$17+Results_NoGDP_NoMedian!$B$18*G97+Results_NoGDP_NoMedian!$B$19*H97+Results_NoGDP_NoMedian!$B$20*I97+Results_NoGDP_NoMedian!$B$21*J97+Results_NoGDP_NoMedian!$B$22*K97+Results_NoGDP_NoMedian!$B$23*L97+Results_NoGDP_NoMedian!$B$24*M97 -> 74438158.15 | O97: 0.02723943149
A98: 2006 | B98: Jan | C98: 1 | D98: 76765830 | E98: 129044.3 | F98: 0.7995694427 | G98: 494.7 | H98: 0 | I98: 336.288 | J98: =J86 -> 0 | K98: =K86 -> 2 | L98: 108027 | M98: 7.519991527 | N98: =Results_NoGDP_NoMedian!$B$17+Results_NoGDP_NoMedian!$B$18*G98+Results_NoGDP_NoMedian!$B$19*H98+Results_NoGDP_NoMedian!$B$20*I98+Results_NoGDP_NoMedian!$B$21*J98+Results_NoGDP_NoMedian!$B$22*K98+Results_NoGDP_NoMedian!$B$23*L98+Results_NoGDP_NoMedian!$B$24*M98 -> 74361544.5 | O98: 0.03131973567
A99: 2006 | B99: Feb | C99: 2 | D99: 71300830 | E99: 125674.1 | F99: 0.8442664447 | G99: 538 | H99: 0 | I99: 319.872 | J99: =J87 -> -1 | K99: 2 | L99: 108041 | M99: 7.585751979 | N99: =Results_NoGDP_NoMedian!$B$17+Results_NoGDP_NoMedian!$B$18*G99+Results_NoGDP_NoMedian!$B$19*H99+Results_NoGDP_NoMedian!$B$20*I99+Results_NoGDP_NoMedian!$B$21*J99+Results_NoGDP_NoMedian!$B$22*K99+Results_NoGDP_NoMedian!$B$23*L99+Results_NoGDP_NoMedian!$B$24*M99 -> 70799482.15 | O99: 0.007031444772
A100: 2006 | B100: Mar | C100: 3 | D100: 76123120 | E100: 127940.2 | F100: 0.799717536 | G100: 461.4 | H100: 0 | I100: 368.28 | J100: =J88 -> 0 | K100: 3 | L100: 108055 | M100: 7.691298071 | N100: =Results_NoGDP_NoMedian!$B$17+Results_NoGDP_NoMedian!$B$18*G100+Results_NoGDP_NoMedian!$B$19*H100+Results_NoGDP_NoMedian!$B$20*I100+Results_NoGDP_NoMedian!$B$21*J100+Results_NoGDP_NoMedian!$B$22*K100+Results_NoGDP_NoMedian!$B$23*L100+Results_NoGDP_NoMedian!$B$24*M100 -> 75779026.61 | O100: 0.00452022185
A101: 2006 | B101: Apr | C101: 4 | D101: 66029130 | E101: 118344.8 | F101: 0.7749146984 | G101: 219.5 | H101: 1.1 | I101: 303.84 | J101: =J89 -> -0.75 | K101: 4 | L101: 108069 | M101: 7.821797682 | N101: =Results_NoGDP_NoMedian!$B$17+Results_NoGDP_NoMedian!$B$18*G101+Results_NoGDP_NoMedian!$B$19*H101+Results_NoGDP_NoMedian!$B$20*I101+Results_NoGDP_NoMedian!$B$21*J101+Results_NoGDP_NoMedian!$B$22*K101+Results_NoGDP_NoMedian!$B$23*L101+Results_NoGDP_NoMedian!$B$24*M101 -> 65862605.26 | O101: 0.002521989031
A102: 2006 | B102: May | C102: 5 | D102: 72285180 | E102: 164159.2 | F102: 0.5918492537 | G102: 105.9 | H102: 40.6 | I102: 351.912 | J102: =J90 -> 0 | K102: 3 | L102: 108083 | M102: 7.898836726 | N102: =Results_NoGDP_NoMedian!$B$17+Results_NoGDP_NoMedian!$B$18*G102+Results_NoGDP_NoMedian!$B$19*H102+Results_NoGDP_NoMedian!$B$20*I102+Results_NoGDP_NoMedian!$B$21*J102+Results_NoGDP_NoMedian!$B$22*K102+Results_NoGDP_NoMedian!$B$23*L102+Results_NoGDP_NoMedian!$B$24*M102 -> 72407322.52 | O102: -0.00168973118
A103: 2006 | B103: Jun | C103: 6 | D103: 76116070 | E103: 156225.2 | F103: 0.6766946939 | G103: 8.8 | H103: 85.7 | I103: 352.08 | J103: 0 | K103: 3 | L103: 108097 | M103: 7.949931466 | N103: =Results_NoGDP_NoMedian!$B$17+Results_NoGDP_NoMedian!$B$18*G103+Results_NoGDP_NoMedian!$B$19*H103+Results_NoGDP_NoMedian!$B$20*I103+Results_NoGDP_NoMedian!$B$21*J103+Results_NoGDP_NoMedian!$B$22*K103+Results_NoGDP_NoMedian!$B$23*L103+Results_NoGDP_NoMedian!$B$24*M103 -> 75973016.02 | O103: 0.001879418942
A104: 2006 | B104: Jul | C104: 7 | D104: 87124080 | E104: 176829.5 | F104: 0.6622325916 | G104: 0 | H104: 197.4 | I104: 319.92 | J104: 0 | K104: 2 | L104: 108111 | M104: 7.901801848 | N104: =Results_NoGDP_NoMedian!$B$17+Results_NoGDP_NoMedian!$B$18*G104+Results_NoGDP_NoMedian!$B$19*H104+Results_NoGDP_NoMedian!$B$20*I104+Results_NoGDP_NoMedian!$B$21*J104+Results_NoGDP_NoMedian!$B$22*K104+Results_NoGDP_NoMedian!$B$23*L104+Results_NoGDP_NoMedian!$B$24*M104 -> 87534884.74 | O104: -0.004715168807
A105: 2006 | B105: Aug | C105: 8 | D105: 86693010 | E105: 184163.8 | F105: 0.6327131765 | G105: 0 | H105: 147.4 | I105: 351.912 | J105: 1 | K105: 2 | L105: 108125 | M105: 7.957450105 | N105: =Results_NoGDP_NoMedian!$B$17+Results_NoGDP_NoMedian!$B$18*G105+Results_NoGDP_NoMedian!$B$19*H105+Results_NoGDP_NoMedian!$B$20*I105+Results_NoGDP_NoMedian!$B$21*J105+Results_NoGDP_NoMedian!$B$22*K105+Results_NoGDP_NoMedian!$B$23*L105+Results_NoGDP_NoMedian!$B$24*M105 -> 86310069.22 | O105: 0.004417204796
A106: 2006 | B106: Sep | C106: 9 | D106: 71803266 | E106: 129536.2 | F106: 0.7698755895 | G106: 52.1 | H106: 22.3 | I106: 319.68 | J106: 0.75 | K106: 4 | L106: 108139 | M106: 7.989550733 | N106: =Results_NoGDP_NoMedian!$B$17+Results_NoGDP_NoMedian!$B$18*G106+Results_NoGDP_NoMedian!$B$19*H106+Results_NoGDP_NoMedian!$B$20*I106+Results_NoGDP_NoMedian!$B$21*J106+Results_NoGDP_NoMedian!$B$22*K106+Results_NoGDP_NoMedian!$B$23*L106+Results_NoGDP_NoMedian!$B$24*M106 -> 71025731.43 | O106: 0.01082867965
A107: 2006 | B107: Oct | C107: 10 | D107: 70311840 | E107: 118249.4 | F107: 0.7992020365 | G107: 251.3 | H107: 2.3 | I107: 336.288 | J107: 0.25 | K107: 4 | L107: 108153 | M107: 8.142849738 | N107: =Results_NoGDP_NoMedian!$B$17+Results_NoGDP_NoMedian!$B$18*G107+Results_NoGDP_NoMedian!$B$19*H107+Results_NoGDP_NoMedian!$B$20*I107+Results_NoGDP_NoMedian!$B$21*J107+Results_NoGDP_NoMedian!$B$22*K107+Results_NoGDP_NoMedian!$B$23*L107+Results_NoGDP_NoMedian!$B$24*M107 -> 71447326.23 | O107: -0.01614928901
A108: 2006 | B108: Nov | C108: 11 | D108: 72024057 | E108: 122710 | F108: 0.8152017969 | G108: 356.8 | H108: 0 | I108: 352.08 | J108: -0.25 | K108: 3 | L108: 108167 | M108: 8.241587038 | N108: =Results_NoGDP_NoMedian!$B$17+Results_NoGDP_NoMedian!$B$18*G108+Results_NoGDP_NoMedian!$B$19*H108+Results_NoGDP_NoMedian!$B$20*I108+Results_NoGDP_NoMedian!$B$21*J108+Results_NoGDP_NoMedian!$B$22*K108+Results_NoGDP_NoMedian!$B$23*L108+Results_NoGDP_NoMedian!$B$24*M108 -> 71293625.34 | O108: 0.01014149564
A109: 2006 | B109: Dec | C109: 12 | D109: 72529897 | E109: 132905.5 | F109: 0.7335017791 | G109: 460.4 | H109: 0 | I109: 304.296 | J109: -0.25 | K109: 0 | L109: 108177 | M109: 8.365890504 | N109: =Results_NoGDP_NoMedian!$B$17+Results_NoGDP_NoMedian!$B$18*G109+Results_NoGDP_NoMedian!$B$19*H109+Results_NoGDP_NoMedian!$B$20*I109+Results_NoGDP_NoMedian!$B$21*J109+Results_NoGDP_NoMedian!$B$22*K109+Results_NoGDP_NoMedian!$B$23*L109+Results_NoGDP_NoMedian!$B$24*M109 -> 68555151.96 | O109: 0.05480147088
A110: 2007 | B110: Jan | C110: 1 | D110: 75943575.5 | E110: 125521.6 | F110: 0.8132042473 | G110: 602.4 | H110: 0 | I110: 351.912 | J110: =J98 -> 0 | K110: =K98 -> 2 | L110: =L109-($L$109-$L$121)/12 -> 108150.8572 | M110: 8.433577406 | N110: =Results_NoGDP_NoMedian!$B$17+Results_NoGDP_NoMedian!$B$18*G110+Results_NoGDP_NoMedian!$B$19*H110+Results_NoGDP_NoMedian!$B$20*I110+Results_NoGDP_NoMedian!$B$21*J110+Results_NoGDP_NoMedian!$B$22*K110+Results_NoGDP_NoMedian!$B$23*L110+Results_NoGDP_NoMedian!$B$24*M110 -> 76237134.39 | O110: -0.003865486867
A111: 2007 | B111: Feb | C111: 2 | D111: 73489678.9 | E111: 132956.1 | F111: 0.8225244364 | G111: 706.1 | H111: 0 | I111: 319.872 | J111: =J99 -> -1 | K111: 2 | L111: 108124.7144 | M111: 8.483621642 | N111: =Results_NoGDP_NoMedian!$B$17+Results_NoGDP_NoMedian!$B$18*G111+Results_NoGDP_NoMedian!$B$19*H111+Results_NoGDP_NoMedian!$B$20*I111+Results_NoGDP_NoMedian!$B$21*J111+Results_NoGDP_NoMedian!$B$22*K111+Results_NoGDP_NoMedian!$B$23*L111+Results_NoGDP_NoMedian!$B$24*M111 -> 73225130.33 | O111: 0.003599805822
A112: 2007 | B112: Mar | C112: 3 | D112: 73780830.8 | E112: 124611.3 | F112: 0.795816939 | G112: 429.3 | H112: 0.2 | I112: 351.912 | J112: =J100 -> 0 | K112: 3 | L112: 108098.5717 | M112: 8.535812381 | N112: =Results_NoGDP_NoMedian!$B$17+Results_NoGDP_NoMedian!$B$18*G112+Results_NoGDP_NoMedian!$B$19*H112+Results_NoGDP_NoMedian!$B$20*I112+Results_NoGDP_NoMedian!$B$21*J112+Results_NoGDP_NoMedian!$B$22*K112+Results_NoGDP_NoMedian!$B$23*L112+Results_NoGDP_NoMedian!$B$24*M112 -> 73322274.62 | O112: 0.006215112703
A113: 2007 | B113: Apr | C113: 4 | D113: 66320469 | E113: 120218.8 | F113: 0.766200981 | G113: 285.2 | H113: 0.9 | I113: 319.68 | J113: =J101 -> -0.75 | K113: 4 | L113: 108072.4289 | M113: 8.601722995 | N113: =Results_NoGDP_NoMedian!$B$17+Results_NoGDP_NoMedian!$B$18*G113+Results_NoGDP_NoMedian!$B$19*H113+Results_NoGDP_NoMedian!$B$20*I113+Results_NoGDP_NoMedian!$B$21*J113+Results_NoGDP_NoMedian!$B$22*K113+Results_NoGDP_NoMedian!$B$23*L113+Results_NoGDP_NoMedian!$B$24*M113 -> 66936868.01 | O113: -0.009294249872
A114: 2007 | B114: May | C114: 5 | D114: 68636519.3 | E114: 142398.3 | F114: 0.6478545471 | G114: 87.2 | H114: 46 | I114: 351.912 | J114: =J102 -> 0 | K114: 3 | L114: 108046.2861 | M114: 8.603550925 | N114: =Results_NoGDP_NoMedian!$B$17+Results_NoGDP_NoMedian!$B$18*G114+Results_NoGDP_NoMedian!$B$19*H114+Results_NoGDP_NoMedian!$B$20*I114+Results_NoGDP_NoMedian!$B$21*J114+Results_NoGDP_NoMedian!$B$22*K114+Results_NoGDP_NoMedian!$B$23*L114+Results_NoGDP_NoMedian!$B$24*M114 -> 71759989.41 | O114: -0.0455074083
A115: 2007 | B115: Jun | C115: 6 | D115: 76584775.9 | E115: 171619.6 | F115: 0.6197878582 | G115: 8.1 | H115: 132.2 | I115: 336.24 | J115: 0 | K115: 3 | L115: 108020.1433 | M115: 8.541228467 | N115: =Results_NoGDP_NoMedian!$B$17+Results_NoGDP_NoMedian!$B$18*G115+Results_NoGDP_NoMedian!$B$19*H115+Results_NoGDP_NoMedian!$B$20*I115+Results_NoGDP_NoMedian!$B$21*J115+Results_NoGDP_NoMedian!$B$22*K115+Results_NoGDP_NoMedian!$B$23*L115+Results_NoGDP_NoMedian!$B$24*M115 -> 80253945.69 | O115: -0.04790991087
A116: 2007 | B116: Jul | C116: 7 | D116: 77111267 | E116: 167705 | F116: 0.6180148241 | G116: 1.3 | H116: 148.2 | I116: 336.288 | J116: 0 | K116: 2 | L116: 107994.0006 | M116: 8.324007461 | N116: =Results_NoGDP_NoMedian!$B$17+Results_NoGDP_NoMedian!$B$18*G116+Results_NoGDP_NoMedian!$B$19*H116+Results_NoGDP_NoMedian!$B$20*I116+Results_NoGDP_NoMedian!$B$21*J116+Results_NoGDP_NoMedian!$B$22*K116+Results_NoGDP_NoMedian!$B$23*L116+Results_NoGDP_NoMedian!$B$24*M116 -> 81522745.17 | O116: -0.05720925546
A117: 2007 | B117: Aug | C117: 8 | D117: 85216616.6 | E117: 170845.4 | F117: 0.6704216981 | G117: 4.4 | H117: 167.4 | I117: 351.912 | J117: 1 | K117: 2 | L117: 107967.8578 | M117: 8.193797418 | N117: =Results_NoGDP_NoMedian!$B$17+Results_NoGDP_NoMedian!$B$18*G117+Results_NoGDP_NoMedian!$B$19*H117+Results_NoGDP_NoMedian!$B$20*I117+Results_NoGDP_NoMedian!$B$21*J117+Results_NoGDP_NoMedian!$B$22*K117+Results_NoGDP_NoMedian!$B$23*L117+Results_NoGDP_NoMedian!$B$24*M117 -> 88505318.77 | O117: -0.0385922641
A118: 2007 | B118: Sep | C118: 9 | D118: 73536545.1 | E118: 162858.1 | F118: 0.6271354659 | G118: 25.4 | H118: 76.4 | I118: 303.84 | J118: 0.75 | K118: 4 | L118: 107941.715 | M118: 8.044021479 | N118: =Results_NoGDP_NoMedian!$B$17+Results_NoGDP_NoMedian!$B$18*G118+Results_NoGDP_NoMedian!$B$19*H118+Results_NoGDP_NoMedian!$B$20*I118+Results_NoGDP_NoMedian!$B$21*J118+Results_NoGDP_NoMedian!$B$22*K118+Results_NoGDP_NoMedian!$B$23*L118+Results_NoGDP_NoMedian!$B$24*M118 -> 76328931.71 | O118: -0.03797277406
A119: 2007 | B119: Oct | C119: 10 | D119: 71397718.6 | E119: 131718.4 | F119: 0.7285593777 | G119: 111.2 | H119: 42.3 | I119: 351.912 | J119: 0.25 | K119: 4 | L119: 107915.5722 | M119: 8.011680382 | N119: =Results_NoGDP_NoMedian!$B$17+Results_NoGDP_NoMedian!$B$18*G119+Results_NoGDP_NoMedian!$B$19*H119+Results_NoGDP_NoMedian!$B$20*I119+Results_NoGDP_NoMedian!$B$21*J119+Results_NoGDP_NoMedian!$B$22*K119+Results_NoGDP_NoMedian!$B$23*L119+Results_NoGDP_NoMedian!$B$24*M119 -> 74251341.97 | O119: -0.03996799094
A120: 2007 | B120: Nov | C120: 11 | D120: 69283467 | E120: 125546.7 | F120: 0.7664640926 | G120: 400.3 | H120: 0 | I120: 352.08 | J120: -0.25 | K120: 3 | L120: 107889.4295 | M120: 7.925809961 | N120: =Results_NoGDP_NoMedian!$B$17+Results_NoGDP_NoMedian!$B$18*G120+Results_NoGDP_NoMedian!$B$19*H120+Results_NoGDP_NoMedian!$B$20*I120+Results_NoGDP_NoMedian!$B$21*J120+Results_NoGDP_NoMedian!$B$22*K120+Results_NoGDP_NoMedian!$B$23*L120+Results_NoGDP_NoMedian!$B$24*M120 -> 72437797.38 | O120: -0.04552789461
A121: 2007 | B121: Dec | C121: 12 | D121: 70507648 | E121: 127630 | F121: 0.7425240467 | G121: 595 | H121: 0 | I121: 304.296 | J121: -0.25 | K121: 0 | L121: =L109*(1-0.0029) -> 107863.2867 | M121: 7.84423031 | N121: =Results_NoGDP_NoMedian!$B$17+Results_NoGDP_NoMedian!$B$18*G121+Results_NoGDP_NoMedian!$B$19*H121+Results_NoGDP_NoMedian!$B$20*I121+Results_NoGDP_NoMedian!$B$21*J121+Results_NoGDP_NoMedian!$B$22*K121+Results_NoGDP_NoMedian!$B$23*L121+Results_NoGDP_NoMedian!$B$24*M121 -> 71854663.47 | O121: -0.01910452986
A122: 2008 | B122: Jan | C122: 1 | D122: 75226387.9 | E122: 126193.3 | F122: 0.8012369629 | G122: 611.2 | H122: 0 | I122: 352 | J122: =J110 -> 0 | K122: =K110 -> 2 | L122: =L121-($L$121-$L$133)/12 -> 107842.6129 | M122: 7.747264422 | N122: =Results_NoGDP_NoMedian!$B$17+Results_NoGDP_NoMedian!$B$18*G122+Results_NoGDP_NoMedian!$B$19*H122+Results_NoGDP_NoMedian!$B$20*I122+Results_NoGDP_NoMedian!$B$21*J122+Results_NoGDP_NoMedian!$B$22*K122+Results_NoGDP_NoMedian!$B$23*L122+Results_NoGDP_NoMedian!$B$24*M122 -> 77114803.57 | O122: -0.0251031017
A123: 2008 | B123: Feb | C123: 2 | D123: 71282775.7 | E123: 128590.6 | F123: 0.7964639809 | G123: 629.3 | H123: 0 | I123: 320 | J123: =J111 -> -1 | K123: 2 | L123: 107821.9391 | M123: 7.72358804 | N123: =Results_NoGDP_NoMedian!$B$17+Results_NoGDP_NoMedian!$B$18*G123+Results_NoGDP_NoMedian!$B$19*H123+Results_NoGDP_NoMedian!$B$20*I123+Results_NoGDP_NoMedian!$B$21*J123+Results_NoGDP_NoMedian!$B$22*K123+Results_NoGDP_NoMedian!$B$23*L123+Results_NoGDP_NoMedian!$B$24*M123 -> 72405684.16 | O123: -0.01575287228
A124: 2008 | B124: Mar | C124: 3 | D124: 73304135.1 | E124: 121739.3 | F124: 0.8093283213 | G124: 541.6 | H124: 0 | I124: 304 | J124: =J112 -> 0 | K124: 3 | L124: 107801.2653 | M124: 7.805604296 | N124: =Results_NoGDP_NoMedian!$B$17+Results_NoGDP_NoMedian!$B$18*G124+Results_NoGDP_NoMedian!$B$19*H124+Results_NoGDP_NoMedian!$B$20*I124+Results_NoGDP_NoMedian!$B$21*J124+Results_NoGDP_NoMedian!$B$22*K124+Results_NoGDP_NoMedian!$B$23*L124+Results_NoGDP_NoMedian!$B$24*M124 -> 74221244.4 | O124: -0.01251101731
A125: 2008 | B125: Apr | C125: 4 | D125: 66441873.3 | E125: 117726.5 | F125: 0.7838539291 | G125: 223.8 | H125: 1.3 | I125: 352 | J125: =J113 -> -0.75 | K125: 4 | L125: 107780.5915 | M125: 7.970204842 | N125: =Results_NoGDP_NoMedian!$B$17+Results_NoGDP_NoMedian!$B$18*G125+Results_NoGDP_NoMedian!$B$19*H125+Results_NoGDP_NoMedian!$B$20*I125+Results_NoGDP_NoMedian!$B$21*J125+Results_NoGDP_NoMedian!$B$22*K125+Results_NoGDP_NoMedian!$B$23*L125+Results_NoGDP_NoMedian!$B$24*M125 -> 67801297.23 | O125: -0.02046034919
A126: 2008 | B126: May | C126: 5 | D126: 66716840 | E126: 115139.8 | F126: 0.7788199393 | G126: 143.2 | H126: 11.6 | I126: 336 | J126: =J114 -> 0 | K126: 3 | L126: 107759.9177 | M126: 8.113212566 | N126: =Results_NoGDP_NoMedian!$B$17+Results_NoGDP_NoMedian!$B$18*G126+Results_NoGDP_NoMedian!$B$19*H126+Results_NoGDP_NoMedian!$B$20*I126+Results_NoGDP_NoMedian!$B$21*J126+Results_NoGDP_NoMedian!$B$22*K126+Results_NoGDP_NoMedian!$B$23*L126+Results_NoGDP_NoMedian!$B$24*M126 -> 68347399.57 | O126: -0.02443999993
A127: 2008 | B127: Jun | C127: 6 | D127: 76146317.3 | E127: 165945.7 | F127: 0.6373095177 | G127: 3.2 | H127: 123.9 | I127: 336 | J127: 0 | K127: 3 | L127: 107739.2439 | M127: 8.249341808 | N127: =Results_NoGDP_NoMedian!$B$17+Results_NoGDP_NoMedian!$B$18*G127+Results_NoGDP_NoMedian!$B$19*H127+Results_NoGDP_NoMedian!$B$20*I127+Results_NoGDP_NoMedian!$B$21*J127+Results_NoGDP_NoMedian!$B$22*K127+Results_NoGDP_NoMedian!$B$23*L127+Results_NoGDP_NoMedian!$B$24*M127 -> 79297433.81 | O127: -0.04138238877
A128: 2008 | B128: Jul | C128: 7 | D128: 83277874 | E128: 161059.5 | F128: 0.6949768647 | G128: 0.3 | H128: 188.6 | I128: 352 | J128: 0 | K128: 2 | L128: 107718.5701 | M128: 8.297430988 | N128: =Results_NoGDP_NoMedian!$B$17+Results_NoGDP_NoMedian!$B$18*G128+Results_NoGDP_NoMedian!$B$19*H128+Results_NoGDP_NoMedian!$B$20*I128+Results_NoGDP_NoMedian!$B$21*J128+Results_NoGDP_NoMedian!$B$22*K128+Results_NoGDP_NoMedian!$B$23*L128+Results_NoGDP_NoMedian!$B$24*M128 -> 87142808.34 | O128: -0.04641009858
A129: 2008 | B129: Aug | C129: 8 | D129: 75973257.9 | E129: 162132.2 | F129: 0.629823033 | G129: 0.9 | H129: 144.8 | I129: 320 | J129: 1 | K129: 2 | L129: 107697.8963 | M129: 8.46420016 | N129: =Results_NoGDP_NoMedian!$B$17+Results_NoGDP_NoMedian!$B$18*G129+Results_NoGDP_NoMedian!$B$19*H129+Results_NoGDP_NoMedian!$B$20*I129+Results_NoGDP_NoMedian!$B$21*J129+Results_NoGDP_NoMedian!$B$22*K129+Results_NoGDP_NoMedian!$B$23*L129+Results_NoGDP_NoMedian!$B$24*M129 -> 83622370.85 | O129: -0.1006816498
A130: 2008 | B130: Sep | C130: 9 | D130: 68765247.3 | E130: 156741.3 | F130: 0.6093307119 | G130: 12.2 | H130: 65 | I130: 336 | J130: 0.75 | K130: 4 | L130: 107677.2225 | M130: 8.719752692 | N130: =Results_NoGDP_NoMedian!$B$17+Results_NoGDP_NoMedian!$B$18*G130+Results_NoGDP_NoMedian!$B$19*H130+Results_NoGDP_NoMedian!$B$20*I130+Results_NoGDP_NoMedian!$B$21*J130+Results_NoGDP_NoMedian!$B$22*K130+Results_NoGDP_NoMedian!$B$23*L130+Results_NoGDP_NoMedian!$B$24*M130 -> 75051296.36 | O130: =(1-N130/D130) -> -0.09141316732
A131: 2008 | B131: Oct | C131: 10 | D131: 63416228.7 | E131: 109926 | F131: =D131/E131/24/(DAY(DATE(A132,C131+1,1)-1)) -> 0.7754022391 | G131: 220.7 | H131: 3.3 | I131: 352 | J131: 0.25 | K131: 4 | L131: 107656.5487 | M131: 9.13506445 | N131: =Results_NoGDP_NoMedian!$B$17+Results_NoGDP_NoMedian!$B$18*G131+Results_NoGDP_NoMedian!$B$19*H131+Results_NoGDP_NoMedian!$B$20*I131+Results_NoGDP_NoMedian!$B$21*J131+Results_NoGDP_NoMedian!$B$22*K131+Results_NoGDP_NoMedian!$B$23*L131+Results_NoGDP_NoMedian!$B$24*M131 -> 70053027.65 | O131: -0.1046545827
A132: 2008 | B132: Nov | C132: 11 | D132: 64406942.6 | E132: 116622.1 | F132: =D132/E132/24/(DAY(DATE(A133,C132+1,1)-1)) -> 0.7670423268 | G132: 413.3 | H132: 0 | I132: 304 | J132: -0.25 | K132: 3 | L132: 107635.8749 | M132: 9.488036359 | N132: =Results_NoGDP_NoMedian!$B$17+Results_NoGDP_NoMedian!$B$18*G132+Results_NoGDP_NoMedian!$B$19*H132+Results_NoGDP_NoMedian!$B$20*I132+Results_NoGDP_NoMedian!$B$21*J132+Results_NoGDP_NoMedian!$B$22*K132+Results_NoGDP_NoMedian!$B$23*L132+Results_NoGDP_NoMedian!$B$24*M132 -> 68342082.19 | O132: -0.06109806535
A133: 2008 | B133: Dec | C133: 12 | D133: 67860200 | E133: 119912.5 | F133: =D133/E133/24/(DAY(DATE(A134,C133+1,1)-1)) -> 0.7606375168 | G133: 632 | H133: 0 | I133: 336 | J133: -0.25 | K133: 0 | L133: =L121*(1-0.0023) -> 107615.2011 | M133: 9.866623815 | N133: =Results_NoGDP_NoMedian!$B$17+Results_NoGDP_NoMedian!$B$18*G133+Results_NoGDP_NoMedian!$B$19*H133+Results_NoGDP_NoMedian!$B$20*I133+Results_NoGDP_NoMedian!$B$21*J133+Results_NoGDP_NoMedian!$B$22*K133+Results_NoGDP_NoMedian!$B$23*L133+Results_NoGDP_NoMedian!$B$24*M133 -> 71314145.3 | O133: -0.05089795337
A134: 2009 | B134: Jan | C134: 1 | D134: 70152780.9 | E134: 121498.4 | F134: =D134/E134/24/(DAY(DATE(A135,C134+1,1)-1)) -> 0.7760708962 | G134: 799.1 | H134: 0 | I134: 336 | J134: =J122 -> 0 | K134: 2 | L134: =L133-($L$133-$L$145)/12 -> 107598.1621 | M134: 9.958260401 | N134: =Results_NoGDP_NoMedian!$B$17+Results_NoGDP_NoMedian!$B$18*G134+Results_NoGDP_NoMedian!$B$19*H134+Results_NoGDP_NoMedian!$B$20*I134+Results_NoGDP_NoMedian!$B$21*J134+Results_NoGDP_NoMedian!$B$22*K134+Results_NoGDP_NoMedian!$B$23*L134+Results_NoGDP_NoMedian!$B$24*M134 -> 77325165.88 | O134: -0.1022394963
A135: 2009 | B135: Feb | C135: 2 | D135: 61404169 | G135: =AVERAGE(G123,G111,G99,G87,G75,G63,G51,G39,G27,G15) -> 575.44 | H135: 0 | I135: 304 | J135: =J123 -> -1 | K135: 2 | L135: 107581.123 | M135: 11.25016858 | N135: =Results_NoGDP_NoMedian!$B$17+Results_NoGDP_NoMedian!$B$18*G135+Results_NoGDP_NoMedian!$B$19*H135+Results_NoGDP_NoMedian!$B$20*I135+Results_NoGDP_NoMedian!$B$21*J135+Results_NoGDP_NoMedian!$B$22*K135+Results_NoGDP_NoMedian!$B$23*L135+Results_NoGDP_NoMedian!$B$24*M135 -> 65846180.52 | O135: -0.07234055263
A136: 2009 | B136: Mar | C136: 3 | G136: 484.87 | H136: 0.07 | I136: 352 | J136: =J124 -> 0 | K136: 3 | L136: 107564.0839 | M136: 11.91678888 | N136: =Results_NoGDP_NoMedian!$B$17+Results_NoGDP_NoMedian!$B$18*G136+Results_NoGDP_NoMedian!$B$19*H136+Results_NoGDP_NoMedian!$B$20*I136+Results_NoGDP_NoMedian!$B$21*J136+Results_NoGDP_NoMedian!$B$22*K136+Results_NoGDP_NoMedian!$B$23*L136+Results_NoGDP_NoMedian!$B$24*M136 -> 69779649.07
A137: 2009 | B137: Apr | C137: 4 | G137: 258.21 | H137: 2.73 | I137: 320 | J137: =J125 -> -0.75 | K137: 4 | L137: 107547.0448 | M137: 12.05623902 | N137: =Results_NoGDP_NoMedian!$B$17+Results_NoGDP_NoMedian!$B$18*G137+Results_NoGDP_NoMedian!$B$19*H137+Results_NoGDP_NoMedian!$B$20*I137+Results_NoGDP_NoMedian!$B$21*J137+Results_NoGDP_NoMedian!$B$22*K137+Results_NoGDP_NoMedian!$B$23*L137+Results_NoGDP_NoMedian!$B$24*M137 -> 61827937.32
A138: 2009 | B138: May | C138: 5 | G138: 114.78 | H138: 22.98 | I138: 320 | J138: =J126 -> 0 | K138: 3 | L138: 107530.0058 | M138: 12.14900179 | N138: =Results_NoGDP_NoMedian!$B$17+Results_NoGDP_NoMedian!$B$18*G138+Results_NoGDP_NoMedian!$B$19*H138+Results_NoGDP_NoMedian!$B$20*I138+Results_NoGDP_NoMedian!$B$21*J138+Results_NoGDP_NoMedian!$B$22*K138+Results_NoGDP_NoMedian!$B$23*L138+Results_NoGDP_NoMedian!$B$24*M138 -> 63099320.37
A139: 2009 | B139: Jun | C139: 6 | G139: 15.47 | H139: 109.63 | I139: 352 | J139: 0 | K139: 3 | L139: 107512.9667 | M139: 12.90054211 | N139: =Results_NoGDP_NoMedian!$B$17+Results_NoGDP_NoMedian!$B$18*G139+Results_NoGDP_NoMedian!$B$19*H139+Results_NoGDP_NoMedian!$B$20*I139+Results_NoGDP_NoMedian!$B$21*J139+Results_NoGDP_NoMedian!$B$22*K139+Results_NoGDP_NoMedian!$B$23*L139+Results_NoGDP_NoMedian!$B$24*M139 -> 72357575.88
A140: 2009 | B140: Jul | C140: 7 | G140: 0.79 | H140: 167.77 | I140: 352 | J140: 0 | K140: 2 | L140: 107495.9276 | M140: 13.27419441 | N140: =Results_NoGDP_NoMedian!$B$17+Results_NoGDP_NoMedian!$B$18*G140+Results_NoGDP_NoMedian!$B$19*H140+Results_NoGDP_NoMedian!$B$20*I140+Results_NoGDP_NoMedian!$B$21*J140+Results_NoGDP_NoMedian!$B$22*K140+Results_NoGDP_NoMedian!$B$23*L140+Results_NoGDP_NoMedian!$B$24*M140 -> 77985740.69
A141: 2009 | B141: Aug | C141: 8 | G141: 2.04 | H141: 138.58 | I141: 320 | J141: 1 | K141: 2 | L141: 107478.8886 | M141: 12.71910958 | N141: =Results_NoGDP_NoMedian!$B$17+Results_NoGDP_NoMedian!$B$18*G141+Results_NoGDP_NoMedian!$B$19*H141+Results_NoGDP_NoMedian!$B$20*I141+Results_NoGDP_NoMedian!$B$21*J141+Results_NoGDP_NoMedian!$B$22*K141+Results_NoGDP_NoMedian!$B$23*L141+Results_NoGDP_NoMedian!$B$24*M141 -> 77243236.97
A142: 2009 | B142: Sep | C142: 9 | G142: 37.87 | H142: 58.74 | I142: 336 | J142: 0.75 | K142: 4 | L142: 107461.8495 | M142: 12.35303635 | N142: =Results_NoGDP_NoMedian!$B$17+Results_NoGDP_NoMedian!$B$18*G142+Results_NoGDP_NoMedian!$B$19*H142+Results_NoGDP_NoMedian!$B$20*I142+Results_NoGDP_NoMedian!$B$21*J142+Results_NoGDP_NoMedian!$B$22*K142+Results_NoGDP_NoMedian!$B$23*L142+Results_NoGDP_NoMedian!$B$24*M142 -> 69985764.58
A143: 2009 | B143: Oct | C143: 10 | G143: 202.09 | H143: 8.81 | I143: 336 | J143: 0.25 | K143: 4 | L143: 107444.8104 | M143: =M142+$D$143 -> 12.35303635 | N143: =Results_NoGDP_NoMedian!$B$17+Results_NoGDP_NoMedian!$B$18*G143+Results_NoGDP_NoMedian!$B$19*H143+Results_NoGDP_NoMedian!$B$20*I143+Results_NoGDP_NoMedian!$B$21*J143+Results_NoGDP_NoMedian!$B$22*K143+Results_NoGDP_NoMedian!$B$23*L143+Results_NoGDP_NoMedian!$B$24*M143 -> 65340695.95
A144: 2009 | B144: Nov | C144: 11 | G144: 363.24 | H144: 0 | I144: 320 | J144: -0.25 | K144: 3 | L144: 107427.7713 | M144: =M143+$D$143 -> 12.35303635 | N144: =Results_NoGDP_NoMedian!$B$17+Results_NoGDP_NoMedian!$B$18*G144+Results_NoGDP_NoMedian!$B$19*H144+Results_NoGDP_NoMedian!$B$20*I144+Results_NoGDP_NoMedian!$B$21*J144+Results_NoGDP_NoMedian!$B$22*K144+Results_NoGDP_NoMedian!$B$23*L144+Results_NoGDP_NoMedian!$B$24*M144 -> 64196166.97
A145: 2009 | B145: Dec | C145: 12 | G145: 591.4 | H145: 0 | I145: 352 | J145: -0.25 | K145: 0 | L145: =L133*(1-0.0019) -> 107410.7323 | M145: 12.35303635 | N145: =Results_NoGDP_NoMedian!$B$17+Results_NoGDP_NoMedian!$B$18*G145+Results_NoGDP_NoMedian!$B$19*H145+Results_NoGDP_NoMedian!$B$20*I145+Results_NoGDP_NoMedian!$B$21*J145+Results_NoGDP_NoMedian!$B$22*K145+Results_NoGDP_NoMedian!$B$23*L145+Results_NoGDP_NoMedian!$B$24*M145 -> 67857148.92
A146: 2010 | B146: Jan | C146: 1 | G146: 661.25 | H146: 0 | I146: 320 | J146: =J134 -> 0 | K146: 2 | L146: =L145-($L$145-$L$157)/12 -> 107397.3059 | M146: 12.35303635 | N146: =Results_NoGDP_NoMedian!$B$17+Results_NoGDP_NoMedian!$B$18*G146+Results_NoGDP_NoMedian!$B$19*H146+Results_NoGDP_NoMedian!$B$20*I146+Results_NoGDP_NoMedian!$B$21*J146+Results_NoGDP_NoMedian!$B$22*K146+Results_NoGDP_NoMedian!$B$23*L146+Results_NoGDP_NoMedian!$B$24*M146 -> 70486216.26
A147: 2010 | B147: Feb | C147: 2 | G147: 582.944 | H147: 0 | I147: 304 | J147: =J135 -> -1 | K147: 2 | L147: 107383.8796 | M147: 12.35303635 | N147: =Results_NoGDP_NoMedian!$B$17+Results_NoGDP_NoMedian!$B$18*G147+Results_NoGDP_NoMedian!$B$19*H147+Results_NoGDP_NoMedian!$B$20*I147+Results_NoGDP_NoMedian!$B$21*J147+Results_NoGDP_NoMedian!$B$22*K147+Results_NoGDP_NoMedian!$B$23*L147+Results_NoGDP_NoMedian!$B$24*M147 -> 64456992.85
A148: 2010 | B148: Mar | C148: 3 | G148: 481.637 | H148: 0.077 | I148: 368 | J148: =J136 -> 0 | K148: 3 | L148: 107370.4532 | M148: 12.35303635 | N148: =Results_NoGDP_NoMedian!$B$17+Results_NoGDP_NoMedian!$B$18*G148+Results_NoGDP_NoMedian!$B$19*H148+Results_NoGDP_NoMedian!$B$20*I148+Results_NoGDP_NoMedian!$B$21*J148+Results_NoGDP_NoMedian!$B$22*K148+Results_NoGDP_NoMedian!$B$23*L148+Results_NoGDP_NoMedian!$B$24*M148 -> 69757546.99
A149: 2010 | B149: Apr | C149: 4 | G149: 259.641 | H149: 3.003 | I149: 320 | J149: =J137 -> -0.75 | K149: 4 | L149: 107357.0269 | M149: 12.35303635 | N149: =Results_NoGDP_NoMedian!$B$17+Results_NoGDP_NoMedian!$B$18*G149+Results_NoGDP_NoMedian!$B$19*H149+Results_NoGDP_NoMedian!$B$20*I149+Results_NoGDP_NoMedian!$B$21*J149+Results_NoGDP_NoMedian!$B$22*K149+Results_NoGDP_NoMedian!$B$23*L149+Results_NoGDP_NoMedian!$B$24*M149 -> 61389001.79
A150: 2010 | B150: May | C150: 5 | G150: 119.678 | H150: 22.668 | I150: 320 | J150: =J138 -> 0 | K150: 3 | L150: 107343.6006 | M150: 12.35303635 | N150: =Results_NoGDP_NoMedian!$B$17+Results_NoGDP_NoMedian!$B$18*G150+Results_NoGDP_NoMedian!$B$19*H150+Results_NoGDP_NoMedian!$B$20*I150+Results_NoGDP_NoMedian!$B$21*J150+Results_NoGDP_NoMedian!$B$22*K150+Results_NoGDP_NoMedian!$B$23*L150+Results_NoGDP_NoMedian!$B$24*M150 -> 62781705.21
A151: 2010 | B151: Jun | C151: 6 | G151: =AVERAGE(G139,G127,G115,G103,G91,G79,G67,G55,G43,G31) -> 15.107 | H151: 107.403 | I151: 352 | J151: 0 | K151: 3 | L151: 107330.1742 | M151: 12.35303635 | N151: =Results_NoGDP_NoMedian!$B$17+Results_NoGDP_NoMedian!$B$18*G151+Results_NoGDP_NoMedian!$B$19*H151+Results_NoGDP_NoMedian!$B$20*I151+Results_NoGDP_NoMedian!$B$21*J151+Results_NoGDP_NoMedian!$B$22*K151+Results_NoGDP_NoMedian!$B$23*L151+Results_NoGDP_NoMedian!$B$24*M151 -> 72660388.33
A152: 2010 | B152: Jul | C152: 7 | G152: 0.869 | H152: 161.767 | I152: 336 | J152: 0 | K152: 2 | L152: 107316.7479 | M152: 12.35303635 | N152: =Results_NoGDP_NoMedian!$B$17+Results_NoGDP_NoMedian!$B$18*G152+Results_NoGDP_NoMedian!$B$19*H152+Results_NoGDP_NoMedian!$B$20*I152+Results_NoGDP_NoMedian!$B$21*J152+Results_NoGDP_NoMedian!$B$22*K152+Results_NoGDP_NoMedian!$B$23*L152+Results_NoGDP_NoMedian!$B$24*M152 -> 77578213.63
A153: 2010 | B153: Aug | C153: 8 | G153: 2.124 | H153: 142.228 | I153: 336 | J153: 1 | K153: 2 | L153: 107303.3215 | M153: 12.35303635 | N153: =Results_NoGDP_NoMedian!$B$17+Results_NoGDP_NoMedian!$B$18*G153+Results_NoGDP_NoMedian!$B$19*H153+Results_NoGDP_NoMedian!$B$20*I153+Results_NoGDP_NoMedian!$B$21*J153+Results_NoGDP_NoMedian!$B$22*K153+Results_NoGDP_NoMedian!$B$23*L153+Results_NoGDP_NoMedian!$B$24*M153 -> 78792832.94
A154: 2010 | B154: Sep | C154: 9 | G154: 37.947 | H154: 58.174 | I154: 336 | J154: 0.75 | K154: 4 | L154: 107289.8952 | M154: 12.35303635 | N154: =Results_NoGDP_NoMedian!$B$17+Results_NoGDP_NoMedian!$B$18*G154+Results_NoGDP_NoMedian!$B$19*H154+Results_NoGDP_NoMedian!$B$20*I154+Results_NoGDP_NoMedian!$B$21*J154+Results_NoGDP_NoMedian!$B$22*K154+Results_NoGDP_NoMedian!$B$23*L154+Results_NoGDP_NoMedian!$B$24*M154 -> 69807236
A155: 2010 | B155: Oct | C155: 10 | G155: 200.159 | H155: 9.601 | I155: 320 | J155: 0.25 | K155: 4 | L155: 107276.4688 | M155: 12.35303635 | N155: =Results_NoGDP_NoMedian!$B$17+Results_NoGDP_NoMedian!$B$18*G155+Results_NoGDP_NoMedian!$B$19*H155+Results_NoGDP_NoMedian!$B$20*I155+Results_NoGDP_NoMedian!$B$21*J155+Results_NoGDP_NoMedian!$B$22*K155+Results_NoGDP_NoMedian!$B$23*L155+Results_NoGDP_NoMedian!$B$24*M155 -> 64562266.57
A156: 2010 | B156: Nov | C156: 11 | G156: 367.134 | H156: 0 | I156: 336 | J156: -0.25 | K156: 3 | L156: 107263.0425 | M156: 12.35303635 | N156: =Results_NoGDP_NoMedian!$B$17+Results_NoGDP_NoMedian!$B$18*G156+Results_NoGDP_NoMedian!$B$19*H156+Results_NoGDP_NoMedian!$B$20*I156+Results_NoGDP_NoMedian!$B$21*J156+Results_NoGDP_NoMedian!$B$22*K156+Results_NoGDP_NoMedian!$B$23*L156+Results_NoGDP_NoMedian!$B$24*M156 -> 64903481.34
A157: 2010 | B157: Dec | C157: 12 | G157: 594.7 | H157: 0 | I157: 368 | J157: -0.25 | K157: 0 | L157: =L145*(1-0.0015) -> 107249.6162 | M157: =M142*(1+1.5%) -> 12.5383319 | N157: =Results_NoGDP_NoMedian!$B$17+Results_NoGDP_NoMedian!$B$18*G157+Results_NoGDP_NoMedian!$B$19*H157+Results_NoGDP_NoMedian!$B$20*I157+Results_NoGDP_NoMedian!$B$21*J157+Results_NoGDP_NoMedian!$B$22*K157+Results_NoGDP_NoMedian!$B$23*L157+Results_NoGDP_NoMedian!$B$24*M157 -> 68315453.23

Sheet Res_NoGDPMA_ER
A1: SUMMARY OUTPUT
A3: Regression Statistics
A4: Multiple R | B4: 0.937698553
A5: R Square | B5: 0.8792785763
A6: Adjusted R Square | B6: 0.8681594978
A7: Standard Error | B7: 2330009.626
A8: Observations | B8: 84
A10: ANOVA
B11: df | C11: SS | D11: MS | E11: F | F11: Significance F
A12: Regression | B12: 7 | C12: 3.005184679e+15 | D12: 4.29312097e+14 | E12: 79.07836756 | F12: 2.809071604e-32
A13: Residual | B13: 76 | C13: 4.125998093e+14 | D13: 5.428944859e+12
A14: Total | B14: 83 | C14: 3417784487991798
B16: Coefficients | C16: Standard Error | D16: t Stat | E16: P-value | F16: Lower 95% | G16: Upper 95% | H16: Lower 95.0% | I16: Upper 95.0%
A17: Intercept | B17: -280543471.7 | C17: 132534285.5 | D17: -2.11676149 | E17: 0.03755290547 | F17: -544508373.9 | G17: -16578569.44 | H17: -544508373.9 | I17: -16578569.44
A18: Heating Degree Days | B18: 17934.13445 | C18: 2333.823273 | D18: 7.684444085 | E18: 4.414487869e-11 | F18: 13285.92263 | G18: 22582.34626 | H18: 13285.92263 | I18: 22582.34626
A19: Cooling Degree Days | B19: 111656.7181 | C19: 7856.602836 | D19: 14.21183181 | E19: 4.22684841e-23 | F19: 96008.93764 | G19: 127304.4985 | H19: 96008.93764 | I19: 127304.4985
A20: Peakhours | B20: 44143.08464 | C20: 16434.94019 | D20: 2.685929132 | E20: 0.008878035518 | F20: 11410.06493 | G20: 76876.10435 | H20: 11410.06493 | I20: 76876.10435
A21: Seasonal Weighting Factor | B21: 3796213.869 | C21: 604945.6196 | D21: 6.275297724 | E21: 1.965244998e-08 | F21: 2591360.267 | G21: 5001067.472 | H21: 2591360.267 | I21: 5001067.472
A22: Industrial Production Weighting Factor | B22: 338716.4552 | C22: 338688.48 | D22: 1.000082599 | E22: 0.3204441274 | F22: -335840.103 | G22: 1013273.013 | H22: -335840.103 | I22: 1013273.013
A23: Population | B23: 3332.849493 | C23: 1243.231127 | D23: 2.680796371 | E23: 0.00900316301 | F23: 856.7401489 | G23: 5808.958837 | H23: 856.7401489 | I23: 5808.958837
A24: Unemployment Rate | B24: -3711133.857 | C24: 501625.4871 | D24: -7.398216305 | E24: 1.548640065e-10 | F24: -4710207.585 | G24: -2712060.13 | H24: -4710207.585 | I24: -2712060.13

Sheet Original
A1: Year | B1: Month | C1: No | D1: KWH | E1: KW | F1: LF | G1: Heating Degree Days | H1: Cooling Degree Days | I1: Peakhours | J1: Seasonal Weighting Factor | K1: Industrial Production Weighting Factor | L1: Population | M1: Unemployment Rate | N1: GDP | O1: Median Age | P1: Predicted kWH | Q1: %Variance
A2: 1998 | B2: Jan | C2: 1 | D2: 75570017.88 | E2: 130983.22 | F2: =D2/E2/24/(DAY(DATE(A3,C2+1,1)-1)) -> 0.7754627247 | G2: 552.2 | H2: 0 | I2: 336.288 | J2: 0 | K2: 2 | L2: =L3-14 -> 106683 | M2: 7.4 | N2: 100.3925446 | O2: 30 | Q2: =(1-P2/D2) -> 1
A3: 1998 | B3: Feb | C3: 2 | D3: 68168475.13 | E3: 128474.49 | F3: =D3/E3/24/(DAY(DATE(A4,C3+1,1)-1)) -> 0.7895822994 | G3: 443.2 | H3: 0 | I3: 319.872 | J3: -1 | K3: 2 | L3: 106697 | M3: 8.4 | N3: 100.7866301 | O3: =O2+ ($O$132-$O$2)/131 -> 30.11450382 | Q3: 1
A4: 1998 | B4: Mar | C4: 3 | D4: 74924788.11 | E4: 127284.04 | F4: 0.7911860777 | G4: 440 | H4: 5.9 | I4: 351.912 | J4: 0 | K4: 3 | L4: 106711 | M4: 9.2 | N4: 101.1822626 | O4: =O3+ ($O$132-$O$2)/131 -> 30.22900763 | Q4: 1
A5: 1998 | B5: Apr | C5: 4 | D5: 66745191 | E5: 121012.95 | F5: 0.7660473872 | G5: 249.1 | H5: 0 | I5: 336.24 | J5: -0.75 | K5: 4 | L5: 106725 | M5: 8.6 | N5: 101.5794482 | O5: 30.34351145 | Q5: 1
A6: 1998 | B6: May | C6: 5 | D6: 72356351.15 | E6: 148733.37 | F6: 0.6538758595 | G6: 42.2 | H6: 54.3 | I6: 319.92 | J6: 0 | K6: 3 | L6: 106739 | M6: 7.7 | N6: 101.9781928 | O6: 30.45801527 | Q6: 1
A7: 1998 | B7: Jun | C7: 6 | D7: 80403469.05 | E7: 179890.4705 | F7: 0.6207748774 | G7: 41.5 | H7: 125.7 | I7: 352.08 | J7: 0 | K7: 3 | L7: 106753 | M7: 7.5 | N7: 102.3785027 | O7: 30.57251908 | Q7: 1
A8: 1998 | B8: Jul | C8: 7 | D8: 82869631.39 | E8: 170332.9305 | F8: 0.6539188449 | G8: 0 | H8: 159.9 | I8: 351.912 | J8: 0 | K8: 2 | L8: 106767 | M8: 8.4 | N8: 102.780384 | O8: 30.6870229 | Q8: 1
A9: 1998 | B9: Aug | C9: 8 | D9: 88615228.5 | E9: 179093.09 | F9: 0.66505352 | G9: 1.2 | H9: 147.3 | I9: 319.92 | J9: 1 | K9: 2 | L9: 106781 | M9: 9 | N9: 103.1838429 | O9: 30.80152672 | Q9: 1
A10: 1998 | B10: Sep | C10: 9 | D10: 78935386.8 | E10: 154733.28 | F10: 0.7085255458 | G10: 17.7 | H10: 82.4 | I10: 336.24 | J10: 0.75 | K10: 4 | L10: 106795 | M10: 8.9 | N10: 103.5888855 | O10: 30.91603053 | Q10: 1
A11: 1998 | B11: Oct | C11: 10 | D11: 74846440 | E11: 127691.61 | F11: 0.787836051 | G11: 181.3 | H11: 5.2 | I11: 336.288 | J11: 0.25 | K11: 4 | L11: 106809 | M11: 8 | N11: 103.9955181 | O11: 31.03053435 | Q11: 1
A12: 1998 | B12: Nov | C12: 11 | D12: 75052465.8 | E12: 132490.47 | F12: 0.7867700661 | G12: 336.9 | H12: 0 | I12: 336.24 | J12: -0.25 | K12: 3 | L12: 106823 | M12: 7.3 | N12: 104.4037469 | O12: 31.14503817 | Q12: 1
A13: 1998 | B13: Dec | C13: 12 | D13: 76019395.5 | E13: 139903.76 | F13: 0.7303349592 | G13: 485.7 | H13: 0 | I13: 336.288 | J13: -0.25 | K13: 0 | L13: 106837 | M13: 7.2 | N13: 104.8135782 | O13: 31.25954198 | Q13: 1
A14: 1999 | B14: Jan | C14: 1 | D14: 83216461.1 | E14: 146833.21 | F14: 0.7617492128 | G14: 718.9 | H14: 0 | I14: 319.92 | J14: =J2 -> 0 | K14: =K2 -> 2 | L14: 106851 | M14: 7.3 | N14: 105.4481984 | O14: 31.3740458 | Q14: 1
A15: 1999 | B15: Feb | C15: 2 | D15: 73698462.8 | E15: 134989.75 | F15: 0.8124345111 | G15: 500.4 | H15: 0 | I15: 319.872 | J15: =J3 -> -1 | K15: =K3 -> 2 | L15: 106865 | M15: 7.1 | N15: 106.0866612 | O15: 31.48854962 | Q15: 1
A16: 1999 | B16: Mar | C16: 3 | D16: 79791477.4 | E16: 135933.93 | F16: 0.7889612947 | G16: 517.2 | H16: 0 | I16: 368.28 | J16: =J4 -> 0 | K16: 3 | L16: 106879 | M16: 6.9 | N16: 106.7289896 | O16: 31.60305344 | Q16: 1
A17: 1999 | B17: Apr | C17: 4 | D17: 70411214.9 | E17: 123910 | F17: 0.7892289083 | G17: 243.9 | H17: 0 | I17: 336.24 | J17: =J5 -> -0.75 | K17: 4 | L17: 106893 | M17: 6.6 | N17: 107.3752073 | O17: 31.71755725 | Q17: 1
A18: 1999 | B18: May | C18: 5 | D18: 72067143.6 | E18: 133936.48 | F18: 0.7232117816 | G18: 65.8 | H18: 26.1 | I18: 319.92 | J18: =J6 -> 0 | K18: 3 | L18: 106907 | M18: 6.3 | N18: 108.0253375 | O18: 31.83206107 | Q18: 1
A19: 1999 | B19: Jun | C19: 6 | D19: 84086655.7 | E19: 175727.18 | F19: 0.6645928183 | G19: 19.1 | H19: 131.9 | I19: 352.08 | J19: 0 | K19: 3 | L19: 106921 | M19: 5.8 | N19: 108.6794042 | O19: 31.94656489 | Q19: 1
A20: 1999 | B20: Jul | C20: 7 | D20: 90045568.5 | E20: 177564.94 | F20: 0.6816040932 | G20: 0 | H20: 227.8 | I20: 336.288 | J20: 0 | K20: 2 | L20: 106935 | M20: 5.8 | N20: 109.3374311 | O20: 32.0610687 | Q20: 1
A21: 1999 | B21: Aug | C21: 8 | D21: 81217134.6 | E21: 163632.64 | F21: 0.6671212744 | G21: 1.2 | H21: 102.1 | I21: 336.288 | J21: 1 | K21: 2 | L21: 106949 | M21: 6.3 | N21: 109.9994422 | O21: 32.17557252 | Q21: 1
A22: 1999 | B22: Sep | C22: 9 | D22: 76861202.5 | E22: 152305.76 | F22: 0.7009036962 | G22: 37.1 | H22: 64.4 | I22: 336.24 | J22: 0.75 | K22: 4 | L22: 106963 | M22: 6.7 | N22: 110.6654616 | O22: 32.29007634 | Q22: 1
A23: 1999 | B23: Oct | C23: 10 | D23: 73100196 | E23: 130512.1 | F23: 0.7528263786 | G23: 221.4 | H23: 0.9 | I23: 319.92 | J23: 0.25 | K23: 4 | L23: 106977 | M23: 6.5 | N23: 111.3355135 | O23: 32.40458015 | Q23: 1
A24: 1999 | B24: Nov | C24: 11 | D24: 72995431 | E24: 139934.1 | F24: 0.7245020553 | G24: 324.3 | H24: 0 | I24: 352.08 | J24: -0.25 | K24: 3 | L24: 106991 | M24: 6.2 | N24: 112.0096225 | O24: 32.51908397 | Q24: 1
A25: 1999 | B25: Dec | C25: 12 | D25: 76210082.3 | E25: 144765.09 | F25: 0.7075801653 | G25: 558.4 | H25: 0 | I25: 336.288 | J25: -0.25 | K25: 0 | L25: 107005 | M25: 5.9 | N25: 112.687813 | O25: 32.63358779 | Q25: 1
A26: 2000 | B26: Jan | C26: 1 | D26: 79536131 | E26: 141049.08 | F26: 0.7579163358 | G26: 679.9 | H26: 0 | I26: 319.92 | J26: =J14 -> 0 | K26: =K14 -> 2 | L26: 107019 | M26: 5.9 | N26: 113.2055074 | O26: 32.7480916 | Q26: 1
A27: 2000 | B27: Feb | C27: 2 | D27: 73178156 | E27: 133102.63 | F27: 0.7899245021 | G27: 533.9 | H27: 0 | I27: 336.168 | J27: =J15 -> -1 | K27: 2 | L27: 107033 | M27: 5.9 | N27: 113.7255802 | O27: 32.86259542 | Q27: 1
A28: 2000 | B28: Mar | C28: 3 | D28: 75091178 | E28: 129484.19 | F28: 0.7794696996 | G28: 367.7 | H28: 0.5 | I28: 368.28 | J28: =J16 -> 0 | K28: 3 | L28: 107047 | M28: 5.7 | N28: 114.2480421 | O28: 32.97709924 | Q28: 1
A29: 2000 | B29: Apr | C29: 4 | D29: 68114066 | E29: 126280.51 | F29: 0.7491486172 | G29: 293.6 | H29: 0 | I29: 303.84 | J29: =J17 -> -0.75 | K29: 4 | L29: 107061 | M29: 5.6 | N29: 114.7729043 | O29: 33.09160305 | Q29: 1
A30: 2000 | B30: May | C30: 5 | D30: 74696611.9 | E30: 147531.7 | F30: 0.6805227074 | G30: 85.1 | H30: 38.6 | I30: 351.912 | J30: 0 | K30: 3 | L30: 107075 | M30: 5.3 | N30: 115.3001777 | O30: 33.20610687 | Q30: 1
A31: 2000 | B31: Jun | C31: 6 | D31: 80335315 | E31: 167627.59 | F31: 0.6656232807 | G31: 18 | H31: 98.7 | I31: 352.08 | J31: 0 | K31: 3 | L31: 107089 | M31: 4.8 | N31: 115.8298735 | O31: 33.32061069 | Q31: 1
A32: 2000 | B32: Jul | C32: 7 | D32: 78162420 | E32: 159861.29 | F32: 0.6571760814 | G32: 0.9 | H32: 97.1 | I32: 319.92 | J32: 0 | K32: 2 | L32: 107103 | M32: 4.9 | N32: 116.3620027 | O32: 33.4351145 | Q32: 1
A33: 2000 | B33: Aug | C33: 8 | D33: 85745386 | E33: 168464.57 | F33: 0.6841152103 | G33: 7.7 | H33: 109.9 | I33: 351.912 | J33: 1 | K33: 2 | L33: 107117 | M33: 5.2 | N33: 116.8965766 | O33: 33.54961832 | Q33: 1
A34: 2000 | B34: Sep | C34: 9 | D34: 76389789 | E34: 167817.1 | F34: 0.6322176296 | G34: 76.4 | H34: 45.7 | I34: 319.68 | J34: 0.75 | K34: 4 | L34: 107131 | M34: 6.2 | N34: 117.4336063 | O34: 33.66412214 | Q34: 1
A35: 2000 | B35: Oct | C35: 10 | D35: 72457860 | E35: 127194.3 | F35: 0.765675795 | G35: 158.4 | H35: 3.3 | I35: 336.288 | J35: 0.25 | K35: 4 | L35: 107145 | M35: 6.1 | N35: 117.9731031 | O35: 33.77862595 | Q35: 1
A36: 2000 | B36: Nov | C36: 11 | D36: 75593151 | E36: 139855.5 | F36: 0.7507068903 | G36: 401.3 | H36: 0 | I36: 352.08 | J36: -0.25 | K36: 3 | L36: 107159 | M36: 6.2 | N36: 118.5150785 | O36: 33.89312977 | Q36: 1
A37: 2000 | B37: Dec | C37: 12 | D37: 76895977 | E37: 143048.6 | F37: 0.7225153395 | G37: 771.2 | H37: 0 | I37: 304.296 | J37: -0.25 | K37: 0 | L37: 107173 | M37: 6.5 | N37: 119.0595437 | O37: 34.00763359 | Q37: 1
A38: 2001 | B38: Jan | C38: 1 | D38: 77836513 | E38: 138147.8 | F38: 0.7572973952 | G38: 657.4 | H38: 0 | I38: 351.912 | J38: =J26 -> 0 | K38: =K26 -> 2 | L38: 107187 | M38: 7.1 | N38: 119.2320631 | O38: 34.1221374 | Q38: 1
A39: 2001 | B39: Feb | C39: 2 | D39: 68724114 | E39: 129314.81 | F39: 0.7908454321 | G39: 544.3 | H39: 0 | I39: 319.872 | J39: =J27 -> -1 | K39: 2 | L39: 107201 | M39: 8.1 | N39: 119.4048324 | O39: 34.23664122 | Q39: 1
A40: 2001 | B40: Mar | C40: 3 | D40: 73837297 | E40: 124821.5 | F40: 0.7950848112 | G40: 518.9 | H40: 0 | I40: 351.912 | J40: =J28 -> 0 | K40: 3 | L40: 107215 | M40: 8.5 | N40: 119.5778521 | O40: 34.35114504 | Q40: 1
A41: 2001 | B41: Apr | C41: 4 | D41: 65927141 | E41: 122104.5 | F41: 0.7498943414 | G41: 245.3 | H41: 0.4 | I41: 319.68 | J41: =J29 -> -0.75 | K41: 4 | L41: 107229 | M41: 8.4 | N41: 119.7511225 | O41: 34.46564885 | Q41: 1
A42: 2001 | B42: May | C42: 5 | D42: 70361810 | E42: 130504.6 | F42: 0.7246666039 | G42: 82.9 | H42: 20.4 | I42: 351.912 | J42: =J30 -> 0 | K42: 3 | L42: 107243 | M42: 7.8 | N42: 119.924644 | O42: 34.58015267 | Q42: 1
A43: 2001 | B43: Jun | C43: 6 | D43: 79860509 | E43: 172880.62 | F43: 0.6415836177 | G43: 24.9 | H43: 112.5 | I43: 336.24 | J43: 0 | K43: 3 | L43: 107257 | M43: 7.1 | N43: 120.0984169 | O43: 34.69465649 | Q43: 1
A44: 2001 | B44: Jul | C44: 7 | D44: 83033599 | E44: 183595.93 | F44: 0.6078800316 | G44: 3.2 | H44: 156.1 | I44: 336.288 | J44: 0 | K44: 2 | L44: 107271 | M44: 7.2 | N44: 120.2724417 | O44: 34.80916031 | Q44: 1
A45: 2001 | B45: Aug | C45: 8 | D45: 89193753 | E45: 186132.6 | F45: 0.6440788804 | G45: 0 | H45: 162.2 | I45: 351.912 | J45: 1 | K45: 2 | L45: 107285 | M45: 7.1 | N45: 120.4467185 | O45: 34.92366412 | Q45: 1
A46: 2001 | B46: Sep | C46: 9 | D46: 72854620 | E46: 157846.4 | F46: 0.64104707 | G46: 69.9 | H46: 36.2 | I46: 303.84 | J46: 0.75 | K46: 4 | L46: 107299 | M46: 6.9 | N46: 120.6212479 | O46: 35.03816794 | Q46: 1
A47: 2001 | B47: Oct | C47: 10 | D47: 70195854 | E47: 122473.1 | F47: 0.7703672572 | G47: 202.7 | H47: 2.9 | I47: 351.912 | J47: 0.25 | K47: 4 | L47: 107313 | M47: 6.3 | N47: 120.7960303 | O47: 35.15267176 | Q47: 1
A48: 2001 | B48: Nov | C48: 11 | D48: 70271116 | E48: 126798.5 | F48: 0.769715511 | G48: 279.9 | H48: 0 | I48: 352.08 | J48: -0.25 | K48: 3 | L48: =L49-14 -> 107327 | M48: 5.9 | N48: 120.9710658 | O48: 35.26717557 | Q48: 1
A49: 2001 | B49: Dec | C49: 12 | D49: 71209767 | E49: 133819.4 | F49: 0.7152330112 | G49: 491.6 | H49: 0 | I49: 304.296 | J49: -0.25 | K49: 0 | L49: 107341 | M49: 6.2 | N49: 121.146355 | O49: 35.38167939 | Q49: 1
A50: 2002 | B50: Jan | C50: 1 | D50: 75539423 | E50: 128166 | F50: 0.7921873393 | G50: 545.3 | H50: 0 | I50: 351.912 | J50: =J38 -> 0 | K50: =K38 -> 2 | L50: =L49+14 -> 107355 | M50: 7.7 | N50: 121.5045064 | O50: 35.49618321 | P50: =G50*[1]RegressionStats!$B$18+H50*[1]RegressionStats!$B$19+I50*[1]RegressionStats!$B$20+J50*[1]RegressionStats!$B$21+K50*[1]RegressionStats!$B$22 + L50*[1]RegressionStats!$B$23+M50*[1]RegressionStats!$B$24+N50*[1]RegressionStats!$B$25+O50*[1]RegressionStats!$B$26+[1]RegressionStats!$B$17 -> 76975862.07 | Q50: -0.01901575381
A51: 2002 | B51: Feb | C51: 2 | D51: 68515032 | E51: 129818.3 | F51: 0.7853815129 | G51: 494.8 | H51: 0 | I51: 319.872 | J51: =J39 -> -1 | K51: 2 | L51: =L50+14 -> 107369 | M51: 8.7 | N51: 121.8637166 | O51: 35.61068702 | P51: =G51*[1]RegressionStats!$B$18+H51*[1]RegressionStats!$B$19+I51*[1]RegressionStats!$B$20+J51*[1]RegressionStats!$B$21+K51*[1]RegressionStats!$B$22 + L51*[1]RegressionStats!$B$23+M51*[1]RegressionStats!$B$24+N51*[1]RegressionStats!$B$25+O51*[1]RegressionStats!$B$26+[1]RegressionStats!$B$17 -> 70184634.72 | Q51: -0.02436841483
A52: 2002 | B52: Mar | C52: 3 | D52: 73639815 | E52: 130708.9 | F52: 0.7572418249 | G52: 513.9 | H52: 0 | I52: 319.92 | J52: =J40 -> 0 | K52: 3 | L52: 107383 | M52: 9.2 | N52: 122.2239887 | O52: 35.72519084 | P52: =G52*[1]RegressionStats!$B$18+H52*[1]RegressionStats!$B$19+I52*[1]RegressionStats!$B$20+J52*[1]RegressionStats!$B$21+K52*[1]RegressionStats!$B$22 + L52*[1]RegressionStats!$B$23+M52*[1]RegressionStats!$B$24+N52*[1]RegressionStats!$B$25+O52*[1]RegressionStats!$B$26+[1]RegressionStats!$B$17 -> 75005529.1 | Q52: -0.01854586547
A53: 2002 | B53: Apr | C53: 4 | D53: 70425715 | E53: 130995.7 | F53: 0.7466923957 | G53: 273.3 | H53: 15.1 | I53: 352.08 | J53: =J41 -> -0.75 | K53: 4 | L53: 107397 | M53: 8.2 | N53: 122.5853259 | O53: 35.83969466 | P53: =G53*[1]RegressionStats!$B$18+H53*[1]RegressionStats!$B$19+I53*[1]RegressionStats!$B$20+J53*[1]RegressionStats!$B$21+K53*[1]RegressionStats!$B$22 + L53*[1]RegressionStats!$B$23+M53*[1]RegressionStats!$B$24+N53*[1]RegressionStats!$B$25+O53*[1]RegressionStats!$B$26+[1]RegressionStats!$B$17 -> 71329413.97 | Q53: -0.01283194591
A54: 2002 | B54: May | C54: 5 | D54: 72864570 | E54: 140660.2 | F54: 0.6962612736 | G54: 185.1 | H54: 12.5 | I54: 351.912 | J54: =J42 -> 0 | K54: 3 | L54: 107411 | M54: 7.5 | N54: 122.9477314 | O54: 35.95419847 | P54: =G54*[1]RegressionStats!$B$18+H54*[1]RegressionStats!$B$19+I54*[1]RegressionStats!$B$20+J54*[1]RegressionStats!$B$21+K54*[1]RegressionStats!$B$22 + L54*[1]RegressionStats!$B$23+M54*[1]RegressionStats!$B$24+N54*[1]RegressionStats!$B$25+O54*[1]RegressionStats!$B$26+[1]RegressionStats!$B$17 -> 71822328.64 | Q54: 0.01430381538
A55: 2002 | B55: Jun | C55: 6 | D55: 79716033 | E55: 178718.3 | F55: 0.6195040603 | G55: 16.5 | H55: 118.3 | I55: 319.68 | J55: 0 | K55: 3 | L55: 107425 | M55: 7.2 | N55: 123.3112082 | O55: 36.06870229 | P55: =G55*[1]RegressionStats!$B$18+H55*[1]RegressionStats!$B$19+I55*[1]RegressionStats!$B$20+J55*[1]RegressionStats!$B$21+K55*[1]RegressionStats!$B$22 + L55*[1]RegressionStats!$B$23+M55*[1]RegressionStats!$B$24+N55*[1]RegressionStats!$B$25+O55*[1]RegressionStats!$B$26+[1]RegressionStats!$B$17 -> 80456680.6 | Q55: -0.009291074511
A56: 2002 | B56: Jul | C56: 7 | D56: 93049284 | E56: 182854.8 | F56: 0.6839647739 | G56: 0 | H56: 201.2 | I56: 351.912 | J56: 0 | K56: 2 | L56: 107439 | M56: 7.6 | N56: 123.6757597 | O56: 36.18320611 | P56: =G56*[1]RegressionStats!$B$18+H56*[1]RegressionStats!$B$19+I56*[1]RegressionStats!$B$20+J56*[1]RegressionStats!$B$21+K56*[1]RegressionStats!$B$22 + L56*[1]RegressionStats!$B$23+M56*[1]RegressionStats!$B$24+N56*[1]RegressionStats!$B$25+O56*[1]RegressionStats!$B$26+[1]RegressionStats!$B$17 -> 90458267.96 | Q56: 0.02784563118
A57: 2002 | B57: Aug | C57: 8 | D57: 91281708 | E57: 185916.6 | F57: 0.6599220712 | G57: 0 | H57: 149.2 | I57: 336.288 | J57: 1 | K57: 2 | L57: 107453 | M57: 7.7 | N57: 124.0413888 | O57: 36.29770992 | P57: =G57*[1]RegressionStats!$B$18+H57*[1]RegressionStats!$B$19+I57*[1]RegressionStats!$B$20+J57*[1]RegressionStats!$B$21+K57*[1]RegressionStats!$B$22 + L57*[1]RegressionStats!$B$23+M57*[1]RegressionStats!$B$24+N57*[1]RegressionStats!$B$25+O57*[1]RegressionStats!$B$26+[1]RegressionStats!$B$17 -> 87400422.46 | Q57: 0.04251986102
A58: 2002 | B58: Sep | C58: 9 | D58: 85671396 | E58: 188582.2 | F58: 0.6309611936 | G58: 17.1 | H58: 97.9 | I58: 319.68 | J58: 0.75 | K58: 4 | L58: 107467 | M58: 7 | N58: 124.4080989 | O58: 36.41221374 | P58: =G58*[1]RegressionStats!$B$18+H58*[1]RegressionStats!$B$19+I58*[1]RegressionStats!$B$20+J58*[1]RegressionStats!$B$21+K58*[1]RegressionStats!$B$22 + L58*[1]RegressionStats!$B$23+M58*[1]RegressionStats!$B$24+N58*[1]RegressionStats!$B$25+O58*[1]RegressionStats!$B$26+[1]RegressionStats!$B$17 -> 81764997.49 | Q58: 0.04559746538
A59: 2002 | B59: Oct | C59: 10 | D59: 78002634 | E59: 152745.1 | F59: 0.6863869938 | G59: 255.9 | H59: 12.6 | I59: 351.912 | J59: 0.25 | K59: 4 | L59: 107481 | M59: 6 | N59: 124.7758932 | O59: 36.52671756 | P59: =G59*[1]RegressionStats!$B$18+H59*[1]RegressionStats!$B$19+I59*[1]RegressionStats!$B$20+J59*[1]RegressionStats!$B$21+K59*[1]RegressionStats!$B$22 + L59*[1]RegressionStats!$B$23+M59*[1]RegressionStats!$B$24+N59*[1]RegressionStats!$B$25+O59*[1]RegressionStats!$B$26+[1]RegressionStats!$B$17 -> 75904255.85 | Q59: 0.02690137556
A60: 2002 | B60: Nov | C60: 11 | D60: 75569055 | E60: 134440.9 | F60: 0.7806926377 | G60: 417.5 | H60: 0 | I60: 336.24 | J60: -0.25 | K60: 3 | L60: 107495 | M60: 6 | N60: 125.1447747 | O60: 36.64122137 | P60: =G60*[1]RegressionStats!$B$18+H60*[1]RegressionStats!$B$19+I60*[1]RegressionStats!$B$20+J60*[1]RegressionStats!$B$21+K60*[1]RegressionStats!$B$22 + L60*[1]RegressionStats!$B$23+M60*[1]RegressionStats!$B$24+N60*[1]RegressionStats!$B$25+O60*[1]RegressionStats!$B$26+[1]RegressionStats!$B$17 -> 74402212.85 | Q60: 0.01544074028
A61: 2002 | B61: Dec | C61: 12 | D61: 74014572 | E61: 137747.6 | F61: 0.7222046091 | G61: 610.4 | H61: 0 | I61: 319.92 | J61: -0.25 | K61: 0 | L61: 107509 | M61: 6.3 | N61: 125.5147468 | O61: 36.75572519 | P61: =G61*[1]RegressionStats!$B$18+H61*[1]RegressionStats!$B$19+I61*[1]RegressionStats!$B$20+J61*[1]RegressionStats!$B$21+K61*[1]RegressionStats!$B$22 + L61*[1]RegressionStats!$B$23+M61*[1]RegressionStats!$B$24+N61*[1]RegressionStats!$B$25+O61*[1]RegressionStats!$B$26+[1]RegressionStats!$B$17 -> 75390328.17 | Q61: -0.01858763937
A62: 2003 | B62: Jan | C62: 1 | D62: 80158611 | E62: 137438.7 | F62: 0.7839136178 | G62: 759.2 | H62: 0 | I62: 351.912 | J62: =J50 -> 0 | K62: =K50 -> 2 | L62: 107523 | M62: 6.7 | N62: 125.6602494 | O62: 36.87022901 | P62: =G62*[1]RegressionStats!$B$18+H62*[1]RegressionStats!$B$19+I62*[1]RegressionStats!$B$20+J62*[1]RegressionStats!$B$21+K62*[1]RegressionStats!$B$22 + L62*[1]RegressionStats!$B$23+M62*[1]RegressionStats!$B$24+N62*[1]RegressionStats!$B$25+O62*[1]RegressionStats!$B$26+[1]RegressionStats!$B$17 -> 81865351.36 | Q62: -0.02129204008
A63: 2003 | B63: Feb | C63: 2 | D63: 73538697 | E63: 136985 | F63: 0.7988654584 | G63: 656.2 | H63: 0 | I63: 319.872 | J63: =J51 -> -1 | K63: 2 | L63: 107537 | M63: 7.4 | N63: 125.8059206 | O63: 36.98473282 | P63: =G63*[1]RegressionStats!$B$18+H63*[1]RegressionStats!$B$19+I63*[1]RegressionStats!$B$20+J63*[1]RegressionStats!$B$21+K63*[1]RegressionStats!$B$22 + L63*[1]RegressionStats!$B$23+M63*[1]RegressionStats!$B$24+N63*[1]RegressionStats!$B$25+O63*[1]RegressionStats!$B$26+[1]RegressionStats!$B$17 -> 74195834.67 | Q63: -0.008935943874
A64: 2003 | B64: Mar | C64: 3 | D64: 74987208 | E64: 133502.5 | F64: 0.754961578 | G64: 524.1 | H64: 0 | I64: 336.288 | J64: =J52 -> 0 | K64: 3 | L64: 107551 | M64: 8.1 | N64: 125.9517607 | O64: 37.09923664 | P64: =G64*[1]RegressionStats!$B$18+H64*[1]RegressionStats!$B$19+I64*[1]RegressionStats!$B$20+J64*[1]RegressionStats!$B$21+K64*[1]RegressionStats!$B$22 + L64*[1]RegressionStats!$B$23+M64*[1]RegressionStats!$B$24+N64*[1]RegressionStats!$B$25+O64*[1]RegressionStats!$B$26+[1]RegressionStats!$B$17 -> 76334180.82 | Q64: -0.0179627013
A65: 2003 | B65: Apr | C65: 4 | D65: 68131035 | E65: 128179.2 | F65: 0.7382355133 | G65: 303.3 | H65: 2.7 | I65: 336.24 | J65: =J53 -> -0.75 | K65: 4 | L65: 107565 | M65: 8.2 | N65: 126.0977699 | O65: 37.21374046 | P65: =G65*[1]RegressionStats!$B$18+H65*[1]RegressionStats!$B$19+I65*[1]RegressionStats!$B$20+J65*[1]RegressionStats!$B$21+K65*[1]RegressionStats!$B$22 + L65*[1]RegressionStats!$B$23+M65*[1]RegressionStats!$B$24+N65*[1]RegressionStats!$B$25+O65*[1]RegressionStats!$B$26+[1]RegressionStats!$B$17 -> 69772326.94 | Q65: -0.02409022471
A66: 2003 | B66: May | C66: 5 | D66: 68381673 | E66: 123358 | F66: 0.7450740998 | G66: 147.6 | H66: 0.2 | I66: 336.288 | J66: =J54 -> 0 | K66: 3 | L66: 107579 | M66: 7.5 | N66: 126.2439484 | O66: 37.32824427 | P66: =G66*[1]RegressionStats!$B$18+H66*[1]RegressionStats!$B$19+I66*[1]RegressionStats!$B$20+J66*[1]RegressionStats!$B$21+K66*[1]RegressionStats!$B$22 + L66*[1]RegressionStats!$B$23+M66*[1]RegressionStats!$B$24+N66*[1]RegressionStats!$B$25+O66*[1]RegressionStats!$B$26+[1]RegressionStats!$B$17 -> 68907874.05 | Q66: =(1-P66/D66) -> -0.007695059639
A67: 2003 | B67: Jun | C67: 6 | D67: 73186791 | E67: 172122.7 | F67: =D67/E67/24/(DAY(DATE(A68,C67+1,1)-1)) -> 0.5905573224 | G67: 30.3 | H67: 64.2 | I67: 336.24 | J67: 0 | K67: 3 | L67: 107593 | M67: 6.8 | N67: 126.3902963 | O67: 37.44274809 | P67: =G67*[1]RegressionStats!$B$18+H67*[1]RegressionStats!$B$19+I67*[1]RegressionStats!$B$20+J67*[1]RegressionStats!$B$21+K67*[1]RegressionStats!$B$22 + L67*[1]RegressionStats!$B$23+M67*[1]RegressionStats!$B$24+N67*[1]RegressionStats!$B$25+O67*[1]RegressionStats!$B$26+[1]RegressionStats!$B$17 -> 74827019.44 | Q67: -0.02241153648
A68: 2003 | B68: Jul | C68: 7 | D68: 81942993 | E68: 163585.3 | F68: 0.6732782924 | G68: 0 | H68: 144.6 | I68: 351.912 | J68: 0 | K68: 2 | L68: 107607 | M68: 6.9 | N68: 126.5368138 | O68: =O67+ ($O$132-$O$2)/131 -> 37.55725191 | P68: =G68*[1]RegressionStats!$B$18+H68*[1]RegressionStats!$B$19+I68*[1]RegressionStats!$B$20+J68*[1]RegressionStats!$B$21+K68*[1]RegressionStats!$B$22 + L68*[1]RegressionStats!$B$23+M68*[1]RegressionStats!$B$24+N68*[1]RegressionStats!$B$25+O68*[1]RegressionStats!$B$26+[1]RegressionStats!$B$17 -> 83877755.89 | Q68: -0.02361108403
A69: 2003 | B69: Aug | C69: 8 | D69: 80915733 | E69: 173485 | F69: 0.6268997645 | G69: 0 | H69: 143.1 | I69: 319.92 | J69: 1 | K69: 2 | L69: 107621 | M69: 6.8 | N69: 126.6835012 | O69: 37.67175573 | P69: =G69*[1]RegressionStats!$B$18+H69*[1]RegressionStats!$B$19+I69*[1]RegressionStats!$B$20+J69*[1]RegressionStats!$B$21+K69*[1]RegressionStats!$B$22 + L69*[1]RegressionStats!$B$23+M69*[1]RegressionStats!$B$24+N69*[1]RegressionStats!$B$25+O69*[1]RegressionStats!$B$26+[1]RegressionStats!$B$17 -> 86658912.43 | Q69: -0.07097728983
A70: 2003 | B70: Sep | C70: 9 | D70: 75167748 | E70: 141296.6 | F70: 0.7388688051 | G70: 50.3 | H70: 37.6 | I70: 336.24 | J70: 0.75 | K70: 4 | L70: 107635 | M70: 6.9 | N70: 126.8303587 | O70: 37.78625954 | P70: =G70*[1]RegressionStats!$B$18+H70*[1]RegressionStats!$B$19+I70*[1]RegressionStats!$B$20+J70*[1]RegressionStats!$B$21+K70*[1]RegressionStats!$B$22 + L70*[1]RegressionStats!$B$23+M70*[1]RegressionStats!$B$24+N70*[1]RegressionStats!$B$25+O70*[1]RegressionStats!$B$26+[1]RegressionStats!$B$17 -> 75676326.71 | Q70: -0.006765916569
A71: 2003 | B71: Oct | C71: 10 | D71: 72475980 | E71: 122965.7 | F71: 0.7922042619 | G71: 225.6 | H71: 1 | I71: 351.912 | J71: 0.25 | K71: 4 | L71: 107649 | M71: 6.4 | N71: 126.9773863 | O71: 37.90076336 | P71: =G71*[1]RegressionStats!$B$18+H71*[1]RegressionStats!$B$19+I71*[1]RegressionStats!$B$20+J71*[1]RegressionStats!$B$21+K71*[1]RegressionStats!$B$22 + L71*[1]RegressionStats!$B$23+M71*[1]RegressionStats!$B$24+N71*[1]RegressionStats!$B$25+O71*[1]RegressionStats!$B$26+[1]RegressionStats!$B$17 -> 73666527.88 | Q71: -0.01642679249
A72: 2003 | B72: Nov | C72: 11 | D72: 71081556 | E72: 131282.1 | F72: 0.7520018596 | G72: 338.8 | H72: 0 | I72: 319.68 | J72: -0.25 | K72: 3 | L72: 107663 | M72: 6.5 | N72: 127.1245845 | O72: 38.01526718 | P72: =G72*[1]RegressionStats!$B$18+H72*[1]RegressionStats!$B$19+I72*[1]RegressionStats!$B$20+J72*[1]RegressionStats!$B$21+K72*[1]RegressionStats!$B$22 + L72*[1]RegressionStats!$B$23+M72*[1]RegressionStats!$B$24+N72*[1]RegressionStats!$B$25+O72*[1]RegressionStats!$B$26+[1]RegressionStats!$B$17 -> 71988729.31 | Q72: -0.01276242902
A73: 2003 | B73: Dec | C73: 12 | D73: 73826575 | E73: 137616 | F73: 0.7210590881 | G73: 541.8 | H73: 0 | I73: 336.288 | J73: -0.25 | K73: 0 | L73: 107677 | M73: 6.9 | N73: 127.2719533 | O73: 38.12977099 | P73: =G73*[1]RegressionStats!$B$18+H73*[1]RegressionStats!$B$19+I73*[1]RegressionStats!$B$20+J73*[1]RegressionStats!$B$21+K73*[1]RegressionStats!$B$22 + L73*[1]RegressionStats!$B$23+M73*[1]RegressionStats!$B$24+N73*[1]RegressionStats!$B$25+O73*[1]RegressionStats!$B$26+[1]RegressionStats!$B$17 -> 74290160.12 | Q73: -0.006279380014
A74: 2004 | B74: Jan | C74: 1 | D74: 79684648 | E74: 136326.2 | F74: 0.7856378415 | G74: 762.9 | H74: 0 | I74: 336.288 | J74: =J62 -> 0 | K74: =K62 -> 2 | L74: 107691 | M74: 7.5 | N74: 127.5341126 | O74: 38.24427481 | P74: =G74*[1]RegressionStats!$B$18+H74*[1]RegressionStats!$B$19+I74*[1]RegressionStats!$B$20+J74*[1]RegressionStats!$B$21+K74*[1]RegressionStats!$B$22 + L74*[1]RegressionStats!$B$23+M74*[1]RegressionStats!$B$24+N74*[1]RegressionStats!$B$25+O74*[1]RegressionStats!$B$26+[1]RegressionStats!$B$17 -> 81029574.01 | Q74: -0.01687810688
A75: 2004 | B75: Feb | C75: 2 | D75: 72900352 | E75: 131065.8 | F75: 0.7991549669 | G75: 579.4 | H75: 0 | I75: 320.16 | J75: =J63 -> -1 | K75: 2 | L75: 107705 | M75: 7.8 | N75: 127.796812 | O75: 38.35877863 | P75: =G75*[1]RegressionStats!$B$18+H75*[1]RegressionStats!$B$19+I75*[1]RegressionStats!$B$20+J75*[1]RegressionStats!$B$21+K75*[1]RegressionStats!$B$22 + L75*[1]RegressionStats!$B$23+M75*[1]RegressionStats!$B$24+N75*[1]RegressionStats!$B$25+O75*[1]RegressionStats!$B$26+[1]RegressionStats!$B$17 -> 72463049.56 | Q75: 0.005998632749
A76: 2004 | B76: Mar | C76: 3 | D76: 75667416 | E76: 127110.4 | F76: 0.8001195506 | G76: 429.3 | H76: 0 | I76: 368.28 | J76: =J64 -> 0 | K76: 3 | L76: 107719 | M76: 8 | N76: 128.0600525 | O76: 38.47328244 | P76: =G76*[1]RegressionStats!$B$18+H76*[1]RegressionStats!$B$19+I76*[1]RegressionStats!$B$20+J76*[1]RegressionStats!$B$21+K76*[1]RegressionStats!$B$22 + L76*[1]RegressionStats!$B$23+M76*[1]RegressionStats!$B$24+N76*[1]RegressionStats!$B$25+O76*[1]RegressionStats!$B$26+[1]RegressionStats!$B$17 -> 75613290.47 | Q76: 0.0007153082926
A77: 2004 | B77: Apr | C77: 4 | D77: 68680718 | E77: 122353 | F77: 0.779628502 | G77: 251.7 | H77: 4.4 | I77: 336.24 | J77: =J65 -> -0.75 | K77: 4 | L77: 107733 | M77: 8.2 | N77: 128.3238353 | O77: 38.58778626 | P77: =G77*[1]RegressionStats!$B$18+H77*[1]RegressionStats!$B$19+I77*[1]RegressionStats!$B$20+J77*[1]RegressionStats!$B$21+K77*[1]RegressionStats!$B$22 + L77*[1]RegressionStats!$B$23+M77*[1]RegressionStats!$B$24+N77*[1]RegressionStats!$B$25+O77*[1]RegressionStats!$B$26+[1]RegressionStats!$B$17 -> 68981675.05 | Q77: -0.004381972989
A78: 2004 | B78: May | C78: 5 | D78: 70763440 | E78: 131627.8 | F78: 0.7225840631 | G78: 101.6 | H78: 28.1 | I78: 319.92 | J78: =J66 -> 0 | K78: 3 | L78: 107747 | M78: 8 | N78: 128.5881614 | O78: 38.70229008 | P78: =G78*[1]RegressionStats!$B$18+H78*[1]RegressionStats!$B$19+I78*[1]RegressionStats!$B$20+J78*[1]RegressionStats!$B$21+K78*[1]RegressionStats!$B$22 + L78*[1]RegressionStats!$B$23+M78*[1]RegressionStats!$B$24+N78*[1]RegressionStats!$B$25+O78*[1]RegressionStats!$B$26+[1]RegressionStats!$B$17 -> 70584511.66 | Q78: 0.002528542086
A79: 2004 | B79: Jun | C79: 6 | D79: 76247526 | E79: 167054.5 | F79: 0.633920916 | G79: 21.4 | H79: 62 | I79: 352.08 | J79: 0 | K79: 3 | L79: 107761 | M79: 8 | N79: 128.8530319 | O79: 38.81679389 | P79: =G79*[1]RegressionStats!$B$18+H79*[1]RegressionStats!$B$19+I79*[1]RegressionStats!$B$20+J79*[1]RegressionStats!$B$21+K79*[1]RegressionStats!$B$22 + L79*[1]RegressionStats!$B$23+M79*[1]RegressionStats!$B$24+N79*[1]RegressionStats!$B$25+O79*[1]RegressionStats!$B$26+[1]RegressionStats!$B$17 -> 74210520.33 | Q79: 0.02671569523
A80: 2004 | B80: Jul | C80: 7 | D80: 79986462 | E80: 167093.8 | F80: 0.6434031992 | G80: 2.2 | H80: 122 | I80: 336.288 | J80: 0 | K80: 2 | L80: 107775 | M80: 8.5 | N80: 129.1184481 | O80: 38.93129771 | P80: =G80*[1]RegressionStats!$B$18+H80*[1]RegressionStats!$B$19+I80*[1]RegressionStats!$B$20+J80*[1]RegressionStats!$B$21+K80*[1]RegressionStats!$B$22 + L80*[1]RegressionStats!$B$23+M80*[1]RegressionStats!$B$24+N80*[1]RegressionStats!$B$25+O80*[1]RegressionStats!$B$26+[1]RegressionStats!$B$17 -> 79619417.58 | Q80: 0.004588831819
A81: 2004 | B81: Aug | C81: 8 | D81: 80648262 | E81: 163310 | F81: 0.6637572813 | G81: 6.1 | H81: 74.2 | I81: 336.288 | J81: 1 | K81: 2 | L81: 107789 | M81: 8.9 | N81: 129.3844109 | O81: 39.04580153 | P81: =G81*[1]RegressionStats!$B$18+H81*[1]RegressionStats!$B$19+I81*[1]RegressionStats!$B$20+J81*[1]RegressionStats!$B$21+K81*[1]RegressionStats!$B$22 + L81*[1]RegressionStats!$B$23+M81*[1]RegressionStats!$B$24+N81*[1]RegressionStats!$B$25+O81*[1]RegressionStats!$B$26+[1]RegressionStats!$B$17 -> 77527876.71 | Q81: 0.03869128996
A82: 2004 | B82: Sep | C82: 9 | D82: 79026081 | E82: 152323.5 | F82: 0.720561475 | G82: 23 | H82: 59.7 | I82: 336.24 | J82: 0.75 | K82: 4 | L82: 107803 | M82: 8.3 | N82: 129.6509216 | O82: 39.16030534 | P82: =G82*[1]RegressionStats!$B$18+H82*[1]RegressionStats!$B$19+I82*[1]RegressionStats!$B$20+J82*[1]RegressionStats!$B$21+K82*[1]RegressionStats!$B$22 + L82*[1]RegressionStats!$B$23+M82*[1]RegressionStats!$B$24+N82*[1]RegressionStats!$B$25+O82*[1]RegressionStats!$B$26+[1]RegressionStats!$B$17 -> 76963615.49 | Q82: 0.02609854216
A83: 2004 | B83: Oct | C83: 10 | D83: 72549672 | E83: 122686.2 | F83: 0.7948163689 | G83: 190.9 | H83: 0.5 | I83: 319.92 | J83: 0.25 | K83: 4 | L83: 107817 | M83: 7.8 | N83: 129.9179813 | O83: 39.27480916 | P83: =G83*[1]RegressionStats!$B$18+H83*[1]RegressionStats!$B$19+I83*[1]RegressionStats!$B$20+J83*[1]RegressionStats!$B$21+K83*[1]RegressionStats!$B$22 + L83*[1]RegressionStats!$B$23+M83*[1]RegressionStats!$B$24+N83*[1]RegressionStats!$B$25+O83*[1]RegressionStats!$B$26+[1]RegressionStats!$B$17 -> 70884638.37 | Q83: 0.02295025711
A84: 2004 | B84: Nov | C84: 11 | D84: 72369445 | E84: 130779.7 | F84: 0.7685681956 | G84: 354 | H84: 0 | I84: 352.08 | J84: -0.25 | K84: 3 | L84: 107831 | M84: 7.6 | N84: 130.1855911 | O84: 39.38931298 | P84: =G84*[1]RegressionStats!$B$18+H84*[1]RegressionStats!$B$19+I84*[1]RegressionStats!$B$20+J84*[1]RegressionStats!$B$21+K84*[1]RegressionStats!$B$22 + L84*[1]RegressionStats!$B$23+M84*[1]RegressionStats!$B$24+N84*[1]RegressionStats!$B$25+O84*[1]RegressionStats!$B$26+[1]RegressionStats!$B$17 -> 72697152.43 | Q84: -0.004528256737
A85: 2004 | B85: Dec | C85: 12 | D85: 75651436 | E85: 140467.6 | F85: 0.7238825013 | G85: 593.5 | H85: 0 | I85: 336.288 | J85: -0.25 | K85: 0 | L85: 107845 | M85: 7.8 | N85: 130.4537521 | O85: 39.50381679 | P85: =G85*[1]RegressionStats!$B$18+H85*[1]RegressionStats!$B$19+I85*[1]RegressionStats!$B$20+J85*[1]RegressionStats!$B$21+K85*[1]RegressionStats!$B$22 + L85*[1]RegressionStats!$B$23+M85*[1]RegressionStats!$B$24+N85*[1]RegressionStats!$B$25+O85*[1]RegressionStats!$B$26+[1]RegressionStats!$B$17 -> 74750970.54 | Q85: 0.01190282043
A86: 2005 | B86: Jan | C86: 1 | D86: 79711033 | E86: 140596.6 | F86: 0.7620275683 | G86: 700.4 | H86: 0 | I86: 319.92 | J86: =J74 -> 0 | K86: =K74 -> 2 | L86: 107859 | M86: 8.2 | N86: 130.7437022 | O86: 39.61832061 | P86: =G86*[1]RegressionStats!$B$18+H86*[1]RegressionStats!$B$19+I86*[1]RegressionStats!$B$20+J86*[1]RegressionStats!$B$21+K86*[1]RegressionStats!$B$22 + L86*[1]RegressionStats!$B$23+M86*[1]RegressionStats!$B$24+N86*[1]RegressionStats!$B$25+O86*[1]RegressionStats!$B$26+[1]RegressionStats!$B$17 -> 78666771.43 | Q86: 0.01310059007
A87: 2005 | B87: Feb | C87: 2 | D87: 72086002 | E87: 131756 | F87: 0.8141628185 | G87: 572 | H87: 0 | I87: 319.872 | J87: =J75 -> -1 | K87: 2 | L87: 107873 | M87: 8.2 | N87: 131.0342967 | O87: 39.73282443 | P87: =G87*[1]RegressionStats!$B$18+H87*[1]RegressionStats!$B$19+I87*[1]RegressionStats!$B$20+J87*[1]RegressionStats!$B$21+K87*[1]RegressionStats!$B$22 + L87*[1]RegressionStats!$B$23+M87*[1]RegressionStats!$B$24+N87*[1]RegressionStats!$B$25+O87*[1]RegressionStats!$B$26+[1]RegressionStats!$B$17 -> 71985450.97 | Q87: 0.001394875881
A88: 2005 | B88: Mar | C88: 3 | D88: 78211488 | E88: 132791.1 | F88: 0.7916416668 | G88: 545.3 | H88: 0 | I88: 351.912 | J88: =J76 -> 0 | K88: 3 | L88: 107887 | M88: 8.4 | N88: 131.3255371 | O88: 39.84732824 | P88: =G88*[1]RegressionStats!$B$18+H88*[1]RegressionStats!$B$19+I88*[1]RegressionStats!$B$20+J88*[1]RegressionStats!$B$21+K88*[1]RegressionStats!$B$22 + L88*[1]RegressionStats!$B$23+M88*[1]RegressionStats!$B$24+N88*[1]RegressionStats!$B$25+O88*[1]RegressionStats!$B$26+[1]RegressionStats!$B$17 -> 77149956.44 | Q88: 0.01357257856
A89: 2005 | B89: Apr | C89: 4 | D89: 69000350 | E89: 120250.5 | F89: 0.7969515257 | G89: 242.5 | H89: 1.4 | I89: 336.24 | J89: =J77 -> -0.75 | K89: 4 | L89: 107901 | M89: 7.9 | N89: 131.6174248 | O89: 39.96183206 | P89: =G89*[1]RegressionStats!$B$18+H89*[1]RegressionStats!$B$19+I89*[1]RegressionStats!$B$20+J89*[1]RegressionStats!$B$21+K89*[1]RegressionStats!$B$22 + L89*[1]RegressionStats!$B$23+M89*[1]RegressionStats!$B$24+N89*[1]RegressionStats!$B$25+O89*[1]RegressionStats!$B$26+[1]RegressionStats!$B$17 -> 68532998.16 | Q89: 0.006773180655
A90: 2005 | B90: May | C90: 5 | D90: 70417800 | E90: 124908.8 | F90: 0.7577334875 | G90: 143.4 | H90: 5.7 | I90: 336.288 | J90: =J78 -> 0 | K90: 3 | L90: 107915 | M90: 7.9 | N90: 131.9099613 | O90: 40.07633588 | P90: =G90*[1]RegressionStats!$B$18+H90*[1]RegressionStats!$B$19+I90*[1]RegressionStats!$B$20+J90*[1]RegressionStats!$B$21+K90*[1]RegressionStats!$B$22 + L90*[1]RegressionStats!$B$23+M90*[1]RegressionStats!$B$24+N90*[1]RegressionStats!$B$25+O90*[1]RegressionStats!$B$26+[1]RegressionStats!$B$17 -> 69234082.61 | Q90: 0.01680991729
A91: 2005 | B91: Jun | C91: 6 | D91: 87906300 | E91: 181977.6 | F91: 0.6709181973 | G91: 4.4 | H91: 166.9 | I91: 352.08 | J91: 0 | K91: 3 | L91: 107929 | M91: 7.7 | N91: 132.203148 | O91: 40.19083969 | P91: =G91*[1]RegressionStats!$B$18+H91*[1]RegressionStats!$B$19+I91*[1]RegressionStats!$B$20+J91*[1]RegressionStats!$B$21+K91*[1]RegressionStats!$B$22 + L91*[1]RegressionStats!$B$23+M91*[1]RegressionStats!$B$24+N91*[1]RegressionStats!$B$25+O91*[1]RegressionStats!$B$26+[1]RegressionStats!$B$17 -> 86941931.56 | Q91: 0.01097041324
A92: 2005 | B92: Jul | C92: 7 | D92: 89932560 | E92: 179175.4 | F92: 0.6746299814 | G92: 0 | H92: 194.7 | I92: 319.92 | J92: 0 | K92: 2 | L92: 107943 | M92: 7.7 | N92: 132.4969863 | O92: 40.30534351 | P92: =G92*[1]RegressionStats!$B$18+H92*[1]RegressionStats!$B$19+I92*[1]RegressionStats!$B$20+J92*[1]RegressionStats!$B$21+K92*[1]RegressionStats!$B$22 + L92*[1]RegressionStats!$B$23+M92*[1]RegressionStats!$B$24+N92*[1]RegressionStats!$B$25+O92*[1]RegressionStats!$B$26+[1]RegressionStats!$B$17 -> 88418440.01 | Q92: 0.01683617139
A93: 2005 | B93: Aug | C93: 8 | D93: 94440230 | E93: 182533.3 | F93: 0.695411703 | G93: 0.1 | H93: 185.5 | I93: 351.912 | J93: 1 | K93: 2 | L93: 107957 | M93: 7.7 | N93: 132.7914777 | O93: 40.41984733 | P93: =G93*[1]RegressionStats!$B$18+H93*[1]RegressionStats!$B$19+I93*[1]RegressionStats!$B$20+J93*[1]RegressionStats!$B$21+K93*[1]RegressionStats!$B$22 + L93*[1]RegressionStats!$B$23+M93*[1]RegressionStats!$B$24+N93*[1]RegressionStats!$B$25+O93*[1]RegressionStats!$B$26+[1]RegressionStats!$B$17 -> 92370684.35 | Q93: 0.02191381416
A94: 2005 | B94: Sep | C94: 9 | D94: 81092320 | E94: 164146.9 | F94: 0.6861428527 | G94: 15.2 | H94: 82.2 | I94: 336.24 | J94: 0.75 | K94: 4 | L94: 107971 | M94: 7.5 | N94: 133.0866237 | O94: 40.53435115 | P94: =G94*[1]RegressionStats!$B$18+H94*[1]RegressionStats!$B$19+I94*[1]RegressionStats!$B$20+J94*[1]RegressionStats!$B$21+K94*[1]RegressionStats!$B$22 + L94*[1]RegressionStats!$B$23+M94*[1]RegressionStats!$B$24+N94*[1]RegressionStats!$B$25+O94*[1]RegressionStats!$B$26+[1]RegressionStats!$B$17 -> 79990696.15 | Q94: 0.01358481108
A95: 2005 | B95: Oct | C95: 10 | D95: 74394333 | E95: 139963.9 | F95: 0.7144155247 | G95: 182.8 | H95: 19 | I95: 319.92 | J95: 0.25 | K95: 4 | L95: 107985 | M95: 7.1 | N95: 133.3824256 | O95: 40.64885496 | P95: =G95*[1]RegressionStats!$B$18+H95*[1]RegressionStats!$B$19+I95*[1]RegressionStats!$B$20+J95*[1]RegressionStats!$B$21+K95*[1]RegressionStats!$B$22 + L95*[1]RegressionStats!$B$23+M95*[1]RegressionStats!$B$24+N95*[1]RegressionStats!$B$25+O95*[1]RegressionStats!$B$26+[1]RegressionStats!$B$17 -> 73344388.87 | Q95: 0.01411322728
A96: 2005 | B96: Nov | C96: 11 | D96: 73123230 | E96: 132240.1 | F96: 0.7679973145 | G96: 346.2 | H96: 0 | I96: 352.08 | J96: -0.25 | K96: 3 | L96: 107999 | M96: 6.6 | N96: 133.6788851 | O96: 40.76335878 | P96: =G96*[1]RegressionStats!$B$18+H96*[1]RegressionStats!$B$19+I96*[1]RegressionStats!$B$20+J96*[1]RegressionStats!$B$21+K96*[1]RegressionStats!$B$22 + L96*[1]RegressionStats!$B$23+M96*[1]RegressionStats!$B$24+N96*[1]RegressionStats!$B$25+O96*[1]RegressionStats!$B$26+[1]RegressionStats!$B$17 -> 73056797.2 | Q96: 0.0009085047743
A97: 2005 | B97: Dec | C97: 12 | D97: 76522590 | E97: 147092.5 | F97: 0.6992398902 | G97: 659.7 | H97: 0 | I97: 319.92 | J97: -0.25 | K97: 0 | L97: 108013 | M97: 6.3 | N97: 133.9760034 | O97: 40.8778626 | P97: =G97*[1]RegressionStats!$B$18+H97*[1]RegressionStats!$B$19+I97*[1]RegressionStats!$B$20+J97*[1]RegressionStats!$B$21+K97*[1]RegressionStats!$B$22 + L97*[1]RegressionStats!$B$23+M97*[1]RegressionStats!$B$24+N97*[1]RegressionStats!$B$25+O97*[1]RegressionStats!$B$26+[1]RegressionStats!$B$17 -> 76396181.2 | Q97: 0.001651914827
A98: 2006 | B98: Jan | C98: 1 | D98: 76765830 | E98: 129044.3 | F98: 0.7995694427 | G98: 494.7 | H98: 0 | I98: 336.288 | J98: =J86 -> 0 | K98: =K86 -> 2 | L98: 108027 | M98: 7.5 | N98: 134.251972 | O98: 40.99236641 | P98: =G98*[1]RegressionStats!$B$18+H98*[1]RegressionStats!$B$19+I98*[1]RegressionStats!$B$20+J98*[1]RegressionStats!$B$21+K98*[1]RegressionStats!$B$22 + L98*[1]RegressionStats!$B$23+M98*[1]RegressionStats!$B$24+N98*[1]RegressionStats!$B$25+O98*[1]RegressionStats!$B$26+[1]RegressionStats!$B$17 -> 75276716.19 | Q98: 0.01939813342
A99: 2006 | B99: Feb | C99: 2 | D99: 71300830 | E99: 125674.1 | F99: 0.8442664447 | G99: 538 | H99: 0 | I99: 319.872 | J99: =J87 -> -1 | K99: 2 | L99: 108041 | M99: 8 | N99: 134.5285091 | O99: 41.10687023 | P99: =G99*[1]RegressionStats!$B$18+H99*[1]RegressionStats!$B$19+I99*[1]RegressionStats!$B$20+J99*[1]RegressionStats!$B$21+K99*[1]RegressionStats!$B$22 + L99*[1]RegressionStats!$B$23+M99*[1]RegressionStats!$B$24+N99*[1]RegressionStats!$B$25+O99*[1]RegressionStats!$B$26+[1]RegressionStats!$B$17 -> 71301242.28 | Q99: -5.782318786e-06
A100: 2006 | B100: Mar | C100: 3 | D100: 76123120 | E100: 127940.2 | F100: 0.799717536 | G100: 461.4 | H100: 0 | I100: 368.28 | J100: =J88 -> 0 | K100: 3 | L100: 108055 | M100: 8.6 | N100: 134.8056158 | O100: 41.22137405 | P100: =G100*[1]RegressionStats!$B$18+H100*[1]RegressionStats!$B$19+I100*[1]RegressionStats!$B$20+J100*[1]RegressionStats!$B$21+K100*[1]RegressionStats!$B$22 + L100*[1]RegressionStats!$B$23+M100*[1]RegressionStats!$B$24+N100*[1]RegressionStats!$B$25+O100*[1]RegressionStats!$B$26+[1]RegressionStats!$B$17 -> 75742672.19 | Q100: 0.004997795781
A101: 2006 | B101: Apr | C101: 4 | D101: 66029130 | E101: 118344.8 | F101: 0.7749146984 | G101: 219.5 | H101: 1.1 | I101: 303.84 | J101: =J89 -> -0.75 | K101: 4 | L101: 108069 | M101: 7.9 | N101: 135.0832933 | O101: 41.33587786 | P101: =G101*[1]RegressionStats!$B$18+H101*[1]RegressionStats!$B$19+I101*[1]RegressionStats!$B$20+J101*[1]RegressionStats!$B$21+K101*[1]RegressionStats!$B$22 + L101*[1]RegressionStats!$B$23+M101*[1]RegressionStats!$B$24+N101*[1]RegressionStats!$B$25+O101*[1]RegressionStats!$B$26+[1]RegressionStats!$B$17 -> 66804253.79 | Q101: -0.01173911857
A102: 2006 | B102: May | C102: 5 | D102: 72285180 | E102: 164159.2 | F102: 0.5918492537 | G102: 105.9 | H102: 40.6 | I102: 351.912 | J102: =J90 -> 0 | K102: 3 | L102: 108083 | M102: 7.9 | N102: 135.3615428 | O102: 41.45038168 | P102: =G102*[1]RegressionStats!$B$18+H102*[1]RegressionStats!$B$19+I102*[1]RegressionStats!$B$20+J102*[1]RegressionStats!$B$21+K102*[1]RegressionStats!$B$22 + L102*[1]RegressionStats!$B$23+M102*[1]RegressionStats!$B$24+N102*[1]RegressionStats!$B$25+O102*[1]RegressionStats!$B$26+[1]RegressionStats!$B$17 -> 73214798.66 | Q102: -0.01286043225
A103: 2006 | B103: Jun | C103: 6 | D103: 76116070 | E103: 156225.2 | F103: 0.6766946939 | G103: 8.8 | H103: 85.7 | I103: 352.08 | J103: 0 | K103: 3 | L103: 108097 | M103: 7.7 | N103: 135.6403654 | O103: 41.5648855 | P103: =G103*[1]RegressionStats!$B$18+H103*[1]RegressionStats!$B$19+I103*[1]RegressionStats!$B$20+J103*[1]RegressionStats!$B$21+K103*[1]RegressionStats!$B$22 + L103*[1]RegressionStats!$B$23+M103*[1]RegressionStats!$B$24+N103*[1]RegressionStats!$B$25+O103*[1]RegressionStats!$B$26+[1]RegressionStats!$B$17 -> 76894684.95 | Q103: -0.01022931099
A104: 2006 | B104: Jul | C104: 7 | D104: 87124080 | E104: 176829.5 | F104: 0.6622325916 | G104: 0 | H104: 197.4 | I104: 319.92 | J104: 0 | K104: 2 | L104: 108111 | M104: 8.4 | N104: 135.9197623 | O104: 41.67938931 | P104: =G104*[1]RegressionStats!$B$18+H104*[1]RegressionStats!$B$19+I104*[1]RegressionStats!$B$20+J104*[1]RegressionStats!$B$21+K104*[1]RegressionStats!$B$22 + L104*[1]RegressionStats!$B$23+M104*[1]RegressionStats!$B$24+N104*[1]RegressionStats!$B$25+O104*[1]RegressionStats!$B$26+[1]RegressionStats!$B$17 -> 88226971.62 | Q104: -0.01265886107
A105: 2006 | B105: Aug | C105: 8 | D105: 86693010 | E105: 184163.8 | F105: 0.6327131765 | G105: 0 | H105: 147.4 | I105: 351.912 | J105: 1 | K105: 2 | L105: 108125 | M105: 8.6 | N105: 136.1997348 | O105: 41.79389313 | P105: =G105*[1]RegressionStats!$B$18+H105*[1]RegressionStats!$B$19+I105*[1]RegressionStats!$B$20+J105*[1]RegressionStats!$B$21+K105*[1]RegressionStats!$B$22 + L105*[1]RegressionStats!$B$23+M105*[1]RegressionStats!$B$24+N105*[1]RegressionStats!$B$25+O105*[1]RegressionStats!$B$26+[1]RegressionStats!$B$17 -> 87006546.54 | Q105: -0.003616629935
A106: 2006 | B106: Sep | C106: 9 | D106: 71803266 | E106: 129536.2 | F106: 0.7698755895 | G106: 52.1 | H106: 22.3 | I106: 319.68 | J106: 0.75 | K106: 4 | L106: 108139 | M106: 8.5 | N106: 136.4802839 | O106: 41.90839695 | P106: =G106*[1]RegressionStats!$B$18+H106*[1]RegressionStats!$B$19+I106*[1]RegressionStats!$B$20+J106*[1]RegressionStats!$B$21+K106*[1]RegressionStats!$B$22 + L106*[1]RegressionStats!$B$23+M106*[1]RegressionStats!$B$24+N106*[1]RegressionStats!$B$25+O106*[1]RegressionStats!$B$26+[1]RegressionStats!$B$17 -> 72069764.26 | Q106: -0.003711506059
A107: 2006 | B107: Oct | C107: 10 | D107: 70311840 | E107: 118249.4 | F107: 0.7992020365 | G107: 251.3 | H107: 2.3 | I107: 336.288 | J107: 0.25 | K107: 4 | L107: 108153 | M107: 7.4 | N107: 136.761411 | O107: 42.02290076 | P107: =G107*[1]RegressionStats!$B$18+H107*[1]RegressionStats!$B$19+I107*[1]RegressionStats!$B$20+J107*[1]RegressionStats!$B$21+K107*[1]RegressionStats!$B$22 + L107*[1]RegressionStats!$B$23+M107*[1]RegressionStats!$B$24+N107*[1]RegressionStats!$B$25+O107*[1]RegressionStats!$B$26+[1]RegressionStats!$B$17 -> 72999056 | Q107: -0.03821854192
A108: 2006 | B108: Nov | C108: 11 | D108: 72024057 | E108: 122710 | F108: 0.8152017969 | G108: 356.8 | H108: 0 | I108: 352.08 | J108: -0.25 | K108: 3 | L108: 108167 | M108: 6.9 | N108: 137.0431171 | O108: 42.13740458 | P108: =G108*[1]RegressionStats!$B$18+H108*[1]RegressionStats!$B$19+I108*[1]RegressionStats!$B$20+J108*[1]RegressionStats!$B$21+K108*[1]RegressionStats!$B$22 + L108*[1]RegressionStats!$B$23+M108*[1]RegressionStats!$B$24+N108*[1]RegressionStats!$B$25+O108*[1]RegressionStats!$B$26+[1]RegressionStats!$B$17 -> 73009067.75 | Q108: -0.01367613525
A109: 2006 | B109: Dec | C109: 12 | D109: 72529897 | E109: 132905.5 | F109: 0.7335017791 | G109: 460.4 | H109: 0 | I109: 304.296 | J109: -0.25 | K109: 0 | L109: 108177 | M109: 7 | N109: 137.3254035 | O109: 42.2519084 | P109: =G109*[1]RegressionStats!$B$18+H109*[1]RegressionStats!$B$19+I109*[1]RegressionStats!$B$20+J109*[1]RegressionStats!$B$21+K109*[1]RegressionStats!$B$22 + L109*[1]RegressionStats!$B$23+M109*[1]RegressionStats!$B$24+N109*[1]RegressionStats!$B$25+O109*[1]RegressionStats!$B$26+[1]RegressionStats!$B$17 -> 71154240.63 | Q109: 0.01896674929
A110: 2007 | B110: Jan | C110: 1 | D110: 75943575.5 | E110: 125521.6 | F110: 0.8132042473 | G110: 602.4 | H110: 0 | I110: 351.912 | J110: =J98 -> 0 | K110: =K98 -> 2 | L110: =L109-($L$109-$L$121)/12 -> 108150.8572 | M110: 8.6 | N110: 137.5746632 | O110: 42.36641221 | P110: =G110*[1]RegressionStats!$B$18+H110*[1]RegressionStats!$B$19+I110*[1]RegressionStats!$B$20+J110*[1]RegressionStats!$B$21+K110*[1]RegressionStats!$B$22 + L110*[1]RegressionStats!$B$23+M110*[1]RegressionStats!$B$24+N110*[1]RegressionStats!$B$25+O110*[1]RegressionStats!$B$26+[1]RegressionStats!$B$17 -> 76922270.24 | Q110: -0.01288713009
A111: 2007 | B111: Feb | C111: 2 | D111: 73489678.9 | E111: 132956.1 | F111: 0.8225244364 | G111: 706.1 | H111: 0 | I111: 319.872 | J111: =J99 -> -1 | K111: 2 | L111: 108124.7144 | M111: 9 | N111: 137.8243754 | O111: 42.48091603 | P111: =G111*[1]RegressionStats!$B$18+H111*[1]RegressionStats!$B$19+I111*[1]RegressionStats!$B$20+J111*[1]RegressionStats!$B$21+K111*[1]RegressionStats!$B$22 + L111*[1]RegressionStats!$B$23+M111*[1]RegressionStats!$B$24+N111*[1]RegressionStats!$B$25+O111*[1]RegressionStats!$B$26+[1]RegressionStats!$B$17 -> 73390593.59 | Q111: 0.001348288751
A112: 2007 | B112: Mar | C112: 3 | D112: 73780830.8 | E112: 124611.3 | F112: 0.795816939 | G112: 429.3 | H112: 0.2 | I112: 351.912 | J112: =J100 -> 0 | K112: 3 | L112: 108098.5717 | M112: 9.6 | N112: 138.0745408 | O112: 42.59541985 | P112: =G112*[1]RegressionStats!$B$18+H112*[1]RegressionStats!$B$19+I112*[1]RegressionStats!$B$20+J112*[1]RegressionStats!$B$21+K112*[1]RegressionStats!$B$22 + L112*[1]RegressionStats!$B$23+M112*[1]RegressionStats!$B$24+N112*[1]RegressionStats!$B$25+O112*[1]RegressionStats!$B$26+[1]RegressionStats!$B$17 -> 72780957.63 | Q112: 0.01355193696
A113: 2007 | B113: Apr | C113: 4 | D113: 66320469 | E113: 120218.8 | F113: 0.766200981 | G113: 285.2 | H113: 0.9 | I113: 319.68 | J113: =J101 -> -0.75 | K113: 4 | L113: 108072.4289 | M113: 9 | N113: 138.3251603 | O113: 42.70992366 | P113: =G113*[1]RegressionStats!$B$18+H113*[1]RegressionStats!$B$19+I113*[1]RegressionStats!$B$20+J113*[1]RegressionStats!$B$21+K113*[1]RegressionStats!$B$22 + L113*[1]RegressionStats!$B$23+M113*[1]RegressionStats!$B$24+N113*[1]RegressionStats!$B$25+O113*[1]RegressionStats!$B$26+[1]RegressionStats!$B$17 -> 66539833.82 | Q113: -0.003307648764
A114: 2007 | B114: May | C114: 5 | D114: 68636519.3 | E114: 142398.3 | F114: 0.6478545471 | G114: 87.2 | H114: 46 | I114: 351.912 | J114: =J102 -> 0 | K114: 3 | L114: 108046.2861 | M114: 9.1 | N114: 138.5762347 | O114: 42.82442748 | P114: =G114*[1]RegressionStats!$B$18+H114*[1]RegressionStats!$B$19+I114*[1]RegressionStats!$B$20+J114*[1]RegressionStats!$B$21+K114*[1]RegressionStats!$B$22 + L114*[1]RegressionStats!$B$23+M114*[1]RegressionStats!$B$24+N114*[1]RegressionStats!$B$25+O114*[1]RegressionStats!$B$26+[1]RegressionStats!$B$17 -> 70937137.64 | Q114: -0.03351886667
A115: 2007 | B115: Jun | C115: 6 | D115: 76584775.9 | E115: 171619.6 | F115: 0.6197878582 | G115: 8.1 | H115: 132.2 | I115: 336.24 | J115: 0 | K115: 3 | L115: 108020.1433 | M115: 9.2 | N115: 138.8277649 | O115: 42.9389313 | P115: =G115*[1]RegressionStats!$B$18+H115*[1]RegressionStats!$B$19+I115*[1]RegressionStats!$B$20+J115*[1]RegressionStats!$B$21+K115*[1]RegressionStats!$B$22 + L115*[1]RegressionStats!$B$23+M115*[1]RegressionStats!$B$24+N115*[1]RegressionStats!$B$25+O115*[1]RegressionStats!$B$26+[1]RegressionStats!$B$17 -> 79006163.07 | Q115: -0.03161708236
A116: 2007 | B116: Jul | C116: 7 | D116: 77111267 | E116: 167705 | F116: 0.6180148241 | G116: 1.3 | H116: 148.2 | I116: 336.288 | J116: 0 | K116: 2 | L116: 107994.0006 | M116: 9.2 | N116: 139.0797516 | O116: 43.05343511 | P116: =G116*[1]RegressionStats!$B$18+H116*[1]RegressionStats!$B$19+I116*[1]RegressionStats!$B$20+J116*[1]RegressionStats!$B$21+K116*[1]RegressionStats!$B$22 + L116*[1]RegressionStats!$B$23+M116*[1]RegressionStats!$B$24+N116*[1]RegressionStats!$B$25+O116*[1]RegressionStats!$B$26+[1]RegressionStats!$B$17 -> 79745176.79 | Q116: -0.03415726249
A117: 2007 | B117: Aug | C117: 8 | D117: 85216616.6 | E117: 170845.4 | F117: 0.6704216981 | G117: 4.4 | H117: 167.4 | I117: 351.912 | J117: 1 | K117: 2 | L117: 107967.8578 | M117: 9 | N117: 139.3321956 | O117: 43.16793893 | P117: =G117*[1]RegressionStats!$B$18+H117*[1]RegressionStats!$B$19+I117*[1]RegressionStats!$B$20+J117*[1]RegressionStats!$B$21+K117*[1]RegressionStats!$B$22 + L117*[1]RegressionStats!$B$23+M117*[1]RegressionStats!$B$24+N117*[1]RegressionStats!$B$25+O117*[1]RegressionStats!$B$26+[1]RegressionStats!$B$17 -> 86497400 | Q117: -0.01502973771
A118: 2007 | B118: Sep | C118: 9 | D118: 73536545.1 | E118: 162858.1 | F118: 0.6271354659 | G118: 25.4 | H118: 76.4 | I118: 303.84 | J118: 0.75 | K118: 4 | L118: 107941.715 | M118: 8.1 | N118: 139.5850979 | O118: 43.28244275 | P118: =G118*[1]RegressionStats!$B$18+H118*[1]RegressionStats!$B$19+I118*[1]RegressionStats!$B$20+J118*[1]RegressionStats!$B$21+K118*[1]RegressionStats!$B$22 + L118*[1]RegressionStats!$B$23+M118*[1]RegressionStats!$B$24+N118*[1]RegressionStats!$B$25+O118*[1]RegressionStats!$B$26+[1]RegressionStats!$B$17 -> 74744527.36 | Q118: -0.01642696516
A119: 2007 | B119: Oct | C119: 10 | D119: 71397718.6 | E119: 131718.4 | F119: 0.7285593777 | G119: 111.2 | H119: 42.3 | I119: 351.912 | J119: 0.25 | K119: 4 | L119: 107915.5722 | M119: 6.8 | N119: 139.8384592 | O119: 43.39694656 | P119: =G119*[1]RegressionStats!$B$18+H119*[1]RegressionStats!$B$19+I119*[1]RegressionStats!$B$20+J119*[1]RegressionStats!$B$21+K119*[1]RegressionStats!$B$22 + L119*[1]RegressionStats!$B$23+M119*[1]RegressionStats!$B$24+N119*[1]RegressionStats!$B$25+O119*[1]RegressionStats!$B$26+[1]RegressionStats!$B$17 -> 72434967 | Q119: -0.01452775267
A120: 2007 | B120: Nov | C120: 11 | D120: 69283467 | E120: 125546.7 | F120: 0.7664640926 | G120: 400.3 | H120: 0 | I120: 352.08 | J120: -0.25 | K120: 3 | L120: 107889.4295 | M120: 6.3 | N120: 140.0922804 | O120: 43.51145038 | P120: =G120*[1]RegressionStats!$B$18+H120*[1]RegressionStats!$B$19+I120*[1]RegressionStats!$B$20+J120*[1]RegressionStats!$B$21+K120*[1]RegressionStats!$B$22 + L120*[1]RegressionStats!$B$23+M120*[1]RegressionStats!$B$24+N120*[1]RegressionStats!$B$25+O120*[1]RegressionStats!$B$26+[1]RegressionStats!$B$17 -> 70445433.89 | Q120: -0.01677120012
A121: 2007 | B121: Dec | C121: 12 | D121: 70507648 | E121: 127630 | F121: 0.7425240467 | G121: 595 | H121: 0 | I121: 304.296 | J121: -0.25 | K121: 0 | L121: =L109*(1-0.0029) -> 107863.2867 | M121: 6.2 | N121: 140.3465624 | O121: 43.6259542 | P121: =G121*[1]RegressionStats!$B$18+H121*[1]RegressionStats!$B$19+I121*[1]RegressionStats!$B$20+J121*[1]RegressionStats!$B$21+K121*[1]RegressionStats!$B$22 + L121*[1]RegressionStats!$B$23+M121*[1]RegressionStats!$B$24+N121*[1]RegressionStats!$B$25+O121*[1]RegressionStats!$B$26+[1]RegressionStats!$B$17 -> 70309069.19 | Q121: 0.002816415182
A122: 2008 | B122: Jan | C122: 1 | D122: 75226387.9 | E122: 126193.3 | F122: 0.8012369629 | G122: 611.2 | H122: 0 | I122: 352 | J122: =J110 -> 0 | K122: =K110 -> 2 | L122: =L121-($L$121-$L$133)/12 -> 107842.6129 | M122: 7.6 | N122: 140.2996942 | O122: 43.74045802 | P122: =G122*[1]RegressionStats!$B$18+H122*[1]RegressionStats!$B$19+I122*[1]RegressionStats!$B$20+J122*[1]RegressionStats!$B$21+K122*[1]RegressionStats!$B$22 + L122*[1]RegressionStats!$B$23+M122*[1]RegressionStats!$B$24+N122*[1]RegressionStats!$B$25+O122*[1]RegressionStats!$B$26+[1]RegressionStats!$B$17 -> 73669879.23 | Q122: 0.02069099307
A123: 2008 | B123: Feb | C123: 2 | D123: 71282775.7 | E123: 128590.6 | F123: 0.7964639809 | G123: 629.3 | H123: 0 | I123: 320 | J123: =J111 -> -1 | K123: 2 | L123: 107821.9391 | M123: 7.9 | N123: 140.2528417 | O123: 43.85496183 | P123: =G123*[1]RegressionStats!$B$18+H123*[1]RegressionStats!$B$19+I123*[1]RegressionStats!$B$20+J123*[1]RegressionStats!$B$21+K123*[1]RegressionStats!$B$22 + L123*[1]RegressionStats!$B$23+M123*[1]RegressionStats!$B$24+N123*[1]RegressionStats!$B$25+O123*[1]RegressionStats!$B$26+[1]RegressionStats!$B$17 -> 68505090.49 | Q123: 0.03896713038
A124: 2008 | B124: Mar | C124: 3 | D124: 73304135.1 | E124: 121739.3 | F124: 0.8093283213 | G124: 541.6 | H124: 0 | I124: 304 | J124: =J112 -> 0 | K124: 3 | L124: 107801.2653 | M124: 8.6 | N124: 140.2060048 | O124: 43.96946565 | P124: =G124*[1]RegressionStats!$B$18+H124*[1]RegressionStats!$B$19+I124*[1]RegressionStats!$B$20+J124*[1]RegressionStats!$B$21+K124*[1]RegressionStats!$B$22 + L124*[1]RegressionStats!$B$23+M124*[1]RegressionStats!$B$24+N124*[1]RegressionStats!$B$25+O124*[1]RegressionStats!$B$26+[1]RegressionStats!$B$17 -> 70182566.43 | Q124: 0.04258380054
A125: 2008 | B125: Apr | C125: 4 | D125: 66441873.3 | E125: 117726.5 | F125: 0.7838539291 | G125: 223.8 | H125: 1.3 | I125: 352 | J125: =J113 -> -0.75 | K125: 4 | L125: 107780.5915 | M125: 8.1 | N125: 140.1591835 | O125: 44.08396947 | P125: =G125*[1]RegressionStats!$B$18+H125*[1]RegressionStats!$B$19+I125*[1]RegressionStats!$B$20+J125*[1]RegressionStats!$B$21+K125*[1]RegressionStats!$B$22 + L125*[1]RegressionStats!$B$23+M125*[1]RegressionStats!$B$24+N125*[1]RegressionStats!$B$25+O125*[1]RegressionStats!$B$26+[1]RegressionStats!$B$17 -> 63184607.34 | Q125: 0.04902429442
A126: 2008 | B126: May | C126: 5 | D126: 66716840 | E126: 115139.8 | F126: 0.7788199393 | G126: 143.2 | H126: 11.6 | I126: 336 | J126: =J114 -> 0 | K126: 3 | L126: 107759.9177 | M126: 8.3 | N126: 140.1123779 | O126: 44.19847328 | P126: =G126*[1]RegressionStats!$B$18+H126*[1]RegressionStats!$B$19+I126*[1]RegressionStats!$B$20+J126*[1]RegressionStats!$B$21+K126*[1]RegressionStats!$B$22 + L126*[1]RegressionStats!$B$23+M126*[1]RegressionStats!$B$24+N126*[1]RegressionStats!$B$25+O126*[1]RegressionStats!$B$26+[1]RegressionStats!$B$17 -> 64087007.08 | Q126: 0.03941782795
A127: 2008 | B127: Jun | C127: 6 | D127: 76146317.3 | E127: 165945.7 | F127: 0.6373095177 | G127: 3.2 | H127: 123.9 | I127: 336 | J127: 0 | K127: 3 | L127: 107739.2439 | M127: 8.2 | N127: 140.065588 | O127: 44.3129771 | P127: =G127*[1]RegressionStats!$B$18+H127*[1]RegressionStats!$B$19+I127*[1]RegressionStats!$B$20+J127*[1]RegressionStats!$B$21+K127*[1]RegressionStats!$B$22 + L127*[1]RegressionStats!$B$23+M127*[1]RegressionStats!$B$24+N127*[1]RegressionStats!$B$25+O127*[1]RegressionStats!$B$26+[1]RegressionStats!$B$17 -> 74868070.32 | Q127: 0.01678672094
A128: 2008 | B128: Jul | C128: 7 | D128: 83277874 | E128: 161059.5 | F128: 0.6949768647 | G128: 0.3 | H128: 188.6 | I128: 352 | J128: 0 | K128: 2 | L128: 107718.5701 | M128: 8.8 | N128: 140.0188136 | O128: 44.42748092 | P128: =G128*[1]RegressionStats!$B$18+H128*[1]RegressionStats!$B$19+I128*[1]RegressionStats!$B$20+J128*[1]RegressionStats!$B$21+K128*[1]RegressionStats!$B$22 + L128*[1]RegressionStats!$B$23+M128*[1]RegressionStats!$B$24+N128*[1]RegressionStats!$B$25+O128*[1]RegressionStats!$B$26+[1]RegressionStats!$B$17 -> 81978144.05 | Q128: 0.01560714618
A129: 2008 | B129: Aug | C129: 8 | D129: 75973257.9 | E129: 162132.2 | F129: 0.629823033 | G129: 0.9 | H129: 144.8 | I129: 320 | J129: 1 | K129: 2 | L129: 107697.8963 | M129: 9 | N129: 139.9720549 | O129: 44.54198473 | P129: =G129*[1]RegressionStats!$B$18+H129*[1]RegressionStats!$B$19+I129*[1]RegressionStats!$B$20+J129*[1]RegressionStats!$B$21+K129*[1]RegressionStats!$B$22 + L129*[1]RegressionStats!$B$23+M129*[1]RegressionStats!$B$24+N129*[1]RegressionStats!$B$25+O129*[1]RegressionStats!$B$26+[1]RegressionStats!$B$17 -> 79081675.97 | Q129: -0.04091463442
A130: 2008 | B130: Sep | C130: 9 | D130: 68765247.3 | E130: 156741.3 | F130: 0.6093307119 | G130: 12.2 | H130: 65 | I130: 336 | J130: 0.75 | K130: 4 | L130: 107677.2225 | M130: 8.7 | N130: 139.9253118 | O130: 44.65648855 | P130: =G130*[1]RegressionStats!$B$18+H130*[1]RegressionStats!$B$19+I130*[1]RegressionStats!$B$20+J130*[1]RegressionStats!$B$21+K130*[1]RegressionStats!$B$22 + L130*[1]RegressionStats!$B$23+M130*[1]RegressionStats!$B$24+N130*[1]RegressionStats!$B$25+O130*[1]RegressionStats!$B$26+[1]RegressionStats!$B$17 -> 70434391.08 | Q130: =(1-P130/D130) -> -0.02427307172
A131: 2008 | B131: Oct | C131: 10 | D131: 63416228.7 | E131: 109926 | F131: =D131/E131/24/(DAY(DATE(A132,C131+1,1)-1)) -> 0.7754022391 | G131: 220.7 | H131: 3.3 | I131: 352 | J131: 0.25 | K131: 4 | L131: 107656.5487 | M131: 7.8 | N131: 139.8785843 | O131: 44.77099237 | P131: =G131*[1]RegressionStats!$B$18+H131*[1]RegressionStats!$B$19+I131*[1]RegressionStats!$B$20+J131*[1]RegressionStats!$B$21+K131*[1]RegressionStats!$B$22 + L131*[1]RegressionStats!$B$23+M131*[1]RegressionStats!$B$24+N131*[1]RegressionStats!$B$25+O131*[1]RegressionStats!$B$26+[1]RegressionStats!$B$17 -> 66001658.78 | Q131: -0.0407692184
A132: 2008 | B132: Nov | C132: 11 | D132: 64406942.6 | E132: 116622.1 | F132: =D132/E132/24/(DAY(DATE(A133,C132+1,1)-1)) -> 0.7670423268 | G132: 413.3 | H132: 0 | I132: 304 | J132: -0.25 | K132: 3 | L132: 107635.8749 | M132: 7.7 | N132: 139.8318724 | O132: 45 | P132: =G132*[1]RegressionStats!$B$18+H132*[1]RegressionStats!$B$19+I132*[1]RegressionStats!$B$20+J132*[1]RegressionStats!$B$21+K132*[1]RegressionStats!$B$22 + L132*[1]RegressionStats!$B$23+M132*[1]RegressionStats!$B$24+N132*[1]RegressionStats!$B$25+O132*[1]RegressionStats!$B$26+[1]RegressionStats!$B$17 -> 64918216.95 | Q132: -0.007938186886
A133: 2008 | B133: Dec | C133: 12 | D133: 67860200 | E133: 119912.5 | F133: =D133/E133/24/(DAY(DATE(A134,C133+1,1)-1)) -> 0.7606375168 | G133: 632 | H133: 0 | I133: 336 | J133: -0.25 | K133: 0 | L133: =L121*(1-0.0023) -> 107615.2011 | M133: 8.1 | N133: 139.7851761 | O133: 45 | P133: =G133*[1]RegressionStats!$B$18+H133*[1]RegressionStats!$B$19+I133*[1]RegressionStats!$B$20+J133*[1]RegressionStats!$B$21+K133*[1]RegressionStats!$B$22 + L133*[1]RegressionStats!$B$23+M133*[1]RegressionStats!$B$24+N133*[1]RegressionStats!$B$25+O133*[1]RegressionStats!$B$26+[1]RegressionStats!$B$17 -> 67895575.05 | Q133: -0.0005212930572
A134: 2009 | B134: Jan | C134: 1 | D134: 70152780.9 | E134: 121498.4 | F134: =D134/E134/24/(DAY(DATE(A135,C134+1,1)-1)) -> 0.7760708962 | G134: 799.1 | H134: 0 | I134: 336 | J134: =J122 -> 0 | K134: 2 | L134: =L133-($L$133-$L$145)/12 -> 107598.1621 | M134: 9.8 | N134: 139.4905658 | O134: 45 | P134: =G134*[1]RegressionStats!$B$18+H134*[1]RegressionStats!$B$19+I134*[1]RegressionStats!$B$20+J134*[1]RegressionStats!$B$21+K134*[1]RegressionStats!$B$22 + L134*[1]RegressionStats!$B$23+M134*[1]RegressionStats!$B$24+N134*[1]RegressionStats!$B$25+O134*[1]RegressionStats!$B$26+[1]RegressionStats!$B$17 -> 72724570.09 | Q134: -0.03665983239
A135: 2009 | B135: Feb | C135: 2 | D135: 61404169 | G135: =AVERAGE(G123,G111,G99,G87,G75,G63,G51,G39,G27,G15) -> 575.44 | H135: 0 | I135: 304 | J135: =J123 -> -1 | K135: 2 | L135: 107581.123 | M135: =M134+0.05 -> 9.85 | N135: 139.1965764 | O135: 45 | P135: =G135*[1]RegressionStats!$B$18+H135*[1]RegressionStats!$B$19+I135*[1]RegressionStats!$B$20+J135*[1]RegressionStats!$B$21+K135*[1]RegressionStats!$B$22 + L135*[1]RegressionStats!$B$23+M135*[1]RegressionStats!$B$24+N135*[1]RegressionStats!$B$25+O135*[1]RegressionStats!$B$26+[1]RegressionStats!$B$17 -> 62829045.53 | Q135: -0.02320488259
A136: 2009 | B136: Mar | C136: 3 | G136: 484.87 | H136: 0.07 | I136: 352 | J136: =J124 -> 0 | K136: 3 | L136: 107564.0839 | M136: =M135+0.05 -> 9.9 | N136: 138.9032067 | O136: 45 | P136: =G136*[1]RegressionStats!$B$18+H136*[1]RegressionStats!$B$19+I136*[1]RegressionStats!$B$20+J136*[1]RegressionStats!$B$21+K136*[1]RegressionStats!$B$22 + L136*[1]RegressionStats!$B$23+M136*[1]RegressionStats!$B$24+N136*[1]RegressionStats!$B$25+O136*[1]RegressionStats!$B$26+[1]RegressionStats!$B$17 -> 67217270.94
A137: 2009 | B137: Apr | C137: 4 | G137: 258.21 | H137: 2.73 | I137: 320 | J137: =J125 -> -0.75 | K137: 4 | L137: 107547.0448 | M137: 9.95 | N137: 138.6104552 | O137: 45 | P137: =G137*[1]RegressionStats!$B$18+H137*[1]RegressionStats!$B$19+I137*[1]RegressionStats!$B$20+J137*[1]RegressionStats!$B$21+K137*[1]RegressionStats!$B$22 + L137*[1]RegressionStats!$B$23+M137*[1]RegressionStats!$B$24+N137*[1]RegressionStats!$B$25+O137*[1]RegressionStats!$B$26+[1]RegressionStats!$B$17 -> 59341805.72
A138: 2009 | B138: May | C138: 5 | G138: 114.78 | H138: 22.98 | I138: 320 | J138: =J126 -> 0 | K138: 3 | L138: 107530.0058 | M138: 10 | N138: 138.3183208 | O138: 45 | P138: =G138*[1]RegressionStats!$B$18+H138*[1]RegressionStats!$B$19+I138*[1]RegressionStats!$B$20+J138*[1]RegressionStats!$B$21+K138*[1]RegressionStats!$B$22 + L138*[1]RegressionStats!$B$23+M138*[1]RegressionStats!$B$24+N138*[1]RegressionStats!$B$25+O138*[1]RegressionStats!$B$26+[1]RegressionStats!$B$17 -> 60962841.32
A139: 2009 | B139: Jun | C139: 6 | G139: 15.47 | H139: 109.63 | I139: 352 | J139: 0 | K139: 3 | L139: 107512.9667 | M139: 10.05 | N139: 138.026802 | O139: 45 | P139: =G139*[1]RegressionStats!$B$18+H139*[1]RegressionStats!$B$19+I139*[1]RegressionStats!$B$20+J139*[1]RegressionStats!$B$21+K139*[1]RegressionStats!$B$22 + L139*[1]RegressionStats!$B$23+M139*[1]RegressionStats!$B$24+N139*[1]RegressionStats!$B$25+O139*[1]RegressionStats!$B$26+[1]RegressionStats!$B$17 -> 70579978.36
A140: 2009 | B140: Jul | C140: 7 | G140: 0.79 | H140: 167.77 | I140: 352 | J140: 0 | K140: 2 | L140: 107495.9276 | M140: 10.1 | N140: 137.7358977 | O140: 45 | P140: =G140*[1]RegressionStats!$B$18+H140*[1]RegressionStats!$B$19+I140*[1]RegressionStats!$B$20+J140*[1]RegressionStats!$B$21+K140*[1]RegressionStats!$B$22 + L140*[1]RegressionStats!$B$23+M140*[1]RegressionStats!$B$24+N140*[1]RegressionStats!$B$25+O140*[1]RegressionStats!$B$26+[1]RegressionStats!$B$17 -> 76576208.91
A141: 2009 | B141: Aug | C141: 8 | G141: 2.04 | H141: 138.58 | I141: 320 | J141: 1 | K141: 2 | L141: 107478.8886 | M141: 10.15 | N141: 137.4456064 | O141: 45 | P141: =G141*[1]RegressionStats!$B$18+H141*[1]RegressionStats!$B$19+I141*[1]RegressionStats!$B$20+J141*[1]RegressionStats!$B$21+K141*[1]RegressionStats!$B$22 + L141*[1]RegressionStats!$B$23+M141*[1]RegressionStats!$B$24+N141*[1]RegressionStats!$B$25+O141*[1]RegressionStats!$B$26+[1]RegressionStats!$B$17 -> 75746646.44
A142: 2009 | B142: Sep | C142: 9 | G142: 37.87 | H142: 58.74 | I142: 336 | J142: 0.75 | K142: 4 | L142: 107461.8495 | M142: 10.2 | N142: 137.155927 | O142: 45 | P142: =G142*[1]RegressionStats!$B$18+H142*[1]RegressionStats!$B$19+I142*[1]RegressionStats!$B$20+J142*[1]RegressionStats!$B$21+K142*[1]RegressionStats!$B$22 + L142*[1]RegressionStats!$B$23+M142*[1]RegressionStats!$B$24+N142*[1]RegressionStats!$B$25+O142*[1]RegressionStats!$B$26+[1]RegressionStats!$B$17 -> 67540265.51
A143: 2009 | B143: Oct | C143: 10 | G143: 202.09 | H143: 8.81 | I143: 336 | J143: 0.25 | K143: 4 | L143: 107444.8104 | M143: 10.25 | N143: 136.8668581 | O143: 45 | P143: =G143*[1]RegressionStats!$B$18+H143*[1]RegressionStats!$B$19+I143*[1]RegressionStats!$B$20+J143*[1]RegressionStats!$B$21+K143*[1]RegressionStats!$B$22 + L143*[1]RegressionStats!$B$23+M143*[1]RegressionStats!$B$24+N143*[1]RegressionStats!$B$25+O143*[1]RegressionStats!$B$26+[1]RegressionStats!$B$17 -> 62650944.08
A144: 2009 | B144: Nov | C144: 11 | G144: 363.24 | H144: 0 | I144: 320 | J144: -0.25 | K144: 3 | L144: 107427.7713 | M144: 10.3 | N144: 136.5783984 | O144: 45 | P144: =G144*[1]RegressionStats!$B$18+H144*[1]RegressionStats!$B$19+I144*[1]RegressionStats!$B$20+J144*[1]RegressionStats!$B$21+K144*[1]RegressionStats!$B$22 + L144*[1]RegressionStats!$B$23+M144*[1]RegressionStats!$B$24+N144*[1]RegressionStats!$B$25+O144*[1]RegressionStats!$B$26+[1]RegressionStats!$B$17 -> 61479258.24
A145: 2009 | B145: Dec | C145: 12 | G145: 591.4 | H145: 0 | I145: 352 | J145: -0.25 | K145: 0 | L145: =L133*(1-0.0019) -> 107410.7323 | M145: 10.35 | N145: 136.2905467 | O145: 45 | P145: =G145*[1]RegressionStats!$B$18+H145*[1]RegressionStats!$B$19+I145*[1]RegressionStats!$B$20+J145*[1]RegressionStats!$B$21+K145*[1]RegressionStats!$B$22 + L145*[1]RegressionStats!$B$23+M145*[1]RegressionStats!$B$24+N145*[1]RegressionStats!$B$25+O145*[1]RegressionStats!$B$26+[1]RegressionStats!$B$17 -> 64935723.18
A146: 2010 | B146: Jan | C146: 1 | G146: 661.25 | H146: 0 | I146: 320 | J146: =J134 -> 0 | K146: 2 | L146: =L145-($L$145-$L$157)/12 -> 107397.3059 | M146: 10.4 | N146: 136.5490563 | O146: 45 | P146: =G146*[1]RegressionStats!$B$18+H146*[1]RegressionStats!$B$19+I146*[1]RegressionStats!$B$20+J146*[1]RegressionStats!$B$21+K146*[1]RegressionStats!$B$22 + L146*[1]RegressionStats!$B$23+M146*[1]RegressionStats!$B$24+N146*[1]RegressionStats!$B$25+O146*[1]RegressionStats!$B$26+[1]RegressionStats!$B$17 -> 67616406.76
A147: 2010 | B147: Feb | C147: 2 | G147: 582.944 | H147: 0 | I147: 304 | J147: =J135 -> -1 | K147: 2 | L147: 107383.8796 | M147: 10.45 | N147: 136.8080563 | O147: 45 | P147: =G147*[1]RegressionStats!$B$18+H147*[1]RegressionStats!$B$19+I147*[1]RegressionStats!$B$20+J147*[1]RegressionStats!$B$21+K147*[1]RegressionStats!$B$22 + L147*[1]RegressionStats!$B$23+M147*[1]RegressionStats!$B$24+N147*[1]RegressionStats!$B$25+O147*[1]RegressionStats!$B$26+[1]RegressionStats!$B$17 -> 61256528.51
A148: 2010 | B148: Mar | C148: 3 | G148: 481.637 | H148: 0.077 | I148: 368 | J148: =J136 -> 0 | K148: 3 | L148: 107370.4532 | M148: 10.5 | N148: 137.0675475 | O148: 45 | P148: =G148*[1]RegressionStats!$B$18+H148*[1]RegressionStats!$B$19+I148*[1]RegressionStats!$B$20+J148*[1]RegressionStats!$B$21+K148*[1]RegressionStats!$B$22 + L148*[1]RegressionStats!$B$23+M148*[1]RegressionStats!$B$24+N148*[1]RegressionStats!$B$25+O148*[1]RegressionStats!$B$26+[1]RegressionStats!$B$17 -> 65927816.62
A149: 2010 | B149: Apr | C149: 4 | G149: 259.641 | H149: 3.003 | I149: 320 | J149: =J137 -> -0.75 | K149: 4 | L149: 107357.0269 | M149: 10.55 | N149: 137.3275309 | O149: 45 | P149: =G149*[1]RegressionStats!$B$18+H149*[1]RegressionStats!$B$19+I149*[1]RegressionStats!$B$20+J149*[1]RegressionStats!$B$21+K149*[1]RegressionStats!$B$22 + L149*[1]RegressionStats!$B$23+M149*[1]RegressionStats!$B$24+N149*[1]RegressionStats!$B$25+O149*[1]RegressionStats!$B$26+[1]RegressionStats!$B$17 -> 57586080.63
A150: 2010 | B150: May | C150: 5 | G150: 119.678 | H150: 22.668 | I150: 320 | J150: =J138 -> 0 | K150: 3 | L150: 107343.6006 | M150: 10.6 | N150: 137.5880074 | O150: 45 | P150: =G150*[1]RegressionStats!$B$18+H150*[1]RegressionStats!$B$19+I150*[1]RegressionStats!$B$20+J150*[1]RegressionStats!$B$21+K150*[1]RegressionStats!$B$22 + L150*[1]RegressionStats!$B$23+M150*[1]RegressionStats!$B$24+N150*[1]RegressionStats!$B$25+O150*[1]RegressionStats!$B$26+[1]RegressionStats!$B$17 -> 59161821.94
A151: 2010 | B151: Jun | C151: 6 | G151: =AVERAGE(G139,G127,G115,G103,G91,G79,G67,G55,G43,G31) -> 15.107 | H151: 107.403 | I151: 352 | J151: 0 | K151: 3 | L151: 107330.1742 | M151: 10.65 | N151: 137.848978 | O151: 45 | P151: =G151*[1]RegressionStats!$B$18+H151*[1]RegressionStats!$B$19+I151*[1]RegressionStats!$B$20+J151*[1]RegressionStats!$B$21+K151*[1]RegressionStats!$B$22 + L151*[1]RegressionStats!$B$23+M151*[1]RegressionStats!$B$24+N151*[1]RegressionStats!$B$25+O151*[1]RegressionStats!$B$26+[1]RegressionStats!$B$17 -> 68387199.62
A152: 2010 | B152: Jul | C152: 7 | G152: 0.869 | H152: 161.767 | I152: 336 | J152: 0 | K152: 2 | L152: 107316.7479 | M152: 10.7 | N152: 138.1104435 | O152: 45 | P152: =G152*[1]RegressionStats!$B$18+H152*[1]RegressionStats!$B$19+I152*[1]RegressionStats!$B$20+J152*[1]RegressionStats!$B$21+K152*[1]RegressionStats!$B$22 + L152*[1]RegressionStats!$B$23+M152*[1]RegressionStats!$B$24+N152*[1]RegressionStats!$B$25+O152*[1]RegressionStats!$B$26+[1]RegressionStats!$B$17 -> 73329092.98
A153: 2010 | B153: Aug | C153: 8 | G153: 2.124 | H153: 142.228 | I153: 336 | J153: 1 | K153: 2 | L153: 107303.3215 | M153: 10.75 | N153: 138.372405 | O153: 45 | P153: =G153*[1]RegressionStats!$B$18+H153*[1]RegressionStats!$B$19+I153*[1]RegressionStats!$B$20+J153*[1]RegressionStats!$B$21+K153*[1]RegressionStats!$B$22 + L153*[1]RegressionStats!$B$23+M153*[1]RegressionStats!$B$24+N153*[1]RegressionStats!$B$25+O153*[1]RegressionStats!$B$26+[1]RegressionStats!$B$17 -> 74751029.75
A154: 2010 | B154: Sep | C154: 9 | G154: 37.947 | H154: 58.174 | I154: 336 | J154: 0.75 | K154: 4 | L154: 107289.8952 | M154: 10.8 | N154: 138.6348634 | O154: 45 | P154: =G154*[1]RegressionStats!$B$18+H154*[1]RegressionStats!$B$19+I154*[1]RegressionStats!$B$20+J154*[1]RegressionStats!$B$21+K154*[1]RegressionStats!$B$22 + L154*[1]RegressionStats!$B$23+M154*[1]RegressionStats!$B$24+N154*[1]RegressionStats!$B$25+O154*[1]RegressionStats!$B$26+[1]RegressionStats!$B$17 -> 65426791.25
A155: 2010 | B155: Oct | C155: 10 | G155: 200.159 | H155: 9.601 | I155: 320 | J155: 0.25 | K155: 4 | L155: 107276.4688 | M155: 10.85 | N155: 138.8978196 | O155: 45 | P155: =G155*[1]RegressionStats!$B$18+H155*[1]RegressionStats!$B$19+I155*[1]RegressionStats!$B$20+J155*[1]RegressionStats!$B$21+K155*[1]RegressionStats!$B$22 + L155*[1]RegressionStats!$B$23+M155*[1]RegressionStats!$B$24+N155*[1]RegressionStats!$B$25+O155*[1]RegressionStats!$B$26+[1]RegressionStats!$B$17 -> 60067218.71
A156: 2010 | B156: Nov | C156: 11 | G156: 367.134 | H156: 0 | I156: 336 | J156: -0.25 | K156: 3 | L156: 107263.0425 | M156: 10.9 | N156: 139.1612746 | O156: 45 | P156: =G156*[1]RegressionStats!$B$18+H156*[1]RegressionStats!$B$19+I156*[1]RegressionStats!$B$20+J156*[1]RegressionStats!$B$21+K156*[1]RegressionStats!$B$22 + L156*[1]RegressionStats!$B$23+M156*[1]RegressionStats!$B$24+N156*[1]RegressionStats!$B$25+O156*[1]RegressionStats!$B$26+[1]RegressionStats!$B$17 -> 59976400.85
A157: 2010 | B157: Dec | C157: 12 | G157: 594.7 | H157: 0 | I157: 368 | J157: -0.25 | K157: 0 | L157: =L145*(1-0.0015) -> 107249.6162 | M157: 10.95 | N157: 139.4252293 | O157: 45 | P157: =G157*[1]RegressionStats!$B$18+H157*[1]RegressionStats!$B$19+I157*[1]RegressionStats!$B$20+J157*[1]RegressionStats!$B$21+K157*[1]RegressionStats!$B$22 + L157*[1]RegressionStats!$B$23+M157*[1]RegressionStats!$B$24+N157*[1]RegressionStats!$B$25+O157*[1]RegressionStats!$B$26+[1]RegressionStats!$B$17 -> 63375419.06

Sheet Original_RegressionStats
A1: SUMMARY OUTPUT
A3: Regression Statistics | D3: Year 2002- 2008 inclusive
A4: Multiple R | B4: 0.963702975
A5: R Square | B5: 0.9287234241
A6: Adjusted R Square | B6: 0.9200546513
A7: Standard Error | B7: 1814386.858
A8: Observations | B8: 84
A10: ANOVA
B11: df | C11: SS | D11: MS | E11: F | F11: Significance F
A12: Regression | B12: 9 | C12: 3.174176512e+15 | D12: 3.526862792e+14 | E12: 107.1343604 | F12: 9.163071068e-39
A13: Residual | B13: 74 | C13: 2.436079755e+14 | D13: 3.291999669e+12
A14: Total | B14: 83 | C14: 3417784487991798
B16: Coefficients | C16: Standard Error | D16: t Stat | E16: P-value | F16: Lower 95% | G16: Upper 95% | H16: Lower 95.0% | I16: Upper 95.0%
A17: Intercept | B17: -816023640.1 | C17: 155129043.8 | D17: -5.260289242 | E17: 1.347810018e-06 | F17: -1125125003 | G17: -506922277.6 | H17: -1125125003 | I17: -506922277.6
A18: Heating Degree Days | B18: 20843.4014 | C18: 1845.381723 | D18: 11.29489966 | E18: 9.106960778e-18 | F18: 17166.3981 | G18: 24520.40469 | H18: 17166.3981 | I18: 24520.40469
A19: Cooling Degree Days | B19: 123729.7811 | C19: 6416.941458 | D19: 19.28173756 | E19: 1.40624483e-30 | F19: 110943.7463 | G19: 136515.8159 | H19: 110943.7463 | I19: 136515.8159
A20: Peakhours | B20: 34450.18944 | C20: 12838.77629 | D20: 2.683292291 | E20: 0.008988776269 | F20: 8868.369638 | G20: 60032.00924 | H20: 8868.369638 | I20: 60032.00924
A21: Seasonal Weighting Factor | B21: 3995126.881 | C21: 474637.1305 | D21: 8.417223653 | E21: 2.1037445e-12 | F21: 3049391.768 | G21: 4940861.994 | H21: 3049391.768 | I21: 4940861.994
A22: Industrial Production Weighting Factor | B22: 754856.9109 | C22: 271192.9589 | D22: 2.783467955 | E22: 0.006822323107 | F22: 214493.1526 | G22: 1295220.669 | H22: 214493.1526 | I22: 1295220.669
A23: Population | B23: 8539.236667 | C23: 1581.989348 | D23: 5.397783922 | E23: 7.802601271e-07 | F23: 5387.054129 | G23: 11691.41921 | H23: 5387.054129 | I23: 11691.41921
A24: Unemployment Rate | B24: -622037.4811 | C24: 272763.286 | D24: -2.28050296 | E24: 0.02545850459 | F24: -1165530.184 | G24: -78544.77791 | H24: -1165530.184 | I24: -78544.77791
A25: GDP | B25: -137576.7345 | C25: 385893.2603 | D25: -0.356514997 | E25: 0.7224694552 | F25: -906485.8288 | G25: 631332.3598 | H25: -906485.8288 | I25: 631332.3598
A26: Median Age | B26: -766939.4735 | C26: 769855.0923 | D26: -0.9962127694 | E26: 0.3223932418 | F26: -2300909.207 | G26: 767030.2602 | H26: -2300909.207 | I26: 767030.2602

Sheet Forecast_NoGDP
A1: Year | B1: Month | C1: No | D1: KWH | E1: KW | F1: LF | G1: Heating Degree Days | H1: Cooling Degree Days | I1: Peakhours | J1: Seasonal Weighting Factor | K1: Industrial Production Weighting Factor | L1: Population | M1: Unemployment Rate | N1: Median Age | O1: Predicted kWH | P1: %Variance
A2: 1998 | B2: Jan | C2: 1 | D2: 75570017.88 | E2: 130983.22 | F2: =D2/E2/24/(DAY(DATE(A3,C2+1,1)-1)) -> 0.7754627247 | G2: 552.2 | H2: 0 | I2: 336.288 | J2: 0 | K2: 2 | L2: =L3-14 -> 106683 | M2: 7.4 | N2: 30 | P2: =(1-O2/D2) -> 1
A3: 1998 | B3: Feb | C3: 2 | D3: 68168475.13 | E3: 128474.49 | F3: =D3/E3/24/(DAY(DATE(A4,C3+1,1)-1)) -> 0.7895822994 | G3: 443.2 | H3: 0 | I3: 319.872 | J3: -1 | K3: 2 | L3: 106697 | M3: 8.4 | N3: =N2+ ($N$132-$N$2)/131 -> 30.11450382 | P3: 1
A4: 1998 | B4: Mar | C4: 3 | D4: 74924788.11 | E4: 127284.04 | F4: 0.7911860777 | G4: 440 | H4: 5.9 | I4: 351.912 | J4: 0 | K4: 3 | L4: 106711 | M4: 9.2 | N4: =N3+ ($N$132-$N$2)/131 -> 30.22900763 | P4: 1
A5: 1998 | B5: Apr | C5: 4 | D5: 66745191 | E5: 121012.95 | F5: 0.7660473872 | G5: 249.1 | H5: 0 | I5: 336.24 | J5: -0.75 | K5: 4 | L5: 106725 | M5: 8.6 | N5: 30.34351145 | P5: 1
A6: 1998 | B6: May | C6: 5 | D6: 72356351.15 | E6: 148733.37 | F6: 0.6538758595 | G6: 42.2 | H6: 54.3 | I6: 319.92 | J6: 0 | K6: 3 | L6: 106739 | M6: 7.7 | N6: 30.45801527 | P6: 1
A7: 1998 | B7: Jun | C7: 6 | D7: 80403469.05 | E7: 179890.4705 | F7: 0.6207748774 | G7: 41.5 | H7: 125.7 | I7: 352.08 | J7: 0 | K7: 3 | L7: 106753 | M7: 7.5 | N7: 30.57251908 | P7: 1
A8: 1998 | B8: Jul | C8: 7 | D8: 82869631.39 | E8: 170332.9305 | F8: 0.6539188449 | G8: 0 | H8: 159.9 | I8: 351.912 | J8: 0 | K8: 2 | L8: 106767 | M8: 8.4 | N8: 30.6870229 | P8: 1
A9: 1998 | B9: Aug | C9: 8 | D9: 88615228.5 | E9: 179093.09 | F9: 0.66505352 | G9: 1.2 | H9: 147.3 | I9: 319.92 | J9: 1 | K9: 2 | L9: 106781 | M9: 9 | N9: 30.80152672 | P9: 1
A10: 1998 | B10: Sep | C10: 9 | D10: 78935386.8 | E10: 154733.28 | F10: 0.7085255458 | G10: 17.7 | H10: 82.4 | I10: 336.24 | J10: 0.75 | K10: 4 | L10: 106795 | M10: 8.9 | N10: 30.91603053 | P10: 1
A11: 1998 | B11: Oct | C11: 10 | D11: 74846440 | E11: 127691.61 | F11: 0.787836051 | G11: 181.3 | H11: 5.2 | I11: 336.288 | J11: 0.25 | K11: 4 | L11: 106809 | M11: 8 | N11: 31.03053435 | P11: 1
A12: 1998 | B12: Nov | C12: 11 | D12: 75052465.8 | E12: 132490.47 | F12: 0.7867700661 | G12: 336.9 | H12: 0 | I12: 336.24 | J12: -0.25 | K12: 3 | L12: 106823 | M12: 7.3 | N12: 31.14503817 | P12: 1
A13: 1998 | B13: Dec | C13: 12 | D13: 76019395.5 | E13: 139903.76 | F13: 0.7303349592 | G13: 485.7 | H13: 0 | I13: 336.288 | J13: -0.25 | K13: 0 | L13: 106837 | M13: 7.2 | N13: 31.25954198 | P13: 1
A14: 1999 | B14: Jan | C14: 1 | D14: 83216461.1 | E14: 146833.21 | F14: 0.7617492128 | G14: 718.9 | H14: 0 | I14: 319.92 | J14: =J2 -> 0 | K14: =K2 -> 2 | L14: 106851 | M14: 7.3 | N14: 31.3740458 | P14: 1
A15: 1999 | B15: Feb | C15: 2 | D15: 73698462.8 | E15: 134989.75 | F15: 0.8124345111 | G15: 500.4 | H15: 0 | I15: 319.872 | J15: =J3 -> -1 | K15: =K3 -> 2 | L15: 106865 | M15: 7.1 | N15: 31.48854962 | P15: 1
A16: 1999 | B16: Mar | C16: 3 | D16: 79791477.4 | E16: 135933.93 | F16: 0.7889612947 | G16: 517.2 | H16: 0 | I16: 368.28 | J16: =J4 -> 0 | K16: 3 | L16: 106879 | M16: 6.9 | N16: 31.60305344 | P16: 1
A17: 1999 | B17: Apr | C17: 4 | D17: 70411214.9 | E17: 123910 | F17: 0.7892289083 | G17: 243.9 | H17: 0 | I17: 336.24 | J17: =J5 -> -0.75 | K17: 4 | L17: 106893 | M17: 6.6 | N17: 31.71755725 | P17: 1
A18: 1999 | B18: May | C18: 5 | D18: 72067143.6 | E18: 133936.48 | F18: 0.7232117816 | G18: 65.8 | H18: 26.1 | I18: 319.92 | J18: =J6 -> 0 | K18: 3 | L18: 106907 | M18: 6.3 | N18: 31.83206107 | P18: 1
A19: 1999 | B19: Jun | C19: 6 | D19: 84086655.7 | E19: 175727.18 | F19: 0.6645928183 | G19: 19.1 | H19: 131.9 | I19: 352.08 | J19: 0 | K19: 3 | L19: 106921 | M19: 5.8 | N19: 31.94656489 | P19: 1
A20: 1999 | B20: Jul | C20: 7 | D20: 90045568.5 | E20: 177564.94 | F20: 0.6816040932 | G20: 0 | H20: 227.8 | I20: 336.288 | J20: 0 | K20: 2 | L20: 106935 | M20: 5.8 | N20: 32.0610687 | P20: 1
A21: 1999 | B21: Aug | C21: 8 | D21: 81217134.6 | E21: 163632.64 | F21: 0.6671212744 | G21: 1.2 | H21: 102.1 | I21: 336.288 | J21: 1 | K21: 2 | L21: 106949 | M21: 6.3 | N21: 32.17557252 | P21: 1
A22: 1999 | B22: Sep | C22: 9 | D22: 76861202.5 | E22: 152305.76 | F22: 0.7009036962 | G22: 37.1 | H22: 64.4 | I22: 336.24 | J22: 0.75 | K22: 4 | L22: 106963 | M22: 6.7 | N22: 32.29007634 | P22: 1
A23: 1999 | B23: Oct | C23: 10 | D23: 73100196 | E23: 130512.1 | F23: 0.7528263786 | G23: 221.4 | H23: 0.9 | I23: 319.92 | J23: 0.25 | K23: 4 | L23: 106977 | M23: 6.5 | N23: 32.40458015 | P23: 1
A24: 1999 | B24: Nov | C24: 11 | D24: 72995431 | E24: 139934.1 | F24: 0.7245020553 | G24: 324.3 | H24: 0 | I24: 352.08 | J24: -0.25 | K24: 3 | L24: 106991 | M24: 6.2 | N24: 32.51908397 | P24: 1
A25: 1999 | B25: Dec | C25: 12 | D25: 76210082.3 | E25: 144765.09 | F25: 0.7075801653 | G25: 558.4 | H25: 0 | I25: 336.288 | J25: -0.25 | K25: 0 | L25: 107005 | M25: 5.9 | N25: 32.63358779 | P25: 1
A26: 2000 | B26: Jan | C26: 1 | D26: 79536131 | E26: 141049.08 | F26: 0.7579163358 | G26: 679.9 | H26: 0 | I26: 319.92 | J26: =J14 -> 0 | K26: =K14 -> 2 | L26: 107019 | M26: 5.9 | N26: 32.7480916 | P26: 1
A27: 2000 | B27: Feb | C27: 2 | D27: 73178156 | E27: 133102.63 | F27: 0.7899245021 | G27: 533.9 | H27: 0 | I27: 336.168 | J27: =J15 -> -1 | K27: 2 | L27: 107033 | M27: 5.9 | N27: 32.86259542 | P27: 1
A28: 2000 | B28: Mar | C28: 3 | D28: 75091178 | E28: 129484.19 | F28: 0.7794696996 | G28: 367.7 | H28: 0.5 | I28: 368.28 | J28: =J16 -> 0 | K28: 3 | L28: 107047 | M28: 5.7 | N28: 32.97709924 | P28: 1
A29: 2000 | B29: Apr | C29: 4 | D29: 68114066 | E29: 126280.51 | F29: 0.7491486172 | G29: 293.6 | H29: 0 | I29: 303.84 | J29: =J17 -> -0.75 | K29: 4 | L29: 107061 | M29: 5.6 | N29: 33.09160305 | P29: 1
A30: 2000 | B30: May | C30: 5 | D30: 74696611.9 | E30: 147531.7 | F30: 0.6805227074 | G30: 85.1 | H30: 38.6 | I30: 351.912 | J30: 0 | K30: 3 | L30: 107075 | M30: 5.3 | N30: 33.20610687 | P30: 1
A31: 2000 | B31: Jun | C31: 6 | D31: 80335315 | E31: 167627.59 | F31: 0.6656232807 | G31: 18 | H31: 98.7 | I31: 352.08 | J31: 0 | K31: 3 | L31: 107089 | M31: 4.8 | N31: 33.32061069 | P31: 1
A32: 2000 | B32: Jul | C32: 7 | D32: 78162420 | E32: 159861.29 | F32: 0.6571760814 | G32: 0.9 | H32: 97.1 | I32: 319.92 | J32: 0 | K32: 2 | L32: 107103 | M32: 4.9 | N32: 33.4351145 | P32: 1
A33: 2000 | B33: Aug | C33: 8 | D33: 85745386 | E33: 168464.57 | F33: 0.6841152103 | G33: 7.7 | H33: 109.9 | I33: 351.912 | J33: 1 | K33: 2 | L33: 107117 | M33: 5.2 | N33: 33.54961832 | P33: 1
A34: 2000 | B34: Sep | C34: 9 | D34: 76389789 | E34: 167817.1 | F34: 0.6322176296 | G34: 76.4 | H34: 45.7 | I34: 319.68 | J34: 0.75 | K34: 4 | L34: 107131 | M34: 6.2 | N34: 33.66412214 | P34: =(1-O34/D34) -> 1
A35: 2000 | B35: Oct | C35: 10 | D35: 72457860 | E35: 127194.3 | F35: 0.765675795 | G35: 158.4 | H35: 3.3 | I35: 336.288 | J35: 0.25 | K35: 4 | L35: 107145 | M35: 6.1 | N35: 33.77862595 | P35: 1
A36: 2000 | B36: Nov | C36: 11 | D36: 75593151 | E36: 139855.5 | F36: 0.7507068903 | G36: 401.3 | H36: 0 | I36: 352.08 | J36: -0.25 | K36: 3 | L36: 107159 | M36: 6.2 | N36: 33.89312977 | P36: 1
A37: 2000 | B37: Dec | C37: 12 | D37: 76895977 | E37: 143048.6 | F37: 0.7225153395 | G37: 771.2 | H37: 0 | I37: 304.296 | J37: -0.25 | K37: 0 | L37: 107173 | M37: 6.5 | N37: 34.00763359 | P37: 1
A38: 2001 | B38: Jan | C38: 1 | D38: 77836513 | E38: 138147.8 | F38: 0.7572973952 | G38: 657.4 | H38: 0 | I38: 351.912 | J38: =J26 -> 0 | K38: =K26 -> 2 | L38: 107187 | M38: 7.1 | N38: 34.1221374 | P38: 1
A39: 2001 | B39: Feb | C39: 2 | D39: 68724114 | E39: 129314.81 | F39: 0.7908454321 | G39: 544.3 | H39: 0 | I39: 319.872 | J39: =J27 -> -1 | K39: 2 | L39: 107201 | M39: 8.1 | N39: 34.23664122 | P39: 1
A40: 2001 | B40: Mar | C40: 3 | D40: 73837297 | E40: 124821.5 | F40: 0.7950848112 | G40: 518.9 | H40: 0 | I40: 351.912 | J40: =J28 -> 0 | K40: 3 | L40: 107215 | M40: 8.5 | N40: 34.35114504 | P40: 1
A41: 2001 | B41: Apr | C41: 4 | D41: 65927141 | E41: 122104.5 | F41: 0.7498943414 | G41: 245.3 | H41: 0.4 | I41: 319.68 | J41: =J29 -> -0.75 | K41: 4 | L41: 107229 | M41: 8.4 | N41: 34.46564885 | P41: 1
A42: 2001 | B42: May | C42: 5 | D42: 70361810 | E42: 130504.6 | F42: 0.7246666039 | G42: 82.9 | H42: 20.4 | I42: 351.912 | J42: =J30 -> 0 | K42: 3 | L42: 107243 | M42: 7.8 | N42: 34.58015267 | P42: 1
A43: 2001 | B43: Jun | C43: 6 | D43: 79860509 | E43: 172880.62 | F43: 0.6415836177 | G43: 24.9 | H43: 112.5 | I43: 336.24 | J43: 0 | K43: 3 | L43: 107257 | M43: 7.1 | N43: 34.69465649 | P43: 1
A44: 2001 | B44: Jul | C44: 7 | D44: 83033599 | E44: 183595.93 | F44: 0.6078800316 | G44: 3.2 | H44: 156.1 | I44: 336.288 | J44: 0 | K44: 2 | L44: 107271 | M44: 7.2 | N44: 34.80916031 | P44: 1
A45: 2001 | B45: Aug | C45: 8 | D45: 89193753 | E45: 186132.6 | F45: 0.6440788804 | G45: 0 | H45: 162.2 | I45: 351.912 | J45: 1 | K45: 2 | L45: 107285 | M45: 7.1 | N45: 34.92366412 | P45: 1
A46: 2001 | B46: Sep | C46: 9 | D46: 72854620 | E46: 157846.4 | F46: 0.64104707 | G46: 69.9 | H46: 36.2 | I46: 303.84 | J46: 0.75 | K46: 4 | L46: 107299 | M46: 6.9 | N46: 35.03816794 | P46: 1
A47: 2001 | B47: Oct | C47: 10 | D47: 70195854 | E47: 122473.1 | F47: 0.7703672572 | G47: 202.7 | H47: 2.9 | I47: 351.912 | J47: 0.25 | K47: 4 | L47: 107313 | M47: 6.3 | N47: 35.15267176 | P47: 1
A48: 2001 | B48: Nov | C48: 11 | D48: 70271116 | E48: 126798.5 | F48: 0.769715511 | G48: 279.9 | H48: 0 | I48: 352.08 | J48: -0.25 | K48: 3 | L48: =L49-14 -> 107327 | M48: 5.9 | N48: 35.26717557 | P48: 1
A49: 2001 | B49: Dec | C49: 12 | D49: 71209767 | E49: 133819.4 | F49: 0.7152330112 | G49: 491.6 | H49: 0 | I49: 304.296 | J49: -0.25 | K49: 0 | L49: 107341 | M49: 6.2 | N49: 35.38167939 | P49: 1
A50: 2002 | B50: Jan | C50: 1 | D50: 75539423 | E50: 128166 | F50: 0.7921873393 | G50: 545.3 | H50: 0 | I50: 351.912 | J50: =J38 -> 0 | K50: =K38 -> 2 | L50: =L49+14 -> 107355 | M50: 7.7 | N50: 35.49618321 | O50: =Results_NoGDP!$B$17+Results_NoGDP!$B$18*G50+Results_NoGDP!$B$19*H50+Results_NoGDP!$B$20*I50+Results_NoGDP!$B$21*J50+Results_NoGDP!$B$22*K50+Results_NoGDP!$B$23*L50+Results_NoGDP!$B$24*M50+Results_NoGDP!$B$25*N50 -> 76955983.25 | P50: -0.01875259565
A51: 2002 | B51: Feb | C51: 2 | D51: 68515032 | E51: 129818.3 | F51: 0.7853815129 | G51: 494.8 | H51: 0 | I51: 319.872 | J51: =J39 -> -1 | K51: 2 | L51: =L50+14 -> 107369 | M51: 8.7 | N51: 35.61068702 | O51: =Results_NoGDP!$B$17+Results_NoGDP!$B$18*G51+Results_NoGDP!$B$19*H51+Results_NoGDP!$B$20*I51+Results_NoGDP!$B$21*J51+Results_NoGDP!$B$22*K51+Results_NoGDP!$B$23*L51+Results_NoGDP!$B$24*M51+Results_NoGDP!$B$25*N51 -> 70198046.87 | P51: -0.02456416971
A52: 2002 | B52: Mar | C52: 3 | D52: 73639815 | E52: 130708.9 | F52: 0.7572418249 | G52: 513.9 | H52: 0 | I52: 319.92 | J52: =J40 -> 0 | K52: 3 | L52: 107383 | M52: 9.2 | N52: 35.72519084 | O52: =Results_NoGDP!$B$17+Results_NoGDP!$B$18*G52+Results_NoGDP!$B$19*H52+Results_NoGDP!$B$20*I52+Results_NoGDP!$B$21*J52+Results_NoGDP!$B$22*K52+Results_NoGDP!$B$23*L52+Results_NoGDP!$B$24*M52+Results_NoGDP!$B$25*N52 -> 75031745.82 | P52: -0.01890187824
A53: 2002 | B53: Apr | C53: 4 | D53: 70425715 | E53: 130995.7 | F53: 0.7466923957 | G53: 273.3 | H53: 15.1 | I53: 352.08 | J53: =J41 -> -0.75 | K53: 4 | L53: 107397 | M53: 8.2 | N53: 35.83969466 | O53: =Results_NoGDP!$B$17+Results_NoGDP!$B$18*G53+Results_NoGDP!$B$19*H53+Results_NoGDP!$B$20*I53+Results_NoGDP!$B$21*J53+Results_NoGDP!$B$22*K53+Results_NoGDP!$B$23*L53+Results_NoGDP!$B$24*M53+Results_NoGDP!$B$25*N53 -> 71347048.33 | P53: -0.01308234259
A54: 2002 | B54: May | C54: 5 | D54: 72864570 | E54: 140660.2 | F54: 0.6962612736 | G54: 185.1 | H54: 12.5 | I54: 351.912 | J54: =J42 -> 0 | K54: 3 | L54: 107411 | M54: 7.5 | N54: 35.95419847 | O54: =Results_NoGDP!$B$17+Results_NoGDP!$B$18*G54+Results_NoGDP!$B$19*H54+Results_NoGDP!$B$20*I54+Results_NoGDP!$B$21*J54+Results_NoGDP!$B$22*K54+Results_NoGDP!$B$23*L54+Results_NoGDP!$B$24*M54+Results_NoGDP!$B$25*N54 -> 71869881.62 | P54: 0.01365119393
A55: 2002 | B55: Jun | C55: 6 | D55: 79716033 | E55: 178718.3 | F55: 0.6195040603 | G55: 16.5 | H55: 118.3 | I55: 319.68 | J55: 0 | K55: 3 | L55: 107425 | M55: 7.2 | N55: 36.06870229 | O55: =Results_NoGDP!$B$17+Results_NoGDP!$B$18*G55+Results_NoGDP!$B$19*H55+Results_NoGDP!$B$20*I55+Results_NoGDP!$B$21*J55+Results_NoGDP!$B$22*K55+Results_NoGDP!$B$23*L55+Results_NoGDP!$B$24*M55+Results_NoGDP!$B$25*N55 -> 80478203.56 | P55: -0.009561069792
A56: 2002 | B56: Jul | C56: 7 | D56: 93049284 | E56: 182854.8 | F56: 0.6839647739 | G56: 0 | H56: 201.2 | I56: 351.912 | J56: 0 | K56: 2 | L56: 107439 | M56: 7.6 | N56: 36.18320611 | O56: =Results_NoGDP!$B$17+Results_NoGDP!$B$18*G56+Results_NoGDP!$B$19*H56+Results_NoGDP!$B$20*I56+Results_NoGDP!$B$21*J56+Results_NoGDP!$B$22*K56+Results_NoGDP!$B$23*L56+Results_NoGDP!$B$24*M56+Results_NoGDP!$B$25*N56 -> 90480998.26 | P56: 0.02760134881
A57: 2002 | B57: Aug | C57: 8 | D57: 91281708 | E57: 185916.6 | F57: 0.6599220712 | G57: 0 | H57: 149.2 | I57: 336.288 | J57: 1 | K57: 2 | L57: 107453 | M57: 7.7 | N57: 36.29770992 | O57: =Results_NoGDP!$B$17+Results_NoGDP!$B$18*G57+Results_NoGDP!$B$19*H57+Results_NoGDP!$B$20*I57+Results_NoGDP!$B$21*J57+Results_NoGDP!$B$22*K57+Results_NoGDP!$B$23*L57+Results_NoGDP!$B$24*M57+Results_NoGDP!$B$25*N57 -> 87470440.75 | P57: 0.04175280382
A58: 2002 | B58: Sep | C58: 9 | D58: 85671396 | E58: 188582.2 | F58: 0.6309611936 | G58: 17.1 | H58: 97.9 | I58: 319.68 | J58: 0.75 | K58: 4 | L58: 107467 | M58: 7 | N58: 36.41221374 | O58: =Results_NoGDP!$B$17+Results_NoGDP!$B$18*G58+Results_NoGDP!$B$19*H58+Results_NoGDP!$B$20*I58+Results_NoGDP!$B$21*J58+Results_NoGDP!$B$22*K58+Results_NoGDP!$B$23*L58+Results_NoGDP!$B$24*M58+Results_NoGDP!$B$25*N58 -> 81822051.94 | P58: 0.04493149689
A59: 2002 | B59: Oct | C59: 10 | D59: 78002634 | E59: 152745.1 | F59: 0.6863869938 | G59: 255.9 | H59: 12.6 | I59: 351.912 | J59: 0.25 | K59: 4 | L59: 107481 | M59: 6 | N59: 36.52671756 | O59: =Results_NoGDP!$B$17+Results_NoGDP!$B$18*G59+Results_NoGDP!$B$19*H59+Results_NoGDP!$B$20*I59+Results_NoGDP!$B$21*J59+Results_NoGDP!$B$22*K59+Results_NoGDP!$B$23*L59+Results_NoGDP!$B$24*M59+Results_NoGDP!$B$25*N59 -> 75964129.73 | P59: 0.02613378764
A60: 2002 | B60: Nov | C60: 11 | D60: 75569055 | E60: 134440.9 | F60: 0.7806926377 | G60: 417.5 | H60: 0 | I60: 336.24 | J60: -0.25 | K60: 3 | L60: 107495 | M60: 6 | N60: 36.64122137 | O60: =Results_NoGDP!$B$17+Results_NoGDP!$B$18*G60+Results_NoGDP!$B$19*H60+Results_NoGDP!$B$20*I60+Results_NoGDP!$B$21*J60+Results_NoGDP!$B$22*K60+Results_NoGDP!$B$23*L60+Results_NoGDP!$B$24*M60+Results_NoGDP!$B$25*N60 -> 74475542.56 | P60: 0.01447037329
A61: 2002 | B61: Dec | C61: 12 | D61: 74014572 | E61: 137747.6 | F61: 0.7222046091 | G61: 610.4 | H61: 0 | I61: 319.92 | J61: -0.25 | K61: 0 | L61: 107509 | M61: 6.3 | N61: 36.75572519 | O61: =Results_NoGDP!$B$17+Results_NoGDP!$B$18*G61+Results_NoGDP!$B$19*H61+Results_NoGDP!$B$20*I61+Results_NoGDP!$B$21*J61+Results_NoGDP!$B$22*K61+Results_NoGDP!$B$23*L61+Results_NoGDP!$B$24*M61+Results_NoGDP!$B$25*N61 -> 75509311.74 | P61: -0.02019520886
A62: 2003 | B62: Jan | C62: 1 | D62: 80158611 | E62: 137438.7 | F62: 0.7839136178 | G62: 759.2 | H62: 0 | I62: 351.912 | J62: =J50 -> 0 | K62: =K50 -> 2 | L62: 107523 | M62: 6.7 | N62: 36.87022901 | O62: =Results_NoGDP!$B$17+Results_NoGDP!$B$18*G62+Results_NoGDP!$B$19*H62+Results_NoGDP!$B$20*I62+Results_NoGDP!$B$21*J62+Results_NoGDP!$B$22*K62+Results_NoGDP!$B$23*L62+Results_NoGDP!$B$24*M62+Results_NoGDP!$B$25*N62 -> 81930455.15 | P62: -0.02210422725
A63: 2003 | B63: Feb | C63: 2 | D63: 73538697 | E63: 136985 | F63: 0.7988654584 | G63: 656.2 | H63: 0 | I63: 319.872 | J63: =J51 -> -1 | K63: 2 | L63: 107537 | M63: 7.4 | N63: 36.98473282 | O63: =Results_NoGDP!$B$17+Results_NoGDP!$B$18*G63+Results_NoGDP!$B$19*H63+Results_NoGDP!$B$20*I63+Results_NoGDP!$B$21*J63+Results_NoGDP!$B$22*K63+Results_NoGDP!$B$23*L63+Results_NoGDP!$B$24*M63+Results_NoGDP!$B$25*N63 -> 74264215.03 | P63: -0.009865799306
A64: 2003 | B64: Mar | C64: 3 | D64: 74987208 | E64: 133502.5 | F64: 0.754961578 | G64: 524.1 | H64: 0 | I64: 336.288 | J64: =J52 -> 0 | K64: 3 | L64: 107551 | M64: 8.1 | N64: 37.09923664 | O64: =Results_NoGDP!$B$17+Results_NoGDP!$B$18*G64+Results_NoGDP!$B$19*H64+Results_NoGDP!$B$20*I64+Results_NoGDP!$B$21*J64+Results_NoGDP!$B$22*K64+Results_NoGDP!$B$23*L64+Results_NoGDP!$B$24*M64+Results_NoGDP!$B$25*N64 -> 76408416.78 | P64: -0.01895268301
A65: 2003 | B65: Apr | C65: 4 | D65: 68131035 | E65: 128179.2 | F65: 0.7382355133 | G65: 303.3 | H65: 2.7 | I65: 336.24 | J65: =J53 -> -0.75 | K65: 4 | L65: 107565 | M65: 8.2 | N65: 37.21374046 | O65: =Results_NoGDP!$B$17+Results_NoGDP!$B$18*G65+Results_NoGDP!$B$19*H65+Results_NoGDP!$B$20*I65+Results_NoGDP!$B$21*J65+Results_NoGDP!$B$22*K65+Results_NoGDP!$B$23*L65+Results_NoGDP!$B$24*M65+Results_NoGDP!$B$25*N65 -> 69835664.3 | P65: -0.025019865
A66: 2003 | B66: May | C66: 5 | D66: 68381673 | E66: 123358 | F66: 0.7450740998 | G66: 147.6 | H66: 0.2 | I66: 336.288 | J66: =J54 -> 0 | K66: 3 | L66: 107579 | M66: 7.5 | N66: 37.32824427 | O66: =Results_NoGDP!$B$17+Results_NoGDP!$B$18*G66+Results_NoGDP!$B$19*H66+Results_NoGDP!$B$20*I66+Results_NoGDP!$B$21*J66+Results_NoGDP!$B$22*K66+Results_NoGDP!$B$23*L66+Results_NoGDP!$B$24*M66+Results_NoGDP!$B$25*N66 -> 68979168.66 | P66: =(1-O66/D66) -> -0.008737657813
A67: 2003 | B67: Jun | C67: 6 | D67: 73186791 | E67: 172122.7 | F67: =D67/E67/24/(DAY(DATE(A68,C67+1,1)-1)) -> 0.5905573224 | G67: 30.3 | H67: 64.2 | I67: 336.24 | J67: 0 | K67: 3 | L67: 107593 | M67: 6.8 | N67: 37.44274809 | O67: =Results_NoGDP!$B$17+Results_NoGDP!$B$18*G67+Results_NoGDP!$B$19*H67+Results_NoGDP!$B$20*I67+Results_NoGDP!$B$21*J67+Results_NoGDP!$B$22*K67+Results_NoGDP!$B$23*L67+Results_NoGDP!$B$24*M67+Results_NoGDP!$B$25*N67 -> 74848769.61 | P67: -0.02270872357
A68: 2003 | B68: Jul | C68: 7 | D68: 81942993 | E68: 163585.3 | F68: 0.6732782924 | G68: 0 | H68: 144.6 | I68: 351.912 | J68: 0 | K68: 2 | L68: 107607 | M68: 6.9 | N68: =N67+ ($N$132-$N$2)/131 -> 37.55725191 | O68: =Results_NoGDP!$B$17+Results_NoGDP!$B$18*G68+Results_NoGDP!$B$19*H68+Results_NoGDP!$B$20*I68+Results_NoGDP!$B$21*J68+Results_NoGDP!$B$22*K68+Results_NoGDP!$B$23*L68+Results_NoGDP!$B$24*M68+Results_NoGDP!$B$25*N68 -> 83866261.26 | P68: -0.02347080806
A69: 2003 | B69: Aug | C69: 8 | D69: 80915733 | E69: 173485 | F69: 0.6268997645 | G69: 0 | H69: 143.1 | I69: 319.92 | J69: 1 | K69: 2 | L69: 107621 | M69: 6.8 | N69: 37.67175573 | O69: =Results_NoGDP!$B$17+Results_NoGDP!$B$18*G69+Results_NoGDP!$B$19*H69+Results_NoGDP!$B$20*I69+Results_NoGDP!$B$21*J69+Results_NoGDP!$B$22*K69+Results_NoGDP!$B$23*L69+Results_NoGDP!$B$24*M69+Results_NoGDP!$B$25*N69 -> 86635136.29 | P69: -0.0706834515
A70: 2003 | B70: Sep | C70: 9 | D70: 75167748 | E70: 141296.6 | F70: 0.7388688051 | G70: 50.3 | H70: 37.6 | I70: 336.24 | J70: 0.75 | K70: 4 | L70: 107635 | M70: 6.9 | N70: 37.78625954 | O70: =Results_NoGDP!$B$17+Results_NoGDP!$B$18*G70+Results_NoGDP!$B$19*H70+Results_NoGDP!$B$20*I70+Results_NoGDP!$B$21*J70+Results_NoGDP!$B$22*K70+Results_NoGDP!$B$23*L70+Results_NoGDP!$B$24*M70+Results_NoGDP!$B$25*N70 -> 75650718.4 | P70: -0.006425234367
A71: 2003 | B71: Oct | C71: 10 | D71: 72475980 | E71: 122965.7 | F71: 0.7922042619 | G71: 225.6 | H71: 1 | I71: 351.912 | J71: 0.25 | K71: 4 | L71: 107649 | M71: 6.4 | N71: 37.90076336 | O71: =Results_NoGDP!$B$17+Results_NoGDP!$B$18*G71+Results_NoGDP!$B$19*H71+Results_NoGDP!$B$20*I71+Results_NoGDP!$B$21*J71+Results_NoGDP!$B$22*K71+Results_NoGDP!$B$23*L71+Results_NoGDP!$B$24*M71+Results_NoGDP!$B$25*N71 -> 73607837.79 | P71: -0.01561700565
A72: 2003 | B72: Nov | C72: 11 | D72: 71081556 | E72: 131282.1 | F72: 0.7520018596 | G72: 338.8 | H72: 0 | I72: 319.68 | J72: -0.25 | K72: 3 | L72: 107663 | M72: 6.5 | N72: 38.01526718 | O72: =Results_NoGDP!$B$17+Results_NoGDP!$B$18*G72+Results_NoGDP!$B$19*H72+Results_NoGDP!$B$20*I72+Results_NoGDP!$B$21*J72+Results_NoGDP!$B$22*K72+Results_NoGDP!$B$23*L72+Results_NoGDP!$B$24*M72+Results_NoGDP!$B$25*N72 -> 71914698.32 | P72: -0.01172093528
A73: 2003 | B73: Dec | C73: 12 | D73: 73826575 | E73: 137616 | F73: 0.7210590881 | G73: 541.8 | H73: 0 | I73: 336.288 | J73: -0.25 | K73: 0 | L73: 107677 | M73: 6.9 | N73: 38.12977099 | O73: =Results_NoGDP!$B$17+Results_NoGDP!$B$18*G73+Results_NoGDP!$B$19*H73+Results_NoGDP!$B$20*I73+Results_NoGDP!$B$21*J73+Results_NoGDP!$B$22*K73+Results_NoGDP!$B$23*L73+Results_NoGDP!$B$24*M73+Results_NoGDP!$B$25*N73 -> 74233303.67 | P73: -0.005509244744
A74: 2004 | B74: Jan | C74: 1 | D74: 79684648 | E74: 136326.2 | F74: 0.7856378415 | G74: 762.9 | H74: 0 | I74: 336.288 | J74: =J62 -> 0 | K74: =K62 -> 2 | L74: 107691 | M74: 7.5 | N74: 38.24427481 | O74: =Results_NoGDP!$B$17+Results_NoGDP!$B$18*G74+Results_NoGDP!$B$19*H74+Results_NoGDP!$B$20*I74+Results_NoGDP!$B$21*J74+Results_NoGDP!$B$22*K74+Results_NoGDP!$B$23*L74+Results_NoGDP!$B$24*M74+Results_NoGDP!$B$25*N74 -> 80929940.89 | P74: -0.01562776422
A75: 2004 | B75: Feb | C75: 2 | D75: 72900352 | E75: 131065.8 | F75: 0.7991549669 | G75: 579.4 | H75: 0 | I75: 320.16 | J75: =J63 -> -1 | K75: 2 | L75: 107705 | M75: 7.8 | N75: 38.35877863 | O75: =Results_NoGDP!$B$17+Results_NoGDP!$B$18*G75+Results_NoGDP!$B$19*H75+Results_NoGDP!$B$20*I75+Results_NoGDP!$B$21*J75+Results_NoGDP!$B$22*K75+Results_NoGDP!$B$23*L75+Results_NoGDP!$B$24*M75+Results_NoGDP!$B$25*N75 -> 72383682.15 | P75: 0.007087343759
A76: 2004 | B76: Mar | C76: 3 | D76: 75667416 | E76: 127110.4 | F76: 0.8001195506 | G76: 429.3 | H76: 0 | I76: 368.28 | J76: =J64 -> 0 | K76: 3 | L76: 107719 | M76: 8 | N76: 38.47328244 | O76: =Results_NoGDP!$B$17+Results_NoGDP!$B$18*G76+Results_NoGDP!$B$19*H76+Results_NoGDP!$B$20*I76+Results_NoGDP!$B$21*J76+Results_NoGDP!$B$22*K76+Results_NoGDP!$B$23*L76+Results_NoGDP!$B$24*M76+Results_NoGDP!$B$25*N76 -> 75547845.29 | P76: 0.001580213985
A77: 2004 | B77: Apr | C77: 4 | D77: 68680718 | E77: 122353 | F77: 0.779628502 | G77: 251.7 | H77: 4.4 | I77: 336.24 | J77: =J65 -> -0.75 | K77: 4 | L77: 107733 | M77: 8.2 | N77: 38.58778626 | O77: =Results_NoGDP!$B$17+Results_NoGDP!$B$18*G77+Results_NoGDP!$B$19*H77+Results_NoGDP!$B$20*I77+Results_NoGDP!$B$21*J77+Results_NoGDP!$B$22*K77+Results_NoGDP!$B$23*L77+Results_NoGDP!$B$24*M77+Results_NoGDP!$B$25*N77 -> 68916898.67 | P77: -0.003438820675
A78: 2004 | B78: May | C78: 5 | D78: 70763440 | E78: 131627.8 | F78: 0.7225840631 | G78: 101.6 | H78: 28.1 | I78: 319.92 | J78: =J66 -> 0 | K78: 3 | L78: 107747 | M78: 8 | N78: 38.70229008 | O78: =Results_NoGDP!$B$17+Results_NoGDP!$B$18*G78+Results_NoGDP!$B$19*H78+Results_NoGDP!$B$20*I78+Results_NoGDP!$B$21*J78+Results_NoGDP!$B$22*K78+Results_NoGDP!$B$23*L78+Results_NoGDP!$B$24*M78+Results_NoGDP!$B$25*N78 -> 70541295.87 | P78: 0.003139250017
A79: 2004 | B79: Jun | C79: 6 | D79: 76247526 | E79: 167054.5 | F79: 0.633920916 | G79: 21.4 | H79: 62 | I79: 352.08 | J79: 0 | K79: 3 | L79: 107761 | M79: 8 | N79: 38.81679389 | O79: =Results_NoGDP!$B$17+Results_NoGDP!$B$18*G79+Results_NoGDP!$B$19*H79+Results_NoGDP!$B$20*I79+Results_NoGDP!$B$21*J79+Results_NoGDP!$B$22*K79+Results_NoGDP!$B$23*L79+Results_NoGDP!$B$24*M79+Results_NoGDP!$B$25*N79 -> 74161068.08 | P79: 0.0273642704
A80: 2004 | B80: Jul | C80: 7 | D80: 79986462 | E80: 167093.8 | F80: 0.6434031992 | G80: 2.2 | H80: 122 | I80: 336.288 | J80: 0 | K80: 2 | L80: 107775 | M80: 8.5 | N80: 38.93129771 | O80: =Results_NoGDP!$B$17+Results_NoGDP!$B$18*G80+Results_NoGDP!$B$19*H80+Results_NoGDP!$B$20*I80+Results_NoGDP!$B$21*J80+Results_NoGDP!$B$22*K80+Results_NoGDP!$B$23*L80+Results_NoGDP!$B$24*M80+Results_NoGDP!$B$25*N80 -> 79569598.55 | P80: 0.005211675133
A81: 2004 | B81: Aug | C81: 8 | D81: 80648262 | E81: 163310 | F81: 0.6637572813 | G81: 6.1 | H81: 74.2 | I81: 336.288 | J81: 1 | K81: 2 | L81: 107789 | M81: 8.9 | N81: 39.04580153 | O81: =Results_NoGDP!$B$17+Results_NoGDP!$B$18*G81+Results_NoGDP!$B$19*H81+Results_NoGDP!$B$20*I81+Results_NoGDP!$B$21*J81+Results_NoGDP!$B$22*K81+Results_NoGDP!$B$23*L81+Results_NoGDP!$B$24*M81+Results_NoGDP!$B$25*N81 -> 77516384.75 | P81: 0.03883378474
A82: 2004 | B82: Sep | C82: 9 | D82: 79026081 | E82: 152323.5 | F82: 0.720561475 | G82: 23 | H82: 59.7 | I82: 336.24 | J82: 0.75 | K82: 4 | L82: 107803 | M82: 8.3 | N82: 39.16030534 | O82: =Results_NoGDP!$B$17+Results_NoGDP!$B$18*G82+Results_NoGDP!$B$19*H82+Results_NoGDP!$B$20*I82+Results_NoGDP!$B$21*J82+Results_NoGDP!$B$22*K82+Results_NoGDP!$B$23*L82+Results_NoGDP!$B$24*M82+Results_NoGDP!$B$25*N82 -> 76910377.37 | P82: 0.02677222
A83: 2004 | B83: Oct | C83: 10 | D83: 72549672 | E83: 122686.2 | F83: 0.7948163689 | G83: 190.9 | H83: 0.5 | I83: 319.92 | J83: 0.25 | K83: 4 | L83: 107817 | M83: 7.8 | N83: 39.27480916 | O83: =Results_NoGDP!$B$17+Results_NoGDP!$B$18*G83+Results_NoGDP!$B$19*H83+Results_NoGDP!$B$20*I83+Results_NoGDP!$B$21*J83+Results_NoGDP!$B$22*K83+Results_NoGDP!$B$23*L83+Results_NoGDP!$B$24*M83+Results_NoGDP!$B$25*N83 -> 70825578.62 | P83: 0.02376431662
A84: 2004 | B84: Nov | C84: 11 | D84: 72369445 | E84: 130779.7 | F84: 0.7685681956 | G84: 354 | H84: 0 | I84: 352.08 | J84: -0.25 | K84: 3 | L84: 107831 | M84: 7.6 | N84: 39.38931298 | O84: =Results_NoGDP!$B$17+Results_NoGDP!$B$18*G84+Results_NoGDP!$B$19*H84+Results_NoGDP!$B$20*I84+Results_NoGDP!$B$21*J84+Results_NoGDP!$B$22*K84+Results_NoGDP!$B$23*L84+Results_NoGDP!$B$24*M84+Results_NoGDP!$B$25*N84 -> 72628667.36 | P84: -0.003581931077
A85: 2004 | B85: Dec | C85: 12 | D85: 75651436 | E85: 140467.6 | F85: 0.7238825013 | G85: 593.5 | H85: 0 | I85: 336.288 | J85: -0.25 | K85: 0 | L85: 107845 | M85: 7.8 | N85: 39.50381679 | O85: =Results_NoGDP!$B$17+Results_NoGDP!$B$18*G85+Results_NoGDP!$B$19*H85+Results_NoGDP!$B$20*I85+Results_NoGDP!$B$21*J85+Results_NoGDP!$B$22*K85+Results_NoGDP!$B$23*L85+Results_NoGDP!$B$24*M85+Results_NoGDP!$B$25*N85 -> 74706504.12 | P85: 0.01249060071
A86: 2005 | B86: Jan | C86: 1 | D86: 79711033 | E86: 140596.6 | F86: 0.7620275683 | G86: 700.4 | H86: 0 | I86: 319.92 | J86: =J74 -> 0 | K86: =K74 -> 2 | L86: 107859 | M86: 8.2 | N86: 39.61832061 | O86: =Results_NoGDP!$B$17+Results_NoGDP!$B$18*G86+Results_NoGDP!$B$19*H86+Results_NoGDP!$B$20*I86+Results_NoGDP!$B$21*J86+Results_NoGDP!$B$22*K86+Results_NoGDP!$B$23*L86+Results_NoGDP!$B$24*M86+Results_NoGDP!$B$25*N86 -> 78591577.41 | P86: 0.01404392271
A87: 2005 | B87: Feb | C87: 2 | D87: 72086002 | E87: 131756 | F87: 0.8141628185 | G87: 572 | H87: 0 | I87: 319.872 | J87: =J75 -> -1 | K87: 2 | L87: 107873 | M87: 8.2 | N87: 39.73282443 | O87: =Results_NoGDP!$B$17+Results_NoGDP!$B$18*G87+Results_NoGDP!$B$19*H87+Results_NoGDP!$B$20*I87+Results_NoGDP!$B$21*J87+Results_NoGDP!$B$22*K87+Results_NoGDP!$B$23*L87+Results_NoGDP!$B$24*M87+Results_NoGDP!$B$25*N87 -> 71921771.1 | P87: 0.002278263447
A88: 2005 | B88: Mar | C88: 3 | D88: 78211488 | E88: 132791.1 | F88: 0.7916416668 | G88: 545.3 | H88: 0 | I88: 351.912 | J88: =J76 -> 0 | K88: 3 | L88: 107887 | M88: 8.4 | N88: 39.84732824 | O88: =Results_NoGDP!$B$17+Results_NoGDP!$B$18*G88+Results_NoGDP!$B$19*H88+Results_NoGDP!$B$20*I88+Results_NoGDP!$B$21*J88+Results_NoGDP!$B$22*K88+Results_NoGDP!$B$23*L88+Results_NoGDP!$B$24*M88+Results_NoGDP!$B$25*N88 -> 77089215.43 | P88: 0.01434920361
A89: 2005 | B89: Apr | C89: 4 | D89: 69000350 | E89: 120250.5 | F89: 0.7969515257 | G89: 242.5 | H89: 1.4 | I89: 336.24 | J89: =J77 -> -0.75 | K89: 4 | L89: 107901 | M89: 7.9 | N89: 39.96183206 | O89: =Results_NoGDP!$B$17+Results_NoGDP!$B$18*G89+Results_NoGDP!$B$19*H89+Results_NoGDP!$B$20*I89+Results_NoGDP!$B$21*J89+Results_NoGDP!$B$22*K89+Results_NoGDP!$B$23*L89+Results_NoGDP!$B$24*M89+Results_NoGDP!$B$25*N89 -> 68477606.59 | P89: 0.00757595296
A90: 2005 | B90: May | C90: 5 | D90: 70417800 | E90: 124908.8 | F90: 0.7577334875 | G90: 143.4 | H90: 5.7 | I90: 336.288 | J90: =J78 -> 0 | K90: 3 | L90: 107915 | M90: 7.9 | N90: 40.07633588 | O90: =Results_NoGDP!$B$17+Results_NoGDP!$B$18*G90+Results_NoGDP!$B$19*H90+Results_NoGDP!$B$20*I90+Results_NoGDP!$B$21*J90+Results_NoGDP!$B$22*K90+Results_NoGDP!$B$23*L90+Results_NoGDP!$B$24*M90+Results_NoGDP!$B$25*N90 -> 69212621.29 | P90: 0.01711468848
A91: 2005 | B91: Jun | C91: 6 | D91: 87906300 | E91: 181977.6 | F91: 0.6709181973 | G91: 4.4 | H91: 166.9 | I91: 352.08 | J91: 0 | K91: 3 | L91: 107929 | M91: 7.7 | N91: 40.19083969 | O91: =Results_NoGDP!$B$17+Results_NoGDP!$B$18*G91+Results_NoGDP!$B$19*H91+Results_NoGDP!$B$20*I91+Results_NoGDP!$B$21*J91+Results_NoGDP!$B$22*K91+Results_NoGDP!$B$23*L91+Results_NoGDP!$B$24*M91+Results_NoGDP!$B$25*N91 -> 86858346.35 | P91: 0.01192125762
A92: 2005 | B92: Jul | C92: 7 | D92: 89932560 | E92: 179175.4 | F92: 0.6746299814 | G92: 0 | H92: 194.7 | I92: 319.92 | J92: 0 | K92: 2 | L92: 107943 | M92: 7.7 | N92: 40.30534351 | O92: =Results_NoGDP!$B$17+Results_NoGDP!$B$18*G92+Results_NoGDP!$B$19*H92+Results_NoGDP!$B$20*I92+Results_NoGDP!$B$21*J92+Results_NoGDP!$B$22*K92+Results_NoGDP!$B$23*L92+Results_NoGDP!$B$24*M92+Results_NoGDP!$B$25*N92 -> 88340517.02 | P92: 0.0177026316
A93: 2005 | B93: Aug | C93: 8 | D93: 94440230 | E93: 182533.3 | F93: 0.695411703 | G93: 0.1 | H93: 185.5 | I93: 351.912 | J93: 1 | K93: 2 | L93: 107957 | M93: 7.7 | N93: 40.41984733 | O93: =Results_NoGDP!$B$17+Results_NoGDP!$B$18*G93+Results_NoGDP!$B$19*H93+Results_NoGDP!$B$20*I93+Results_NoGDP!$B$21*J93+Results_NoGDP!$B$22*K93+Results_NoGDP!$B$23*L93+Results_NoGDP!$B$24*M93+Results_NoGDP!$B$25*N93 -> 92308859 | P93: 0.02256846477
A94: 2005 | B94: Sep | C94: 9 | D94: 81092320 | E94: 164146.9 | F94: 0.6861428527 | G94: 15.2 | H94: 82.2 | I94: 336.24 | J94: 0.75 | K94: 4 | L94: 107971 | M94: 7.5 | N94: 40.53435115 | O94: =Results_NoGDP!$B$17+Results_NoGDP!$B$18*G94+Results_NoGDP!$B$19*H94+Results_NoGDP!$B$20*I94+Results_NoGDP!$B$21*J94+Results_NoGDP!$B$22*K94+Results_NoGDP!$B$23*L94+Results_NoGDP!$B$24*M94+Results_NoGDP!$B$25*N94 -> 79942687.87 | P94: 0.01417683123
A95: 2005 | B95: Oct | C95: 10 | D95: 74394333 | E95: 139963.9 | F95: 0.7144155247 | G95: 182.8 | H95: 19 | I95: 319.92 | J95: 0.25 | K95: 4 | L95: 107985 | M95: 7.1 | N95: 40.64885496 | O95: =Results_NoGDP!$B$17+Results_NoGDP!$B$18*G95+Results_NoGDP!$B$19*H95+Results_NoGDP!$B$20*I95+Results_NoGDP!$B$21*J95+Results_NoGDP!$B$22*K95+Results_NoGDP!$B$23*L95+Results_NoGDP!$B$24*M95+Results_NoGDP!$B$25*N95 -> 73298724.66 | P95: 0.01472704026
A96: 2005 | B96: Nov | C96: 11 | D96: 73123230 | E96: 132240.1 | F96: 0.7679973145 | G96: 346.2 | H96: 0 | I96: 352.08 | J96: -0.25 | K96: 3 | L96: 107999 | M96: 6.6 | N96: 40.76335878 | O96: =Results_NoGDP!$B$17+Results_NoGDP!$B$18*G96+Results_NoGDP!$B$19*H96+Results_NoGDP!$B$20*I96+Results_NoGDP!$B$21*J96+Results_NoGDP!$B$22*K96+Results_NoGDP!$B$23*L96+Results_NoGDP!$B$24*M96+Results_NoGDP!$B$25*N96 -> 73007867.04 | P96: 0.001577651361
A97: 2005 | B97: Dec | C97: 12 | D97: 76522590 | E97: 147092.5 | F97: 0.6992398902 | G97: 659.7 | H97: 0 | I97: 319.92 | J97: -0.25 | K97: 0 | L97: 108013 | M97: 6.3 | N97: 40.8778626 | O97: =Results_NoGDP!$B$17+Results_NoGDP!$B$18*G97+Results_NoGDP!$B$19*H97+Results_NoGDP!$B$20*I97+Results_NoGDP!$B$21*J97+Results_NoGDP!$B$22*K97+Results_NoGDP!$B$23*L97+Results_NoGDP!$B$24*M97+Results_NoGDP!$B$25*N97 -> 76354929.6 | P97: 0.002190992221
A98: 2006 | B98: Jan | C98: 1 | D98: 76765830 | E98: 129044.3 | F98: 0.7995694427 | G98: 494.7 | H98: 0 | I98: 336.288 | J98: =J86 -> 0 | K98: =K86 -> 2 | L98: 108027 | M98: 7.5 | N98: 40.99236641 | O98: =Results_NoGDP!$B$17+Results_NoGDP!$B$18*G98+Results_NoGDP!$B$19*H98+Results_NoGDP!$B$20*I98+Results_NoGDP!$B$21*J98+Results_NoGDP!$B$22*K98+Results_NoGDP!$B$23*L98+Results_NoGDP!$B$24*M98+Results_NoGDP!$B$25*N98 -> 75253346.52 | P98: =(1-O98/D98) -> 0.01970256139
A99: 2006 | B99: Feb | C99: 2 | D99: 71300830 | E99: 125674.1 | F99: 0.8442664447 | G99: 538 | H99: 0 | I99: 319.872 | J99: =J87 -> -1 | K99: 2 | L99: 108041 | M99: 8 | N99: 41.10687023 | O99: =Results_NoGDP!$B$17+Results_NoGDP!$B$18*G99+Results_NoGDP!$B$19*H99+Results_NoGDP!$B$20*I99+Results_NoGDP!$B$21*J99+Results_NoGDP!$B$22*K99+Results_NoGDP!$B$23*L99+Results_NoGDP!$B$24*M99+Results_NoGDP!$B$25*N99 -> 71278214.48 | P99: 0.0003171845215
A100: 2006 | B100: Mar | C100: 3 | D100: 76123120 | E100: 127940.2 | F100: 0.799717536 | G100: 461.4 | H100: 0 | I100: 368.28 | J100: =J88 -> 0 | K100: 3 | L100: 108055 | M100: 8.6 | N100: 41.22137405 | O100: =Results_NoGDP!$B$17+Results_NoGDP!$B$18*G100+Results_NoGDP!$B$19*H100+Results_NoGDP!$B$20*I100+Results_NoGDP!$B$21*J100+Results_NoGDP!$B$22*K100+Results_NoGDP!$B$23*L100+Results_NoGDP!$B$24*M100+Results_NoGDP!$B$25*N100 -> 75735926.37 | P100: 0.00508641305
A101: 2006 | B101: Apr | C101: 4 | D101: 66029130 | E101: 118344.8 | F101: 0.7749146984 | G101: 219.5 | H101: 1.1 | I101: 303.84 | J101: =J89 -> -0.75 | K101: 4 | L101: 108069 | M101: 7.9 | N101: 41.33587786 | O101: =Results_NoGDP!$B$17+Results_NoGDP!$B$18*G101+Results_NoGDP!$B$19*H101+Results_NoGDP!$B$20*I101+Results_NoGDP!$B$21*J101+Results_NoGDP!$B$22*K101+Results_NoGDP!$B$23*L101+Results_NoGDP!$B$24*M101+Results_NoGDP!$B$25*N101 -> 66787909.25 | P101: -0.01149158328
A102: 2006 | B102: May | C102: 5 | D102: 72285180 | E102: 164159.2 | F102: 0.5918492537 | G102: 105.9 | H102: 40.6 | I102: 351.912 | J102: =J90 -> 0 | K102: 3 | L102: 108083 | M102: 7.9 | N102: 41.45038168 | O102: =Results_NoGDP!$B$17+Results_NoGDP!$B$18*G102+Results_NoGDP!$B$19*H102+Results_NoGDP!$B$20*I102+Results_NoGDP!$B$21*J102+Results_NoGDP!$B$22*K102+Results_NoGDP!$B$23*L102+Results_NoGDP!$B$24*M102+Results_NoGDP!$B$25*N102 -> 73216640.02 | P102: -0.01288590585
A103: 2006 | B103: Jun | C103: 6 | D103: 76116070 | E103: 156225.2 | F103: 0.6766946939 | G103: 8.8 | H103: 85.7 | I103: 352.08 | J103: 0 | K103: 3 | L103: 108097 | M103: 7.7 | N103: 41.5648855 | O103: =Results_NoGDP!$B$17+Results_NoGDP!$B$18*G103+Results_NoGDP!$B$19*H103+Results_NoGDP!$B$20*I103+Results_NoGDP!$B$21*J103+Results_NoGDP!$B$22*K103+Results_NoGDP!$B$23*L103+Results_NoGDP!$B$24*M103+Results_NoGDP!$B$25*N103 -> 76883222.94 | P103: -0.010078725
A104: 2006 | B104: Jul | C104: 7 | D104: 87124080 | E104: 176829.5 | F104: 0.6622325916 | G104: 0 | H104: 197.4 | I104: 319.92 | J104: 0 | K104: 2 | L104: 108111 | M104: 8.4 | N104: 41.67938931 | O104: =Results_NoGDP!$B$17+Results_NoGDP!$B$18*G104+Results_NoGDP!$B$19*H104+Results_NoGDP!$B$20*I104+Results_NoGDP!$B$21*J104+Results_NoGDP!$B$22*K104+Results_NoGDP!$B$23*L104+Results_NoGDP!$B$24*M104+Results_NoGDP!$B$25*N104 -> 88194797.71 | P104: -0.01228957261
A105: 2006 | B105: Aug | C105: 8 | D105: 86693010 | E105: 184163.8 | F105: 0.6327131765 | G105: 0 | H105: 147.4 | I105: 351.912 | J105: 1 | K105: 2 | L105: 108125 | M105: 8.6 | N105: 41.79389313 | O105: =Results_NoGDP!$B$17+Results_NoGDP!$B$18*G105+Results_NoGDP!$B$19*H105+Results_NoGDP!$B$20*I105+Results_NoGDP!$B$21*J105+Results_NoGDP!$B$22*K105+Results_NoGDP!$B$23*L105+Results_NoGDP!$B$24*M105+Results_NoGDP!$B$25*N105 -> 87012705.41 | P105: -0.003687672262
A106: 2006 | B106: Sep | C106: 9 | D106: 71803266 | E106: 129536.2 | F106: 0.7698755895 | G106: 52.1 | H106: 22.3 | I106: 319.68 | J106: 0.75 | K106: 4 | L106: 108139 | M106: 8.5 | N106: 41.90839695 | O106: =Results_NoGDP!$B$17+Results_NoGDP!$B$18*G106+Results_NoGDP!$B$19*H106+Results_NoGDP!$B$20*I106+Results_NoGDP!$B$21*J106+Results_NoGDP!$B$22*K106+Results_NoGDP!$B$23*L106+Results_NoGDP!$B$24*M106+Results_NoGDP!$B$25*N106 -> 72095688.18 | P106: -0.004072547122
A107: 2006 | B107: Oct | C107: 10 | D107: 70311840 | E107: 118249.4 | F107: 0.7992020365 | G107: 251.3 | H107: 2.3 | I107: 336.288 | J107: 0.25 | K107: 4 | L107: 108153 | M107: 7.4 | N107: 42.02290076 | O107: =Results_NoGDP!$B$17+Results_NoGDP!$B$18*G107+Results_NoGDP!$B$19*H107+Results_NoGDP!$B$20*I107+Results_NoGDP!$B$21*J107+Results_NoGDP!$B$22*K107+Results_NoGDP!$B$23*L107+Results_NoGDP!$B$24*M107+Results_NoGDP!$B$25*N107 -> 72986126.08 | P107: -0.03803464794
A108: 2006 | B108: Nov | C108: 11 | D108: 72024057 | E108: 122710 | F108: 0.8152017969 | G108: 356.8 | H108: 0 | I108: 352.08 | J108: -0.25 | K108: 3 | L108: 108167 | M108: 6.9 | N108: 42.13740458 | O108: =Results_NoGDP!$B$17+Results_NoGDP!$B$18*G108+Results_NoGDP!$B$19*H108+Results_NoGDP!$B$20*I108+Results_NoGDP!$B$21*J108+Results_NoGDP!$B$22*K108+Results_NoGDP!$B$23*L108+Results_NoGDP!$B$24*M108+Results_NoGDP!$B$25*N108 -> 72988943.06 | P108: -0.01339671907
A109: 2006 | B109: Dec | C109: 12 | D109: 72529897 | E109: 132905.5 | F109: 0.7335017791 | G109: 460.4 | H109: 0 | I109: 304.296 | J109: -0.25 | K109: 0 | L109: 108177 | M109: 7 | N109: 42.2519084 | O109: =Results_NoGDP!$B$17+Results_NoGDP!$B$18*G109+Results_NoGDP!$B$19*H109+Results_NoGDP!$B$20*I109+Results_NoGDP!$B$21*J109+Results_NoGDP!$B$22*K109+Results_NoGDP!$B$23*L109+Results_NoGDP!$B$24*M109+Results_NoGDP!$B$25*N109 -> 71174107.7 | P109: 0.01869283367
A110: 2007 | B110: Jan | C110: 1 | D110: 75943575.5 | E110: 125521.6 | F110: 0.8132042473 | G110: 602.4 | H110: 0 | I110: 351.912 | J110: =J98 -> 0 | K110: =K98 -> 2 | L110: =L109-($L$109-$L$121)/12 -> 108150.8572 | M110: 8.6 | N110: 42.36641221 | O110: =Results_NoGDP!$B$17+Results_NoGDP!$B$18*G110+Results_NoGDP!$B$19*H110+Results_NoGDP!$B$20*I110+Results_NoGDP!$B$21*J110+Results_NoGDP!$B$22*K110+Results_NoGDP!$B$23*L110+Results_NoGDP!$B$24*M110+Results_NoGDP!$B$25*N110 -> 76946348.44 | P110: -0.01320418394
A111: 2007 | B111: Feb | C111: 2 | D111: 73489678.9 | E111: 132956.1 | F111: 0.8225244364 | G111: 706.1 | H111: 0 | I111: 319.872 | J111: =J99 -> -1 | K111: 2 | L111: 108124.7144 | M111: 9 | N111: 42.48091603 | O111: =Results_NoGDP!$B$17+Results_NoGDP!$B$18*G111+Results_NoGDP!$B$19*H111+Results_NoGDP!$B$20*I111+Results_NoGDP!$B$21*J111+Results_NoGDP!$B$22*K111+Results_NoGDP!$B$23*L111+Results_NoGDP!$B$24*M111+Results_NoGDP!$B$25*N111 -> 73417185.68 | P111: 0.0009864408113
A112: 2007 | B112: Mar | C112: 3 | D112: 73780830.8 | E112: 124611.3 | F112: 0.795816939 | G112: 429.3 | H112: 0.2 | I112: 351.912 | J112: =J100 -> 0 | K112: 3 | L112: 108098.5717 | M112: 9.6 | N112: 42.59541985 | O112: =Results_NoGDP!$B$17+Results_NoGDP!$B$18*G112+Results_NoGDP!$B$19*H112+Results_NoGDP!$B$20*I112+Results_NoGDP!$B$21*J112+Results_NoGDP!$B$22*K112+Results_NoGDP!$B$23*L112+Results_NoGDP!$B$24*M112+Results_NoGDP!$B$25*N112 -> 72858329.2 | P112: 0.01250326936
A113: 2007 | B113: Apr | C113: 4 | D113: 66320469 | E113: 120218.8 | F113: 0.766200981 | G113: 285.2 | H113: 0.9 | I113: 319.68 | J113: =J101 -> -0.75 | K113: 4 | L113: 108072.4289 | M113: 9 | N113: 42.70992366 | O113: =Results_NoGDP!$B$17+Results_NoGDP!$B$18*G113+Results_NoGDP!$B$19*H113+Results_NoGDP!$B$20*I113+Results_NoGDP!$B$21*J113+Results_NoGDP!$B$22*K113+Results_NoGDP!$B$23*L113+Results_NoGDP!$B$24*M113+Results_NoGDP!$B$25*N113 -> 66611648.3 | P113: -0.004390489131
A114: 2007 | B114: May | C114: 5 | D114: 68636519.3 | E114: 142398.3 | F114: 0.6478545471 | G114: 87.2 | H114: 46 | I114: 351.912 | J114: =J102 -> 0 | K114: 3 | L114: 108046.2861 | M114: 9.1 | N114: 42.82442748 | O114: =Results_NoGDP!$B$17+Results_NoGDP!$B$18*G114+Results_NoGDP!$B$19*H114+Results_NoGDP!$B$20*I114+Results_NoGDP!$B$21*J114+Results_NoGDP!$B$22*K114+Results_NoGDP!$B$23*L114+Results_NoGDP!$B$24*M114+Results_NoGDP!$B$25*N114 -> 71047820.82 | P114: -0.03513146567
A115: 2007 | B115: Jun | C115: 6 | D115: 76584775.9 | E115: 171619.6 | F115: 0.6197878582 | G115: 8.1 | H115: 132.2 | I115: 336.24 | J115: 0 | K115: 3 | L115: 108020.1433 | M115: 9.2 | N115: 42.9389313 | O115: =Results_NoGDP!$B$17+Results_NoGDP!$B$18*G115+Results_NoGDP!$B$19*H115+Results_NoGDP!$B$20*I115+Results_NoGDP!$B$21*J115+Results_NoGDP!$B$22*K115+Results_NoGDP!$B$23*L115+Results_NoGDP!$B$24*M115+Results_NoGDP!$B$25*N115 -> 79099643.7 | P115: -0.03283769881
A116: 2007 | B116: Jul | C116: 7 | D116: 77111267 | E116: 167705 | F116: 0.6180148241 | G116: 1.3 | H116: 148.2 | I116: 336.288 | J116: 0 | K116: 2 | L116: 107994.0006 | M116: 9.2 | N116: 43.05343511 | O116: =Results_NoGDP!$B$17+Results_NoGDP!$B$18*G116+Results_NoGDP!$B$19*H116+Results_NoGDP!$B$20*I116+Results_NoGDP!$B$21*J116+Results_NoGDP!$B$22*K116+Results_NoGDP!$B$23*L116+Results_NoGDP!$B$24*M116+Results_NoGDP!$B$25*N116 -> 79861219.35 | P116: -0.03566213418
A117: 2007 | B117: Aug | C117: 8 | D117: 85216616.6 | E117: 170845.4 | F117: 0.6704216981 | G117: 4.4 | H117: 167.4 | I117: 351.912 | J117: 1 | K117: 2 | L117: 107967.8578 | M117: 9 | N117: 43.16793893 | O117: =Results_NoGDP!$B$17+Results_NoGDP!$B$18*G117+Results_NoGDP!$B$19*H117+Results_NoGDP!$B$20*I117+Results_NoGDP!$B$21*J117+Results_NoGDP!$B$22*K117+Results_NoGDP!$B$23*L117+Results_NoGDP!$B$24*M117+Results_NoGDP!$B$25*N117 -> 86620269.46 | P117: -0.0164715864
A118: 2007 | B118: Sep | C118: 9 | D118: 73536545.1 | E118: 162858.1 | F118: 0.6271354659 | G118: 25.4 | H118: 76.4 | I118: 303.84 | J118: 0.75 | K118: 4 | L118: 107941.715 | M118: 8.1 | N118: 43.28244275 | O118: =Results_NoGDP!$B$17+Results_NoGDP!$B$18*G118+Results_NoGDP!$B$19*H118+Results_NoGDP!$B$20*I118+Results_NoGDP!$B$21*J118+Results_NoGDP!$B$22*K118+Results_NoGDP!$B$23*L118+Results_NoGDP!$B$24*M118+Results_NoGDP!$B$25*N118 -> 74867637.18 | P118: -0.0181010963
A119: 2007 | B119: Oct | C119: 10 | D119: 71397718.6 | E119: 131718.4 | F119: 0.7285593777 | G119: 111.2 | H119: 42.3 | I119: 351.912 | J119: 0.25 | K119: 4 | L119: 107915.5722 | M119: 6.8 | N119: 43.39694656 | O119: =Results_NoGDP!$B$17+Results_NoGDP!$B$18*G119+Results_NoGDP!$B$19*H119+Results_NoGDP!$B$20*I119+Results_NoGDP!$B$21*J119+Results_NoGDP!$B$22*K119+Results_NoGDP!$B$23*L119+Results_NoGDP!$B$24*M119+Results_NoGDP!$B$25*N119 -> 72547538.14 | P119: -0.01610442975
A120: 2007 | B120: Nov | C120: 11 | D120: 69283467 | E120: 125546.7 | F120: 0.7664640926 | G120: 400.3 | H120: 0 | I120: 352.08 | J120: -0.25 | K120: 3 | L120: 107889.4295 | M120: 6.3 | N120: 43.51145038 | O120: =Results_NoGDP!$B$17+Results_NoGDP!$B$18*G120+Results_NoGDP!$B$19*H120+Results_NoGDP!$B$20*I120+Results_NoGDP!$B$21*J120+Results_NoGDP!$B$22*K120+Results_NoGDP!$B$23*L120+Results_NoGDP!$B$24*M120+Results_NoGDP!$B$25*N120 -> 70560141.8 | P120: -0.01842683186
A121: 2007 | B121: Dec | C121: 12 | D121: 70507648 | E121: 127630 | F121: 0.7425240467 | G121: 595 | H121: 0 | I121: 304.296 | J121: -0.25 | K121: 0 | L121: =L109*(1-0.0029) -> 107863.2867 | M121: 6.2 | N121: 43.6259542 | O121: =Results_NoGDP!$B$17+Results_NoGDP!$B$18*G121+Results_NoGDP!$B$19*H121+Results_NoGDP!$B$20*I121+Results_NoGDP!$B$21*J121+Results_NoGDP!$B$22*K121+Results_NoGDP!$B$23*L121+Results_NoGDP!$B$24*M121+Results_NoGDP!$B$25*N121 -> 70458930.82 | P121: 0.0006909488885
A122: 2008 | B122: Jan | C122: 1 | D122: 75226387.9 | E122: 126193.3 | F122: 0.8012369629 | G122: 611.2 | H122: 0 | I122: 352 | J122: =J110 -> 0 | K122: =K110 -> 2 | L122: =L121-($L$121-$L$133)/12 -> 107842.6129 | M122: 7.6 | N122: 43.74045802 | O122: =Results_NoGDP!$B$17+Results_NoGDP!$B$18*G122+Results_NoGDP!$B$19*H122+Results_NoGDP!$B$20*I122+Results_NoGDP!$B$21*J122+Results_NoGDP!$B$22*K122+Results_NoGDP!$B$23*L122+Results_NoGDP!$B$24*M122+Results_NoGDP!$B$25*N122 -> 73791192.2 | P122: 0.01907835456
A123: 2008 | B123: Feb | C123: 2 | D123: 71282775.7 | E123: 128590.6 | F123: 0.7964639809 | G123: 629.3 | H123: 0 | I123: 320 | J123: =J111 -> -1 | K123: 2 | L123: 107821.9391 | M123: 7.9 | N123: 43.85496183 | O123: =Results_NoGDP!$B$17+Results_NoGDP!$B$18*G123+Results_NoGDP!$B$19*H123+Results_NoGDP!$B$20*I123+Results_NoGDP!$B$21*J123+Results_NoGDP!$B$22*K123+Results_NoGDP!$B$23*L123+Results_NoGDP!$B$24*M123+Results_NoGDP!$B$25*N123 -> 68593675.58 | P123: 0.03772440246
A124: 2008 | B124: Mar | C124: 3 | D124: 73304135.1 | E124: 121739.3 | F124: 0.8093283213 | G124: 541.6 | H124: 0 | I124: 304 | J124: =J112 -> 0 | K124: 3 | L124: 107801.2653 | M124: 8.6 | N124: 43.96946565 | O124: =Results_NoGDP!$B$17+Results_NoGDP!$B$18*G124+Results_NoGDP!$B$19*H124+Results_NoGDP!$B$20*I124+Results_NoGDP!$B$21*J124+Results_NoGDP!$B$22*K124+Results_NoGDP!$B$23*L124+Results_NoGDP!$B$24*M124+Results_NoGDP!$B$25*N124 -> 70257782.5 | P124: 0.04155771837
A125: 2008 | B125: Apr | C125: 4 | D125: 66441873.3 | E125: 117726.5 | F125: 0.7838539291 | G125: 223.8 | H125: 1.3 | I125: 352 | J125: =J113 -> -0.75 | K125: 4 | L125: 107780.5915 | M125: 8.1 | N125: 44.08396947 | O125: =Results_NoGDP!$B$17+Results_NoGDP!$B$18*G125+Results_NoGDP!$B$19*H125+Results_NoGDP!$B$20*I125+Results_NoGDP!$B$21*J125+Results_NoGDP!$B$22*K125+Results_NoGDP!$B$23*L125+Results_NoGDP!$B$24*M125+Results_NoGDP!$B$25*N125 -> 63235932.68 | P125: 0.04825180966
A126: 2008 | B126: May | C126: 5 | D126: 66716840 | E126: 115139.8 | F126: 0.7788199393 | G126: 143.2 | H126: 11.6 | I126: 336 | J126: =J114 -> 0 | K126: 3 | L126: 107759.9177 | M126: 8.3 | N126: 44.19847328 | O126: =Results_NoGDP!$B$17+Results_NoGDP!$B$18*G126+Results_NoGDP!$B$19*H126+Results_NoGDP!$B$20*I126+Results_NoGDP!$B$21*J126+Results_NoGDP!$B$22*K126+Results_NoGDP!$B$23*L126+Results_NoGDP!$B$24*M126+Results_NoGDP!$B$25*N126 -> 64137978.94 | P126: 0.03865382505
A127: 2008 | B127: Jun | C127: 6 | D127: 76146317.3 | E127: 165945.7 | F127: 0.6373095177 | G127: 3.2 | H127: 123.9 | I127: 336 | J127: 0 | K127: 3 | L127: 107739.2439 | M127: 8.2 | N127: 44.3129771 | O127: =Results_NoGDP!$B$17+Results_NoGDP!$B$18*G127+Results_NoGDP!$B$19*H127+Results_NoGDP!$B$20*I127+Results_NoGDP!$B$21*J127+Results_NoGDP!$B$22*K127+Results_NoGDP!$B$23*L127+Results_NoGDP!$B$24*M127+Results_NoGDP!$B$25*N127 -> 74849134.52 | P127: 0.01703539751
A128: 2008 | B128: Jul | C128: 7 | D128: 83277874 | E128: 161059.5 | F128: 0.6949768647 | G128: 0.3 | H128: 188.6 | I128: 352 | J128: 0 | K128: 2 | L128: 107718.5701 | M128: 8.8 | N128: 44.42748092 | O128: =Results_NoGDP!$B$17+Results_NoGDP!$B$18*G128+Results_NoGDP!$B$19*H128+Results_NoGDP!$B$20*I128+Results_NoGDP!$B$21*J128+Results_NoGDP!$B$22*K128+Results_NoGDP!$B$23*L128+Results_NoGDP!$B$24*M128+Results_NoGDP!$B$25*N128 -> 81928498.1 | P128: 0.01620329428
A129: 2008 | B129: Aug | C129: 8 | D129: 75973257.9 | E129: 162132.2 | F129: 0.629823033 | G129: 0.9 | H129: 144.8 | I129: 320 | J129: 1 | K129: 2 | L129: 107697.8963 | M129: 9 | N129: 44.54198473 | O129: =Results_NoGDP!$B$17+Results_NoGDP!$B$18*G129+Results_NoGDP!$B$19*H129+Results_NoGDP!$B$20*I129+Results_NoGDP!$B$21*J129+Results_NoGDP!$B$22*K129+Results_NoGDP!$B$23*L129+Results_NoGDP!$B$24*M129+Results_NoGDP!$B$25*N129 -> 79033744.12 | P129: -0.04028373016
A130: 2008 | B130: Sep | C130: 9 | D130: 68765247.3 | E130: 156741.3 | F130: 0.6093307119 | G130: 12.2 | H130: 65 | I130: 336 | J130: 0.75 | K130: 4 | L130: 107677.2225 | M130: 8.7 | N130: 44.65648855 | O130: =Results_NoGDP!$B$17+Results_NoGDP!$B$18*G130+Results_NoGDP!$B$19*H130+Results_NoGDP!$B$20*I130+Results_NoGDP!$B$21*J130+Results_NoGDP!$B$22*K130+Results_NoGDP!$B$23*L130+Results_NoGDP!$B$24*M130+Results_NoGDP!$B$25*N130 -> 70354596.08 | P130: =(1-O130/D130) -> -0.02311267447
A131: 2008 | B131: Oct | C131: 10 | D131: 63416228.7 | E131: 109926 | F131: =D131/E131/24/(DAY(DATE(A132,C131+1,1)-1)) -> 0.7754022391 | G131: 220.7 | H131: 3.3 | I131: 352 | J131: 0.25 | K131: 4 | L131: 107656.5487 | M131: 7.8 | N131: 44.77099237 | O131: =Results_NoGDP!$B$17+Results_NoGDP!$B$18*G131+Results_NoGDP!$B$19*H131+Results_NoGDP!$B$20*I131+Results_NoGDP!$B$21*J131+Results_NoGDP!$B$22*K131+Results_NoGDP!$B$23*L131+Results_NoGDP!$B$24*M131+Results_NoGDP!$B$25*N131 -> 65874953.73 | P131: -0.03877122746
A132: 2008 | B132: Nov | C132: 11 | D132: 64406942.6 | E132: 116622.1 | F132: =D132/E132/24/(DAY(DATE(A133,C132+1,1)-1)) -> 0.7670423268 | G132: 413.3 | H132: 0 | I132: 304 | J132: -0.25 | K132: 3 | L132: 107635.8749 | M132: 7.7 | N132: 45 | O132: =Results_NoGDP!$B$17+Results_NoGDP!$B$18*G132+Results_NoGDP!$B$19*H132+Results_NoGDP!$B$20*I132+Results_NoGDP!$B$21*J132+Results_NoGDP!$B$22*K132+Results_NoGDP!$B$23*L132+Results_NoGDP!$B$24*M132+Results_NoGDP!$B$25*N132 -> 64718710.78 | P132: -0.00484059904
A133: 2008 | B133: Dec | C133: 12 | D133: 67860200 | E133: 119912.5 | F133: =D133/E133/24/(DAY(DATE(A134,C133+1,1)-1)) -> 0.7606375168 | G133: 632 | H133: 0 | I133: 336 | J133: -0.25 | K133: 0 | L133: =L121*(1-0.0023) -> 107615.2011 | M133: 8.1 | N133: 45 | O133: =Results_NoGDP!$B$17+Results_NoGDP!$B$18*G133+Results_NoGDP!$B$19*H133+Results_NoGDP!$B$20*I133+Results_NoGDP!$B$21*J133+Results_NoGDP!$B$22*K133+Results_NoGDP!$B$23*L133+Results_NoGDP!$B$24*M133+Results_NoGDP!$B$25*N133 -> 67729897.89 | P133: 0.001920155168
A134: 2009 | B134: Jan | C134: 1 | D134: 70152780.9 | E134: 121498.4 | F134: =D134/E134/24/(DAY(DATE(A135,C134+1,1)-1)) -> 0.7760708962 | G134: 799.1 | H134: 0 | I134: 336 | J134: =J122 -> 0 | K134: 2 | L134: =L133-($L$133-$L$145)/12 -> 107598.1621 | M134: 9.8 | N134: 45 | O134: =Results_NoGDP!$B$17+Results_NoGDP!$B$18*G134+Results_NoGDP!$B$19*H134+Results_NoGDP!$B$20*I134+Results_NoGDP!$B$21*J134+Results_NoGDP!$B$22*K134+Results_NoGDP!$B$23*L134+Results_NoGDP!$B$24*M134+Results_NoGDP!$B$25*N134 -> 72513694.14 | P134: -0.0336538796
A135: 2009 | B135: Feb | C135: 2 | D135: 61404169 | G135: =AVERAGE(G123,G111,G99,G87,G75,G63,G51,G39,G27,G15) -> 575.44 | H135: 0 | I135: 304 | J135: =J123 -> -1 | K135: 2 | L135: 107581.123 | M135: =M134+0.05 -> 9.85 | N135: 45 | O135: =Results_NoGDP!$B$17+Results_NoGDP!$B$18*G135+Results_NoGDP!$B$19*H135+Results_NoGDP!$B$20*I135+Results_NoGDP!$B$21*J135+Results_NoGDP!$B$22*K135+Results_NoGDP!$B$23*L135+Results_NoGDP!$B$24*M135+Results_NoGDP!$B$25*N135 -> 62603639.87 | P135: -0.0195340299
A136: 2009 | B136: Mar | C136: 3 | G136: 484.87 | H136: 0.07 | I136: 352 | J136: =J124 -> 0 | K136: 3 | L136: 107564.0839 | M136: =M135+0.05 -> 9.9 | N136: 45 | O136: =Results_NoGDP!$B$17+Results_NoGDP!$B$18*G136+Results_NoGDP!$B$19*H136+Results_NoGDP!$B$20*I136+Results_NoGDP!$B$21*J136+Results_NoGDP!$B$22*K136+Results_NoGDP!$B$23*L136+Results_NoGDP!$B$24*M136+Results_NoGDP!$B$25*N136 -> 66962164.32
A137: 2009 | B137: Apr | C137: 4 | G137: 258.21 | H137: 2.73 | I137: 320 | J137: =J125 -> -0.75 | K137: 4 | L137: 107547.0448 | M137: 9.95 | N137: 45 | O137: =Results_NoGDP!$B$17+Results_NoGDP!$B$18*G137+Results_NoGDP!$B$19*H137+Results_NoGDP!$B$20*I137+Results_NoGDP!$B$21*J137+Results_NoGDP!$B$22*K137+Results_NoGDP!$B$23*L137+Results_NoGDP!$B$24*M137+Results_NoGDP!$B$25*N137 -> 59057228.88
A138: 2009 | B138: May | C138: 5 | G138: 114.78 | H138: 22.98 | I138: 320 | J138: =J126 -> 0 | K138: 3 | L138: 107530.0058 | M138: 10 | N138: 45 | O138: =Results_NoGDP!$B$17+Results_NoGDP!$B$18*G138+Results_NoGDP!$B$19*H138+Results_NoGDP!$B$20*I138+Results_NoGDP!$B$21*J138+Results_NoGDP!$B$22*K138+Results_NoGDP!$B$23*L138+Results_NoGDP!$B$24*M138+Results_NoGDP!$B$25*N138 -> 60673558.54
A139: 2009 | B139: Jun | C139: 6 | G139: 15.47 | H139: 109.63 | I139: 352 | J139: 0 | K139: 3 | L139: 107512.9667 | M139: 10.05 | N139: 45 | O139: =Results_NoGDP!$B$17+Results_NoGDP!$B$18*G139+Results_NoGDP!$B$19*H139+Results_NoGDP!$B$20*I139+Results_NoGDP!$B$21*J139+Results_NoGDP!$B$22*K139+Results_NoGDP!$B$23*L139+Results_NoGDP!$B$24*M139+Results_NoGDP!$B$25*N139 -> 70228982.65
A140: 2009 | B140: Jul | C140: 7 | G140: 0.79 | H140: 167.77 | I140: 352 | J140: 0 | K140: 2 | L140: 107495.9276 | M140: 10.1 | N140: 45 | O140: =Results_NoGDP!$B$17+Results_NoGDP!$B$18*G140+Results_NoGDP!$B$19*H140+Results_NoGDP!$B$20*I140+Results_NoGDP!$B$21*J140+Results_NoGDP!$B$22*K140+Results_NoGDP!$B$23*L140+Results_NoGDP!$B$24*M140+Results_NoGDP!$B$25*N140 -> 76182371.12
A141: 2009 | B141: Aug | C141: 8 | G141: 2.04 | H141: 138.58 | I141: 320 | J141: 1 | K141: 2 | L141: 107478.8886 | M141: 10.15 | N141: 45 | O141: =Results_NoGDP!$B$17+Results_NoGDP!$B$18*G141+Results_NoGDP!$B$19*H141+Results_NoGDP!$B$20*I141+Results_NoGDP!$B$21*J141+Results_NoGDP!$B$22*K141+Results_NoGDP!$B$23*L141+Results_NoGDP!$B$24*M141+Results_NoGDP!$B$25*N141 -> 75340278.88
A142: 2009 | B142: Sep | C142: 9 | G142: 37.87 | H142: 58.74 | I142: 336 | J142: 0.75 | K142: 4 | L142: 107461.8495 | M142: 10.2 | N142: 45 | O142: =Results_NoGDP!$B$17+Results_NoGDP!$B$18*G142+Results_NoGDP!$B$19*H142+Results_NoGDP!$B$20*I142+Results_NoGDP!$B$21*J142+Results_NoGDP!$B$22*K142+Results_NoGDP!$B$23*L142+Results_NoGDP!$B$24*M142+Results_NoGDP!$B$25*N142 -> 67103398.74
A143: 2009 | B143: Oct | C143: 10 | G143: 202.09 | H143: 8.81 | I143: 336 | J143: 0.25 | K143: 4 | L143: 107444.8104 | M143: 10.25 | N143: 45 | O143: =Results_NoGDP!$B$17+Results_NoGDP!$B$18*G143+Results_NoGDP!$B$19*H143+Results_NoGDP!$B$20*I143+Results_NoGDP!$B$21*J143+Results_NoGDP!$B$22*K143+Results_NoGDP!$B$23*L143+Results_NoGDP!$B$24*M143+Results_NoGDP!$B$25*N143 -> 62183806.18
A144: 2009 | B144: Nov | C144: 11 | G144: 363.24 | H144: 0 | I144: 320 | J144: -0.25 | K144: 3 | L144: 107427.7713 | M144: 10.3 | N144: 45 | O144: =Results_NoGDP!$B$17+Results_NoGDP!$B$18*G144+Results_NoGDP!$B$19*H144+Results_NoGDP!$B$20*I144+Results_NoGDP!$B$21*J144+Results_NoGDP!$B$22*K144+Results_NoGDP!$B$23*L144+Results_NoGDP!$B$24*M144+Results_NoGDP!$B$25*N144 -> 60977727.14
A145: 2009 | B145: Dec | C145: 12 | G145: 591.4 | H145: 0 | I145: 352 | J145: -0.25 | K145: 0 | L145: =L133*(1-0.0019) -> 107410.7323 | M145: 10.35 | N145: 45 | O145: =Results_NoGDP!$B$17+Results_NoGDP!$B$18*G145+Results_NoGDP!$B$19*H145+Results_NoGDP!$B$20*I145+Results_NoGDP!$B$21*J145+Results_NoGDP!$B$22*K145+Results_NoGDP!$B$23*L145+Results_NoGDP!$B$24*M145+Results_NoGDP!$B$25*N145 -> 64424486.99
A146: 2010 | B146: Jan | C146: 1 | G146: 661.25 | H146: 0 | I146: 320 | J146: =J134 -> 0 | K146: 2 | L146: =L145-($L$145-$L$157)/12 -> 107397.3059 | M146: 10.4 | N146: 45 | O146: =Results_NoGDP!$B$17+Results_NoGDP!$B$18*G146+Results_NoGDP!$B$19*H146+Results_NoGDP!$B$20*I146+Results_NoGDP!$B$21*J146+Results_NoGDP!$B$22*K146+Results_NoGDP!$B$23*L146+Results_NoGDP!$B$24*M146+Results_NoGDP!$B$25*N146 -> 67107909.49
A147: 2010 | B147: Feb | C147: 2 | G147: 582.944 | H147: 0 | I147: 304 | J147: =J135 -> -1 | K147: 2 | L147: 107383.8796 | M147: 10.45 | N147: 45 | O147: =Results_NoGDP!$B$17+Results_NoGDP!$B$18*G147+Results_NoGDP!$B$19*H147+Results_NoGDP!$B$20*I147+Results_NoGDP!$B$21*J147+Results_NoGDP!$B$22*K147+Results_NoGDP!$B$23*L147+Results_NoGDP!$B$24*M147+Results_NoGDP!$B$25*N147 -> 60791840.66
A148: 2010 | B148: Mar | C148: 3 | G148: 481.637 | H148: 0.077 | I148: 368 | J148: =J136 -> 0 | K148: 3 | L148: 107370.4532 | M148: 10.5 | N148: 45 | O148: =Results_NoGDP!$B$17+Results_NoGDP!$B$18*G148+Results_NoGDP!$B$19*H148+Results_NoGDP!$B$20*I148+Results_NoGDP!$B$21*J148+Results_NoGDP!$B$22*K148+Results_NoGDP!$B$23*L148+Results_NoGDP!$B$24*M148+Results_NoGDP!$B$25*N148 -> 65509847.29
A149: 2010 | B149: Apr | C149: 4 | G149: 259.641 | H149: 3.003 | I149: 320 | J149: =J137 -> -0.75 | K149: 4 | L149: 107357.0269 | M149: 10.55 | N149: 45 | O149: =Results_NoGDP!$B$17+Results_NoGDP!$B$18*G149+Results_NoGDP!$B$19*H149+Results_NoGDP!$B$20*I149+Results_NoGDP!$B$21*J149+Results_NoGDP!$B$22*K149+Results_NoGDP!$B$23*L149+Results_NoGDP!$B$24*M149+Results_NoGDP!$B$25*N149 -> 57212086.78
A150: 2010 | B150: May | C150: 5 | G150: 119.678 | H150: 22.668 | I150: 320 | J150: =J138 -> 0 | K150: 3 | L150: 107343.6006 | M150: 10.6 | N150: 45 | O150: =Results_NoGDP!$B$17+Results_NoGDP!$B$18*G150+Results_NoGDP!$B$19*H150+Results_NoGDP!$B$20*I150+Results_NoGDP!$B$21*J150+Results_NoGDP!$B$22*K150+Results_NoGDP!$B$23*L150+Results_NoGDP!$B$24*M150+Results_NoGDP!$B$25*N150 -> 58857623.87
A151: 2010 | B151: Jun | C151: 6 | G151: =AVERAGE(G139,G127,G115,G103,G91,G79,G67,G55,G43,G31) -> 15.107 | H151: 107.403 | I151: 352 | J151: 0 | K151: 3 | L151: 107330.1742 | M151: 10.65 | N151: 45 | O151: =Results_NoGDP!$B$17+Results_NoGDP!$B$18*G151+Results_NoGDP!$B$19*H151+Results_NoGDP!$B$20*I151+Results_NoGDP!$B$21*J151+Results_NoGDP!$B$22*K151+Results_NoGDP!$B$23*L151+Results_NoGDP!$B$24*M151+Results_NoGDP!$B$25*N151 -> 68097429.17
A152: 2010 | B152: Jul | C152: 7 | G152: 0.869 | H152: 161.767 | I152: 336 | J152: 0 | K152: 2 | L152: 107316.7479 | M152: 10.7 | N152: 45 | O152: =Results_NoGDP!$B$17+Results_NoGDP!$B$18*G152+Results_NoGDP!$B$19*H152+Results_NoGDP!$B$20*I152+Results_NoGDP!$B$21*J152+Results_NoGDP!$B$22*K152+Results_NoGDP!$B$23*L152+Results_NoGDP!$B$24*M152+Results_NoGDP!$B$25*N152 -> 73072320.97
A153: 2010 | B153: Aug | C153: 8 | G153: 2.124 | H153: 142.228 | I153: 336 | J153: 1 | K153: 2 | L153: 107303.3215 | M153: 10.75 | N153: 45 | O153: =Results_NoGDP!$B$17+Results_NoGDP!$B$18*G153+Results_NoGDP!$B$19*H153+Results_NoGDP!$B$20*I153+Results_NoGDP!$B$21*J153+Results_NoGDP!$B$22*K153+Results_NoGDP!$B$23*L153+Results_NoGDP!$B$24*M153+Results_NoGDP!$B$25*N153 -> 74552675.13
A154: 2010 | B154: Sep | C154: 9 | G154: 37.947 | H154: 58.174 | I154: 336 | J154: 0.75 | K154: 4 | L154: 107289.8952 | M154: 10.8 | N154: 45 | O154: =Results_NoGDP!$B$17+Results_NoGDP!$B$18*G154+Results_NoGDP!$B$19*H154+Results_NoGDP!$B$20*I154+Results_NoGDP!$B$21*J154+Results_NoGDP!$B$22*K154+Results_NoGDP!$B$23*L154+Results_NoGDP!$B$24*M154+Results_NoGDP!$B$25*N154 -> 65274009.95
A155: 2010 | B155: Oct | C155: 10 | G155: 200.159 | H155: 9.601 | I155: 320 | J155: 0.25 | K155: 4 | L155: 107276.4688 | M155: 10.85 | N155: 45 | O155: =Results_NoGDP!$B$17+Results_NoGDP!$B$18*G155+Results_NoGDP!$B$19*H155+Results_NoGDP!$B$20*I155+Results_NoGDP!$B$21*J155+Results_NoGDP!$B$22*K155+Results_NoGDP!$B$23*L155+Results_NoGDP!$B$24*M155+Results_NoGDP!$B$25*N155 -> 59957760.27
A156: 2010 | B156: Nov | C156: 11 | G156: 367.134 | H156: 0 | I156: 336 | J156: -0.25 | K156: 3 | L156: 107263.0425 | M156: 10.9 | N156: 45 | O156: =Results_NoGDP!$B$17+Results_NoGDP!$B$18*G156+Results_NoGDP!$B$19*H156+Results_NoGDP!$B$20*I156+Results_NoGDP!$B$21*J156+Results_NoGDP!$B$22*K156+Results_NoGDP!$B$23*L156+Results_NoGDP!$B$24*M156+Results_NoGDP!$B$25*N156 -> 59907826.47
A157: 2010 | B157: Dec | C157: 12 | G157: 594.7 | H157: 0 | I157: 368 | J157: -0.25 | K157: 0 | L157: =L145*(1-0.0015) -> 107249.6162 | M157: 10.95 | N157: 45 | O157: =Results_NoGDP!$B$17+Results_NoGDP!$B$18*G157+Results_NoGDP!$B$19*H157+Results_NoGDP!$B$20*I157+Results_NoGDP!$B$21*J157+Results_NoGDP!$B$22*K157+Results_NoGDP!$B$23*L157+Results_NoGDP!$B$24*M157+Results_NoGDP!$B$25*N157 -> 63371718.55

Sheet Results_NoGDP
A1: SUMMARY OUTPUT
A3: Regression Statistics
A4: Multiple R | B4: 0.9636394548
A5: R Square | B5: 0.9286009989
A6: Adjusted R Square | B6: 0.9209851055
A7: Standard Error | B7: 1803797.47
A8: Observations | B8: 84
A10: ANOVA
B11: df | C11: SS | D11: MS | E11: F | F11: Significance F
A12: Regression | B12: 8 | C12: 3173758089620309 | D12: 3.967197612e+14 | E12: 121.929358 | F12: 8.529203129e-40
A13: Residual | B13: 75 | C13: 2.440263984e+14 | D13: 3.253685312e+12
A14: Total | B14: 83 | C14: 3417784487991798
B16: Coefficients | C16: Standard Error | D16: t Stat | E16: P-value | F16: Lower 95% | G16: Upper 95% | H16: Lower 95.0% | I16: Upper 95.0%
A17: Intercept | B17: -781413257.2 | C17: 120291930.8 | D17: -6.495974019 | E17: 8.04628265e-09 | F17: -1021047068 | G17: -541779446.4 | H17: -1021047068 | I17: -541779446.4
A18: Heating Degree Days | B18: 20727.43449 | C18: 1805.885938 | D18: 11.47770967 | E18: 3.501153545e-18 | F18: 17129.92527 | G18: 24324.9437 | H18: 17129.92527 | I18: 24324.9437
A19: Cooling Degree Days | B19: 123246.0087 | C19: 6235.223655 | D19: 19.76609269 | E19: 1.823416337e-31 | F19: 110824.8064 | G19: 135667.211 | H19: 110824.8064 | I19: 135667.211
A20: Peakhours | B20: 34482.84975 | C20: 12763.51982 | D20: 2.70167244 | E20: 0.008526444615 | F20: 9056.614802 | G20: 59909.0847 | H20: 9056.614802 | I20: 59909.0847
A21: Seasonal Weighting Factor | B21: 4001852.867 | C21: 471494.0828 | D21: 8.487599342 | E21: 1.406831878e-12 | F21: 3062588.503 | G21: 4941117.231 | H21: 3062588.503 | I21: 4941117.231
A22: Industrial Production Weighting Factor | B22: 739003.5265 | C22: 265961.0738 | D22: 2.778615366 | E22: 0.006894661106 | F22: 209181.9064 | G22: 1268825.146 | H22: 209181.9064 | I22: 1268825.146
A23: Population | B23: 8150.156633 | C23: 1138.593652 | D23: 7.158090704 | E23: 4.688017611e-10 | F23: 5881.961802 | G23: 10418.35146 | H23: 5881.961802 | I23: 10418.35146
A24: Unemployment Rate | B24: -599621.8817 | C24: 263868.7959 | D24: -2.272424368 | E24: 0.02592665541 | F24: -1125275.47 | G24: -73968.29305 | H24: -1125275.47 | I24: -73968.29305
A25: Median Age | B25: -1039248.133 | C25: 95748.27752 | D25: -10.85396166 | E25: 4.886325562e-17 | F25: -1229988.48 | G25: -848507.7864 | H25: -1229988.48 | I25: -848507.7864

Sheet Forecast_NoGDP_NoMedian
A1: Year | B1: Month | C1: No | D1: KWH | E1: KW | F1: LF | G1: Heating Degree Days | H1: Cooling Degree Days | I1: Peakhours | J1: Seasonal Weighting Factor | K1: Industrial Production Weighting Factor | L1: Population | M1: Unemployment Rate | N1: Predicted kWH | O1: %Variance
A2: 1998 | B2: Jan | C2: 1 | D2: 75570017.88 | E2: 130983.22 | F2: =D2/E2/24/(DAY(DATE(A3,C2+1,1)-1)) -> 0.7754627247 | G2: 552.2 | H2: 0 | I2: 336.288 | J2: 0 | K2: 2 | L2: =L3-14 -> 106683 | M2: 7.4 | O2: =(1-N2/D2) -> 1
A3: 1998 | B3: Feb | C3: 2 | D3: 68168475.13 | E3: 128474.49 | F3: =D3/E3/24/(DAY(DATE(A4,C3+1,1)-1)) -> 0.7895822994 | G3: 443.2 | H3: 0 | I3: 319.872 | J3: -1 | K3: 2 | L3: 106697 | M3: 8.4 | O3: 1
A4: 1998 | B4: Mar | C4: 3 | D4: 74924788.11 | E4: 127284.04 | F4: 0.7911860777 | G4: 440 | H4: 5.9 | I4: 351.912 | J4: 0 | K4: 3 | L4: 106711 | M4: 9.2 | O4: 1
A5: 1998 | B5: Apr | C5: 4 | D5: 66745191 | E5: 121012.95 | F5: 0.7660473872 | G5: 249.1 | H5: 0 | I5: 336.24 | J5: -0.75 | K5: 4 | L5: 106725 | M5: 8.6 | O5: 1
A6: 1998 | B6: May | C6: 5 | D6: 72356351.15 | E6: 148733.37 | F6: 0.6538758595 | G6: 42.2 | H6: 54.3 | I6: 319.92 | J6: 0 | K6: 3 | L6: 106739 | M6: 7.7 | O6: 1
A7: 1998 | B7: Jun | C7: 6 | D7: 80403469.05 | E7: 179890.4705 | F7: 0.6207748774 | G7: 41.5 | H7: 125.7 | I7: 352.08 | J7: 0 | K7: 3 | L7: 106753 | M7: 7.5 | O7: 1
A8: 1998 | B8: Jul | C8: 7 | D8: 82869631.39 | E8: 170332.9305 | F8: 0.6539188449 | G8: 0 | H8: 159.9 | I8: 351.912 | J8: 0 | K8: 2 | L8: 106767 | M8: 8.4 | O8: 1
A9: 1998 | B9: Aug | C9: 8 | D9: 88615228.5 | E9: 179093.09 | F9: 0.66505352 | G9: 1.2 | H9: 147.3 | I9: 319.92 | J9: 1 | K9: 2 | L9: 106781 | M9: 9 | O9: 1
A10: 1998 | B10: Sep | C10: 9 | D10: 78935386.8 | E10: 154733.28 | F10: 0.7085255458 | G10: 17.7 | H10: 82.4 | I10: 336.24 | J10: 0.75 | K10: 4 | L10: 106795 | M10: 8.9 | O10: 1
A11: 1998 | B11: Oct | C11: 10 | D11: 74846440 | E11: 127691.61 | F11: 0.787836051 | G11: 181.3 | H11: 5.2 | I11: 336.288 | J11: 0.25 | K11: 4 | L11: 106809 | M11: 8 | O11: 1
A12: 1998 | B12: Nov | C12: 11 | D12: 75052465.8 | E12: 132490.47 | F12: 0.7867700661 | G12: 336.9 | H12: 0 | I12: 336.24 | J12: -0.25 | K12: 3 | L12: 106823 | M12: 7.3 | O12: 1
A13: 1998 | B13: Dec | C13: 12 | D13: 76019395.5 | E13: 139903.76 | F13: 0.7303349592 | G13: 485.7 | H13: 0 | I13: 336.288 | J13: -0.25 | K13: 0 | L13: 106837 | M13: 7.2 | O13: 1
A14: 1999 | B14: Jan | C14: 1 | D14: 83216461.1 | E14: 146833.21 | F14: 0.7617492128 | G14: 718.9 | H14: 0 | I14: 319.92 | J14: =J2 -> 0 | K14: =K2 -> 2 | L14: 106851 | M14: 7.3 | O14: 1
A15: 1999 | B15: Feb | C15: 2 | D15: 73698462.8 | E15: 134989.75 | F15: 0.8124345111 | G15: 500.4 | H15: 0 | I15: 319.872 | J15: =J3 -> -1 | K15: =K3 -> 2 | L15: 106865 | M15: 7.1 | O15: 1
A16: 1999 | B16: Mar | C16: 3 | D16: 79791477.4 | E16: 135933.93 | F16: 0.7889612947 | G16: 517.2 | H16: 0 | I16: 368.28 | J16: =J4 -> 0 | K16: 3 | L16: 106879 | M16: 6.9 | O16: 1
A17: 1999 | B17: Apr | C17: 4 | D17: 70411214.9 | E17: 123910 | F17: 0.7892289083 | G17: 243.9 | H17: 0 | I17: 336.24 | J17: =J5 -> -0.75 | K17: 4 | L17: 106893 | M17: 6.6 | O17: 1
A18: 1999 | B18: May | C18: 5 | D18: 72067143.6 | E18: 133936.48 | F18: 0.7232117816 | G18: 65.8 | H18: 26.1 | I18: 319.92 | J18: =J6 -> 0 | K18: 3 | L18: 106907 | M18: 6.3 | O18: 1
A19: 1999 | B19: Jun | C19: 6 | D19: 84086655.7 | E19: 175727.18 | F19: 0.6645928183 | G19: 19.1 | H19: 131.9 | I19: 352.08 | J19: 0 | K19: 3 | L19: 106921 | M19: 5.8 | O19: 1
A20: 1999 | B20: Jul | C20: 7 | D20: 90045568.5 | E20: 177564.94 | F20: 0.6816040932 | G20: 0 | H20: 227.8 | I20: 336.288 | J20: 0 | K20: 2 | L20: 106935 | M20: 5.8 | O20: 1
A21: 1999 | B21: Aug | C21: 8 | D21: 81217134.6 | E21: 163632.64 | F21: 0.6671212744 | G21: 1.2 | H21: 102.1 | I21: 336.288 | J21: 1 | K21: 2 | L21: 106949 | M21: 6.3 | O21: 1
A22: 1999 | B22: Sep | C22: 9 | D22: 76861202.5 | E22: 152305.76 | F22: 0.7009036962 | G22: 37.1 | H22: 64.4 | I22: 336.24 | J22: 0.75 | K22: 4 | L22: 106963 | M22: 6.7 | O22: 1
A23: 1999 | B23: Oct | C23: 10 | D23: 73100196 | E23: 130512.1 | F23: 0.7528263786 | G23: 221.4 | H23: 0.9 | I23: 319.92 | J23: 0.25 | K23: 4 | L23: 106977 | M23: 6.5 | O23: 1
A24: 1999 | B24: Nov | C24: 11 | D24: 72995431 | E24: 139934.1 | F24: 0.7245020553 | G24: 324.3 | H24: 0 | I24: 352.08 | J24: -0.25 | K24: 3 | L24: 106991 | M24: 6.2 | O24: 1
A25: 1999 | B25: Dec | C25: 12 | D25: 76210082.3 | E25: 144765.09 | F25: 0.7075801653 | G25: 558.4 | H25: 0 | I25: 336.288 | J25: -0.25 | K25: 0 | L25: 107005 | M25: 5.9 | O25: 1
A26: 2000 | B26: Jan | C26: 1 | D26: 79536131 | E26: 141049.08 | F26: 0.7579163358 | G26: 679.9 | H26: 0 | I26: 319.92 | J26: =J14 -> 0 | K26: =K14 -> 2 | L26: 107019 | M26: 5.9 | O26: 1
A27: 2000 | B27: Feb | C27: 2 | D27: 73178156 | E27: 133102.63 | F27: 0.7899245021 | G27: 533.9 | H27: 0 | I27: 336.168 | J27: =J15 -> -1 | K27: 2 | L27: 107033 | M27: 5.9 | O27: 1
A28: 2000 | B28: Mar | C28: 3 | D28: 75091178 | E28: 129484.19 | F28: 0.7794696996 | G28: 367.7 | H28: 0.5 | I28: 368.28 | J28: =J16 -> 0 | K28: 3 | L28: 107047 | M28: 5.7 | O28: 1
A29: 2000 | B29: Apr | C29: 4 | D29: 68114066 | E29: 126280.51 | F29: 0.7491486172 | G29: 293.6 | H29: 0 | I29: 303.84 | J29: =J17 -> -0.75 | K29: 4 | L29: 107061 | M29: 5.6 | O29: 1
A30: 2000 | B30: May | C30: 5 | D30: 74696611.9 | E30: 147531.7 | F30: 0.6805227074 | G30: 85.1 | H30: 38.6 | I30: 351.912 | J30: 0 | K30: 3 | L30: 107075 | M30: 5.3 | O30: 1
A31: 2000 | B31: Jun | C31: 6 | D31: 80335315 | E31: 167627.59 | F31: 0.6656232807 | G31: 18 | H31: 98.7 | I31: 352.08 | J31: 0 | K31: 3 | L31: 107089 | M31: 4.8 | O31: 1
A32: 2000 | B32: Jul | C32: 7 | D32: 78162420 | E32: 159861.29 | F32: 0.6571760814 | G32: 0.9 | H32: 97.1 | I32: 319.92 | J32: 0 | K32: 2 | L32: 107103 | M32: 4.9 | O32: 1
A33: 2000 | B33: Aug | C33: 8 | D33: 85745386 | E33: 168464.57 | F33: 0.6841152103 | G33: 7.7 | H33: 109.9 | I33: 351.912 | J33: 1 | K33: 2 | L33: 107117 | M33: 5.2 | O33: 1
A34: 2000 | B34: Sep | C34: 9 | D34: 76389789 | E34: 167817.1 | F34: 0.6322176296 | G34: 76.4 | H34: 45.7 | I34: 319.68 | J34: 0.75 | K34: 4 | L34: 107131 | M34: 6.2 | O34: =(1-N34/D34) -> 1
A35: 2000 | B35: Oct | C35: 10 | D35: 72457860 | E35: 127194.3 | F35: 0.765675795 | G35: 158.4 | H35: 3.3 | I35: 336.288 | J35: 0.25 | K35: 4 | L35: 107145 | M35: 6.1 | O35: 1
A36: 2000 | B36: Nov | C36: 11 | D36: 75593151 | E36: 139855.5 | F36: 0.7507068903 | G36: 401.3 | H36: 0 | I36: 352.08 | J36: -0.25 | K36: 3 | L36: 107159 | M36: 6.2 | O36: 1
A37: 2000 | B37: Dec | C37: 12 | D37: 76895977 | E37: 143048.6 | F37: 0.7225153395 | G37: 771.2 | H37: 0 | I37: 304.296 | J37: -0.25 | K37: 0 | L37: 107173 | M37: 6.5 | O37: 1
A38: 2001 | B38: Jan | C38: 1 | D38: 77836513 | E38: 138147.8 | F38: 0.7572973952 | G38: 657.4 | H38: 0 | I38: 351.912 | J38: =J26 -> 0 | K38: =K26 -> 2 | L38: 107187 | M38: 7.1 | O38: 1
A39: 2001 | B39: Feb | C39: 2 | D39: 68724114 | E39: 129314.81 | F39: 0.7908454321 | G39: 544.3 | H39: 0 | I39: 319.872 | J39: =J27 -> -1 | K39: 2 | L39: 107201 | M39: 8.1 | O39: 1
A40: 2001 | B40: Mar | C40: 3 | D40: 73837297 | E40: 124821.5 | F40: 0.7950848112 | G40: 518.9 | H40: 0 | I40: 351.912 | J40: =J28 -> 0 | K40: 3 | L40: 107215 | M40: 8.5 | O40: 1
A41: 2001 | B41: Apr | C41: 4 | D41: 65927141 | E41: 122104.5 | F41: 0.7498943414 | G41: 245.3 | H41: 0.4 | I41: 319.68 | J41: =J29 -> -0.75 | K41: 4 | L41: 107229 | M41: 8.4 | O41: 1
A42: 2001 | B42: May | C42: 5 | D42: 70361810 | E42: 130504.6 | F42: 0.7246666039 | G42: 82.9 | H42: 20.4 | I42: 351.912 | J42: =J30 -> 0 | K42: 3 | L42: 107243 | M42: 7.8 | O42: 1
A43: 2001 | B43: Jun | C43: 6 | D43: 79860509 | E43: 172880.62 | F43: 0.6415836177 | G43: 24.9 | H43: 112.5 | I43: 336.24 | J43: 0 | K43: 3 | L43: 107257 | M43: 7.1 | O43: 1
A44: 2001 | B44: Jul | C44: 7 | D44: 83033599 | E44: 183595.93 | F44: 0.6078800316 | G44: 3.2 | H44: 156.1 | I44: 336.288 | J44: 0 | K44: 2 | L44: 107271 | M44: 7.2 | O44: 1
A45: 2001 | B45: Aug | C45: 8 | D45: 89193753 | E45: 186132.6 | F45: 0.6440788804 | G45: 0 | H45: 162.2 | I45: 351.912 | J45: 1 | K45: 2 | L45: 107285 | M45: 7.1 | O45: 1
A46: 2001 | B46: Sep | C46: 9 | D46: 72854620 | E46: 157846.4 | F46: 0.64104707 | G46: 69.9 | H46: 36.2 | I46: 303.84 | J46: 0.75 | K46: 4 | L46: 107299 | M46: 6.9 | O46: 1
A47: 2001 | B47: Oct | C47: 10 | D47: 70195854 | E47: 122473.1 | F47: 0.7703672572 | G47: 202.7 | H47: 2.9 | I47: 351.912 | J47: 0.25 | K47: 4 | L47: 107313 | M47: 6.3 | O47: 1
A48: 2001 | B48: Nov | C48: 11 | D48: 70271116 | E48: 126798.5 | F48: 0.769715511 | G48: 279.9 | H48: 0 | I48: 352.08 | J48: -0.25 | K48: 3 | L48: =L49-14 -> 107327 | M48: 5.9 | O48: 1
A49: 2001 | B49: Dec | C49: 12 | D49: 71209767 | E49: 133819.4 | F49: 0.7152330112 | G49: 491.6 | H49: 0 | I49: 304.296 | J49: -0.25 | K49: 0 | L49: 107341 | M49: 6.2 | O49: 1
A50: 2002 | B50: Jan | C50: 1 | D50: 75539423 | E50: 128166 | F50: 0.7921873393 | G50: 545.3 | H50: 0 | I50: 351.912 | J50: =J38 -> 0 | K50: =K38 -> 2 | L50: =L49+14 -> 107355 | M50: 7.7 | N50: =Results_NoGDP_NoMedian!$B$17+Results_NoGDP_NoMedian!$B$18*G50+Results_NoGDP_NoMedian!$B$19*H50+Results_NoGDP_NoMedian!$B$20*I50+Results_NoGDP_NoMedian!$B$21*J50+Results_NoGDP_NoMedian!$B$22*K50+Results_NoGDP_NoMedian!$B$23*L50+Results_NoGDP_NoMedian!$B$24*M50 -> 75478305.89 | O50: 0.0008090756306
A51: 2002 | B51: Feb | C51: 2 | D51: 68515032 | E51: 129818.3 | F51: 0.7853815129 | G51: 494.8 | H51: 0 | I51: 319.872 | J51: =J39 -> -1 | K51: 2 | L51: =L50+14 -> 107369 | M51: 8.7 | N51: =Results_NoGDP_NoMedian!$B$17+Results_NoGDP_NoMedian!$B$18*G51+Results_NoGDP_NoMedian!$B$19*H51+Results_NoGDP_NoMedian!$B$20*I51+Results_NoGDP_NoMedian!$B$21*J51+Results_NoGDP_NoMedian!$B$22*K51+Results_NoGDP_NoMedian!$B$23*L51+Results_NoGDP_NoMedian!$B$24*M51 -> 68029474.4 | O51: 0.007086876942
A52: 2002 | B52: Mar | C52: 3 | D52: 73639815 | E52: 130708.9 | F52: 0.7572418249 | G52: 513.9 | H52: 0 | I52: 319.92 | J52: =J40 -> 0 | K52: 3 | L52: 107383 | M52: 9.2 | N52: =Results_NoGDP_NoMedian!$B$17+Results_NoGDP_NoMedian!$B$18*G52+Results_NoGDP_NoMedian!$B$19*H52+Results_NoGDP_NoMedian!$B$20*I52+Results_NoGDP_NoMedian!$B$21*J52+Results_NoGDP_NoMedian!$B$22*K52+Results_NoGDP_NoMedian!$B$23*L52+Results_NoGDP_NoMedian!$B$24*M52 -> 72303236.39 | O52: 0.01815021687
A53: 2002 | B53: Apr | C53: 4 | D53: 70425715 | E53: 130995.7 | F53: 0.7466923957 | G53: 273.3 | H53: 15.1 | I53: 352.08 | J53: =J41 -> -0.75 | K53: 4 | L53: 107397 | M53: 8.2 | N53: =Results_NoGDP_NoMedian!$B$17+Results_NoGDP_NoMedian!$B$18*G53+Results_NoGDP_NoMedian!$B$19*H53+Results_NoGDP_NoMedian!$B$20*I53+Results_NoGDP_NoMedian!$B$21*J53+Results_NoGDP_NoMedian!$B$22*K53+Results_NoGDP_NoMedian!$B$23*L53+Results_NoGDP_NoMedian!$B$24*M53 -> 70034606.32 | O53: 0.005553492477
A54: 2002 | B54: May | C54: 5 | D54: 72864570 | E54: 140660.2 | F54: 0.6962612736 | G54: 185.1 | H54: 12.5 | I54: 351.912 | J54: =J42 -> 0 | K54: 3 | L54: 107411 | M54: 7.5 | N54: =Results_NoGDP_NoMedian!$B$17+Results_NoGDP_NoMedian!$B$18*G54+Results_NoGDP_NoMedian!$B$19*H54+Results_NoGDP_NoMedian!$B$20*I54+Results_NoGDP_NoMedian!$B$21*J54+Results_NoGDP_NoMedian!$B$22*K54+Results_NoGDP_NoMedian!$B$23*L54+Results_NoGDP_NoMedian!$B$24*M54 -> 70635001.56 | O54: 0.03059880054
A55: 2002 | B55: Jun | C55: 6 | D55: 79716033 | E55: 178718.3 | F55: 0.6195040603 | G55: 16.5 | H55: 118.3 | I55: 319.68 | J55: 0 | K55: 3 | L55: 107425 | M55: 7.2 | N55: =Results_NoGDP_NoMedian!$B$17+Results_NoGDP_NoMedian!$B$18*G55+Results_NoGDP_NoMedian!$B$19*H55+Results_NoGDP_NoMedian!$B$20*I55+Results_NoGDP_NoMedian!$B$21*J55+Results_NoGDP_NoMedian!$B$22*K55+Results_NoGDP_NoMedian!$B$23*L55+Results_NoGDP_NoMedian!$B$24*M55 -> 79282894.71 | O55: 0.005433515397
A56: 2002 | B56: Jul | C56: 7 | D56: 93049284 | E56: 182854.8 | F56: 0.6839647739 | G56: 0 | H56: 201.2 | I56: 351.912 | J56: 0 | K56: 2 | L56: 107439 | M56: 7.6 | N56: =Results_NoGDP_NoMedian!$B$17+Results_NoGDP_NoMedian!$B$18*G56+Results_NoGDP_NoMedian!$B$19*H56+Results_NoGDP_NoMedian!$B$20*I56+Results_NoGDP_NoMedian!$B$21*J56+Results_NoGDP_NoMedian!$B$22*K56+Results_NoGDP_NoMedian!$B$23*L56+Results_NoGDP_NoMedian!$B$24*M56 -> 89433484.96 | O56: 0.03885896686
A57: 2002 | B57: Aug | C57: 8 | D57: 91281708 | E57: 185916.6 | F57: 0.6599220712 | G57: 0 | H57: 149.2 | I57: 336.288 | J57: 1 | K57: 2 | L57: 107453 | M57: 7.7 | N57: =Results_NoGDP_NoMedian!$B$17+Results_NoGDP_NoMedian!$B$18*G57+Results_NoGDP_NoMedian!$B$19*H57+Results_NoGDP_NoMedian!$B$20*I57+Results_NoGDP_NoMedian!$B$21*J57+Results_NoGDP_NoMedian!$B$22*K57+Results_NoGDP_NoMedian!$B$23*L57+Results_NoGDP_NoMedian!$B$24*M57 -> 85727851.49 | O57: 0.06084303888
A58: 2002 | B58: Sep | C58: 9 | D58: 85671396 | E58: 188582.2 | F58: 0.6309611936 | G58: 17.1 | H58: 97.9 | I58: 319.68 | J58: 0.75 | K58: 4 | L58: 107467 | M58: 7 | N58: =Results_NoGDP_NoMedian!$B$17+Results_NoGDP_NoMedian!$B$18*G58+Results_NoGDP_NoMedian!$B$19*H58+Results_NoGDP_NoMedian!$B$20*I58+Results_NoGDP_NoMedian!$B$21*J58+Results_NoGDP_NoMedian!$B$22*K58+Results_NoGDP_NoMedian!$B$23*L58+Results_NoGDP_NoMedian!$B$24*M58 -> 80617037.28 | O58: 0.05899703932
A59: 2002 | B59: Oct | C59: 10 | D59: 78002634 | E59: 152745.1 | F59: 0.6863869938 | G59: 255.9 | H59: 12.6 | I59: 351.912 | J59: 0.25 | K59: 4 | L59: 107481 | M59: 6 | N59: =Results_NoGDP_NoMedian!$B$17+Results_NoGDP_NoMedian!$B$18*G59+Results_NoGDP_NoMedian!$B$19*H59+Results_NoGDP_NoMedian!$B$20*I59+Results_NoGDP_NoMedian!$B$21*J59+Results_NoGDP_NoMedian!$B$22*K59+Results_NoGDP_NoMedian!$B$23*L59+Results_NoGDP_NoMedian!$B$24*M59 -> 75883403.88 | O59: 0.02716869948
A60: 2002 | B60: Nov | C60: 11 | D60: 75569055 | E60: 134440.9 | F60: 0.7806926377 | G60: 417.5 | H60: 0 | I60: 336.24 | J60: -0.25 | K60: 3 | L60: 107495 | M60: 6 | N60: =Results_NoGDP_NoMedian!$B$17+Results_NoGDP_NoMedian!$B$18*G60+Results_NoGDP_NoMedian!$B$19*H60+Results_NoGDP_NoMedian!$B$20*I60+Results_NoGDP_NoMedian!$B$21*J60+Results_NoGDP_NoMedian!$B$22*K60+Results_NoGDP_NoMedian!$B$23*L60+Results_NoGDP_NoMedian!$B$24*M60 -> 74307873.02 | O60: 0.01668913262
A61: 2002 | B61: Dec | C61: 12 | D61: 74014572 | E61: 137747.6 | F61: 0.7222046091 | G61: 610.4 | H61: 0 | I61: 319.92 | J61: -0.25 | K61: 0 | L61: 107509 | M61: 6.3 | N61: =Results_NoGDP_NoMedian!$B$17+Results_NoGDP_NoMedian!$B$18*G61+Results_NoGDP_NoMedian!$B$19*H61+Results_NoGDP_NoMedian!$B$20*I61+Results_NoGDP_NoMedian!$B$21*J61+Results_NoGDP_NoMedian!$B$22*K61+Results_NoGDP_NoMedian!$B$23*L61+Results_NoGDP_NoMedian!$B$24*M61 -> 74656445.76 | O61: -0.008672261968
A62: 2003 | B62: Jan | C62: 1 | D62: 80158611 | E62: 137438.7 | F62: 0.7839136178 | G62: 759.2 | H62: 0 | I62: 351.912 | J62: =J50 -> 0 | K62: =K50 -> 2 | L62: 107523 | M62: 6.7 | N62: =Results_NoGDP_NoMedian!$B$17+Results_NoGDP_NoMedian!$B$18*G62+Results_NoGDP_NoMedian!$B$19*H62+Results_NoGDP_NoMedian!$B$20*I62+Results_NoGDP_NoMedian!$B$21*J62+Results_NoGDP_NoMedian!$B$22*K62+Results_NoGDP_NoMedian!$B$23*L62+Results_NoGDP_NoMedian!$B$24*M62 -> 81365389.18 | O62: -0.01505487884
A63: 2003 | B63: Feb | C63: 2 | D63: 73538697 | E63: 136985 | F63: 0.7988654584 | G63: 656.2 | H63: 0 | I63: 319.872 | J63: =J51 -> -1 | K63: 2 | L63: 107537 | M63: 7.4 | N63: =Results_NoGDP_NoMedian!$B$17+Results_NoGDP_NoMedian!$B$18*G63+Results_NoGDP_NoMedian!$B$19*H63+Results_NoGDP_NoMedian!$B$20*I63+Results_NoGDP_NoMedian!$B$21*J63+Results_NoGDP_NoMedian!$B$22*K63+Results_NoGDP_NoMedian!$B$23*L63+Results_NoGDP_NoMedian!$B$24*M63 -> 73200836.02 | O63: 0.004594329118
A64: 2003 | B64: Mar | C64: 3 | D64: 74987208 | E64: 133502.5 | F64: 0.754961578 | G64: 524.1 | H64: 0 | I64: 336.288 | J64: =J52 -> 0 | K64: 3 | L64: 107551 | M64: 8.1 | N64: =Results_NoGDP_NoMedian!$B$17+Results_NoGDP_NoMedian!$B$18*G64+Results_NoGDP_NoMedian!$B$19*H64+Results_NoGDP_NoMedian!$B$20*I64+Results_NoGDP_NoMedian!$B$21*J64+Results_NoGDP_NoMedian!$B$22*K64+Results_NoGDP_NoMedian!$B$23*L64+Results_NoGDP_NoMedian!$B$24*M64 -> 74788850.78 | O64: 0.002645214136
A65: 2003 | B65: Apr | C65: 4 | D65: 68131035 | E65: 128179.2 | F65: 0.7382355133 | G65: 303.3 | H65: 2.7 | I65: 336.24 | J65: =J53 -> -0.75 | K65: 4 | L65: 107565 | M65: 8.2 | N65: =Results_NoGDP_NoMedian!$B$17+Results_NoGDP_NoMedian!$B$18*G65+Results_NoGDP_NoMedian!$B$19*H65+Results_NoGDP_NoMedian!$B$20*I65+Results_NoGDP_NoMedian!$B$21*J65+Results_NoGDP_NoMedian!$B$22*K65+Results_NoGDP_NoMedian!$B$23*L65+Results_NoGDP_NoMedian!$B$24*M65 -> 68493868.15 | O65: -0.005325519406
A66: 2003 | B66: May | C66: 5 | D66: 68381673 | E66: 123358 | F66: 0.7450740998 | G66: 147.6 | H66: 0.2 | I66: 336.288 | J66: =J54 -> 0 | K66: 3 | L66: 107579 | M66: 7.5 | N66: =Results_NoGDP_NoMedian!$B$17+Results_NoGDP_NoMedian!$B$18*G66+Results_NoGDP_NoMedian!$B$19*H66+Results_NoGDP_NoMedian!$B$20*I66+Results_NoGDP_NoMedian!$B$21*J66+Results_NoGDP_NoMedian!$B$22*K66+Results_NoGDP_NoMedian!$B$23*L66+Results_NoGDP_NoMedian!$B$24*M66 -> 67699288.07 | O66: =(1-N66/D66) -> 0.009979061639
A67: 2003 | B67: Jun | C67: 6 | D67: 73186791 | E67: 172122.7 | F67: =D67/E67/24/(DAY(DATE(A68,C67+1,1)-1)) -> 0.5905573224 | G67: 30.3 | H67: 64.2 | I67: 336.24 | J67: 0 | K67: 3 | L67: 107593 | M67: 6.8 | N67: =Results_NoGDP_NoMedian!$B$17+Results_NoGDP_NoMedian!$B$18*G67+Results_NoGDP_NoMedian!$B$19*H67+Results_NoGDP_NoMedian!$B$20*I67+Results_NoGDP_NoMedian!$B$21*J67+Results_NoGDP_NoMedian!$B$22*K67+Results_NoGDP_NoMedian!$B$23*L67+Results_NoGDP_NoMedian!$B$24*M67 -> 74168440.35 | O67: -0.01341293065
A68: 2003 | B68: Jul | C68: 7 | D68: 81942993 | E68: 163585.3 | F68: 0.6732782924 | G68: 0 | H68: 144.6 | I68: 351.912 | J68: 0 | K68: 2 | L68: 107607 | M68: 6.9 | N68: =Results_NoGDP_NoMedian!$B$17+Results_NoGDP_NoMedian!$B$18*G68+Results_NoGDP_NoMedian!$B$19*H68+Results_NoGDP_NoMedian!$B$20*I68+Results_NoGDP_NoMedian!$B$21*J68+Results_NoGDP_NoMedian!$B$22*K68+Results_NoGDP_NoMedian!$B$23*L68+Results_NoGDP_NoMedian!$B$24*M68 -> 83346819.68 | O68: -0.01713174763
A69: 2003 | B69: Aug | C69: 8 | D69: 80915733 | E69: 173485 | F69: 0.6268997645 | G69: 0 | H69: 143.1 | I69: 319.92 | J69: 1 | K69: 2 | L69: 107621 | M69: 6.8 | N69: =Results_NoGDP_NoMedian!$B$17+Results_NoGDP_NoMedian!$B$18*G69+Results_NoGDP_NoMedian!$B$19*H69+Results_NoGDP_NoMedian!$B$20*I69+Results_NoGDP_NoMedian!$B$21*J69+Results_NoGDP_NoMedian!$B$22*K69+Results_NoGDP_NoMedian!$B$23*L69+Results_NoGDP_NoMedian!$B$24*M69 -> 85482897.05 | O69: -0.05644346139
A70: 2003 | B70: Sep | C70: 9 | D70: 75167748 | E70: 141296.6 | F70: 0.7388688051 | G70: 50.3 | H70: 37.6 | I70: 336.24 | J70: 0.75 | K70: 4 | L70: 107635 | M70: 6.9 | N70: =Results_NoGDP_NoMedian!$B$17+Results_NoGDP_NoMedian!$B$18*G70+Results_NoGDP_NoMedian!$B$19*H70+Results_NoGDP_NoMedian!$B$20*I70+Results_NoGDP_NoMedian!$B$21*J70+Results_NoGDP_NoMedian!$B$22*K70+Results_NoGDP_NoMedian!$B$23*L70+Results_NoGDP_NoMedian!$B$24*M70 -> 74746013.7 | O70: 0.005610575134
A71: 2003 | B71: Oct | C71: 10 | D71: 72475980 | E71: 122965.7 | F71: 0.7922042619 | G71: 225.6 | H71: 1 | I71: 351.912 | J71: 0.25 | K71: 4 | L71: 107649 | M71: 6.4 | N71: =Results_NoGDP_NoMedian!$B$17+Results_NoGDP_NoMedian!$B$18*G71+Results_NoGDP_NoMedian!$B$19*H71+Results_NoGDP_NoMedian!$B$20*I71+Results_NoGDP_NoMedian!$B$21*J71+Results_NoGDP_NoMedian!$B$22*K71+Results_NoGDP_NoMedian!$B$23*L71+Results_NoGDP_NoMedian!$B$24*M71 -> 73384053.59 | O71: -0.012529304
A72: 2003 | B72: Nov | C72: 11 | D72: 71081556 | E72: 131282.1 | F72: 0.7520018596 | G72: 338.8 | H72: 0 | I72: 319.68 | J72: -0.25 | K72: 3 | L72: 107663 | M72: 6.5 | N72: =Results_NoGDP_NoMedian!$B$17+Results_NoGDP_NoMedian!$B$18*G72+Results_NoGDP_NoMedian!$B$19*H72+Results_NoGDP_NoMedian!$B$20*I72+Results_NoGDP_NoMedian!$B$21*J72+Results_NoGDP_NoMedian!$B$22*K72+Results_NoGDP_NoMedian!$B$23*L72+Results_NoGDP_NoMedian!$B$24*M72 -> 71361839.72 | O72: -0.003943128631
A73: 2003 | B73: Dec | C73: 12 | D73: 73826575 | E73: 137616 | F73: 0.7210590881 | G73: 541.8 | H73: 0 | I73: 336.288 | J73: -0.25 | K73: 0 | L73: 107677 | M73: 6.9 | N73: =Results_NoGDP_NoMedian!$B$17+Results_NoGDP_NoMedian!$B$18*G73+Results_NoGDP_NoMedian!$B$19*H73+Results_NoGDP_NoMedian!$B$20*I73+Results_NoGDP_NoMedian!$B$21*J73+Results_NoGDP_NoMedian!$B$22*K73+Results_NoGDP_NoMedian!$B$23*L73+Results_NoGDP_NoMedian!$B$24*M73 -> 73296248.16 | O73: 0.007183413822
A74: 2004 | B74: Jan | C74: 1 | D74: 79684648 | E74: 136326.2 | F74: 0.7856378415 | G74: 762.9 | H74: 0 | I74: 336.288 | J74: =J62 -> 0 | K74: =K62 -> 2 | L74: 107691 | M74: 7.5 | N74: =Results_NoGDP_NoMedian!$B$17+Results_NoGDP_NoMedian!$B$18*G74+Results_NoGDP_NoMedian!$B$19*H74+Results_NoGDP_NoMedian!$B$20*I74+Results_NoGDP_NoMedian!$B$21*J74+Results_NoGDP_NoMedian!$B$22*K74+Results_NoGDP_NoMedian!$B$23*L74+Results_NoGDP_NoMedian!$B$24*M74 -> 79805633.12 | O74: -0.001518298934
A75: 2004 | B75: Feb | C75: 2 | D75: 72900352 | E75: 131065.8 | F75: 0.7991549669 | G75: 579.4 | H75: 0 | I75: 320.16 | J75: =J63 -> -1 | K75: 2 | L75: 107705 | M75: 7.8 | N75: =Results_NoGDP_NoMedian!$B$17+Results_NoGDP_NoMedian!$B$18*G75+Results_NoGDP_NoMedian!$B$19*H75+Results_NoGDP_NoMedian!$B$20*I75+Results_NoGDP_NoMedian!$B$21*J75+Results_NoGDP_NoMedian!$B$22*K75+Results_NoGDP_NoMedian!$B$23*L75+Results_NoGDP_NoMedian!$B$24*M75 -> 71192438.4 | O75: 0.023428057
A76: 2004 | B76: Mar | C76: 3 | D76: 75667416 | E76: 127110.4 | F76: 0.8001195506 | G76: 429.3 | H76: 0 | I76: 368.28 | J76: =J64 -> 0 | K76: 3 | L76: 107719 | M76: 8 | N76: =Results_NoGDP_NoMedian!$B$17+Results_NoGDP_NoMedian!$B$18*G76+Results_NoGDP_NoMedian!$B$19*H76+Results_NoGDP_NoMedian!$B$20*I76+Results_NoGDP_NoMedian!$B$21*J76+Results_NoGDP_NoMedian!$B$22*K76+Results_NoGDP_NoMedian!$B$23*L76+Results_NoGDP_NoMedian!$B$24*M76 -> 74493739.53 | O76: 0.01551098916
A77: 2004 | B77: Apr | C77: 4 | D77: 68680718 | E77: 122353 | F77: 0.779628502 | G77: 251.7 | H77: 4.4 | I77: 336.24 | J77: =J65 -> -0.75 | K77: 4 | L77: 107733 | M77: 8.2 | N77: =Results_NoGDP_NoMedian!$B$17+Results_NoGDP_NoMedian!$B$18*G77+Results_NoGDP_NoMedian!$B$19*H77+Results_NoGDP_NoMedian!$B$20*I77+Results_NoGDP_NoMedian!$B$21*J77+Results_NoGDP_NoMedian!$B$22*K77+Results_NoGDP_NoMedian!$B$23*L77+Results_NoGDP_NoMedian!$B$24*M77 -> 67730165.49 | O77: 0.01384016553
A78: 2004 | B78: May | C78: 5 | D78: 70763440 | E78: 131627.8 | F78: 0.7225840631 | G78: 101.6 | H78: 28.1 | I78: 319.92 | J78: =J66 -> 0 | K78: 3 | L78: 107747 | M78: 8 | N78: =Results_NoGDP_NoMedian!$B$17+Results_NoGDP_NoMedian!$B$18*G78+Results_NoGDP_NoMedian!$B$19*H78+Results_NoGDP_NoMedian!$B$20*I78+Results_NoGDP_NoMedian!$B$21*J78+Results_NoGDP_NoMedian!$B$22*K78+Results_NoGDP_NoMedian!$B$23*L78+Results_NoGDP_NoMedian!$B$24*M78 -> 68946301.66 | O78: 0.02567905609
A79: 2004 | B79: Jun | C79: 6 | D79: 76247526 | E79: 167054.5 | F79: 0.633920916 | G79: 21.4 | H79: 62 | I79: 352.08 | J79: 0 | K79: 3 | L79: 107761 | M79: 8 | N79: =Results_NoGDP_NoMedian!$B$17+Results_NoGDP_NoMedian!$B$18*G79+Results_NoGDP_NoMedian!$B$19*H79+Results_NoGDP_NoMedian!$B$20*I79+Results_NoGDP_NoMedian!$B$21*J79+Results_NoGDP_NoMedian!$B$22*K79+Results_NoGDP_NoMedian!$B$23*L79+Results_NoGDP_NoMedian!$B$24*M79 -> 72988579 | O79: 0.04274167529
A80: 2004 | B80: Jul | C80: 7 | D80: 79986462 | E80: 167093.8 | F80: 0.6434031992 | G80: 2.2 | H80: 122 | I80: 336.288 | J80: 0 | K80: 2 | L80: 107775 | M80: 8.5 | N80: =Results_NoGDP_NoMedian!$B$17+Results_NoGDP_NoMedian!$B$18*G80+Results_NoGDP_NoMedian!$B$19*H80+Results_NoGDP_NoMedian!$B$20*I80+Results_NoGDP_NoMedian!$B$21*J80+Results_NoGDP_NoMedian!$B$22*K80+Results_NoGDP_NoMedian!$B$23*L80+Results_NoGDP_NoMedian!$B$24*M80 -> 77891209.13 | O80: 0.02619509373
A81: 2004 | B81: Aug | C81: 8 | D81: 80648262 | E81: 163310 | F81: 0.6637572813 | G81: 6.1 | H81: 74.2 | I81: 336.288 | J81: 1 | K81: 2 | L81: 107789 | M81: 8.9 | N81: =Results_NoGDP_NoMedian!$B$17+Results_NoGDP_NoMedian!$B$18*G81+Results_NoGDP_NoMedian!$B$19*H81+Results_NoGDP_NoMedian!$B$20*I81+Results_NoGDP_NoMedian!$B$21*J81+Results_NoGDP_NoMedian!$B$22*K81+Results_NoGDP_NoMedian!$B$23*L81+Results_NoGDP_NoMedian!$B$24*M81 -> 75120310.49 | O81: 0.06854396332
A82: 2004 | B82: Sep | C82: 9 | D82: 79026081 | E82: 152323.5 | F82: 0.720561475 | G82: 23 | H82: 59.7 | I82: 336.24 | J82: 0.75 | K82: 4 | L82: 107803 | M82: 8.3 | N82: =Results_NoGDP_NoMedian!$B$17+Results_NoGDP_NoMedian!$B$18*G82+Results_NoGDP_NoMedian!$B$19*H82+Results_NoGDP_NoMedian!$B$20*I82+Results_NoGDP_NoMedian!$B$21*J82+Results_NoGDP_NoMedian!$B$22*K82+Results_NoGDP_NoMedian!$B$23*L82+Results_NoGDP_NoMedian!$B$24*M82 -> 75245495.3 | O82: 0.04783972147
A83: 2004 | B83: Oct | C83: 10 | D83: 72549672 | E83: 122686.2 | F83: 0.7948163689 | G83: 190.9 | H83: 0.5 | I83: 319.92 | J83: 0.25 | K83: 4 | L83: 107817 | M83: 7.8 | N83: =Results_NoGDP_NoMedian!$B$17+Results_NoGDP_NoMedian!$B$18*G83+Results_NoGDP_NoMedian!$B$19*H83+Results_NoGDP_NoMedian!$B$20*I83+Results_NoGDP_NoMedian!$B$21*J83+Results_NoGDP_NoMedian!$B$22*K83+Results_NoGDP_NoMedian!$B$23*L83+Results_NoGDP_NoMedian!$B$24*M83 -> 69434995.08 | O83: 0.04293164715
A84: 2004 | B84: Nov | C84: 11 | D84: 72369445 | E84: 130779.7 | F84: 0.7685681956 | G84: 354 | H84: 0 | I84: 352.08 | J84: -0.25 | K84: 3 | L84: 107831 | M84: 7.6 | N84: =Results_NoGDP_NoMedian!$B$17+Results_NoGDP_NoMedian!$B$18*G84+Results_NoGDP_NoMedian!$B$19*H84+Results_NoGDP_NoMedian!$B$20*I84+Results_NoGDP_NoMedian!$B$21*J84+Results_NoGDP_NoMedian!$B$22*K84+Results_NoGDP_NoMedian!$B$23*L84+Results_NoGDP_NoMedian!$B$24*M84 -> 71848428.43 | O84: 0.007199399837
A85: 2004 | B85: Dec | C85: 12 | D85: 75651436 | E85: 140467.6 | F85: 0.7238825013 | G85: 593.5 | H85: 0 | I85: 336.288 | J85: -0.25 | K85: 0 | L85: 107845 | M85: 7.8 | N85: =Results_NoGDP_NoMedian!$B$17+Results_NoGDP_NoMedian!$B$18*G85+Results_NoGDP_NoMedian!$B$19*H85+Results_NoGDP_NoMedian!$B$20*I85+Results_NoGDP_NoMedian!$B$21*J85+Results_NoGDP_NoMedian!$B$22*K85+Results_NoGDP_NoMedian!$B$23*L85+Results_NoGDP_NoMedian!$B$24*M85 -> 73328497.53 | O85: 0.03070580802
A86: 2005 | B86: Jan | C86: 1 | D86: 79711033 | E86: 140596.6 | F86: 0.7620275683 | G86: 700.4 | H86: 0 | I86: 319.92 | J86: =J74 -> 0 | K86: =K74 -> 2 | L86: 107859 | M86: 8.2 | N86: =Results_NoGDP_NoMedian!$B$17+Results_NoGDP_NoMedian!$B$18*G86+Results_NoGDP_NoMedian!$B$19*H86+Results_NoGDP_NoMedian!$B$20*I86+Results_NoGDP_NoMedian!$B$21*J86+Results_NoGDP_NoMedian!$B$22*K86+Results_NoGDP_NoMedian!$B$23*L86+Results_NoGDP_NoMedian!$B$24*M86 -> 76950745.95 | O86: 0.03462866992
A87: 2005 | B87: Feb | C87: 2 | D87: 72086002 | E87: 131756 | F87: 0.8141628185 | G87: 572 | H87: 0 | I87: 319.872 | J87: =J75 -> -1 | K87: 2 | L87: 107873 | M87: 8.2 | N87: =Results_NoGDP_NoMedian!$B$17+Results_NoGDP_NoMedian!$B$18*G87+Results_NoGDP_NoMedian!$B$19*H87+Results_NoGDP_NoMedian!$B$20*I87+Results_NoGDP_NoMedian!$B$21*J87+Results_NoGDP_NoMedian!$B$22*K87+Results_NoGDP_NoMedian!$B$23*L87+Results_NoGDP_NoMedian!$B$24*M87 -> 70615020.4 | O87: 0.02040592563
A88: 2005 | B88: Mar | C88: 3 | D88: 78211488 | E88: 132791.1 | F88: 0.7916416668 | G88: 545.3 | H88: 0 | I88: 351.912 | J88: =J76 -> 0 | K88: 3 | L88: 107887 | M88: 8.4 | N88: =Results_NoGDP_NoMedian!$B$17+Results_NoGDP_NoMedian!$B$18*G88+Results_NoGDP_NoMedian!$B$19*H88+Results_NoGDP_NoMedian!$B$20*I88+Results_NoGDP_NoMedian!$B$21*J88+Results_NoGDP_NoMedian!$B$22*K88+Results_NoGDP_NoMedian!$B$23*L88+Results_NoGDP_NoMedian!$B$24*M88 -> 75773681.39 | O88: 0.03116941868
A89: 2005 | B89: Apr | C89: 4 | D89: 69000350 | E89: 120250.5 | F89: 0.7969515257 | G89: 242.5 | H89: 1.4 | I89: 336.24 | J89: =J77 -> -0.75 | K89: 4 | L89: 107901 | M89: 7.9 | N89: =Results_NoGDP_NoMedian!$B$17+Results_NoGDP_NoMedian!$B$18*G89+Results_NoGDP_NoMedian!$B$19*H89+Results_NoGDP_NoMedian!$B$20*I89+Results_NoGDP_NoMedian!$B$21*J89+Results_NoGDP_NoMedian!$B$22*K89+Results_NoGDP_NoMedian!$B$23*L89+Results_NoGDP_NoMedian!$B$24*M89 -> 67654246.95 | O89: 0.01950864086
A90: 2005 | B90: May | C90: 5 | D90: 70417800 | E90: 124908.8 | F90: 0.7577334875 | G90: 143.4 | H90: 5.7 | I90: 336.288 | J90: =J78 -> 0 | K90: 3 | L90: 107915 | M90: 7.9 | N90: =Results_NoGDP_NoMedian!$B$17+Results_NoGDP_NoMedian!$B$18*G90+Results_NoGDP_NoMedian!$B$19*H90+Results_NoGDP_NoMedian!$B$20*I90+Results_NoGDP_NoMedian!$B$21*J90+Results_NoGDP_NoMedian!$B$22*K90+Results_NoGDP_NoMedian!$B$23*L90+Results_NoGDP_NoMedian!$B$24*M90 -> 67998385.78 | O90: 0.03435799216
A91: 2005 | B91: Jun | C91: 6 | D91: 87906300 | E91: 181977.6 | F91: 0.6709181973 | G91: 4.4 | H91: 166.9 | I91: 352.08 | J91: 0 | K91: 3 | L91: 107929 | M91: 7.7 | N91: =Results_NoGDP_NoMedian!$B$17+Results_NoGDP_NoMedian!$B$18*G91+Results_NoGDP_NoMedian!$B$19*H91+Results_NoGDP_NoMedian!$B$20*I91+Results_NoGDP_NoMedian!$B$21*J91+Results_NoGDP_NoMedian!$B$22*K91+Results_NoGDP_NoMedian!$B$23*L91+Results_NoGDP_NoMedian!$B$24*M91 -> 86275624.54 | O91: 0.01855015467
A92: 2005 | B92: Jul | C92: 7 | D92: 89932560 | E92: 179175.4 | F92: 0.6746299814 | G92: 0 | H92: 194.7 | I92: 319.92 | J92: 0 | K92: 2 | L92: 107943 | M92: 7.7 | N92: =Results_NoGDP_NoMedian!$B$17+Results_NoGDP_NoMedian!$B$18*G92+Results_NoGDP_NoMedian!$B$19*H92+Results_NoGDP_NoMedian!$B$20*I92+Results_NoGDP_NoMedian!$B$21*J92+Results_NoGDP_NoMedian!$B$22*K92+Results_NoGDP_NoMedian!$B$23*L92+Results_NoGDP_NoMedian!$B$24*M92 -> 87349830.6 | O92: 0.02871851305
A93: 2005 | B93: Aug | C93: 8 | D93: 94440230 | E93: 182533.3 | F93: 0.695411703 | G93: 0.1 | H93: 185.5 | I93: 351.912 | J93: 1 | K93: 2 | L93: 107957 | M93: 7.7 | N93: =Results_NoGDP_NoMedian!$B$17+Results_NoGDP_NoMedian!$B$18*G93+Results_NoGDP_NoMedian!$B$19*H93+Results_NoGDP_NoMedian!$B$20*I93+Results_NoGDP_NoMedian!$B$21*J93+Results_NoGDP_NoMedian!$B$22*K93+Results_NoGDP_NoMedian!$B$23*L93+Results_NoGDP_NoMedian!$B$24*M93 -> 91313682.18 | O93: 0.03310610127
A94: 2005 | B94: Sep | C94: 9 | D94: 81092320 | E94: 164146.9 | F94: 0.6861428527 | G94: 15.2 | H94: 82.2 | I94: 336.24 | J94: 0.75 | K94: 4 | L94: 107971 | M94: 7.5 | N94: =Results_NoGDP_NoMedian!$B$17+Results_NoGDP_NoMedian!$B$18*G94+Results_NoGDP_NoMedian!$B$19*H94+Results_NoGDP_NoMedian!$B$20*I94+Results_NoGDP_NoMedian!$B$21*J94+Results_NoGDP_NoMedian!$B$22*K94+Results_NoGDP_NoMedian!$B$23*L94+Results_NoGDP_NoMedian!$B$24*M94 -> 79040210.09 | O94: 0.02530584778
A95: 2005 | B95: Oct | C95: 10 | D95: 74394333 | E95: 139963.9 | F95: 0.7144155247 | G95: 182.8 | H95: 19 | I95: 319.92 | J95: 0.25 | K95: 4 | L95: 107985 | M95: 7.1 | N95: =Results_NoGDP_NoMedian!$B$17+Results_NoGDP_NoMedian!$B$18*G95+Results_NoGDP_NoMedian!$B$19*H95+Results_NoGDP_NoMedian!$B$20*I95+Results_NoGDP_NoMedian!$B$21*J95+Results_NoGDP_NoMedian!$B$22*K95+Results_NoGDP_NoMedian!$B$23*L95+Results_NoGDP_NoMedian!$B$24*M95 -> 72593063.38 | O95: 0.02421245745
A96: 2005 | B96: Nov | C96: 11 | D96: 73123230 | E96: 132240.1 | F96: 0.7679973145 | G96: 346.2 | H96: 0 | I96: 352.08 | J96: -0.25 | K96: 3 | L96: 107999 | M96: 6.6 | N96: =Results_NoGDP_NoMedian!$B$17+Results_NoGDP_NoMedian!$B$18*G96+Results_NoGDP_NoMedian!$B$19*H96+Results_NoGDP_NoMedian!$B$20*I96+Results_NoGDP_NoMedian!$B$21*J96+Results_NoGDP_NoMedian!$B$22*K96+Results_NoGDP_NoMedian!$B$23*L96+Results_NoGDP_NoMedian!$B$24*M96 -> 73080242.94 | O96: 0.0005878714375
A97: 2005 | B97: Dec | C97: 12 | D97: 76522590 | E97: 147092.5 | F97: 0.6992398902 | G97: 659.7 | H97: 0 | I97: 319.92 | J97: -0.25 | K97: 0 | L97: 108013 | M97: 6.3 | N97: =Results_NoGDP_NoMedian!$B$17+Results_NoGDP_NoMedian!$B$18*G97+Results_NoGDP_NoMedian!$B$19*H97+Results_NoGDP_NoMedian!$B$20*I97+Results_NoGDP_NoMedian!$B$21*J97+Results_NoGDP_NoMedian!$B$22*K97+Results_NoGDP_NoMedian!$B$23*L97+Results_NoGDP_NoMedian!$B$24*M97 -> 76011685.66 | O97: 0.006676516564
A98: 2006 | B98: Jan | C98: 1 | D98: 76765830 | E98: 129044.3 | F98: 0.7995694427 | G98: 494.7 | H98: 0 | I98: 336.288 | J98: =J86 -> 0 | K98: =K86 -> 2 | L98: 108027 | M98: 7.5 | N98: =Results_NoGDP_NoMedian!$B$17+Results_NoGDP_NoMedian!$B$18*G98+Results_NoGDP_NoMedian!$B$19*H98+Results_NoGDP_NoMedian!$B$20*I98+Results_NoGDP_NoMedian!$B$21*J98+Results_NoGDP_NoMedian!$B$22*K98+Results_NoGDP_NoMedian!$B$23*L98+Results_NoGDP_NoMedian!$B$24*M98 -> 74387311.99 | O98: =(1-N98/D98) -> 0.03098407208
A99: 2006 | B99: Feb | C99: 2 | D99: 71300830 | E99: 125674.1 | F99: 0.8442664447 | G99: 538 | H99: 0 | I99: 319.872 | J99: =J87 -> -1 | K99: 2 | L99: 108041 | M99: 8 | N99: =Results_NoGDP_NoMedian!$B$17+Results_NoGDP_NoMedian!$B$18*G99+Results_NoGDP_NoMedian!$B$19*H99+Results_NoGDP_NoMedian!$B$20*I99+Results_NoGDP_NoMedian!$B$21*J99+Results_NoGDP_NoMedian!$B$22*K99+Results_NoGDP_NoMedian!$B$23*L99+Results_NoGDP_NoMedian!$B$24*M99 -> 70265549.29 | O99: 0.0145198971
A100: 2006 | B100: Mar | C100: 3 | D100: 76123120 | E100: 127940.2 | F100: 0.799717536 | G100: 461.4 | H100: 0 | I100: 368.28 | J100: =J88 -> 0 | K100: 3 | L100: 108055 | M100: 8.6 | N100: =Results_NoGDP_NoMedian!$B$17+Results_NoGDP_NoMedian!$B$18*G100+Results_NoGDP_NoMedian!$B$19*H100+Results_NoGDP_NoMedian!$B$20*I100+Results_NoGDP_NoMedian!$B$21*J100+Results_NoGDP_NoMedian!$B$22*K100+Results_NoGDP_NoMedian!$B$23*L100+Results_NoGDP_NoMedian!$B$24*M100 -> 74607781.84 | O100: 0.01990641155
A101: 2006 | B101: Apr | C101: 4 | D101: 66029130 | E101: 118344.8 | F101: 0.7749146984 | G101: 219.5 | H101: 1.1 | I101: 303.84 | J101: =J89 -> -0.75 | K101: 4 | L101: 108069 | M101: 7.9 | N101: =Results_NoGDP_NoMedian!$B$17+Results_NoGDP_NoMedian!$B$18*G101+Results_NoGDP_NoMedian!$B$19*H101+Results_NoGDP_NoMedian!$B$20*I101+Results_NoGDP_NoMedian!$B$21*J101+Results_NoGDP_NoMedian!$B$22*K101+Results_NoGDP_NoMedian!$B$23*L101+Results_NoGDP_NoMedian!$B$24*M101 -> 65761808.67 | O101: 0.004048536317
A102: 2006 | B102: May | C102: 5 | D102: 72285180 | E102: 164159.2 | F102: 0.5918492537 | G102: 105.9 | H102: 40.6 | I102: 351.912 | J102: =J90 -> 0 | K102: 3 | L102: 108083 | M102: 7.9 | N102: =Results_NoGDP_NoMedian!$B$17+Results_NoGDP_NoMedian!$B$18*G102+Results_NoGDP_NoMedian!$B$19*H102+Results_NoGDP_NoMedian!$B$20*I102+Results_NoGDP_NoMedian!$B$21*J102+Results_NoGDP_NoMedian!$B$22*K102+Results_NoGDP_NoMedian!$B$23*L102+Results_NoGDP_NoMedian!$B$24*M102 -> 72405823.15 | O102: -0.001668988785
A103: 2006 | B103: Jun | C103: 6 | D103: 76116070 | E103: 156225.2 | F103: 0.6766946939 | G103: 8.8 | H103: 85.7 | I103: 352.08 | J103: 0 | K103: 3 | L103: 108097 | M103: 7.7 | N103: =Results_NoGDP_NoMedian!$B$17+Results_NoGDP_NoMedian!$B$18*G103+Results_NoGDP_NoMedian!$B$19*H103+Results_NoGDP_NoMedian!$B$20*I103+Results_NoGDP_NoMedian!$B$21*J103+Results_NoGDP_NoMedian!$B$22*K103+Results_NoGDP_NoMedian!$B$23*L103+Results_NoGDP_NoMedian!$B$24*M103 -> 76295157.87 | O103: -0.002352825979
A104: 2006 | B104: Jul | C104: 7 | D104: 87124080 | E104: 176829.5 | F104: 0.6622325916 | G104: 0 | H104: 197.4 | I104: 319.92 | J104: 0 | K104: 2 | L104: 108111 | M104: 8.4 | N104: =Results_NoGDP_NoMedian!$B$17+Results_NoGDP_NoMedian!$B$18*G104+Results_NoGDP_NoMedian!$B$19*H104+Results_NoGDP_NoMedian!$B$20*I104+Results_NoGDP_NoMedian!$B$21*J104+Results_NoGDP_NoMedian!$B$22*K104+Results_NoGDP_NoMedian!$B$23*L104+Results_NoGDP_NoMedian!$B$24*M104 -> 86892746.81 | O104: 0.002655215261
A105: 2006 | B105: Aug | C105: 8 | D105: 86693010 | E105: 184163.8 | F105: 0.6327131765 | G105: 0 | H105: 147.4 | I105: 351.912 | J105: 1 | K105: 2 | L105: 108125 | M105: 8.6 | N105: =Results_NoGDP_NoMedian!$B$17+Results_NoGDP_NoMedian!$B$18*G105+Results_NoGDP_NoMedian!$B$19*H105+Results_NoGDP_NoMedian!$B$20*I105+Results_NoGDP_NoMedian!$B$21*J105+Results_NoGDP_NoMedian!$B$22*K105+Results_NoGDP_NoMedian!$B$23*L105+Results_NoGDP_NoMedian!$B$24*M105 -> 85481873.33 | O105: 0.01397040739
A106: 2006 | B106: Sep | C106: 9 | D106: 71803266 | E106: 129536.2 | F106: 0.7698755895 | G106: 52.1 | H106: 22.3 | I106: 319.68 | J106: 0.75 | K106: 4 | L106: 108139 | M106: 8.5 | N106: =Results_NoGDP_NoMedian!$B$17+Results_NoGDP_NoMedian!$B$18*G106+Results_NoGDP_NoMedian!$B$19*H106+Results_NoGDP_NoMedian!$B$20*I106+Results_NoGDP_NoMedian!$B$21*J106+Results_NoGDP_NoMedian!$B$22*K106+Results_NoGDP_NoMedian!$B$23*L106+Results_NoGDP_NoMedian!$B$24*M106 -> 70367802.79 | O106: 0.01999161448
A107: 2006 | B107: Oct | C107: 10 | D107: 70311840 | E107: 118249.4 | F107: 0.7992020365 | G107: 251.3 | H107: 2.3 | I107: 336.288 | J107: 0.25 | K107: 4 | L107: 108153 | M107: 7.4 | N107: =Results_NoGDP_NoMedian!$B$17+Results_NoGDP_NoMedian!$B$18*G107+Results_NoGDP_NoMedian!$B$19*H107+Results_NoGDP_NoMedian!$B$20*I107+Results_NoGDP_NoMedian!$B$21*J107+Results_NoGDP_NoMedian!$B$22*K107+Results_NoGDP_NoMedian!$B$23*L107+Results_NoGDP_NoMedian!$B$24*M107 -> 72404800.66 | O107: -0.02976683103
A108: 2006 | B108: Nov | C108: 11 | D108: 72024057 | E108: 122710 | F108: 0.8152017969 | G108: 356.8 | H108: 0 | I108: 352.08 | J108: -0.25 | K108: 3 | L108: 108167 | M108: 6.9 | N108: =Results_NoGDP_NoMedian!$B$17+Results_NoGDP_NoMedian!$B$18*G108+Results_NoGDP_NoMedian!$B$19*H108+Results_NoGDP_NoMedian!$B$20*I108+Results_NoGDP_NoMedian!$B$21*J108+Results_NoGDP_NoMedian!$B$22*K108+Results_NoGDP_NoMedian!$B$23*L108+Results_NoGDP_NoMedian!$B$24*M108 -> 73022824.7 | O108: -0.01386714025
A109: 2006 | B109: Dec | C109: 12 | D109: 72529897 | E109: 132905.5 | F109: 0.7335017791 | G109: 460.4 | H109: 0 | I109: 304.296 | J109: -0.25 | K109: 0 | L109: 108177 | M109: 7 | N109: =Results_NoGDP_NoMedian!$B$17+Results_NoGDP_NoMedian!$B$18*G109+Results_NoGDP_NoMedian!$B$19*H109+Results_NoGDP_NoMedian!$B$20*I109+Results_NoGDP_NoMedian!$B$21*J109+Results_NoGDP_NoMedian!$B$22*K109+Results_NoGDP_NoMedian!$B$23*L109+Results_NoGDP_NoMedian!$B$24*M109 -> 70315676.56 | O109: 0.03052838249
A110: 2007 | B110: Jan | C110: 1 | D110: 75943575.5 | E110: 125521.6 | F110: 0.8132042473 | G110: 602.4 | H110: 0 | I110: 351.912 | J110: =J98 -> 0 | K110: =K98 -> 2 | L110: =L109-($L$109-$L$121)/12 -> 108150.8572 | M110: 8.6 | N110: =Results_NoGDP_NoMedian!$B$17+Results_NoGDP_NoMedian!$B$18*G110+Results_NoGDP_NoMedian!$B$19*H110+Results_NoGDP_NoMedian!$B$20*I110+Results_NoGDP_NoMedian!$B$21*J110+Results_NoGDP_NoMedian!$B$22*K110+Results_NoGDP_NoMedian!$B$23*L110+Results_NoGDP_NoMedian!$B$24*M110 -> 76022628.86 | O110: -0.001040948621
A111: 2007 | B111: Feb | C111: 2 | D111: 73489678.9 | E111: 132956.1 | F111: 0.8225244364 | G111: 706.1 | H111: 0 | I111: 319.872 | J111: =J99 -> -1 | K111: 2 | L111: 108124.7144 | M111: 9 | N111: =Results_NoGDP_NoMedian!$B$17+Results_NoGDP_NoMedian!$B$18*G111+Results_NoGDP_NoMedian!$B$19*H111+Results_NoGDP_NoMedian!$B$20*I111+Results_NoGDP_NoMedian!$B$21*J111+Results_NoGDP_NoMedian!$B$22*K111+Results_NoGDP_NoMedian!$B$23*L111+Results_NoGDP_NoMedian!$B$24*M111 -> 72559559.55 | O111: 0.01265646231
A112: 2007 | B112: Mar | C112: 3 | D112: 73780830.8 | E112: 124611.3 | F112: 0.795816939 | G112: 429.3 | H112: 0.2 | I112: 351.912 | J112: =J100 -> 0 | K112: 3 | L112: 108098.5717 | M112: 9.6 | N112: =Results_NoGDP_NoMedian!$B$17+Results_NoGDP_NoMedian!$B$18*G112+Results_NoGDP_NoMedian!$B$19*H112+Results_NoGDP_NoMedian!$B$20*I112+Results_NoGDP_NoMedian!$B$21*J112+Results_NoGDP_NoMedian!$B$22*K112+Results_NoGDP_NoMedian!$B$23*L112+Results_NoGDP_NoMedian!$B$24*M112 -> 71950621.13 | O112: 0.02480603233
A113: 2007 | B113: Apr | C113: 4 | D113: 66320469 | E113: 120218.8 | F113: 0.766200981 | G113: 285.2 | H113: 0.9 | I113: 319.68 | J113: =J101 -> -0.75 | K113: 4 | L113: 108072.4289 | M113: 9 | N113: =Results_NoGDP_NoMedian!$B$17+Results_NoGDP_NoMedian!$B$18*G113+Results_NoGDP_NoMedian!$B$19*H113+Results_NoGDP_NoMedian!$B$20*I113+Results_NoGDP_NoMedian!$B$21*J113+Results_NoGDP_NoMedian!$B$22*K113+Results_NoGDP_NoMedian!$B$23*L113+Results_NoGDP_NoMedian!$B$24*M113 -> 66423520.52 | O113: -0.001553841821
A114: 2007 | B114: May | C114: 5 | D114: 68636519.3 | E114: 142398.3 | F114: 0.6478545471 | G114: 87.2 | H114: 46 | I114: 351.912 | J114: =J102 -> 0 | K114: 3 | L114: 108046.2861 | M114: 9.1 | N114: =Results_NoGDP_NoMedian!$B$17+Results_NoGDP_NoMedian!$B$18*G114+Results_NoGDP_NoMedian!$B$19*H114+Results_NoGDP_NoMedian!$B$20*I114+Results_NoGDP_NoMedian!$B$21*J114+Results_NoGDP_NoMedian!$B$22*K114+Results_NoGDP_NoMedian!$B$23*L114+Results_NoGDP_NoMedian!$B$24*M114 -> 71120105.9 | O114: -0.03618462333
A115: 2007 | B115: Jun | C115: 6 | D115: 76584775.9 | E115: 171619.6 | F115: 0.6197878582 | G115: 8.1 | H115: 132.2 | I115: 336.24 | J115: 0 | K115: 3 | L115: 108020.1433 | M115: 9.2 | N115: =Results_NoGDP_NoMedian!$B$17+Results_NoGDP_NoMedian!$B$18*G115+Results_NoGDP_NoMedian!$B$19*H115+Results_NoGDP_NoMedian!$B$20*I115+Results_NoGDP_NoMedian!$B$21*J115+Results_NoGDP_NoMedian!$B$22*K115+Results_NoGDP_NoMedian!$B$23*L115+Results_NoGDP_NoMedian!$B$24*M115 -> 79404841.39 | O115: -0.03682279489
A116: 2007 | B116: Jul | C116: 7 | D116: 77111267 | E116: 167705 | F116: 0.6180148241 | G116: 1.3 | H116: 148.2 | I116: 336.288 | J116: 0 | K116: 2 | L116: 107994.0006 | M116: 9.2 | N116: =Results_NoGDP_NoMedian!$B$17+Results_NoGDP_NoMedian!$B$18*G116+Results_NoGDP_NoMedian!$B$19*H116+Results_NoGDP_NoMedian!$B$20*I116+Results_NoGDP_NoMedian!$B$21*J116+Results_NoGDP_NoMedian!$B$22*K116+Results_NoGDP_NoMedian!$B$23*L116+Results_NoGDP_NoMedian!$B$24*M116 -> 80393660.22 | O116: -0.04256697298
A117: 2007 | B117: Aug | C117: 8 | D117: 85216616.6 | E117: 170845.4 | F117: 0.6704216981 | G117: 4.4 | H117: 167.4 | I117: 351.912 | J117: 1 | K117: 2 | L117: 107967.8578 | M117: 9 | N117: =Results_NoGDP_NoMedian!$B$17+Results_NoGDP_NoMedian!$B$18*G117+Results_NoGDP_NoMedian!$B$19*H117+Results_NoGDP_NoMedian!$B$20*I117+Results_NoGDP_NoMedian!$B$21*J117+Results_NoGDP_NoMedian!$B$22*K117+Results_NoGDP_NoMedian!$B$23*L117+Results_NoGDP_NoMedian!$B$24*M117 -> 87466187.54 | O117: -0.02639826636
A118: 2007 | B118: Sep | C118: 9 | D118: 73536545.1 | E118: 162858.1 | F118: 0.6271354659 | G118: 25.4 | H118: 76.4 | I118: 303.84 | J118: 0.75 | K118: 4 | L118: 107941.715 | M118: 8.1 | N118: =Results_NoGDP_NoMedian!$B$17+Results_NoGDP_NoMedian!$B$18*G118+Results_NoGDP_NoMedian!$B$19*H118+Results_NoGDP_NoMedian!$B$20*I118+Results_NoGDP_NoMedian!$B$21*J118+Results_NoGDP_NoMedian!$B$22*K118+Results_NoGDP_NoMedian!$B$23*L118+Results_NoGDP_NoMedian!$B$24*M118 -> 76256779.84 | O118: -0.03699160372
A119: 2007 | B119: Oct | C119: 10 | D119: 71397718.6 | E119: 131718.4 | F119: 0.7285593777 | G119: 111.2 | H119: 42.3 | I119: 351.912 | J119: 0.25 | K119: 4 | L119: 107915.5722 | M119: 6.8 | N119: =Results_NoGDP_NoMedian!$B$17+Results_NoGDP_NoMedian!$B$18*G119+Results_NoGDP_NoMedian!$B$19*H119+Results_NoGDP_NoMedian!$B$20*I119+Results_NoGDP_NoMedian!$B$21*J119+Results_NoGDP_NoMedian!$B$22*K119+Results_NoGDP_NoMedian!$B$23*L119+Results_NoGDP_NoMedian!$B$24*M119 -> 75813101.95 | O119: -0.06184207891
A120: 2007 | B120: Nov | C120: 11 | D120: 69283467 | E120: 125546.7 | F120: 0.7664640926 | G120: 400.3 | H120: 0 | I120: 352.08 | J120: -0.25 | K120: 3 | L120: 107889.4295 | M120: 6.3 | N120: =Results_NoGDP_NoMedian!$B$17+Results_NoGDP_NoMedian!$B$18*G120+Results_NoGDP_NoMedian!$B$19*H120+Results_NoGDP_NoMedian!$B$20*I120+Results_NoGDP_NoMedian!$B$21*J120+Results_NoGDP_NoMedian!$B$22*K120+Results_NoGDP_NoMedian!$B$23*L120+Results_NoGDP_NoMedian!$B$24*M120 -> 74533337.56 | O120: -0.07577378547
A121: 2007 | B121: Dec | C121: 12 | D121: 70507648 | E121: 127630 | F121: 0.7425240467 | G121: 595 | H121: 0 | I121: 304.296 | J121: -0.25 | K121: 0 | L121: =L109*(1-0.0029) -> 107863.2867 | M121: 6.2 | N121: =Results_NoGDP_NoMedian!$B$17+Results_NoGDP_NoMedian!$B$18*G121+Results_NoGDP_NoMedian!$B$19*H121+Results_NoGDP_NoMedian!$B$20*I121+Results_NoGDP_NoMedian!$B$21*J121+Results_NoGDP_NoMedian!$B$22*K121+Results_NoGDP_NoMedian!$B$23*L121+Results_NoGDP_NoMedian!$B$24*M121 -> 73973946.02 | O121: -0.04916201455
A122: 2008 | B122: Jan | C122: 1 | D122: 75226387.9 | E122: 126193.3 | F122: 0.8012369629 | G122: 611.2 | H122: 0 | I122: 352 | J122: =J110 -> 0 | K122: =K110 -> 2 | L122: =L121-($L$121-$L$133)/12 -> 107842.6129 | M122: 7.6 | N122: =Results_NoGDP_NoMedian!$B$17+Results_NoGDP_NoMedian!$B$18*G122+Results_NoGDP_NoMedian!$B$19*H122+Results_NoGDP_NoMedian!$B$20*I122+Results_NoGDP_NoMedian!$B$21*J122+Results_NoGDP_NoMedian!$B$22*K122+Results_NoGDP_NoMedian!$B$23*L122+Results_NoGDP_NoMedian!$B$24*M122 -> 77304615.73 | O122: -0.02762631427
A123: 2008 | B123: Feb | C123: 2 | D123: 71282775.7 | E123: 128590.6 | F123: 0.7964639809 | G123: 629.3 | H123: 0 | I123: 320 | J123: =J111 -> -1 | K123: 2 | L123: 107821.9391 | M123: 7.9 | N123: =Results_NoGDP_NoMedian!$B$17+Results_NoGDP_NoMedian!$B$18*G123+Results_NoGDP_NoMedian!$B$19*H123+Results_NoGDP_NoMedian!$B$20*I123+Results_NoGDP_NoMedian!$B$21*J123+Results_NoGDP_NoMedian!$B$22*K123+Results_NoGDP_NoMedian!$B$23*L123+Results_NoGDP_NoMedian!$B$24*M123 -> 72178303.13 | O123: -0.01256302687
A124: 2008 | B124: Mar | C124: 3 | D124: 73304135.1 | E124: 121739.3 | F124: 0.8093283213 | G124: 541.6 | H124: 0 | I124: 304 | J124: =J112 -> 0 | K124: 3 | L124: 107801.2653 | M124: 8.6 | N124: =Results_NoGDP_NoMedian!$B$17+Results_NoGDP_NoMedian!$B$18*G124+Results_NoGDP_NoMedian!$B$19*H124+Results_NoGDP_NoMedian!$B$20*I124+Results_NoGDP_NoMedian!$B$21*J124+Results_NoGDP_NoMedian!$B$22*K124+Results_NoGDP_NoMedian!$B$23*L124+Results_NoGDP_NoMedian!$B$24*M124 -> 73197331.3 | O124: 0.001456995519
A125: 2008 | B125: Apr | C125: 4 | D125: 66441873.3 | E125: 117726.5 | F125: 0.7838539291 | G125: 223.8 | H125: 1.3 | I125: 352 | J125: =J113 -> -0.75 | K125: 4 | L125: 107780.5915 | M125: 8.1 | N125: =Results_NoGDP_NoMedian!$B$17+Results_NoGDP_NoMedian!$B$18*G125+Results_NoGDP_NoMedian!$B$19*H125+Results_NoGDP_NoMedian!$B$20*I125+Results_NoGDP_NoMedian!$B$21*J125+Results_NoGDP_NoMedian!$B$22*K125+Results_NoGDP_NoMedian!$B$23*L125+Results_NoGDP_NoMedian!$B$24*M125 -> 67634001.56 | O125: -0.01794242392
A126: 2008 | B126: May | C126: 5 | D126: 66716840 | E126: 115139.8 | F126: 0.7788199393 | G126: 143.2 | H126: 11.6 | I126: 336 | J126: =J114 -> 0 | K126: 3 | L126: 107759.9177 | M126: 8.3 | N126: =Results_NoGDP_NoMedian!$B$17+Results_NoGDP_NoMedian!$B$18*G126+Results_NoGDP_NoMedian!$B$19*H126+Results_NoGDP_NoMedian!$B$20*I126+Results_NoGDP_NoMedian!$B$21*J126+Results_NoGDP_NoMedian!$B$22*K126+Results_NoGDP_NoMedian!$B$23*L126+Results_NoGDP_NoMedian!$B$24*M126 -> 68106645.37 | O126: -0.0208314028
A127: 2008 | B127: Jun | C127: 6 | D127: 76146317.3 | E127: 165945.7 | F127: 0.6373095177 | G127: 3.2 | H127: 123.9 | I127: 336 | J127: 0 | K127: 3 | L127: 107739.2439 | M127: 8.2 | N127: =Results_NoGDP_NoMedian!$B$17+Results_NoGDP_NoMedian!$B$18*G127+Results_NoGDP_NoMedian!$B$19*H127+Results_NoGDP_NoMedian!$B$20*I127+Results_NoGDP_NoMedian!$B$21*J127+Results_NoGDP_NoMedian!$B$22*K127+Results_NoGDP_NoMedian!$B$23*L127+Results_NoGDP_NoMedian!$B$24*M127 -> 79361031.49 | O127: -0.04221759238
A128: 2008 | B128: Jul | C128: 7 | D128: 83277874 | E128: 161059.5 | F128: 0.6949768647 | G128: 0.3 | H128: 188.6 | I128: 352 | J128: 0 | K128: 2 | L128: 107718.5701 | M128: 8.8 | N128: =Results_NoGDP_NoMedian!$B$17+Results_NoGDP_NoMedian!$B$18*G128+Results_NoGDP_NoMedian!$B$19*H128+Results_NoGDP_NoMedian!$B$20*I128+Results_NoGDP_NoMedian!$B$21*J128+Results_NoGDP_NoMedian!$B$22*K128+Results_NoGDP_NoMedian!$B$23*L128+Results_NoGDP_NoMedian!$B$24*M128 -> 86495036.72 | O128: -0.03863166245
A129: 2008 | B129: Aug | C129: 8 | D129: 75973257.9 | E129: 162132.2 | F129: 0.629823033 | G129: 0.9 | H129: 144.8 | I129: 320 | J129: 1 | K129: 2 | L129: 107697.8963 | M129: 9 | N129: =Results_NoGDP_NoMedian!$B$17+Results_NoGDP_NoMedian!$B$18*G129+Results_NoGDP_NoMedian!$B$19*H129+Results_NoGDP_NoMedian!$B$20*I129+Results_NoGDP_NoMedian!$B$21*J129+Results_NoGDP_NoMedian!$B$22*K129+Results_NoGDP_NoMedian!$B$23*L129+Results_NoGDP_NoMedian!$B$24*M129 -> 82931767.32 | O129: -0.09159156279
A130: 2008 | B130: Sep | C130: 9 | D130: 68765247.3 | E130: 156741.3 | F130: 0.6093307119 | G130: 12.2 | H130: 65 | I130: 336 | J130: 0.75 | K130: 4 | L130: 107677.2225 | M130: 8.7 | N130: =Results_NoGDP_NoMedian!$B$17+Results_NoGDP_NoMedian!$B$18*G130+Results_NoGDP_NoMedian!$B$19*H130+Results_NoGDP_NoMedian!$B$20*I130+Results_NoGDP_NoMedian!$B$21*J130+Results_NoGDP_NoMedian!$B$22*K130+Results_NoGDP_NoMedian!$B$23*L130+Results_NoGDP_NoMedian!$B$24*M130 -> 75076756.01 | O130: =(1-N130/D130) -> -0.09178340744
A131: 2008 | B131: Oct | C131: 10 | D131: 63416228.7 | E131: 109926 | F131: =D131/E131/24/(DAY(DATE(A132,C131+1,1)-1)) -> 0.7754022391 | G131: 220.7 | H131: 3.3 | I131: 352 | J131: 0.25 | K131: 4 | L131: 107656.5487 | M131: 7.8 | N131: =Results_NoGDP_NoMedian!$B$17+Results_NoGDP_NoMedian!$B$18*G131+Results_NoGDP_NoMedian!$B$19*H131+Results_NoGDP_NoMedian!$B$20*I131+Results_NoGDP_NoMedian!$B$21*J131+Results_NoGDP_NoMedian!$B$22*K131+Results_NoGDP_NoMedian!$B$23*L131+Results_NoGDP_NoMedian!$B$24*M131 -> 71773819.91 | O131: -0.1317894707
A132: 2008 | B132: Nov | C132: 11 | D132: 64406942.6 | E132: 116622.1 | F132: =D132/E132/24/(DAY(DATE(A133,C132+1,1)-1)) -> 0.7670423268 | G132: 413.3 | H132: 0 | I132: 304 | J132: -0.25 | K132: 3 | L132: 107635.8749 | M132: 7.7 | N132: =Results_NoGDP_NoMedian!$B$17+Results_NoGDP_NoMedian!$B$18*G132+Results_NoGDP_NoMedian!$B$19*H132+Results_NoGDP_NoMedian!$B$20*I132+Results_NoGDP_NoMedian!$B$21*J132+Results_NoGDP_NoMedian!$B$22*K132+Results_NoGDP_NoMedian!$B$23*L132+Results_NoGDP_NoMedian!$B$24*M132 -> 70646719.34 | O132: -0.096880499
A133: 2008 | B133: Dec | C133: 12 | D133: 67860200 | E133: 119912.5 | F133: =D133/E133/24/(DAY(DATE(A134,C133+1,1)-1)) -> 0.7606375168 | G133: 632 | H133: 0 | I133: 336 | J133: -0.25 | K133: 0 | L133: =L121*(1-0.0023) -> 107615.2011 | M133: 8.1 | N133: =Results_NoGDP_NoMedian!$B$17+Results_NoGDP_NoMedian!$B$18*G133+Results_NoGDP_NoMedian!$B$19*H133+Results_NoGDP_NoMedian!$B$20*I133+Results_NoGDP_NoMedian!$B$21*J133+Results_NoGDP_NoMedian!$B$22*K133+Results_NoGDP_NoMedian!$B$23*L133+Results_NoGDP_NoMedian!$B$24*M133 -> 73591183.37 | O133: -0.08445279226
A134: 2009 | B134: Jan | C134: 1 | D134: 70152780.9 | E134: 121498.4 | F134: =D134/E134/24/(DAY(DATE(A135,C134+1,1)-1)) -> 0.7760708962 | G134: 799.1 | H134: 0 | I134: 336 | J134: =J122 -> 0 | K134: 2 | L134: =L133-($L$133-$L$145)/12 -> 107598.1621 | M134: 9.8 | N134: =Results_NoGDP_NoMedian!$B$17+Results_NoGDP_NoMedian!$B$18*G134+Results_NoGDP_NoMedian!$B$19*H134+Results_NoGDP_NoMedian!$B$20*I134+Results_NoGDP_NoMedian!$B$21*J134+Results_NoGDP_NoMedian!$B$22*K134+Results_NoGDP_NoMedian!$B$23*L134+Results_NoGDP_NoMedian!$B$24*M134 -> 77529151 | O134: -0.105147223
A135: 2009 | B135: Feb | C135: 2 | D135: 61404169 | G135: =AVERAGE(G123,G111,G99,G87,G75,G63,G51,G39,G27,G15) -> 575.44 | H135: 0 | I135: 304 | J135: =J123 -> -1 | K135: 2 | L135: 107581.123 | M135: =M134+0.05 -> 9.85 | N135: =Results_NoGDP_NoMedian!$B$17+Results_NoGDP_NoMedian!$B$18*G135+Results_NoGDP_NoMedian!$B$19*H135+Results_NoGDP_NoMedian!$B$20*I135+Results_NoGDP_NoMedian!$B$21*J135+Results_NoGDP_NoMedian!$B$22*K135+Results_NoGDP_NoMedian!$B$23*L135+Results_NoGDP_NoMedian!$B$24*M135 -> 67650886.84 | O135: -0.1017311681
A136: 2009 | B136: Mar | C136: 3 | G136: 484.87 | H136: 0.07 | I136: 352 | J136: =J124 -> 0 | K136: 3 | L136: 107564.0839 | M136: =M135+0.05 -> 9.9 | N136: =Results_NoGDP_NoMedian!$B$17+Results_NoGDP_NoMedian!$B$18*G136+Results_NoGDP_NoMedian!$B$19*H136+Results_NoGDP_NoMedian!$B$20*I136+Results_NoGDP_NoMedian!$B$21*J136+Results_NoGDP_NoMedian!$B$22*K136+Results_NoGDP_NoMedian!$B$23*L136+Results_NoGDP_NoMedian!$B$24*M136 -> 72379130.08
A137: 2009 | B137: Apr | C137: 4 | G137: 258.21 | H137: 2.73 | I137: 320 | J137: =J125 -> -0.75 | K137: 4 | L137: 107547.0448 | M137: 9.95 | N137: =Results_NoGDP_NoMedian!$B$17+Results_NoGDP_NoMedian!$B$18*G137+Results_NoGDP_NoMedian!$B$19*H137+Results_NoGDP_NoMedian!$B$20*I137+Results_NoGDP_NoMedian!$B$21*J137+Results_NoGDP_NoMedian!$B$22*K137+Results_NoGDP_NoMedian!$B$23*L137+Results_NoGDP_NoMedian!$B$24*M137 -> 64542712.48
A138: 2009 | B138: May | C138: 5 | G138: 114.78 | H138: 22.98 | I138: 320 | J138: =J126 -> 0 | K138: 3 | L138: 107530.0058 | M138: 10 | N138: =Results_NoGDP_NoMedian!$B$17+Results_NoGDP_NoMedian!$B$18*G138+Results_NoGDP_NoMedian!$B$19*H138+Results_NoGDP_NoMedian!$B$20*I138+Results_NoGDP_NoMedian!$B$21*J138+Results_NoGDP_NoMedian!$B$22*K138+Results_NoGDP_NoMedian!$B$23*L138+Results_NoGDP_NoMedian!$B$24*M138 -> 65869213.34
A139: 2009 | B139: Jun | C139: 6 | G139: 15.47 | H139: 109.63 | I139: 352 | J139: 0 | K139: 3 | L139: 107512.9667 | M139: 10.05 | N139: =Results_NoGDP_NoMedian!$B$17+Results_NoGDP_NoMedian!$B$18*G139+Results_NoGDP_NoMedian!$B$19*H139+Results_NoGDP_NoMedian!$B$20*I139+Results_NoGDP_NoMedian!$B$21*J139+Results_NoGDP_NoMedian!$B$22*K139+Results_NoGDP_NoMedian!$B$23*L139+Results_NoGDP_NoMedian!$B$24*M139 -> 76031698.73
A140: 2009 | B140: Jul | C140: 7 | G140: 0.79 | H140: 167.77 | I140: 352 | J140: 0 | K140: 2 | L140: 107495.9276 | M140: 10.1 | N140: =Results_NoGDP_NoMedian!$B$17+Results_NoGDP_NoMedian!$B$18*G140+Results_NoGDP_NoMedian!$B$19*H140+Results_NoGDP_NoMedian!$B$20*I140+Results_NoGDP_NoMedian!$B$21*J140+Results_NoGDP_NoMedian!$B$22*K140+Results_NoGDP_NoMedian!$B$23*L140+Results_NoGDP_NoMedian!$B$24*M140 -> 82077025.7
A141: 2009 | B141: Aug | C141: 8 | G141: 2.04 | H141: 138.58 | I141: 320 | J141: 1 | K141: 2 | L141: 107478.8886 | M141: 10.15 | N141: =Results_NoGDP_NoMedian!$B$17+Results_NoGDP_NoMedian!$B$18*G141+Results_NoGDP_NoMedian!$B$19*H141+Results_NoGDP_NoMedian!$B$20*I141+Results_NoGDP_NoMedian!$B$21*J141+Results_NoGDP_NoMedian!$B$22*K141+Results_NoGDP_NoMedian!$B$23*L141+Results_NoGDP_NoMedian!$B$24*M141 -> 80554615.6
A142: 2009 | B142: Sep | C142: 9 | G142: 37.87 | H142: 58.74 | I142: 336 | J142: 0.75 | K142: 4 | L142: 107461.8495 | M142: 10.2 | N142: =Results_NoGDP_NoMedian!$B$17+Results_NoGDP_NoMedian!$B$18*G142+Results_NoGDP_NoMedian!$B$19*H142+Results_NoGDP_NoMedian!$B$20*I142+Results_NoGDP_NoMedian!$B$21*J142+Results_NoGDP_NoMedian!$B$22*K142+Results_NoGDP_NoMedian!$B$23*L142+Results_NoGDP_NoMedian!$B$24*M142 -> 72760857.78
A143: 2009 | B143: Oct | C143: 10 | G143: 202.09 | H143: 8.81 | I143: 336 | J143: 0.25 | K143: 4 | L143: 107444.8104 | M143: 10.25 | N143: =Results_NoGDP_NoMedian!$B$17+Results_NoGDP_NoMedian!$B$18*G143+Results_NoGDP_NoMedian!$B$19*H143+Results_NoGDP_NoMedian!$B$20*I143+Results_NoGDP_NoMedian!$B$21*J143+Results_NoGDP_NoMedian!$B$22*K143+Results_NoGDP_NoMedian!$B$23*L143+Results_NoGDP_NoMedian!$B$24*M143 -> 68051343.12
A144: 2009 | B144: Nov | C144: 11 | G144: 363.24 | H144: 0 | I144: 320 | J144: -0.25 | K144: 3 | L144: 107427.7713 | M144: 10.3 | N144: =Results_NoGDP_NoMedian!$B$17+Results_NoGDP_NoMedian!$B$18*G144+Results_NoGDP_NoMedian!$B$19*H144+Results_NoGDP_NoMedian!$B$20*I144+Results_NoGDP_NoMedian!$B$21*J144+Results_NoGDP_NoMedian!$B$22*K144+Results_NoGDP_NoMedian!$B$23*L144+Results_NoGDP_NoMedian!$B$24*M144 -> 66842368.11
A145: 2009 | B145: Dec | C145: 12 | G145: 591.4 | H145: 0 | I145: 352 | J145: -0.25 | K145: 0 | L145: =L133*(1-0.0019) -> 107410.7323 | M145: 10.35 | N145: =Results_NoGDP_NoMedian!$B$17+Results_NoGDP_NoMedian!$B$18*G145+Results_NoGDP_NoMedian!$B$19*H145+Results_NoGDP_NoMedian!$B$20*I145+Results_NoGDP_NoMedian!$B$21*J145+Results_NoGDP_NoMedian!$B$22*K145+Results_NoGDP_NoMedian!$B$23*L145+Results_NoGDP_NoMedian!$B$24*M145 -> 70438904.02
A146: 2010 | B146: Jan | C146: 1 | G146: 661.25 | H146: 0 | I146: 320 | J146: =J134 -> 0 | K146: 2 | L146: =L145-($L$145-$L$157)/12 -> 107397.3059 | M146: 10.4 | N146: =Results_NoGDP_NoMedian!$B$17+Results_NoGDP_NoMedian!$B$18*G146+Results_NoGDP_NoMedian!$B$19*H146+Results_NoGDP_NoMedian!$B$20*I146+Results_NoGDP_NoMedian!$B$21*J146+Results_NoGDP_NoMedian!$B$22*K146+Results_NoGDP_NoMedian!$B$23*L146+Results_NoGDP_NoMedian!$B$24*M146 -> 73003525.32
A147: 2010 | B147: Feb | C147: 2 | G147: 582.944 | H147: 0 | I147: 304 | J147: =J135 -> -1 | K147: 2 | L147: 107383.8796 | M147: 10.45 | N147: =Results_NoGDP_NoMedian!$B$17+Results_NoGDP_NoMedian!$B$18*G147+Results_NoGDP_NoMedian!$B$19*H147+Results_NoGDP_NoMedian!$B$20*I147+Results_NoGDP_NoMedian!$B$21*J147+Results_NoGDP_NoMedian!$B$22*K147+Results_NoGDP_NoMedian!$B$23*L147+Results_NoGDP_NoMedian!$B$24*M147 -> 66909855.87
A148: 2010 | B148: Mar | C148: 3 | G148: 481.637 | H148: 0.077 | I148: 368 | J148: =J136 -> 0 | K148: 3 | L148: 107370.4532 | M148: 10.5 | N148: =Results_NoGDP_NoMedian!$B$17+Results_NoGDP_NoMedian!$B$18*G148+Results_NoGDP_NoMedian!$B$19*H148+Results_NoGDP_NoMedian!$B$20*I148+Results_NoGDP_NoMedian!$B$21*J148+Results_NoGDP_NoMedian!$B$22*K148+Results_NoGDP_NoMedian!$B$23*L148+Results_NoGDP_NoMedian!$B$24*M148 -> 72145963.98
A149: 2010 | B149: Apr | C149: 4 | G149: 259.641 | H149: 3.003 | I149: 320 | J149: =J137 -> -0.75 | K149: 4 | L149: 107357.0269 | M149: 10.55 | N149: =Results_NoGDP_NoMedian!$B$17+Results_NoGDP_NoMedian!$B$18*G149+Results_NoGDP_NoMedian!$B$19*H149+Results_NoGDP_NoMedian!$B$20*I149+Results_NoGDP_NoMedian!$B$21*J149+Results_NoGDP_NoMedian!$B$22*K149+Results_NoGDP_NoMedian!$B$23*L149+Results_NoGDP_NoMedian!$B$24*M149 -> 63712972.74
A150: 2010 | B150: May | C150: 5 | G150: 119.678 | H150: 22.668 | I150: 320 | J150: =J138 -> 0 | K150: 3 | L150: 107343.6006 | M150: 10.6 | N150: =Results_NoGDP_NoMedian!$B$17+Results_NoGDP_NoMedian!$B$18*G150+Results_NoGDP_NoMedian!$B$19*H150+Results_NoGDP_NoMedian!$B$20*I150+Results_NoGDP_NoMedian!$B$21*J150+Results_NoGDP_NoMedian!$B$22*K150+Results_NoGDP_NoMedian!$B$23*L150+Results_NoGDP_NoMedian!$B$24*M150 -> 65041230.12
A151: 2010 | B151: Jun | C151: 6 | G151: =AVERAGE(G139,G127,G115,G103,G91,G79,G67,G55,G43,G31) -> 15.107 | H151: 107.403 | I151: 352 | J151: 0 | K151: 3 | L151: 107330.1742 | M151: 10.65 | N151: =Results_NoGDP_NoMedian!$B$17+Results_NoGDP_NoMedian!$B$18*G151+Results_NoGDP_NoMedian!$B$19*H151+Results_NoGDP_NoMedian!$B$20*I151+Results_NoGDP_NoMedian!$B$21*J151+Results_NoGDP_NoMedian!$B$22*K151+Results_NoGDP_NoMedian!$B$23*L151+Results_NoGDP_NoMedian!$B$24*M151 -> 74855467.21
A152: 2010 | B152: Jul | C152: 7 | G152: 0.869 | H152: 161.767 | I152: 336 | J152: 0 | K152: 2 | L152: 107316.7479 | M152: 10.7 | N152: =Results_NoGDP_NoMedian!$B$17+Results_NoGDP_NoMedian!$B$18*G152+Results_NoGDP_NoMedian!$B$19*H152+Results_NoGDP_NoMedian!$B$20*I152+Results_NoGDP_NoMedian!$B$21*J152+Results_NoGDP_NoMedian!$B$22*K152+Results_NoGDP_NoMedian!$B$23*L152+Results_NoGDP_NoMedian!$B$24*M152 -> 79708846.47
A153: 2010 | B153: Aug | C153: 8 | G153: 2.124 | H153: 142.228 | I153: 336 | J153: 1 | K153: 2 | L153: 107303.3215 | M153: 10.75 | N153: =Results_NoGDP_NoMedian!$B$17+Results_NoGDP_NoMedian!$B$18*G153+Results_NoGDP_NoMedian!$B$19*H153+Results_NoGDP_NoMedian!$B$20*I153+Results_NoGDP_NoMedian!$B$21*J153+Results_NoGDP_NoMedian!$B$22*K153+Results_NoGDP_NoMedian!$B$23*L153+Results_NoGDP_NoMedian!$B$24*M153 -> 80859019.74
A154: 2010 | B154: Sep | C154: 9 | G154: 37.947 | H154: 58.174 | I154: 336 | J154: 0.75 | K154: 4 | L154: 107289.8952 | M154: 10.8 | N154: =Results_NoGDP_NoMedian!$B$17+Results_NoGDP_NoMedian!$B$18*G154+Results_NoGDP_NoMedian!$B$19*H154+Results_NoGDP_NoMedian!$B$20*I154+Results_NoGDP_NoMedian!$B$21*J154+Results_NoGDP_NoMedian!$B$22*K154+Results_NoGDP_NoMedian!$B$23*L154+Results_NoGDP_NoMedian!$B$24*M154 -> 71808976.76
A155: 2010 | B155: Oct | C155: 10 | G155: 200.159 | H155: 9.601 | I155: 320 | J155: 0.25 | K155: 4 | L155: 107276.4688 | M155: 10.85 | N155: =Results_NoGDP_NoMedian!$B$17+Results_NoGDP_NoMedian!$B$18*G155+Results_NoGDP_NoMedian!$B$19*H155+Results_NoGDP_NoMedian!$B$20*I155+Results_NoGDP_NoMedian!$B$21*J155+Results_NoGDP_NoMedian!$B$22*K155+Results_NoGDP_NoMedian!$B$23*L155+Results_NoGDP_NoMedian!$B$24*M155 -> 66499561.29
A156: 2010 | B156: Nov | C156: 11 | G156: 367.134 | H156: 0 | I156: 336 | J156: -0.25 | K156: 3 | L156: 107263.0425 | M156: 10.9 | N156: =Results_NoGDP_NoMedian!$B$17+Results_NoGDP_NoMedian!$B$18*G156+Results_NoGDP_NoMedian!$B$19*H156+Results_NoGDP_NoMedian!$B$20*I156+Results_NoGDP_NoMedian!$B$21*J156+Results_NoGDP_NoMedian!$B$22*K156+Results_NoGDP_NoMedian!$B$23*L156+Results_NoGDP_NoMedian!$B$24*M156 -> 66776330.03
A157: 2010 | B157: Dec | C157: 12 | G157: 594.7 | H157: 0 | I157: 368 | J157: -0.25 | K157: 0 | L157: =L145*(1-0.0015) -> 107249.6162 | M157: 10.95 | N157: =Results_NoGDP_NoMedian!$B$17+Results_NoGDP_NoMedian!$B$18*G157+Results_NoGDP_NoMedian!$B$19*H157+Results_NoGDP_NoMedian!$B$20*I157+Results_NoGDP_NoMedian!$B$21*J157+Results_NoGDP_NoMedian!$B$22*K157+Results_NoGDP_NoMedian!$B$23*L157+Results_NoGDP_NoMedian!$B$24*M157 -> 70362687.16

Sheet Results_NoGDP_NoMedian
A1: SUMMARY OUTPUT
A3: Regression Statistics | D3: Years 2002-2008
A4: Multiple R | B4: 0.9035756147
A5: R Square | B5: 0.8164488915
A6: Adjusted R Square | B6: 0.7995428683
A7: Standard Error | B7: 2873055.708
A8: Observations | B8: 84
A10: ANOVA
B11: df | C11: SS | D11: MS | E11: F | F11: Significance F
A12: Regression | B12: 7 | C12: 2790446356441209 | D12: 3.986351938e+14 | E12: 48.29337355 | F12: 1.929618592e-25
A13: Residual | B13: 76 | C13: 6.273381316e+14 | D13: 8.254449099e+12
A14: Total | B14: 83 | C14: 3417784487991798
B16: Coefficients | C16: Standard Error | D16: t Stat | E16: P-value | F16: Lower 95% | G16: Upper 95% | H16: Lower 95.0% | I16: Upper 95.0%
A17: Intercept | B17: -11995652.68 | C17: 154795233.7 | D17: -0.0774936824 | E17: 0.938434474 | F17: -320297075 | G17: 296305769.6 | H17: -320297075 | I17: 296305769.6
A18: Heating Degree Days | B18: 20998.0549 | C18: 2876.108024 | D18: 7.300857521 | E18: 2.370125911e-10 | F18: 15269.78941 | G18: 26726.32038 | H18: 15269.78941 | I18: 26726.32038
A19: Cooling Degree Days | B19: 125363.7526 | C19: 9926.486983 | D19: 12.62921644 | E19: 2.385452506e-20 | F19: 105593.4407 | G19: 145134.0645 | H19: 105593.4407 | I19: 145134.0645
A20: Peakhours | B20: 45634.33622 | C20: 20263.53103 | D20: 2.252042655 | E20: 0.02720705894 | F20: 5276.017128 | G20: 85992.65532 | H20: 5276.017128 | I20: 85992.65532
A21: Seasonal Weighting Factor | B21: 3646274.731 | C21: 749172.2081 | D21: 4.867071537 | E21: 6.001069829e-06 | F21: 2154168.987 | G21: 5138380.474 | H21: 2154168.987 | I21: 5138380.474
A22: Industrial Production Weighting Factor | B22: 859804.4483 | C22: 423246.8716 | D22: 2.031449034 | E22: 0.04570573795 | F22: 16835.26017 | G22: 1702773.636 | H22: 16835.26017 | I22: 1702773.636
A23: Population | B23: 634.9916587 | C23: 1439.678074 | D23: 0.4410650341 | E23: 0.6604181191 | F23: -2232.375683 | G23: 3502.359 | H23: -2232.375683 | I23: 3502.359
A24: Unemployment Rate | B24: -1288920.742 | C24: 407931.4205 | D24: -3.159650562 | E24: 0.002267760471 | F24: -2101386.566 | G24: -476454.9177 | H24: -2101386.566 | I24: -476454.9177

Sheet Census_Data
A12: 2001 and 2006 population from Census Data
A13: Population estimates for 2007 and beyond from minister of Finance forecasts
A14: 2007 | B14: -0.0029
A15: 2008 | B15: -0.0023
A16: 2009 | B16: -0.0019
A17: 2010 | B17: -0.0013
A19: Customer Counts from CIS (Harris)
A21: Seasonal Weighting Factor | D21: This number represents the effects of typical temperature extremes on total load. The values were determined through trial and error and are unitless.
A22: Industrial Weighting Factor | D22: This number represents the effects of industrial/agrilcultural output variation throughout the year. This value is not necessarily dependent on weather but rather on industrial cycles and ecominc demand. The value was determined through trial and error and is unitless.

Sheet Ont_Employment
A1: Legend:
A2: v2054779 | B2: Table 282-0054: LFS estimates by provinces, territories and economic regions, 3-month moving average; Windsor-Sarnia, Ontario [3570]; Full-time employment (persons - thousands)
A3: v2054937 | B3: Table 282-0054: LFS estimates by provinces, territories and economic regions, 3-month moving average; Windsor-Sarnia, Ontario [3570]; Unemployment (persons - thousands)
A4: v2055095 | B4: Table 282-0054: LFS estimates by provinces, territories and economic regions, 3-month moving average; Windsor-Sarnia, Ontario [3570]; Unemployment rate (rate)
A5: v2055253 | B5: Table 282-0054: LFS estimates by provinces, territories and economic regions, 3-month moving average; Windsor-Sarnia, Ontario [3570]; Employment rate (rate)
A6: Monthly | B6: v2054779 | C6: v2054937 | D6: v2055095 | E6: v2055253
A7: 1987-03-01 | B7: 205.9 | C7: 26.4 | D7: 9.2 | E7: 59.6
A8: 1987-04-01 | B8: 207.8 | C8: 26.3 | D8: 9.1 | E8: 60
A9: 1987-05-01 | B9: 211.2 | C9: 25 | D9: 8.7 | E9: 60.5
A10: 1987-06-01 | B10: 214.6 | C10: 25.5 | D10: 8.8 | E10: 60.5
A11: 1987-07-01 | B11: 223.4 | C11: 23.1 | D11: 7.9 | E11: 61.6
A12: 1987-08-01 | B12: 229.7 | C12: 22 | D12: 7.5 | E12: 62
A13: 1987-09-01 | B13: 229 | C13: 18.7 | D13: 6.4 | E13: 62.3
A14: 1987-10-01 | B14: 221.4 | C14: 20.2 | D14: 7 | E14: 61.3
A15: 1987-11-01 | B15: 212.9 | C15: 21.4 | D15: 7.5 | E15: 60.6
A16: 1987-12-01 | B16: 208.5 | C16: 23.4 | D16: 8.2 | E16: 59.9
A17: 1988-01-01 | B17: 205 | C17: 25.4 | D17: 9 | E17: 58.9
A18: 1988-02-01 | B18: 205.6 | C18: 25.9 | D18: 9.2 | E18: 58.4
A19: 1988-03-01 | B19: 208.5 | C19: 25.7 | D19: 9 | E19: 59.1
A20: 1988-04-01 | B20: 214 | C20: 22.8 | D20: 7.9 | E20: 61
A21: 1988-05-01 | B21: 221.3 | C21: 21 | D21: 7 | E21: 63.2
A22: 1988-06-01 | B22: 228.8 | C22: 20.6 | D22: 6.8 | E22: 64.8
A23: 1988-07-01 | B23: 238 | C23: 21.5 | D23: 6.9 | E23: 65.9
A24: 1988-08-01 | B24: 243 | C24: 21.4 | D24: 6.8 | E24: 66.3
A25: 1988-09-01 | B25: 240.9 | C25: 21.1 | D25: 6.8 | E25: 66
A26: 1988-10-01 | B26: 235 | C26: 18.8 | D26: 6.1 | E26: 65.5
A27: 1988-11-01 | B27: 226 | C27: 17.8 | D27: 5.9 | E27: 64.5
A28: 1988-12-01 | B28: 223.3 | C28: 16.5 | D28: 5.5 | E28: 63.9
A29: 1989-01-01 | B29: 220 | C29: 18.7 | D29: 6.3 | E29: 63.2
A30: 1989-02-01 | B30: 221.7 | C30: 20.5 | D30: 6.8 | E30: 63.5
A31: 1989-03-01 | B31: 224.4 | C31: 22.7 | D31: 7.5 | E31: 63.9
A32: 1989-04-01 | B32: 227.5 | C32: 22.1 | D32: 7.2 | E32: 64.6
A33: 1989-05-01 | B33: 235.4 | C33: 21.7 | D33: 7 | E33: 65.6
A34: 1989-06-01 | B34: 242.1 | C34: 20 | D34: 6.4 | E34: 66.5
A35: 1989-07-01 | B35: 248.3 | C35: 20.1 | D35: 6.4 | E35: 66.8
A36: 1989-08-01 | B36: 247.7 | C36: 21.2 | D36: 6.7 | E36: 66.3
A37: 1989-09-01 | B37: 238.2 | C37: 21.9 | D37: 7.1 | E37: 65.1
A38: 1989-10-01 | B38: 227.7 | C38: 21.3 | D38: 7 | E38: 63.8
A39: 1989-11-01 | B39: 213.3 | C39: 21.3 | D39: 7.2 | E39: 61.7
A40: 1989-12-01 | B40: 206.3 | C40: 22.9 | D40: 7.9 | E40: 60.2
A41: 1990-01-01 | B41: 200.4 | C41: 27.9 | D41: 9.7 | E41: 58.5
A42: 1990-02-01 | B42: 200.2 | C42: 28.5 | D42: 10 | E42: 58
A43: 1990-03-01 | B43: 201 | C43: 28.1 | D43: 9.8 | E43: 58.1
A44: 1990-04-01 | B44: 204.4 | C44: 23.4 | D44: 8.2 | E44: 59.2
A45: 1990-05-01 | B45: 210.8 | C45: 21.5 | D45: 7.4 | E45: 60.2
A46: 1990-06-01 | B46: 219.8 | C46: 20 | D46: 6.8 | E46: 61.4
A47: 1990-07-01 | B47: 229.4 | C47: 21.5 | D47: 7.1 | E47: 62.6
A48: 1990-08-01 | B48: 232.9 | C48: 22.9 | D48: 7.6 | E48: 62.8
A49: 1990-09-01 | B49: 231.5 | C49: 23.6 | D49: 7.8 | E49: 62.2
A50: 1990-10-01 | B50: 224 | C50: 23.4 | D50: 7.9 | E50: 61.1
A51: 1990-11-01 | B51: 217 | C51: 24.8 | D51: 8.4 | E51: 60.5
A52: 1990-12-01 | B52: 210.9 | C52: 28.5 | D52: 9.6 | E52: 59.7
A53: 1991-01-01 | B53: 205.8 | C53: 32.6 | D53: 11 | E53: 58.6
A54: 1991-02-01 | B54: 201.8 | C54: 35.5 | D54: 12.1 | E54: 57.8
A55: 1991-03-01 | B55: 197.7 | C55: 39.6 | D55: 13.4 | E55: 56.9
A56: 1991-04-01 | B56: 199.5 | C56: 38.2 | D56: 13 | E56: 57.1
A57: 1991-05-01 | B57: 204.9 | C57: 37.2 | D57: 12.6 | E57: 57.6
A58: 1991-06-01 | B58: 211.7 | C58: 33.4 | D58: 11.3 | E58: 58.4
A59: 1991-07-01 | B59: 216.4 | C59: 34.2 | D59: 11.4 | E59: 58.9
A60: 1991-08-01 | B60: 216.4 | C60: 34.9 | D60: 11.7 | E60: 58.6
A61: 1991-09-01 | B61: 216.4 | C61: 31.5 | D61: 10.6 | E61: 59.1
A62: 1991-10-01 | B62: 212.8 | C62: 28.9 | D62: 9.8 | E62: 59.3
A63: 1991-11-01 | B63: 208.7 | C63: 26.1 | D63: 8.9 | E63: 59.4
A64: 1991-12-01 | B64: 203.2 | C64: 27.3 | D64: 9.3 | E64: 58.8
A65: 1992-01-01 | B65: 198.4 | C65: 28 | D65: 9.7 | E65: 57.5
A66: 1992-02-01 | B66: 195.4 | C66: 28.8 | D66: 10.1 | E66: 56.7
A67: 1992-03-01 | B67: 193.4 | C67: 32.6 | D67: 11.4 | E67: 55.8
A68: 1992-04-01 | B68: 195.4 | C68: 33 | D68: 11.5 | E68: 56.3
A69: 1992-05-01 | B69: 203 | C69: 32.3 | D69: 11 | E69: 57.7
A70: 1992-06-01 | B70: 212.9 | C70: 30.1 | D70: 10 | E70: 59.5
A71: 1992-07-01 | B71: 225.2 | C71: 30.7 | D71: 10 | E71: 61.2
A72: 1992-08-01 | B72: 229 | C72: 31.2 | D72: 10.1 | E72: 61.3
A73: 1992-09-01 | B73: 224.3 | C73: 30.8 | D73: 10.1 | E73: 60.4
A74: 1992-10-01 | B74: 214.6 | C74: 30.6 | D74: 10.2 | E74: 59
A75: 1992-11-01 | B75: 205 | C75: 32.6 | D75: 11.1 | E75: 57.5
A76: 1992-12-01 | B76: 202.8 | C76: 34.7 | D76: 11.8 | E76: 57
A77: 1993-01-01 | B77: 200 | C77: 37.3 | D77: 12.7 | E77: 56.2
A78: 1993-02-01 | B78: 201.8 | C78: 36.1 | D78: 12.3 | E78: 56.5
A79: 1993-03-01 | B79: 203 | C79: 35 | D79: 11.9 | E79: 56.9
A80: 1993-04-01 | B80: 204.4 | C80: 32.9 | D80: 11.2 | E80: 57.4
A81: 1993-05-01 | B81: 205.5 | C81: 33.9 | D81: 11.5 | E81: 57.3
A82: 1993-06-01 | B82: 208.6 | C82: 33.7 | D82: 11.4 | E82: 57.4
A83: 1993-07-01 | B83: 213.5 | C83: 35.1 | D83: 11.7 | E83: 57.8
A84: 1993-08-01 | B84: 218.5 | C84: 34.2 | D84: 11.3 | E84: 58.8
A85: 1993-09-01 | B85: 220.4 | C85: 32.5 | D85: 10.6 | E85: 59.7
A86: 1993-10-01 | B86: 219.8 | C86: 29.2 | D86: 9.6 | E86: 60.3
A87: 1993-11-01 | B87: 216.4 | C87: 26.9 | D87: 8.8 | E87: 60.5
A88: 1993-12-01 | B88: 213.1 | C88: 27 | D88: 8.9 | E88: 60
A89: 1994-01-01 | B89: 208.9 | C89: 28.9 | D89: 9.6 | E89: 59.1
A90: 1994-02-01 | B90: 204.9 | C90: 30.6 | D90: 10.3 | E90: 58.2
A91: 1994-03-01 | B91: 201.5 | C91: 33.1 | D91: 11.2 | E91: 57.2
A92: 1994-04-01 | B92: 199.2 | C92: 32.8 | D92: 11.1 | E92: 56.9
A93: 1994-05-01 | B93: 203.3 | C93: 33.9 | D93: 11.4 | E93: 57
A94: 1994-06-01 | B94: 208.8 | C94: 31.6 | D94: 10.5 | E94: 58.3
A95: 1994-07-01 | B95: 218 | C95: 31.5 | D95: 10.3 | E95: 59.4
A96: 1994-08-01 | B96: 219.8 | C96: 31.1 | D96: 10.1 | E96: 59.8
A97: 1994-09-01 | B97: 220.6 | C97: 28.5 | D97: 9.3 | E97: 60.2
A98: 1994-10-01 | B98: 221.6 | C98: 25 | D98: 8.2 | E98: 60.9
A99: 1994-11-01 | B99: 223.1 | C99: 21.3 | D99: 6.9 | E99: 61.8
A100: 1994-12-01 | B100: 222.1 | C100: 21.3 | D100: 6.9 | E100: 61.7
A101: 1995-01-01 | B101: 215.9 | C101: 22.8 | D101: 7.5 | E101: 60.4
A102: 1995-02-01 | B102: 211.5 | C102: 24.8 | D102: 8.3 | E102: 59.1
A103: 1995-03-01 | B103: 207.5 | C103: 29.3 | D103: 9.8 | E103: 57.8
A104: 1995-04-01 | B104: 205.3 | C104: 30.5 | D104: 10.3 | E104: 57
A105: 1995-05-01 | B105: 205.2 | C105: 29.5 | D105: 10.1 | E105: 56.8
A106: 1995-06-01 | B106: 207.9 | C106: 27.6 | D106: 9.4 | E106: 57.1
A107: 1995-07-01 | B107: 213.2 | C107: 28.5 | D107: 9.6 | E107: 57.4
A108: 1995-08-01 | B108: 218.5 | C108: 28.4 | D108: 9.5 | E108: 57.8
A109: 1995-09-01 | B109: 221.6 | C109: 24.4 | D109: 8.2 | E109: 58.2
A110: 1995-10-01 | B110: 223.3 | C110: 20.8 | D110: 7 | E110: 59
A111: 1995-11-01 | B111: 220.5 | C111: 19.3 | D111: 6.5 | E111: 59.3
A112: 1995-12-01 | B112: 218.2 | C112: 23.1 | D112: 7.7 | E112: 58.9
A113: 1996-01-01 | B113: 213.2 | C113: 28 | D113: 9.3 | E113: 58
A114: 1996-02-01 | B114: 208.7 | C114: 31 | D114: 10.4 | E114: 57.1
A115: 1996-03-01 | B115: 206.2 | C115: 31.4 | D115: 10.6 | E115: 56.7
A116: 1996-04-01 | B116: 207.2 | C116: 29.5 | D116: 9.9 | E116: 57
A117: 1996-05-01 | B117: 213.6 | C117: 28.9 | D117: 9.6 | E117: 58
A118: 1996-06-01 | B118: 219.4 | C118: 28 | D118: 9.1 | E118: 59.2
A119: 1996-07-01 | B119: 228.9 | C119: 28.8 | D119: 9.2 | E119: 60.5
A120: 1996-08-01 | B120: 233.2 | C120: 29.2 | D120: 9.2 | E120: 61.4
A121: 1996-09-01 | B121: 232.6 | C121: 29.4 | D121: 9.2 | E121: 61.3
A122: 1996-10-01 | B122: 224.6 | C122: 27.5 | D122: 8.8 | E122: 60.4
A123: 1996-11-01 | B123: 217.3 | C123: 26.7 | D123: 8.7 | E123: 59.4
A124: 1996-12-01 | B124: 213.3 | C124: 27.3 | D124: 8.9 | E124: 58.8
A125: 1997-01-01 | B125: 209.8 | C125: 28.3 | D125: 9.4 | E125: 57.7
A126: 1997-02-01 | B126: 207 | C126: 29.2 | D126: 9.7 | E126: 57.1
A127: 1997-03-01 | B127: 205.4 | C127: 29.1 | D127: 9.8 | E127: 56.9
A128: 1997-04-01 | B128: 206.9 | C128: 30.6 | D128: 10.2 | E128: 56.8
A129: 1997-05-01 | B129: 211.2 | C129: 30.5 | D129: 10.2 | E129: 56.8
A130: 1997-06-01 | B130: 216.5 | C130: 30.6 | D130: 10.2 | E130: 56.7
A131: 1997-07-01 | B131: 220.5 | C131: 29.7 | D131: 9.8 | E131: 57.4
A132: 1997-08-01 | B132: 223.3 | C132: 29.4 | D132: 9.7 | E132: 57.6
A133: 1997-09-01 | B133: 224.7 | C133: 25.9 | D133: 8.5 | E133: 58.3
A134: 1997-10-01 | B134: 226 | C134: 22.2 | D134: 7.3 | E134: 59
A135: 1997-11-01 | B135: 223.6 | C135: 19.9 | D135: 6.5 | E135: 59.8
A136: 1997-12-01 | B136: 222.2 | C136: 20.1 | D136: 6.5 | E136: 60.4
A137: 1998-01-01 | B137: 219.3 | C137: 23 | D137: 7.4 | E137: 59.8
A138: 1998-02-01 | B138: 220.3 | C138: 26.3 | D138: 8.4 | E138: 59.6
A139: 1998-03-01 | B139: 219.5 | C139: 28.6 | D139: 9.2 | E139: 58.8
A140: 1998-04-01 | B140: 220.2 | C140: 26.7 | D140: 8.6 | E140: 58.9
A141: 1998-05-01 | B141: 221.7 | C141: 23.6 | D141: 7.7 | E141: 59
A142: 1998-06-01 | B142: 224.7 | C142: 23.1 | D142: 7.5 | E142: 59
A143: 1998-07-01 | B143: 226.1 | C143: 25.8 | D143: 8.4 | E143: 58.7
A144: 1998-08-01 | B144: 227.2 | C144: 27.9 | D144: 9 | E144: 58.4
A145: 1998-09-01 | B145: 225.6 | C145: 27.4 | D145: 8.9 | E145: 58.5
A146: 1998-10-01 | B146: 227.3 | C146: 24.7 | D146: 8 | E146: 59.1
A147: 1998-11-01 | B147: 226.3 | C147: 22.7 | D147: 7.3 | E147: 59.7
A148: 1998-12-01 | B148: 226.6 | C148: 22.5 | D148: 7.2 | E148: 60
A149: 1999-01-01 | B149: 224.2 | C149: 22.6 | D149: 7.3 | E149: 59.6
A150: 1999-02-01 | B150: 222.5 | C150: 21.9 | D150: 7.1 | E150: 59.1
A151: 1999-03-01 | B151: 221.7 | C151: 21 | D151: 6.9 | E151: 58.6
A152: 1999-04-01 | B152: 222 | C152: 20.1 | D152: 6.6 | E152: 58.6
A153: 1999-05-01 | B153: 227.6 | C153: 19.2 | D153: 6.3 | E153: 59.4
A154: 1999-06-01 | B154: 234.3 | C154: 17.9 | D154: 5.8 | E154: 60.3
A155: 1999-07-01 | B155: 244.3 | C155: 18.3 | D155: 5.8 | E155: 61.6
A156: 1999-08-01 | B156: 246.6 | C156: 20 | D156: 6.3 | E156: 61.6
A157: 1999-09-01 | B157: 248 | C157: 21.6 | D157: 6.7 | E157: 61.7
A158: 1999-10-01 | B158: 244.4 | C158: 21 | D158: 6.5 | E158: 61.9
A159: 1999-11-01 | B159: 239.8 | C159: 19.7 | D159: 6.2 | E159: 61.3
A160: 1999-12-01 | B160: 236.5 | C160: 18.8 | D160: 5.9 | E160: 61.1
A161: 2000-01-01 | B161: 234.8 | C161: 18.6 | D161: 5.9 | E161: 60.4
A162: 2000-02-01 | B162: 235.8 | C162: 18.5 | D162: 5.9 | E162: 60.9
A163: 2000-03-01 | B163: 235 | C163: 17.9 | D163: 5.7 | E163: 60.4
A164: 2000-04-01 | B164: 235.9 | C164: 17.5 | D164: 5.6 | E164: 60.3
A165: 2000-05-01 | B165: 240 | C165: 16.8 | D165: 5.3 | E165: 60.6
A166: 2000-06-01 | B166: 245.4 | C166: 15.3 | D166: 4.8 | E166: 61.5
A167: 2000-07-01 | B167: 250 | C167: 15.7 | D167: 4.9 | E167: 62.2
A168: 2000-08-01 | B168: 252.5 | C168: 16.9 | D168: 5.2 | E168: 62.3
A169: 2000-09-01 | B169: 249.8 | C169: 20.1 | D169: 6.2 | E169: 62
A170: 2000-10-01 | B170: 246.9 | C170: 19.8 | D170: 6.1 | E170: 61.9
A171: 2000-11-01 | B171: 241.1 | C171: 19.9 | D171: 6.2 | E171: 61.3
A172: 2000-12-01 | B172: 238.5 | C172: 21.1 | D172: 6.5 | E172: 61.1
A173: 2001-01-01 | B173: 234.8 | C173: 23 | D173: 7.1 | E173: 60.4
A174: 2001-02-01 | B174: 231.2 | C174: 26 | D174: 8.1 | E174: 59.8
A175: 2001-03-01 | B175: 229.9 | C175: 27.4 | D175: 8.5 | E175: 59.2
A176: 2001-04-01 | B176: 231.3 | C176: 27.2 | D176: 8.4 | E176: 59.4
A177: 2001-05-01 | B177: 235.6 | C177: 25.2 | D177: 7.8 | E177: 60
A178: 2001-06-01 | B178: 239.5 | C178: 23.1 | D178: 7.1 | E178: 60.6
A179: 2001-07-01 | B179: 241.5 | C179: 23.3 | D179: 7.2 | E179: 60.5
A180: 2001-08-01 | B180: 244.4 | C180: 23.3 | D180: 7.1 | E180: 60.8
A181: 2001-09-01 | B181: 244.6 | C181: 22.5 | D181: 6.9 | E181: 61
A182: 2001-10-01 | B182: 243.8 | C182: 20.6 | D182: 6.3 | E182: 61.4
A183: 2001-11-01 | B183: 240.7 | C183: 19.3 | D183: 5.9 | E183: 61.2
A184: 2001-12-01 | B184: 240.9 | C184: 20.2 | D184: 6.2 | E184: 61.4
A185: 2002-01-01 | B185: 236.2 | C185: 25.3 | D185: 7.7 | E185: 60.2
A186: 2002-02-01 | B186: 232.5 | C186: 28.3 | D186: 8.7 | E186: 59.3
A187: 2002-03-01 | B187: 229 | C187: 29.6 | D187: 9.2 | E187: 58.2
A188: 2002-04-01 | B188: 232.1 | C188: 26.4 | D188: 8.2 | E188: 58.9
A189: 2002-05-01 | B189: 236.5 | C189: 24.5 | D189: 7.5 | E189: 59.9
A190: 2002-06-01 | B190: 240.3 | C190: 23.6 | D190: 7.2 | E190: 60.7
A191: 2002-07-01 | B191: 245.4 | C191: 25.3 | D191: 7.6 | E191: 61.1
A192: 2002-08-01 | B192: 250.8 | C192: 25.7 | D192: 7.7 | E192: 61.3
A193: 2002-09-01 | B193: 254.1 | C193: 23.6 | D193: 7 | E193: 61.8
A194: 2002-10-01 | B194: 255.5 | C194: 20.2 | D194: 6 | E194: 62.1
A195: 2002-11-01 | B195: 251.9 | C195: 20 | D195: 6 | E195: 61.8
A196: 2002-12-01 | B196: 250.7 | C196: 21.2 | D196: 6.3 | E196: 61.8
A197: 2003-01-01 | B197: 249.4 | C197: 22.4 | D197: 6.7 | E197: 61.6
A198: 2003-02-01 | B198: 246.2 | C198: 24.8 | D198: 7.4 | E198: 61.1
A199: 2003-03-01 | B199: 242.3 | C199: 27 | D199: 8.1 | E199: 60.2
A200: 2003-04-01 | B200: 240.2 | C200: 27.1 | D200: 8.2 | E200: 59.8
... 69 more rows

Sheet Regional_Emp_Stats
A2: Estimated Monthly Labour Market Indicators for Economic Region 570 by Census Division
A3: CK Chatham-Kent WE Windsor-Essex SL Sarnia-Lambton
A4: Data Estimated and Seasonally Adjusted by the Centre for Spatial Economics
T6: =AVERAGE(T12:T23) -> 52925.29959 | U6: =AVERAGE(U12:U23) -> 186893.1551 | V6: =AVERAGE(V12:V23) -> 61654.27255
D8: Labour Force Source Population 15+ | I8: Participation Rate | N8: Labour Force | S8: Employed | X8: Unemployed | AC8: Unemployment Rate (%) | AH8: Employed Index (2001=100)
A10: Month | B10: Year | D10: ER 570 | E10: CK | F10: WE | G10: SL | I10: ER 570 | J10: CK | K10: WE | L10: SL | N10: ER 570 | O10: CK | P10: WE | Q10: SL | S10: ER 570 | T10: CK | U10: WE | V10: SL | X10: ER 570 | Y10: CK | Z10: WE | AA10: SL | AC10: ER 570 | AD10: CK | AE10: WE | AF10: SL | AH10: CK | AI10: WE | AJ10: SL
AD11: Chatham-Kent | AE11: Windsor-Essex | AF11: Sarnia-Lambton | AH11: Chatham-Kent | AI11: Windsor-Essex | AJ11: Sarnia-Lambton
A12: Jan | B12: 2001 | D12: 495600 | E12: 89170.06563 | F12: 303263.9239 | G12: 103166.0105 | I12: 65.309267 | J12: 65.5315017 | K12: 65.78066603 | L12: 63.73147022 | N12: 323672.7273 | O12: 58434.48308 | P12: 199489.029 | Q12: 65749.21524 | S12: 300981.8182 | T12: 53060.3204 | U12: 186866.3814 | V12: 61055.11635 | X12: 22690.90909 | Y12: 5374.162679 | Z12: 12622.64753 | AA12: 4694.098884 | AC12: 7.010448264 | AD12: 9.196902918 | AE12: 6.327489584 | AF12: 7.139399104 | AH12: =T12/T$6*100 -> 100.2551158 | AI12: =U12/U$6*100 -> 99.98567432 | AJ12: =V12/V$6*100 -> 99.02820004
A13: Feb | B13: 2001 | D13: 496181.8182 | E13: 89159.35415 | F13: 303767.9739 | G13: 103254.4902 | I13: 65.2510077 | J13: 65.46148394 | K13: 65.7317015 | L13: 63.65509346 | N13: 323763.6364 | O13: 58365.0363 | P13: 199671.8578 | Q13: 65726.74222 | S13: 300490.9091 | T13: 52263.51408 | U13: 186987.5228 | V13: 61239.87218 | X13: 23272.72727 | Y13: 6101.522227 | Z13: 12684.33501 | AA13: 4486.870035 | AC13: 7.188184422 | AD13: 10.45407082 | AE13: 6.352590269 | AF13: 6.826551695 | AH13: =T13/T$6*100 -> 98.74958571 | AI13: 100.0504929 | AJ13: 99.32786432
A14: Mar | B14: 2001 | D14: 496763.6364 | E14: 89148.62161 | F14: 304272.0509 | G14: 103342.9639 | I14: 65.19105483 | J14: 65.4129032 | K14: 65.66206607 | L14: 63.61288224 | N14: 323845.4545 | O14: 58314.70156 | P14: 199791.3151 | Q14: 65739.43792 | S14: 300281.8182 | T14: 52690.52185 | U14: 186256.7038 | V14: 61334.59257 | X14: 23563.63636 | Y14: 5624.179701 | Z14: 13534.61131 | AA14: 4404.845349 | AC14: 7.276197962 | AD14: 9.644531398 | AE14: 6.774374206 | AF14: 6.700460922 | AH14: 99.55639791 | AI14: 99.65945709 | AJ14: 99.48149583
A15: Apr | B15: 2001 | D15: 497354.5455 | E15: 89139.4974 | F15: 304781.7258 | G15: 103433.3223 | I15: 65.15381381 | J15: 65.36389124 | K15: 65.63410716 | L15: 63.55751169 | N15: 324045.4545 | O15: 58265.04413 | P15: 200040.7645 | Q15: 65739.64591 | S15: 300236.3636 | T15: 51967.92941 | U15: 186786.8373 | V15: 61481.59691 | X15: 23809.09091 | Y15: 6297.114724 | Z15: 13253.92718 | AA15: 4258.049004 | AC15: 7.347454061 | AD15: 10.80770609 | AE15: 6.625613142 | AF15: 6.477140156 | AH15: 98.19109162 | AI15: 99.94311305 | AJ15: 99.71992916
A16: May | B16: 2001 | D16: 497936.3636 | E16: 89128.72081 | F16: 305285.8592 | G16: 103521.7836 | I16: 65.16897011 | J16: 65.39043382 | K16: 65.63959522 | L16: 63.59042343 | N16: 324500 | O16: 58281.6572 | P16: 200388.4023 | Q16: 65829.94052 | S16: 300636.3636 | T16: 51916.47776 | U16: 187148.8291 | V16: 61571.05683 | X16: 23863.63636 | Y16: 6365.179437 | Z16: 13239.57323 | AA16: 4258.883696 | AC16: 7.353971144 | AD16: 10.9214112 | AE16: 6.606955831 | AF16: 6.469523841 | AH16: 98.09387602 | AI16: 100.1368022 | AJ16: 99.86502846
A17: Jun | B17: 2001 | D17: 498518.1818 | E17: 89117.92337 | F17: 305790.0195 | G17: 103610.239 | I17: 65.14032496 | J17: 65.35000528 | K17: 65.62021956 | L17: 63.54363669 | N17: 324736.3636 | O17: 58238.56763 | P17: 200660.0822 | Q17: 65837.71383 | S17: 301036.3636 | T17: 52395.69634 | U17: 187097.1119 | V17: 61543.55541 | X17: 23700 | Y17: 5842.871287 | Z17: 13562.9703 | AA17: 4294.158416 | AC17: 7.298227933 | AD17: 10.03264937 | AE17: 6.759177087 | AF17: 6.522338286 | AH17: 98.99933822 | AI17: 100.1091301 | AJ17: 99.82042261
A18: Jul | B18: 2001 | D18: 499090.9091 | E18: 89105.48209 | F18: 306288.6274 | G18: 103696.7996 | I18: 65.17668488 | J18: 65.39776558 | K18: 65.64692552 | L18: 63.59776573 | N18: 325290.9091 | O18: 58272.99429 | P18: 201069.0671 | Q18: 65948.84771 | S18: 301845.4545 | T18: 53160.82751 | U18: 187044.8854 | V18: 61639.74161 | X18: 23445.45455 | Y18: 5112.166781 | Z18: 14024.18167 | AA18: 4309.106099 | AC18: 7.207534515 | AD18: 8.77278891 | AE18: 6.974808144 | AF18: 6.534012721 | AH18: 100.4450195 | AI18: 100.0811856 | AJ18: 99.97643158
A19: Aug | B19: 2001 | D19: 499654.5455 | E19: 89091.40328 | F19: 306781.6748 | G19: 103781.4674 | I19: 65.19231469 | J19: 65.42480936 | K19: 65.65291522 | L19: 63.6311778 | N19: 325736.3636 | O19: 58287.88075 | P19: 201411.1128 | Q19: 66037.37005 | S19: 302354.5455 | T19: 53550.13745 | U19: 187044.4337 | V19: 61759.97427 | X19: 23381.81818 | Y19: 4737.743307 | Z19: 14366.6791 | AA19: 4277.395779 | AC19: 7.178141832 | AD19: 8.128179041 | AE19: 7.133012123 | AF19: 6.477235202 | AH19: 101.1806034 | AI19: 100.0809439 | AJ19: 100.1714426
A20: Sep | B20: 2001 | D20: 500218.1818 | E20: 89077.31215 | F20: 307274.738 | G20: 103866.1317 | I20: 65.20790928 | J20: 65.45183147 | K20: 65.65888347 | L20: 63.66456777 | N20: 326181.8182 | O20: 58302.73223 | P20: 201753.1622 | Q20: 66125.92378 | S20: 302718.1818 | T20: 53610.00496 | U20: 186834.4919 | V20: 62273.68498 | X20: 23463.63636 | Y20: 4692.727273 | Z20: 14918.67028 | AA20: 3852.238806 | AC20: 7.19342252 | AD20: 8.048897699 | AE20: 7.394516212 | AF20: 5.825610571 | AH20: 101.2937203 | AI20: 99.96861134 | AJ20: 101.0046545
A21: Oct | B21: 2001 | D21: 500763.6364 | E21: 89059.97511 | F21: 307756.6429 | G21: 103947.0183 | I21: 65.13869726 | J21: 65.39406051 | K21: 65.58005887 | L21: 63.61316422 | N21: 326190.9091 | O21: 58239.93401 | P21: 201826.9876 | Q21: 66123.98747 | S21: 302509.0909 | T21: 53451.57005 | U21: 186963.5592 | V21: 62093.96168 | X21: 23681.81818 | Y21: 4788.363969 | Z21: 14863.42843 | AA21: 4030.025784 | AC21: 7.260109807 | AD21: 8.221788108 | AE21: 7.364440507 | AF21: 6.094650275 | AH21: 100.9943646 | AI21: 100.0376707 | AJ21: 100.7131527
A22: Nov | B22: 2001 | D22: 501300 | E22: 89041.01939 | F22: 308232.9632 | G22: 104026.0174 | I22: 65.04724081 | J22: 65.31405858 | K22: 65.47900351 | L22: 63.53952931 | N22: 326081.8182 | O22: 58156.30357 | P22: 201827.8728 | Q22: 66097.6418 | S22: 302290.9091 | T22: 53553.53975 | U22: 186545.1029 | V22: 62192.26644 | X22: 23790.90909 | Y22: 4602.763819 | Z22: 15282.76991 | AA22: 3905.375362 | AC22: 7.295993755 | AD22: 7.914471066 | AE22: 7.572180045 | AF22: 5.908494245 | AH22: 101.1870318 | AI22: 99.81376941 | AJ22: 100.8725979
A23: Dec | B23: 2001 | D23: 501818.1818 | E23: 89018.83853 | F23: 308698.0986 | G23: 104101.2447 | I23: 65.00724638 | J23: 65.28553212 | K23: 65.4294238 | L23: 63.51736945 | N23: 326218.1818 | O23: 58116.42242 | P23: 201979.3872 | Q23: 66122.37221 | S23: 302290.9091 | T23: 53483.0555 | U23: 187142.0023 | V23: 61665.85135 | X23: 23927.27273 | Y23: 4633.366929 | Z23: 14837.38494 | AA23: 4456.520863 | AC23: 7.33474529 | AD23: 7.972560484 | AE23: 7.345989679 | AF23: 6.739807895 | AH23: 101.053855 | AI23: 100.1331494 | AJ23: 100.0187802
A24: Jan | B24: 2002 | D24: 502336.3636 | E24: 88996.66613 | F24: 309163.2231 | G24: 104176.4744 | I24: 65.0270554 | J24: 65.31682252 | K24: 65.43966114 | L24: 63.55502604 | N24: 326654.5455 | O24: 58129.79446 | P24: 202315.3655 | Q24: 66209.38546 | S24: 302700 | T24: 53537.82528 | U24: 187517.5064 | V24: 61644.66832 | X24: 23954.54545 | Y24: 4591.96918 | Z24: 14797.85914 | AA24: 4564.717137 | AC24: 7.333296226 | AD24: 7.899510436 | AE24: 7.314253714 | AF24: 6.894365664 | AH24: 101.1573401 | AI24: 100.3340686 | AJ24: 99.98442245
A25: Feb | B25: 2002 | D25: 502836.3636 | E25: 88971.28508 | F25: 309617.1415 | G25: 104247.9371 | I25: 65.09618166 | J25: 65.39744353 | K25: 65.49922926 | L25: 63.64201283 | N25: 327327.2727 | O25: 58184.94592 | P25: 202796.8413 | Q25: 66345.4855 | S25: 303181.8182 | T25: 53173.62517 | U25: 188600.5485 | V25: 61407.64453 | X25: 24145.45455 | Y25: 5011.320755 | Z25: 14196.29281 | AA25: 4937.840978 | AC25: 7.376548353 | AD25: 8.612744543 | AE25: 7.000253417 | AF25: 7.442617897 | AH25: 100.4692001 | AI25: 100.9135666 | AJ25: 99.59998227
A26: Mar | B26: 2002 | D26: 503327.2727 | E26: 88944.31417 | F26: 310065.4383 | G26: 104317.5203 | I26: 65.18260304 | J26: 65.49537301 | K26: 65.57610598 | L26: 63.74630766 | N26: 328081.8182 | O26: 58254.41033 | P26: 203328.8404 | Q26: 66498.56744 | S26: 303654.5455 | T26: 53131.82731 | U26: 189161.9343 | V26: 61360.78388 | X26: 24427.27273 | Y26: 5122.583017 | Z26: 14166.90615 | AA26: 5137.783561 | AC26: 7.445482003 | AD26: 8.793468148 | AE26: 6.967484849 | AF26: 7.726156756 | AH26: 100.390225 | AI26: 101.2139445 | AJ26: 99.52397675
A27: Apr | B27: 2002 | D27: 503818.1818 | E27: 88917.36392 | F27: 310513.7085 | G27: 104387.1094 | I27: 65.2652472 | J27: 65.58953856 | K27: 65.64921893 | L27: 63.84683817 | N27: 328818.1818 | O27: 58320.4887 | P27: 203849.8243 | Q27: 66647.86878 | S27: 304109.0909 | T27: 53007.9386 | U27: 189116.0973 | V27: 61985.05503 | X27: 24709.09091 | Y27: 5312.550095 | Z27: 14733.72706 | AA27: 4662.813752 | AC27: 7.514514791 | AD27: 9.10923453 | AE27: 7.227735962 | AF27: 6.996193333 | AH27: 100.1561427 | AI27: 101.1894187 | AJ27: 100.5365119
A28: May | B28: 2002 | D28: 504309.0909 | E28: 88890.43429 | F28: 310961.9524 | G28: 104456.7042 | I28: 65.36395428 | J28: 65.69978031 | K28: 65.7384082 | L28: 63.96344446 | N28: 329636.3636 | O28: 58400.82004 | P28: 204421.4376 | Q28: 66814.106 | S28: 304845.4545 | T28: 53242.53223 | U28: 189702.5301 | V28: 61900.39218 | X28: 24790.90909 | Y28: 5158.287811 | Z28: 14718.90746 | AA28: 4913.71382 | AC28: 7.520683949 | AD28: 8.832560583 | AE28: 7.200275878 | AF28: 7.35430602 | AH28: 100.599397 | AI28: 101.5031984 | AJ28: 100.3991931
A29: Jun | B29: 2002 | D29: 504790.9091 | E29: 88861.92485 | F29: 311404.5617 | G29: 104524.4225 | I29: 65.38981036 | J29: 65.73718427 | K29: 65.75475979 | L29: 64.00721261 | N29: 330081.8182 | O29: 58415.32728 | P29: 204763.3215 | Q29: 66903.16935 | S29: 305309.0909 | T29: 53384.8501 | U29: 189932.9053 | V29: 61991.33549 | X29: 24772.72727 | Y29: 5030.477186 | Z29: 14830.41623 | AA29: 4911.833856 | AC29: 7.505026302 | AD29: 8.611570661 | AE29: 7.242711302 | AF29: 7.341705787 | AH29: 100.8683003 | AI29: 101.6264642 | AJ29: 100.5466984
A30: Jul | B30: 2002 | D30: 505254.5455 | E30: 88880.89785 | F30: 311779.8671 | G30: 104593.7805 | I30: 65.45935442 | J30: 65.81830753 | K30: 65.81483079 | L30: 64.09469918 | N30: 330736.3636 | O30: 58499.90268 | P30: 205197.392 | Q30: 67039.06899 | S30: 306336.3636 | T30: 53852.28364 | U30: 190418.7788 | V30: 62065.30123 | X30: 24400 | Y30: 4647.619048 | Z30: 14778.6132 | AA30: 4973.767753 | AC30: 7.377477255 | AD30: 7.944661161 | AE30: 7.202144753 | AF30: 7.419207677 | AH30: 101.7514951 | AI30: 101.8864381 | AJ30: 100.666667
A31: Aug | B31: 2002 | D31: 505700 | E31: 88896.6634 | F31: 312143.9658 | G31: 104659.3708 | I31: 65.56168767 | J31: 65.93222825 | K31: 65.90769932 | L31: 64.21498294 | N31: 331545.4545 | O31: 58611.55102 | P31: 205726.9064 | Q31: 67206.99712 | S31: 307681.8182 | T31: 54424.60329 | U31: 190944.8186 | V31: 62312.39625 | X31: 23863.63636 | Y31: 4186.947731 | Z31: 14782.08776 | AA31: 4894.600869 | AC31: 7.197696737 | AD31: 7.143553887 | AE31: 7.185296285 | AF31: 7.282873925 | AH31: 102.8328677 | AI31: 102.1679036 | AJ31: 101.0674422
A32: Sep | B32: 2002 | D32: 506127.2727 | E32: 88909.22827 | F32: 312496.8481 | G32: 104721.1963 | I32: 65.72906563 | J32: 66.11120194 | K32: 66.06562088 | L32: 64.40031937 | N32: 332672.7273 | O32: 58778.95944 | P32: 206452.983 | Q32: 67440.78488 | S32: 309245.4545 | T32: 54581.46377 | U32: 191997.8572 | V32: 62666.13355 | X32: 23427.27273 | Y32: 4197.495673 | Z32: 14455.12573 | AA32: 4774.651329 | AC32: 7.042138055 | AD32: 7.141153422 | AE32: 7.001655059 | AF32: 7.079768329 | AH32: 103.1292486 | AI32: 102.7313478 | AJ32: 101.6411855
A33: Oct | B33: 2002 | D33: 506518.1818 | E33: 88915.40753 | F33: 312827.2754 | G33: 104775.4989 | I33: 65.85961197 | J33: 66.25335222 | K33: 66.1867191 | L33: 64.54883218 | N33: 333590.9091 | O33: 58909.43813 | P33: 207050.11 | Q33: 67631.36093 | S33: 310109.0909 | T33: 54859.08084 | U33: 192489.3319 | V33: 62760.67812 | X33: 23481.81818 | Y33: 4050.357285 | Z33: 14560.77809 | AA33: 4870.682811 | AC33: 7.039106145 | AD33: 6.875565976 | AE33: 7.032489905 | AF33: 7.201811029 | AH33: 103.6537937 | AI33: 102.9943188 | AJ33: 101.7945319
A34: Nov | B34: 2002 | D34: 506900 | E34: 88919.99878 | F34: 313152.0769 | G34: 104827.9243 | I34: 65.89070823 | J34: 66.29606061 | K34: 66.20837548 | L34: 64.59790293 | N34: 334000 | O34: 58950.45629 | P34: 207332.9029 | Q34: 67716.64077 | S34: 310290.9091 | T34: 54724.15409 | U34: 192912.3883 | V34: 62654.3667 | X34: 23709.09091 | Y34: 4226.302199 | Z34: 14420.51465 | AA34: 5062.274063 | AC34: 7.098530212 | AD34: 7.169244252 | AE34: 6.955246583 | AF34: 7.475672162 | AH34: 103.3988556 | AI34: 103.2206814 | AJ34: 101.6221003
A35: Dec | B35: 2002 | D35: 507254.5455 | E35: 88919.81816 | F35: 313460.0125 | G35: 104874.7148 | I35: 65.85899136 | J35: 66.27596407 | K35: 66.16722698 | L35: 64.58416857 | N35: 334072.7273 | O35: 58932.46673 | P35: 207407.7979 | Q35: 67732.46261 | S35: 310263.6364 | T35: 54119.78279 | U35: 193713.1688 | V35: 62430.68476 | X35: 23809.09091 | Y35: 4812.683947 | Z35: 13694.62912 | AA35: 5301.777844 | AC35: 7.126918472 | AD35: 8.166439 | AE35: 6.602755178 | AF35: 7.827528544 | AH35: 102.2569229 | AI35: 103.6491511 | AJ35: 101.2592999
A36: Jan | B36: 2003 | D36: 507609.0909 | E36: 88919.65314 | F36: 313767.9257 | G36: 104921.512 | I36: 65.73239966 | J36: 66.16100084 | K36: 66.03121184 | L36: 64.47556737 | N36: 333663.6364 | O36: 58830.13247 | P36: 207184.7637 | Q36: 67648.74018 | S36: 310145.4545 | T36: 53968.27988 | U36: 194214.3299 | V36: 61962.84478 | X36: 23518.18182 | Y36: 4861.852583 | Z36: 12970.43384 | AA36: 5685.895394 | AC36: 7.048470152 | AD36: 8.264221717 | AE36: 6.26032224 | AF36: 8.405027764 | AH36: 101.9706649 | AI36: 103.9173049 | AJ36: 100.500488
A37: Feb | B37: 2003 | D37: 507945.4545 | E37: 88916.32095 | F37: 314064.5749 | G37: 104964.5587 | I37: 65.59580485 | J37: 66.03604266 | K37: 65.88520177 | L37: 64.35697101 | N37: 333190.9091 | O37: 58716.81963 | P37: 206922.0789 | Q37: 67552.01059 | S37: 309945.4545 | T37: 54055.85365 | U37: 193488.403 | V37: 62401.19786 | X37: 23245.45455 | Y37: 4660.965982 | Z37: 13433.67584 | AA37: 5150.812725 | AC37: 6.976617282 | AD37: 7.938042304 | AE37: 6.492142314 | AF37: 7.624958429 | AH37: 102.1361316 | AI37: 103.5288868 | AJ37: 101.2114737
A38: Mar | B38: 2003 | D38: 508272.7273 | E38: 88911.41847 | F38: 314355.5731 | G38: 105005.7357 | I38: 65.49096763 | J38: 65.94285021 | K38: 65.77095747 | L38: 64.27014014 | N38: 332872.7273 | O38: 58630.7235 | P38: 206754.6703 | Q38: 67487.33348 | S38: 309727.2727 | T38: 53701.73639 | U38: 193704.7315 | V38: 62320.80482 | X38: 23145.45455 | Y38: 4928.987113 | Z38: 13049.93877 | AA38: 5166.528661 | AC38: 6.953244483 | AD38: 8.406833173 | AE38: 6.311798787 | AF38: 7.655553116 | AH38: 101.4670428 | AI38: 103.6446366 | AJ38: 101.0810804
A39: Apr | B39: 2003 | D39: 508590.9091 | E39: 88904.94899 | F39: 314640.9156 | G39: 105045.0445 | I39: 65.39100903 | J39: 65.85454451 | K39: 65.66159993 | L39: 64.18819581 | N39: 332572.7273 | O39: 58547.94921 | P39: 206598.2592 | Q39: 67426.51882 | S39: 309181.8182 | T39: 53513.48202 | U39: 193411.8279 | V39: 62256.50829 | X39: 23390.90909 | Y39: 5034.467188 | Z39: 13186.43137 | AA39: 5170.010536 | AC39: 7.033321488 | AD39: 8.598878794 | AE39: 6.382643985 | AF39: 7.667621918 | AH39: 101.1113445 | AI39: 103.4879141 | AJ39: 100.9767948
A40: May | B40: 2003 | D40: 508918.1818 | E40: 88900.09186 | F40: 314931.8492 | G40: 105086.2408 | I40: 65.29894071 | J40: 65.77413721 | K40: 65.5601408 | L40: 64.11414966 | N40: 332318.1818 | O40: 58473.2684 | P40: 206469.7637 | Q40: 67375.14967 | S40: 308827.2727 | T40: 53775.08659 | U40: 193172.6161 | V40: 61879.57002 | X40: 23490.90909 | Y40: 4698.181818 | Z40: 13297.14762 | AA40: 5495.57965 | AC40: 7.068800438 | AD40: 8.034751514 | AE40: 6.440239666 | AF40: 8.15668637 | AH40: 101.6056347 | AI40: 103.3599203 | AJ40: 100.3654207
A41: Jun | B41: 2003 | D41: 509263.6364 | E41: 88898.43064 | F41: 315234.0059 | G41: 105131.1998 | I41: 65.15824988 | J41: 65.64511548 | K41: 65.41006724 | L41: 63.9914889 | N41: 331827.2727 | O41: 58357.47745 | P41: 206194.7752 | Q41: 67275.02008 | S41: 308318.1818 | T41: 53829.95813 | U41: 192293.3779 | V41: 62194.84582 | X41: 23509.09091 | Y41: 4527.519316 | Z41: 13901.39734 | AA41: 5080.174256 | AC41: 7.084737404 | AD41: 7.758250551 | AE41: 6.741876618 | AF41: 7.551353014 | AH41: 101.7093121 | AI41: 102.8894706 | AJ41: 100.8767815
A42: Jul | B42: 2003 | D42: 509609.0909 | E42: 88891.96879 | F42: 315518.5815 | G42: 105198.5406 | I42: 65.02131759 | J42: 65.51992435 | K42: 65.26382403 | L42: 63.87265693 | N42: 331354.5455 | O42: 58241.9507 | P42: 205919.4918 | Q42: 67193.10291 | S42: 307809.0909 | T42: 53670.19322 | U42: 192276.5001 | V42: 61862.39755 | X42: 23545.45455 | Y42: 4571.757483 | Z42: 13642.9917 | AA42: 5330.705365 | AC42: 7.10581909 | AD42: 7.8495954 | AE42: 6.625400818 | AF42: 7.933411517 | AH42: 101.4074434 | AI42: 102.8804399 | AJ42: 100.3375678
A43: Aug | B43: 2003 | D43: 509954.5455 | E43: 88885.5044 | F43: 315803.1599 | G43: 105265.8812 | I43: 64.86674392 | J43: 65.3770978 | K43: 65.09994536 | L43: 63.73618941 | N43: 330790.9091 | O43: 58110.76314 | P43: 205587.6845 | Q43: 67092.4614 | S43: 307254.5455 | T43: 53814.1689 | U43: 191610.8117 | V43: 61829.56484 | X43: 23536.36364 | Y43: 4296.594242 | Z43: 13976.87283 | AA43: 5262.896561 | AC43: 7.115178498 | AD43: 7.393801095 | AE43: 6.79849713 | AF43: 7.844244273 | AH43: 101.679479 | AI43: 102.5242533 | AJ43: 100.2843149
A44: Sep | B44: 2003 | D44: 510309.0909 | E44: 88880.62085 | F44: 316093.372 | G44: 105335.0981 | I44: 64.67559768 | J44: 65.19770464 | K44: 64.89950003 | L44: 63.56315516 | N44: 330045.4545 | O44: 57948.12467 | P44: 205143.018 | Q44: 66954.31183 | S44: 306672.7273 | T44: 53804.17959 | U44: 191242.1652 | V44: 61626.38245 | X44: 23372.72727 | Y44: 4143.945079 | Z44: 13900.85281 | AA44: 5327.929388 | AC44: 7.081669192 | AD44: 7.151128882 | AE44: 6.776176415 | AF44: 7.957559777 | AH44: 101.6606047 | AI44: 102.3270034 | AJ44: 99.95476371
A45: Oct | B45: 2003 | D45: 510663.6364 | E45: 88875.73241 | F45: 316383.5892 | G45: 105404.3147 | I45: 64.50963986 | J45: 65.04350586 | K45: 64.72424903 | L45: 63.41531513 | N45: 329427.2727 | O45: 57807.89222 | P45: 204776.9022 | Q45: 66842.47833 | S45: 306163.6364 | T45: 53592.18582 | U45: 190584.7597 | V45: 61986.69086 | X45: 23263.63636 | Y45: 4215.7064 | Z45: 14192.14249 | AA45: 4855.787476 | AC45: 7.061842868 | AD45: 7.292613929 | AE45: 6.930538716 | AF45: 7.264523395 | AH45: 101.2600519 | AI45: 101.9752487 | AJ45: 100.5391651
A46: Nov | B46: 2003 | D46: 511018.1818 | E46: 88870.83909 | F46: 316673.8117 | G46: 105473.5311 | I46: 64.36170213 | J46: 64.90733311 | K46: 64.56702398 | L46: 63.28550096 | N46: 328900 | O46: 57683.69156 | P46: 204466.8559 | Q46: 66749.45251 | S46: 305472.7273 | T46: 53302.48731 | U46: 190369.9256 | V46: 61800.31438 | X46: 23427.27273 | Y46: 4381.20425 | Z46: 14096.93034 | AA46: 4949.138135 | AC46: 7.122916609 | AD46: 7.595221685 | AE46: 6.894481885 | AF46: 7.414499967 | AH46: 100.7126794 | AI46: 101.8602984 | AJ46: 100.2368722
A47: Dec | B47: 2003 | D47: 511372.7273 | E47: 88865.94089 | F47: 316964.0393 | G47: 105542.7471 | I47: 64.31707881 | J47: 64.87448074 | K47: 64.51311923 | L47: 63.25900695 | N47: 328900 | O47: 57651.3177 | P47: 204483.3886 | Q47: 66765.29373 | S47: 305090.9091 | T47: 53003.84217 | U47: 190633.1738 | V47: 61453.89313 | X47: 23809.09091 | Y47: 4647.47553 | Z47: 13850.21477 | AA47: 5311.400606 | AC47: 7.239006053 | AD47: 8.061351787 | AE47: 6.77327135 | AF47: 7.955331743 | AH47: 100.1484027 | AI47: 102.0011534 | AJ47: 99.67499508
A48: Jan | B48: 2004 | D48: 511745.4545 | E48: 88864.19508 | F48: 317265.5442 | G48: 105615.7153 | I48: 64.32530377 | J48: 64.89448259 | K48: 64.51206862 | L48: 63.28536699 | N48: 329181.8182 | O48: 57667.95961 | P48: 204674.5655 | Q48: 66839.29303 | S48: 304990.9091 | T48: 52998.73017 | U48: 190743.6738 | V48: 61248.50515 | X48: 24190.90909 | Y48: 4669.229437 | Z48: 13930.89177 | AA48: 5590.787879 | AC48: 7.348798674 | AD48: 8.096748124 | AE48: 6.806361962 | AF48: 8.364522761 | AH48: 100.1387438 | AI48: 102.060278 | AJ48: 99.34186654
A49: Feb | B49: 2004 | D49: 512118.1818 | E49: 88862.43969 | F49: 317567.0592 | G49: 105688.6829 | I49: 64.39032184 | J49: 64.97128348 | K49: 64.56781694 | L49: 63.36852589 | N49: 329754.5455 | O49: 57735.0676 | P49: 205046.1175 | Q49: 66973.3604 | S49: 304990.9091 | T49: 52794.50172 | U49: 191212.533 | V49: 60983.87438 | X49: 24763.63636 | Y49: 4940.56588 | Z49: 13833.58446 | AA49: 5989.48602 | AC49: 7.509717972 | AD49: 8.557305093 | AE49: 6.746572252 | AF49: 8.943087198 | AH49: 99.75286324 | AI49: 102.3111482 | AJ49: 98.91264929
A50: Mar | B50: 2004 | D50: 512500 | E50: 88862.25102 | F50: 317874.2229 | G50: 105763.526 | I50: 64.51086475 | J50: 65.10361513 | K50: 64.67909594 | L50: 63.5072154 | N50: 330618.1818 | O50: 57852.5379 | P50: 205598.1736 | Q50: 67167.4703 | S50: 305181.8182 | T50: 52913.59137 | U50: 191175.8186 | V50: 61092.40826 | X50: 25436.36364 | Y50: 4938.946537 | Z50: 14422.35506 | AA50: 6075.062035 | AC50: 7.693576771 | AD50: 8.537130291 | AE50: 7.01482645 | AF50: 9.044649155 | AH50: 99.97787784 | AI50: 102.2915036 | AJ50: 99.08868556
A51: Apr | B51: 2004 | D51: 512872.7273 | E51: 88860.47536 | F51: 318175.7595 | G51: 105836.4925 | I51: 64.66605218 | J51: 65.27059723 | K51: 64.82502527 | L51: 63.6805552 | N51: 331654.5455 | O51: 57999.76297 | P51: 206257.5165 | Q51: 67397.266 | S51: 305545.4545 | T51: 53015.11744 | U51: 190901.5923 | V51: 61628.74476 | X51: 26109.09091 | Y51: 4984.645532 | Z51: 15355.92414 | AA51: 5768.52124 | AC51: 7.872375418 | AD51: 8.594251556 | AE51: 7.445025228 | AF51: 8.558984039 | AH51: 100.1697068 | AI51: 102.1447748 | AJ51: 99.95859527
A52: May | B52: 2004 | D52: 513245.4545 | E52: 88858.69019 | F52: 318477.3061 | G52: 105909.4583 | I52: 64.77850399 | J52: 65.39484957 | K52: 64.92822477 | L52: 63.81116517 | N52: 332472.7273 | O52: 58109.00678 | P52: 206781.6611 | Q52: 67582.05937 | S52: 305918.1818 | T52: 53463.63634 | U52: 190701.5327 | V52: 61753.01281 | X52: 26554.54545 | Y52: 4645.370441 | Z52: 16080.12845 | AA52: 5829.046563 | AC52: 7.986984578 | AD52: 7.994234799 | AE52: 7.776380344 | AF52: 8.625139005 | AH52: 101.0171634 | AI52: 102.0377298 | AJ52: 100.1601515
A53: Jun | B53: 2004 | D53: 513618.1818 | E53: 88856.89551 | F53: 318778.8627 | G53: 105982.4236 | I53: 64.86070303 | J53: 65.48885502 | K53: 65.00117727 | L53: 63.91152815 | N53: 333136.3636 | O53: 58191.36348 | P53: 207210.0137 | Q53: 67734.98648 | S53: 306309.0909 | T53: 53834.98779 | U53: 191451.4914 | V53: 61022.6117 | X53: 26827.27273 | Y53: 4356.375687 | Z53: 15758.52226 | AA53: 6712.374783 | AC53: 8.052940374 | AD53: 7.486292513 | AE53: 7.605096866 | AF53: 9.909760276 | AH53: 101.7188154 | AI53: 102.4390065 | AJ53: 98.97547919
A54: Jul | B54: 2004 | D54: 513990.9091 | E54: 88908.77261 | F54: 319033.4955 | G54: 106048.6409 | I54: 64.94632024 | J54: 65.58621678 | K54: 65.0774865 | L54: 64.01524894 | N54: 333818.1818 | O54: 58311.90034 | P54: 207618.98 | Q54: 67887.30149 | S54: 306854.5455 | T54: 53877.88014 | U54: 191640.5288 | V54: 61336.13651 | X54: 26963.63636 | Y54: 4434.020202 | Z54: 15978.45118 | AA54: 6551.164983 | AC54: 8.077342048 | AD54: 7.603971361 | AE54: 7.696045506 | AF54: 9.650059495 | AH54: 101.7998586 | AI54: 102.5401538 | AJ54: 99.48400001
A55: Aug | B55: 2004 | D55: 514363.6364 | E55: 88960.64476 | F55: 319288.1375 | G55: 106114.8541 | I55: 65.11488158 | J55: 65.76652491 | K55: 65.23674204 | L55: 64.20191602 | N55: 334927.2727 | O55: 58506.32459 | P55: 208293.1786 | Q55: 68127.7695 | S55: 307754.5455 | T55: 54170.25109 | U55: 192028.0851 | V55: 61556.20921 | X55: 27172.72727 | Y55: 4336.073501 | Z55: 16265.09349 | AA55: 6571.560284 | AC55: 8.11302318 | AD55: 7.4112902 | AE55: 7.808749953 | AF55: 9.645934884 | AH55: 102.3522805 | AI55: 102.7475217 | AJ55: 99.84094641
A56: Sep | B56: 2004 | D56: 514727.2727 | E56: 89010.93986 | F56: 319537.1451 | G56: 106179.1877 | I56: 65.27022254 | J56: 65.93361486 | K56: 65.38277935 | L56: 64.37536489 | N56: 335963.6364 | O56: 58688.13027 | P56: 208922.2666 | Q56: 68353.23953 | S56: 308654.5455 | T56: 54296.465 | U56: 192289.4654 | V56: 62068.6151 | X56: 27309.09091 | Y56: 4391.665266 | Z56: 16632.80121 | AA56: 6284.624433 | AC56: 8.128585345 | AD56: 7.48305534 | AE56: 7.961239117 | AF56: 9.194332963 | AH56: 102.5907561 | AI56: 102.8873771 | AJ56: 100.6720419
A57: Oct | B57: 2004 | D57: 515090.9091 | E57: 89061.23047 | F57: 319786.1611 | G57: 106243.5175 | I57: 65.42534416 | J57: 66.10048769 | K57: 65.52859951 | L57: 64.5485966 | N57: 337000 | O57: 58869.90768 | P57: 209551.3928 | Q57: 68578.69955 | S57: 309545.4545 | T57: 54302.51529 | U57: 192662.0792 | V57: 62580.86009 | X57: 27454.54545 | Y57: 4567.392388 | Z57: 16889.31361 | AA57: 5997.839455 | AC57: 8.146749393 | AD57: 7.758450061 | AE57: 8.059747725 | AF57: 8.74592183 | AH57: 102.6021878 | AI57: 103.0867498 | AJ57: 101.5028765
A58: Nov | B58: 2004 | D58: 515445.4545 | E58: 89109.94494 | F58: 320029.541 | G58: 106305.9686 | I58: 65.54436586 | J58: 66.2312628 | K58: 65.6383219 | L58: 64.68573057 | N58: 337845.4545 | O58: 59018.64182 | P58: 210062.0203 | Q58: 68764.79245 | S58: 310345.4545 | T58: 54388.29994 | U58: 192856.8921 | V58: 63100.26254 | X58: 27500 | Y58: 4630.34188 | Z58: 17205.12821 | AA58: 5664.529915 | AC58: 8.139816484 | AD58: 7.845558179 | AE58: 8.190499255 | AF58: 8.237543825 | AH58: 102.7642741 | AI58: 103.1909873 | AJ58: 102.34532
A59: Dec | B59: 2004 | D59: 515800 | E59: 89158.65537 | F59: 320272.9284 | G59: 106368.4163 | I59: 65.64736156 | J59: 66.34601411 | K59: 65.73202044 | L59: 64.80684071 | N59: 338609.0909 | O59: 59153.21407 | P59: 210521.8667 | Q59: 68934.01011 | S59: 311100 | T59: 54077.13182 | U59: 193778.9825 | V59: 63243.88565 | X59: 27509.09091 | Y59: 5076.082251 | Z59: 16742.8842 | AA59: 5690.124459 | AC59: 8.124144226 | AD59: 8.581245044 | AE59: 7.953038067 | AF59: 8.25445154 | AH59: 102.1763358 | AI59: 103.6843657 | AJ59: 102.5782692
A60: Jan | B60: 2005 | D60: 516172.7273 | E60: 89210.50413 | F60: 320527.6136 | G60: 106434.6096 | I60: 65.6686451 | J60: 66.37905546 | K60: 65.74400898 | L60: 64.84624089 | N60: 338963.6364 | O60: 59217.09001 | P60: 210727.703 | Q60: 69018.84332 | S60: 311672.7273 | T60: 54133.32092 | U60: 194239.8033 | V60: 63299.60309 | X60: 27290.90909 | Y60: 5083.769094 | Z60: 16487.89977 | AA60: 5719.240231 | AC60: 8.051279301 | AD60: 8.584969463 | AE60: 7.824267777 | AF60: 8.286490987 | AH60: 102.2825026 | AI60: 103.9309348 | AJ60: 102.6686399
A61: Feb | B61: 2005 | D61: 516563.6364 | E61: 89265.4899 | F61: 320793.599 | G61: 106504.5474 | I61: 65.67878639 | J61: 66.40095675 | K61: 65.74485741 | L61: 64.87450097 | N61: 339272.7273 | O61: 59273.13935 | P61: 210905.2943 | Q61: 69094.29367 | S61: 312327.2727 | T61: 53977.96889 | U61: 194728.3056 | V61: 63620.99821 | X61: 26945.45455 | Y61: 5295.170455 | Z61: 16176.98864 | AA61: 5473.295455 | AC61: 7.942122186 | AD61: 8.933507678 | AE61: 7.670261998 | AF61: 7.921486948 | AH61: 101.9889718 | AI61: 104.1923154 | AJ61: 103.189926
